Workbook

Sheet PROJET
B7: EASY ROOF FLAT
M9: Version 2.11
B10: ='Traduction Flat'!$A$40 -> PROJET | L10: ='Traduction Flat'!$A$46 -> MODULE PV
B12: ='Traduction Flat'!$A$41 -> Date | D12: 2023-01-01 | F12: ='Traduction Flat'!$A$84 -> Version projet | I12: 1 | L12: ='Traduction Flat'!$A$47 -> Modèle
B14: ='Traduction Flat'!$A$42 -> Projet | L14: Documentation
L16: ='Traduction Flat'!$A$48 -> Longueur (mm) | M16: 1722
B17: ='Traduction Flat'!$A$43 -> Nom du Client
L18: ='Traduction Flat'!$A$49 -> Largeur (mm) | M18: 1134
B19: ='Traduction Flat'!$A$44 -> Adresse du projet
L20: ='Traduction Flat'!$A$50 -> Hauteur (mm) | M20: 30
B22: ='Traduction Flat'!$A$45 -> Observation | L22: ='Traduction Flat'!$A$51 -> Puissance (W) | M22: 425
L24: ='Traduction Flat'!$A$52 -> Poids (Kg) | M24: 22
B26: ='Traduction Flat'!A8 -> TYPE DE CALCUL EUROCODE
O31: 1
B32: ='Traduction Flat'!A9 -> ZONE France | L32: ='Traduction Flat'!A10 -> CHARGE EN Pa
B34: ='Traduction Flat'!A12 -> DEFINITION GEOGRAPHIE | L34: ='Traduction Flat'!A13 -> CONDITION CLIMATIQUE
B36: ='Traduction Flat'!A25 -> Zone de vent | D36: 1 (22 m/s) | L36: ='Traduction Flat'!A109 -> Charge maxi du vent sur site (N/m² ou Pa) | N36: 420
L37: ='Traduction Flat'!A110 -> Indiquer "0" pour un calcul EUROCODE
B38: ='Traduction Flat'!A112 -> Zone de neige | D38: A1
L39: ='Traduction Flat'!A111 -> Charge maxi de la neige sur site (N/m² ou Pa) | N39: 2000
B40: ='Traduction Flat'!A28 -> Catégorie du terrain * | D40: IIIa | F40: ='Traduction Flat'!$A$121 -> *Catégorie "0" non prise en charge | L40: =L37 -> Indiquer "0" pour un calcul EUROCODE
B42: ='Traduction Flat'!A27 -> Altitude (m) | D42: 600 | E42: www.mapsdirections | L42: https://www.dlubal.com
B45: ='Traduction Flat'!A11 -> DIMENSION DU BATIMENT
B47: ='Traduction Flat'!$A$75 -> Latitude | D47: 60 | F47: www.mapsdirections | O47: 2
O48: FALSE
B49: ='Traduction Flat'!$A$15 -> Hauteur Z (m) | D49: 15
B51: ='Traduction Flat'!$A$16 -> Largeur l (m) | D51: 15 | E51: =$B$51 & " " & $D$51 -> Largeur l (m) 15
B53: ='Traduction Flat'!$A$17 -> Longueur L (m) | D53: 15 | E53: =$B$53&" "&$D$53 -> Longueur L (m) 15
B55: ='Traduction Flat'!$A$62 -> Inclinaison toiture (°) | D55: 3
B56: ='Traduction Flat'!$A$62 -> Inclinaison toiture (°) | D56: =100*TAN(RADIANS(D55)) -> 5.240777928 | L56: ='Traduction Flat'!$A$19 -> Hauteur de la rétention d'eau (cm) | N56: 0.2
B58: ='Traduction Flat'!$A$61 -> Coefficient de frottement | D58: 0.5 | L58: ='Traduction Flat'!$A$20 -> Hauteur acrotère hp (m) | N58: 0.3
D60: =IF(OrientationChampPV=90,$E$53,$E$51) -> Longueur L (m) 15 | M60: α (°) | N60: 30
M62: r (m) | N62: 0.5
O64: 2
C70: =IF(OrientationChampPV=90,$E$51,$E$53) -> Largeur l (m) 15
B78: ='Traduction Flat'!$A$14 -> DEFINITION POSITION MODULE
J80: ='Traduction Flat'!$A$34 -> Module individuel | L80: ='Traduction Flat'!$A$33 -> Ligne unitaire | M80: ='Traduction Flat'!$A$32 -> Bloc multi ligne
O84: 3
O85: 1
B89: ='Traduction Flat'!A23 -> Inclinaison module α (°) | D89: 8
B90: ='Traduction Flat'!A24 -> Inclinaison module α (%) | D90: =100*TAN(RADIANS(D89)) -> 14.05408347 | J90: ='Traduction Flat'!$A$92 -> Nombre de ligne MAXI | L90: ='Traduction Flat'!$A$97 -> Nombre de PV MAXI | O90: FALSE
J91: =DataNbLignePVMax -> 5 | L91: =NBLigneMAXI*NBColonneMAXI -> 35
B92: ='Traduction Flat'!$A$94 -> Nombre de ligne sélctionné | D92: 5 | F92: ='Traduction Flat'!$A$103 -> Nombre de PV | H92: =Data!$E$24 -> 25
J93: ='Traduction Flat'!$A$93 -> Nombre de colonne MAXI | L93: ='Traduction Flat'!$A$98 -> Puissance (kW) totale
B94: ='Traduction Flat'!$A$95 -> Nombre de colonne sélectionné | D94: 5 | F94: ='Traduction Flat'!$A$104 -> Puissance (kW) | H94: =H92*M22/1000 -> 10.625 | J94: =DataNbColonnePVMax -> 7 | L94: =L91*M22 -> 14875 | O94: 1
B98: Ps (mm) | C98: =IF(TypeInclinaisonModule=FALSE,Data!$E$4,Data!$E$5) -> 2460 | E98: ='Traduction Flat'!$A$76 -> Interval ligne (X) | H98: 150 | J98: Pes (mm) | K98: =IF(TypeInclinaisonModule=FALSE,Data!$E$11,Data!$E$12) -> 2406 | M98: ='Traduction Flat'!$A$76 -> Interval ligne (X) | N98: 150
B99: E (mm) | C99: =Data!E18 -> 1337 | M99: ='Traduction Flat'!$A$77 -> Séparation module (M) | N99: 10
B108: ='Traduction Flat'!$A$53 -> TYPE DE MONTAGE
O110: 1
O111: 1
O112: 1
O113: TRUE
O114: 1
B117: Hotline : +33 810 148 223 | D117: Email : be.solaire@edilians.com

Sheet RESULTAT
N10: Application des charges
N12: Exemple O1 avec 1 module
C13: ='Traduction Flat'!$A$64 -> DEFINITION DU LESTAGE
C14: ='Traduction Flat'!$A$113 -> Exposition Sud ou Est-Ouest avec Module à 0 degré d'inclinaison (Module parrallèle à la toiture) | N14: =IF(TypeFixation=1,IF($G$18<>0,ROUND($G$18/2,0) & "=" & ROUND($G$18,0) &"/2",""),"") & " N" -> N | T14: =IF(TypeFixation=1,IF($G$18<>0,ROUND($G$18/2,0) & "=" & ROUND($G$18,0) &"/2",""),"") & " N" -> N
O16: PV
C17: ='Traduction Flat'!$A$66 -> Zone | E17: ='Traduction Flat'!$A$70 -> Nombre total de Modules | G17: ='Traduction Flat'!$A$73 -> Lestage par module | J17: ='Traduction Flat'!$A$69 -> Lestage total
C18: ='Traduction Flat'!$A$114 -> Toutes les Zones | E18: =IF(Data!$B$53=TRUE,F76+F118,0) -> 0 | G18: =IF(TypeFixation=1,IF(Data!$B$53=TRUE,Frottement!D107,0),"") -> 0 | I18: =IF(G18<>"",G18/10,"") -> 0 | J18: =IF(TypeFixation=1,IF(E18<>"",PRODUCT(G18,E18),0),"") -> 0 | L18: =IF(J18<>"",J18/10,"") -> 0
J19: ='Traduction Flat'!$A$65 -> Lestage en Newton
C21: =IF(TypeFixation=1,'Traduction Flat'!$A$120&" "&'Feuille de calcul'!$R$20&" Pa","") -> Le module photovoltaïque sélectionné pour le projet est compatible avec la charge descendante calculée de 296 Pa
C22: =IF(TypeFixation=1,'Traduction Flat'!$A$117&" "&'Feuille de calcul'!$AA$4&" Pa","") -> Le module photovoltaïque sélectionné pour le projet est compatible avec la charge descendante calculée de 720 Pa
C23: ='Traduction Flat'!$A$115 -> Le calcul de structure est à la charge du maître d’ouvrage | N23: Exemple O1 avec X modules
C24: Le poids de l’ensemble système ER FLAT + module(s) est déjà soustrait de la charge de lestage indiqué dans ce rapport
N25: =IF(TypeFixation=1,IF($G$18<>0,ROUND($G$18/2,0) & "=" & ROUND($G$18,0) &"/2",""),"") & " N" -> N | T25: =IF(TypeFixation=1,IF(AND($E$18<>"",$J$18<>""),ROUND($J$18/$E$18,0) & "=" & ROUND($J$18,0) &"/" & $E$18,""),"") & " N" ->  | AA25: =IF(TypeFixation=1,IF(AND($E$111<>"",$J$111<>""),ROUND($J$111/$E$111,0) & "=" & ROUND($J$111,0) &"/" & $E$111,""),"") ->  | AH25: =IF($G$18<>0,ROUND($G$18/2,0) & "=" & ROUND($G$18,0) &"/2","") & " N" -> N
O27: PV | V27: PV | AC27: PV
C48: ='Traduction Flat'!$A$64 -> DEFINITION DU LESTAGE
C49: =IF([0]!ChoixExposition=3,'Traduction Flat'!$A$31,(IF([0]!ChoixExposition=2,'Traduction Flat'!$A$30,'Traduction Flat'!$A$30))) -> Exposition Sud sans déflecteur | N49: Application des charges
D50: ='Traduction Flat'!$A$68 -> Vertical | G50: ='Traduction Flat'!$A$67 -> Horizontal
D51: Suction | E51: Max. Suction | F51: Max. Suction | N51: Exemple S1 avec 1 module
C52: ='Traduction Flat'!$A$66 -> Zone | D52: ='Traduction Flat'!$A$32 -> Bloc multi ligne | E52: ='Traduction Flat'!$A$33 -> Ligne unitaire | F52: ='Traduction Flat'!$A$34 -> Module individuel
C53: S1 | D53: =IF(TypeFixation=1,IF(AND([0]!ChoixExposition=2,[0]!ChoixTypeLigne=1),'Calcul essais au vent'!E94,IF(AND([0]!ChoixExposition=3,[0]!ChoixTypeLigne=1),'Calcul essais au vent'!E139,0)),"") -> 405.6068504 | E53: =IF(TypeFixation=1,IF(AND([0]!ChoixExposition=2,[0]!ChoixTypeLigne=2),'Calcul essais au vent'!F94,IF(AND([0]!ChoixExposition=3,[0]!ChoixTypeLigne=2),'Calcul essais au vent'!F139,0)),"") -> 0 | F53: =IF(TypeFixation=1,IF(AND([0]!ChoixExposition=2,[0]!ChoixTypeLigne=3),'Calcul essais au vent'!G94,IF(AND([0]!ChoixExposition=3,[0]!ChoixTypeLigne=3),'Calcul essais au vent'!G139,0)),"") -> 0 | G53: =IF(TypeFixation=1,IF([0]!ChoixExposition=2,'Calcul essais au vent'!K94,IF([0]!ChoixExposition=3,'Calcul essais au vent'!I139,0)),"") -> 148.8962539 | N53: =IF(TypeFixation=1,IF($G$66<>0,ROUNDDOWN($G$66/2,0) & "=" & ROUNDDOWN($G$66,0) &"/2",""),"") & " N" -> 202=405/2 N | T53: =IF(TypeFixation=1,IF($G$66<>0,ROUNDDOWN($G$66/2,0) & "=" & ROUNDDOWN($G$66,0) &"/2",""),"")& " N" -> 202=405/2 N
C54: S2 | D54: =IF(TypeFixation=1,IF(AND([0]!ChoixExposition=2,[0]!ChoixTypeLigne=1),'Calcul essais au vent'!E95,IF(AND([0]!ChoixExposition=3,[0]!ChoixTypeLigne=1),'Calcul essais au vent'!E140,0)),"") -> 161.2227815 | E54: =IF(TypeFixation=1,IF(AND([0]!ChoixExposition=2,[0]!ChoixTypeLigne=2),'Calcul essais au vent'!F95,IF(AND([0]!ChoixExposition=3,[0]!ChoixTypeLigne=2),'Calcul essais au vent'!F140,0)),"") -> 0 | F54: =IF(TypeFixation=1,IF(AND([0]!ChoixExposition=2,[0]!ChoixTypeLigne=3),'Calcul essais au vent'!G95,IF(AND([0]!ChoixExposition=3,[0]!ChoixTypeLigne=3),'Calcul essais au vent'!G140,0)),"") -> 0 | G54: =IF(TypeFixation=1,IF([0]!ChoixExposition=2,'Calcul essais au vent'!K95,IF([0]!ChoixExposition=3,'Calcul essais au vent'!I140,0)),"") -> 111.6721904
C55: S3 | D55: =IF(TypeFixation=1,IF(AND([0]!ChoixExposition=2,[0]!ChoixTypeLigne=1),'Calcul essais au vent'!E96,IF(AND([0]!ChoixExposition=3,[0]!ChoixTypeLigne=1),'Calcul essais au vent'!E141,0)),"") -> 106.9152106 | E55: =IF(TypeFixation=1,IF(AND([0]!ChoixExposition=2,[0]!ChoixTypeLigne=2),'Calcul essais au vent'!F96,IF(AND([0]!ChoixExposition=3,[0]!ChoixTypeLigne=2),'Calcul essais au vent'!F141,0)),"") -> 0 | F55: =IF(TypeFixation=1,IF(AND([0]!ChoixExposition=2,[0]!ChoixTypeLigne=3),'Calcul essais au vent'!G96,IF(AND([0]!ChoixExposition=3,[0]!ChoixTypeLigne=3),'Calcul essais au vent'!G141,0)),"") -> 0 | G55: =IF(TypeFixation=1,IF([0]!ChoixExposition=2,'Calcul essais au vent'!K96,IF([0]!ChoixExposition=3,'Calcul essais au vent'!I141,0)),"") -> 100 | O55: PV
C56: M1 | D56: =IF(TypeFixation=1,IF(AND([0]!ChoixExposition=2,[0]!ChoixTypeLigne=1),'Calcul essais au vent'!E97,IF(AND([0]!ChoixExposition=3,[0]!ChoixTypeLigne=1),'Calcul essais au vent'!E142,0)),"") -> 459.9144213 | E56: =IF(TypeFixation=1,IF(AND([0]!ChoixExposition=2,[0]!ChoixTypeLigne=2),'Calcul essais au vent'!F97,IF(AND([0]!ChoixExposition=3,[0]!ChoixTypeLigne=2),'Calcul essais au vent'!F142,0)),"") -> 0 | F56: =IF(TypeFixation=1,IF(AND([0]!ChoixExposition=2,[0]!ChoixTypeLigne=3),'Calcul essais au vent'!G97,IF(AND([0]!ChoixExposition=3,[0]!ChoixTypeLigne=3),'Calcul essais au vent'!G142,0)),"") -> 0 | G56: =IF(TypeFixation=1,IF([0]!ChoixExposition=2,'Calcul essais au vent'!K97,IF([0]!ChoixExposition=3,'Calcul essais au vent'!I142,0)),"") -> 103.4001763
C57: M2 | D57: =IF(TypeFixation=1,IF(AND([0]!ChoixExposition=2,[0]!ChoixTypeLigne=1),'Calcul essais au vent'!E98,IF(AND([0]!ChoixExposition=3,[0]!ChoixTypeLigne=1),'Calcul essais au vent'!E143,0)),"") -> 201.9534597 | E57: =IF(TypeFixation=1,IF(AND([0]!ChoixExposition=2,[0]!ChoixTypeLigne=2),'Calcul essais au vent'!F98,IF(AND([0]!ChoixExposition=3,[0]!ChoixTypeLigne=2),'Calcul essais au vent'!F143,0)),"") -> 0 | F57: =IF(TypeFixation=1,IF(AND([0]!ChoixExposition=2,[0]!ChoixTypeLigne=3),'Calcul essais au vent'!G98,IF(AND([0]!ChoixExposition=3,[0]!ChoixTypeLigne=3),'Calcul essais au vent'!G143,0)),"") -> 0 | G57: =IF(TypeFixation=1,IF([0]!ChoixExposition=2,'Calcul essais au vent'!K98,IF([0]!ChoixExposition=3,'Calcul essais au vent'!I143,0)),"") -> 136.4882327
C58: M3 | D58: =IF(TypeFixation=1,IF(AND([0]!ChoixExposition=2,[0]!ChoixTypeLigne=1),'Calcul essais au vent'!E99,IF(AND([0]!ChoixExposition=3,[0]!ChoixTypeLigne=1),'Calcul essais au vent'!E144,0)),"") -> 39.03074705 | E58: =IF(TypeFixation=1,IF(AND([0]!ChoixExposition=2,[0]!ChoixTypeLigne=2),'Calcul essais au vent'!F99,IF(AND([0]!ChoixExposition=3,[0]!ChoixTypeLigne=2),'Calcul essais au vent'!F144,0)),"") -> 0 | F58: =IF(TypeFixation=1,IF(AND([0]!ChoixExposition=2,[0]!ChoixTypeLigne=3),'Calcul essais au vent'!G99,IF(AND([0]!ChoixExposition=3,[0]!ChoixTypeLigne=3),'Calcul essais au vent'!G144,0)),"") -> 0 | G58: =IF(TypeFixation=1,IF([0]!ChoixExposition=2,'Calcul essais au vent'!K99,IF([0]!ChoixExposition=3,'Calcul essais au vent'!I144,0)),"") -> 100
C59: N1 | D59: =IF(TypeFixation=1,IF(AND([0]!ChoixExposition=2,[0]!ChoixTypeLigne=1),'Calcul essais au vent'!E100,IF(AND([0]!ChoixExposition=3,[0]!ChoixTypeLigne=1),'Calcul essais au vent'!E145,0)),"") -> 500.6450994 | E59: =IF(TypeFixation=1,IF(AND([0]!ChoixExposition=2,[0]!ChoixTypeLigne=2),'Calcul essais au vent'!F100,IF(AND([0]!ChoixExposition=3,[0]!ChoixTypeLigne=2),'Calcul essais au vent'!F145,0)),"") -> 0 | F59: =IF(TypeFixation=1,IF(AND([0]!ChoixExposition=2,[0]!ChoixTypeLigne=3),'Calcul essais au vent'!G100,IF(AND([0]!ChoixExposition=3,[0]!ChoixTypeLigne=3),'Calcul essais au vent'!G145,0)),"") -> 0 | G59: =IF(TypeFixation=1,IF([0]!ChoixExposition=2,'Calcul essais au vent'!K100,IF([0]!ChoixExposition=3,'Calcul essais au vent'!I145,0)),"") -> 128.2162186
C60: N2 | D60: =IF(TypeFixation=1,IF(AND([0]!ChoixExposition=2,[0]!ChoixTypeLigne=1),'Calcul essais au vent'!E101,IF(AND([0]!ChoixExposition=3,[0]!ChoixTypeLigne=1),'Calcul essais au vent'!E146,0)),"") -> 215.5303524 | E60: =IF(TypeFixation=1,IF(AND([0]!ChoixExposition=2,[0]!ChoixTypeLigne=2),'Calcul essais au vent'!F101,IF(AND([0]!ChoixExposition=3,[0]!ChoixTypeLigne=2),'Calcul essais au vent'!F146,0)),"") -> 0 | F60: =IF(TypeFixation=1,IF(AND([0]!ChoixExposition=2,[0]!ChoixTypeLigne=3),'Calcul essais au vent'!G101,IF(AND([0]!ChoixExposition=3,[0]!ChoixTypeLigne=3),'Calcul essais au vent'!G146,0)),"") -> 0 | G60: =IF(TypeFixation=1,IF([0]!ChoixExposition=2,'Calcul essais au vent'!K101,IF([0]!ChoixExposition=3,'Calcul essais au vent'!I146,0)),"") -> 153.032261
C61: N3 | D61: =IF(TypeFixation=1,IF(AND([0]!ChoixExposition=2,[0]!ChoixTypeLigne=1),'Calcul essais au vent'!E102,IF(AND([0]!ChoixExposition=3,[0]!ChoixTypeLigne=1),'Calcul essais au vent'!E147,0)),"") -> 256.2610305 | E61: =IF(TypeFixation=1,IF(AND([0]!ChoixExposition=2,[0]!ChoixTypeLigne=2),'Calcul essais au vent'!F102,IF(AND([0]!ChoixExposition=3,[0]!ChoixTypeLigne=2),'Calcul essais au vent'!F147,0)),"") -> 0 | F61: =IF(TypeFixation=1,IF(AND([0]!ChoixExposition=2,[0]!ChoixTypeLigne=3),'Calcul essais au vent'!G102,IF(AND([0]!ChoixExposition=3,[0]!ChoixTypeLigne=3),'Calcul essais au vent'!G147,0)),"") -> 0 | G61: =IF(TypeFixation=1,IF([0]!ChoixExposition=2,'Calcul essais au vent'!K102,IF([0]!ChoixExposition=3,'Calcul essais au vent'!I147,0)),"") -> 103.4001763 | N61: Exemple S1 avec X modules
F62: ='Traduction Flat'!$A$65 -> Lestage en Newton
N63: =IF(TypeFixation=1,IF($G$66<>0,ROUNDDOWN($G$66/2,0) & "=" & ROUNDDOWN($G$66,0) &"/2",""),"")& " N" -> 202=405/2 N | T63: =IF(TypeFixation=1,IF(AND($E$66<>"",$J$66<>""),ROUNDDOWN($J$66/$E$66,0) & "=" & ROUNDDOWN($J$66,0) &"/" & $E$66,""),"")& " N" -> 405=6084/15 N | AA63: =IF(AND($E$66<>"",$J$66<>""),ROUNDDOWN($J$66/$E$66,0) & "=" & ROUNDDOWN($J$66,0) &"/" & $E$66,"")& " N" -> 405=6084/15 N | AH63: =IF(TypeFixation=1,IF($G$66<>0,ROUNDDOWN($G$66/2,0) & "=" & ROUNDDOWN($G$66,0) &"/2",""),"")& " N" -> 202=405/2 N
C64: =IF([0]!ChoixExposition=3,'Traduction Flat'!$A$31,(IF([0]!ChoixExposition=2,'Traduction Flat'!$A$30,""))) -> Exposition Sud sans déflecteur
C65: ='Traduction Flat'!$A$66 -> Zone | E65: ='Traduction Flat'!$A$71 -> Nbre module | G65: ='Traduction Flat'!$A$73 -> Lestage par module | J65: ='Traduction Flat'!$A$74 -> Lestage par Zone | O65: PV | V65: PV | AC65: PV
C66: S1 | E66: =IF(OR(ExpositionModule=2,ExpositionModule=3),IF(NbPvS1>0, NbPvS1,""),0) -> 15 | G66: =IF(TypeFixation=1,IF(E66<>"",MAX(G53,ABS(IF([0]!ChoixTypeLigne=1,D53,IF([0]!ChoixTypeLigne=2,E53,IF([0]!ChoixTypeLigne=3,F53))))),""),"") -> 405.6068504 | I66: =IF(G66<>"",G66/10,"") -> 40.56068504 | J66: =IF(TypeFixation=1,IF(E66<>"",PRODUCT(G66,E66),0),"") -> 6084.102756 | L66: =IF(J66<>"",J66/10,"") -> 608.4102756
C67: S2 | E67: =IF(OR(ExpositionModule=2,ExpositionModule=3),IF(NbPvS2>0, NbPvS2,""),0) ->  | G67: =IF(TypeFixation=1,IF(E67<>"",MAX(G54,ABS(IF([0]!ChoixTypeLigne=1,D54,IF([0]!ChoixTypeLigne=2,E54,IF([0]!ChoixTypeLigne=3,F54))))),""),"") ->  | I67: =IF(G67<>"",G67/10,"") ->  | J67: 0 | L67: 0
C68: S3 | E68: =IF(OR(ExpositionModule=2,ExpositionModule=3),IF(NbPvS3>0, NbPvS3,""),0) ->  | G68: =IF(TypeFixation=1,IF(E68<>"",MAX(G55,ABS(IF([0]!ChoixTypeLigne=1,D55,IF([0]!ChoixTypeLigne=2,E55,IF([0]!ChoixTypeLigne=3,F55))))),""),"") ->  | J68: 0 | L68: 0
C69: M1 | E69: =IF(OR(ExpositionModule=2,ExpositionModule=3),IF(NbPvM1>0, NbPvM1,""),0) ->  | G69: =IF(TypeFixation=1,IF(E69<>"",MAX(G56,ABS(IF([0]!ChoixTypeLigne=1,D56,IF([0]!ChoixTypeLigne=2,E56,IF([0]!ChoixTypeLigne=3,F56))))),""),"") ->  | J69: 0 | L69: 0
C70: M2 | E70: =IF(OR(ExpositionModule=2,ExpositionModule=3),IF(NbPvM2>0, NbPvM2,""),0) ->  | G70: =IF(TypeFixation=1,IF(E70<>"",MAX(G57,ABS(IF([0]!ChoixTypeLigne=1,D57,IF([0]!ChoixTypeLigne=2,E57,IF([0]!ChoixTypeLigne=3,F57))))),""),"") ->  | J70: 0 | L70: 0
C71: M3 | E71: =IF(OR(ExpositionModule=2,ExpositionModule=3),IF(NbPvM3>0, NbPvM3,""),0) ->  | G71: =IF(TypeFixation=1,IF(E71<>"",MAX(G58,ABS(IF([0]!ChoixTypeLigne=1,D58,IF([0]!ChoixTypeLigne=2,E58,IF([0]!ChoixTypeLigne=3,F58))))),""),"") ->  | J71: 0 | L71: 0
C72: N1 | E72: =IF(OR(ExpositionModule=2,ExpositionModule=3),IF(NbPvN1>0, NbPvN1,""),0) -> 10 | G72: =IF(TypeFixation=1,IF(E72<>"",MAX(G59,ABS(IF([0]!ChoixTypeLigne=1,D59,IF([0]!ChoixTypeLigne=2,E59,IF([0]!ChoixTypeLigne=3,F59))))),""),"") -> 500.6450994 | I72: 50.06450994 | J72: 5006.450994 | L72: 500.6450994
C73: N2 | E73: =IF(OR(ExpositionModule=2,ExpositionModule=3),IF(NbPvN2>0, NbPvN2,""),0) ->  | G73: =IF(TypeFixation=1,IF(E73<>"",MAX(G60,ABS(IF([0]!ChoixTypeLigne=1,D60,IF([0]!ChoixTypeLigne=2,E60,IF([0]!ChoixTypeLigne=3,F60))))),""),"") ->  | J73: 0 | L73: 0
C74: N3 | E74: =IF(OR(ExpositionModule=2,ExpositionModule=3),IF(NbPvN3>0, NbPvN3,""),0) ->  | G74: =IF(TypeFixation=1,IF(E74<>"",MAX(G61,ABS(IF([0]!ChoixTypeLigne=1,D61,IF([0]!ChoixTypeLigne=2,E61,IF([0]!ChoixTypeLigne=3,F61))))),""),"") ->  | J74: 0 | L74: 0
G75: ='Traduction Flat'!$A$69 -> Lestage total | J75: =SUM(J66:L74) -> 12199.60913 | L75: =IF(J75<>"",J75/10,"") -> 1219.960913
C76: ='Traduction Flat'!$A$70 -> Nombre total de Modules | F76: =SUM(E66:F74) -> 25
C78: =IF(TypeFixation=1,'Traduction Flat'!$A$120&" "&'Feuille de calcul'!$R$20&" Pa","") -> Le module photovoltaïque sélectionné pour le projet est compatible avec la charge descendante calculée de 296 Pa
C79: =IF(TypeFixation=1,'Traduction Flat'!$A$117&" "&'Feuille de calcul'!$AA$4&" Pa","") -> Le module photovoltaïque sélectionné pour le projet est compatible avec la charge descendante calculée de 720 Pa
C80: ='Traduction Flat'!$A$115 -> Le calcul de structure est à la charge du maître d’ouvrage
C81: Le poids de l’ensemble système ER FLAT + module(s) est déjà soustrait de la charge de lestage indiqué dans ce rapport
C96: ='Traduction Flat'!$A$64 -> DEFINITION DU LESTAGE
C97: =IF([0]!ChoixExposition=1,'Traduction Flat'!$A$29,'Traduction Flat'!$A$29) -> Exposition Est-Ouest | N97: Application des charges
D98: ='Traduction Flat'!$A$68 -> Vertical | G98: ='Traduction Flat'!$A$67 -> Horizontal
D99: Suction | E99: Max. Suction | F99: Max. Suction | N99: Exemple O1 avec 1 module
C100: ='Traduction Flat'!$A$66 -> Zone | D100: ='Traduction Flat'!$A$32 -> Bloc multi ligne | E100: ='Traduction Flat'!$A$33 -> Ligne unitaire | F100: ='Traduction Flat'!$A$34 -> Module individuel
C101: O1 | D101: =IF(TypeFixation=1,IF(AND([0]!ChoixExposition=1,[0]!ChoixTypeLigne=1),'Calcul essais au vent'!E52,0),"") -> 0 | E101: =IF(TypeFixation=1,IF(AND([0]!ChoixExposition=1,[0]!ChoixTypeLigne=2),'Calcul essais au vent'!F52,0),"") -> 0 | F101: =IF(TypeFixation=1,IF(AND([0]!ChoixExposition=1,[0]!ChoixTypeLigne=3),'Calcul essais au vent'!G52,0),"") -> 0 | G101: =IF(TypeFixation=1,IF([0]!ChoixExposition=1,'Calcul essais au vent'!I52,0),"") -> 0 | N101: =IF(TypeFixation=1,IF($G$111<>0,ROUND($G$111/2,0) & "=" & ROUND($G$111,0) &"/2",""),"")& " N" ->  | T101: =IF(TypeFixation=1,IF($G$111<>0,ROUND($G$111/2,0) & "=" & ROUND($G$111,0) &"/2",""),"")& " N" -> 
C102: O2 | D102: =IF(TypeFixation=1,IF(AND([0]!ChoixExposition=1,[0]!ChoixTypeLigne=1),'Calcul essais au vent'!E53,0),"") -> 0 | E102: =IF(TypeFixation=1,IF(AND([0]!ChoixExposition=1,[0]!ChoixTypeLigne=2),'Calcul essais au vent'!F53,0),"") -> 0 | F102: =IF(TypeFixation=1,IF(AND([0]!ChoixExposition=1,[0]!ChoixTypeLigne=3),'Calcul essais au vent'!G53,0),"") -> 0 | G102: =IF(TypeFixation=1,IF([0]!ChoixExposition=1,'Calcul essais au vent'!I53,0),"") -> 0
C103: O3 | D103: =IF(TypeFixation=1,IF(AND([0]!ChoixExposition=1,[0]!ChoixTypeLigne=1),'Calcul essais au vent'!E54,0),"") -> 0 | E103: =IF(TypeFixation=1,IF(AND([0]!ChoixExposition=1,[0]!ChoixTypeLigne=2),'Calcul essais au vent'!F54,0),"") -> 0 | F103: =IF(TypeFixation=1,IF(AND([0]!ChoixExposition=1,[0]!ChoixTypeLigne=3),'Calcul essais au vent'!G54,0),"") -> 0 | G103: =IF(TypeFixation=1,IF([0]!ChoixExposition=1,'Calcul essais au vent'!I54,0),"") -> 0 | O103: PV
C104: M1 | D104: =IF(TypeFixation=1,IF(AND([0]!ChoixExposition=1,[0]!ChoixTypeLigne=1),'Calcul essais au vent'!E55,0),"") -> 0 | E104: =IF(TypeFixation=1,IF(AND([0]!ChoixExposition=1,[0]!ChoixTypeLigne=2),'Calcul essais au vent'!F55,0),"") -> 0 | F104: =IF(TypeFixation=1,IF(AND([0]!ChoixExposition=1,[0]!ChoixTypeLigne=3),'Calcul essais au vent'!G55,0),"") -> 0 | G104: =IF(TypeFixation=1,IF([0]!ChoixExposition=1,'Calcul essais au vent'!I55,0),"") -> 0
C105: M2 | D105: =IF(TypeFixation=1,IF(AND([0]!ChoixExposition=1,[0]!ChoixTypeLigne=1),'Calcul essais au vent'!E56,0),"") -> 0 | E105: =IF(TypeFixation=1,IF(AND([0]!ChoixExposition=1,[0]!ChoixTypeLigne=2),'Calcul essais au vent'!F56,0),"") -> 0 | F105: =IF(TypeFixation=1,IF(AND([0]!ChoixExposition=1,[0]!ChoixTypeLigne=3),'Calcul essais au vent'!G56,0),"") -> 0 | G105: =IF(TypeFixation=1,IF([0]!ChoixExposition=1,'Calcul essais au vent'!I56,0),"") -> 0
C106: M3 | D106: =IF(TypeFixation=1,IF(AND([0]!ChoixExposition=1,[0]!ChoixTypeLigne=1),'Calcul essais au vent'!E57,0),"") -> 0 | E106: =IF(TypeFixation=1,IF(AND([0]!ChoixExposition=1,[0]!ChoixTypeLigne=2),'Calcul essais au vent'!F57,0),"") -> 0 | F106: =IF(TypeFixation=1,IF(AND([0]!ChoixExposition=1,[0]!ChoixTypeLigne=3),'Calcul essais au vent'!G57,0),"") -> 0 | G106: =IF(TypeFixation=1,IF([0]!ChoixExposition=1,'Calcul essais au vent'!I57,0),"") -> 0
F107: ='Traduction Flat'!$A$65 -> Lestage en Newton
C109: =IF([0]!ChoixExposition=1,'Traduction Flat'!$A$29,'Traduction Flat'!$A$29) -> Exposition Est-Ouest | N109: Exemple O1 avec X modules
C110: ='Traduction Flat'!$A$66 -> Zone | E110: ='Traduction Flat'!$A$71 -> Nbre module | G110: ='Traduction Flat'!$A$73 -> Lestage par module | J110: ='Traduction Flat'!$A$74 -> Lestage par Zone
C111: O1 | E111: =IF(ExpositionModule=1,IF(NbPvO1>0, NbPvO1,""),"") ->  | G111: =IF(TypeFixation=1,IF(E111<>"",MAX(G101,ABS(IF([0]!ChoixTypeLigne=1,RESULTAT!D101,IF([0]!ChoixTypeLigne=2,RESULTAT!E101,IF([0]!ChoixTypeLigne=3,RESULTAT!F101,0))))),""),"") ->  | I111: =IF(G111<>"",G111/10,"") ->  | J111: =IF(TypeFixation=1,IF(E111<>"",PRODUCT(G111,E111),0),"") -> 0 | L111: =IF(J111<>"",J111/10,"") -> 0 | N111: =IF(TypeFixation=1,IF($G$111<>0,ROUND($G$111/2,0) & "=" & ROUND($G$111,0) &"/2",""),"")& " N" ->  | T111: =IF(TypeFixation=1,IF(AND($E$111<>"",$J$111<>""),ROUND($J$111/$E$111,0) & "=" & ROUND($J$111,0) &"/" & $E$111,""),"")& " N" -> N | AA111: =IF(TypeFixation=1,IF(AND($E$111<>"",$J$111<>""),ROUND($J$111/$E$111,0) & "=" & ROUND($J$111,0) &"/" & $E$111,""),"")& " N" -> N | AH111: =IF($G$111<>0,ROUND($G$111/2,0) & "=" & ROUND($G$111,0) &"/2","")& " N" -> 
C112: O2 | E112: =IF(ExpositionModule=1,IF(NbPvO2>0, NbPvO2,""),"") ->  | G112: =IF(TypeFixation=1,IF(E112<>"",MAX(G102,ABS(IF([0]!ChoixTypeLigne=1,RESULTAT!D102,IF([0]!ChoixTypeLigne=2,RESULTAT!E102,IF([0]!ChoixTypeLigne=3,RESULTAT!F102,0))))),""),"") ->  | J112: 0 | L112: 0
C113: O3 | E113: =IF(ExpositionModule=1,IF(NbPvO3>0, NbPvO3,""),"") ->  | G113: =IF(TypeFixation=1,IF(E113<>"",MAX(G103,ABS(IF([0]!ChoixTypeLigne=1,RESULTAT!D103,IF([0]!ChoixTypeLigne=2,RESULTAT!E103,IF([0]!ChoixTypeLigne=3,RESULTAT!F103,0))))),""),"") ->  | J113: 0 | L113: 0 | O113: PV | V113: PV | AC113: PV
C114: M1 | E114: =IF(ExpositionModule=1,IF(NbPvM1>0, NbPvM1,""),"") ->  | G114: =IF(TypeFixation=1,IF(E114<>"",MAX(G104,ABS(IF([0]!ChoixTypeLigne=1,RESULTAT!D104,IF([0]!ChoixTypeLigne=2,RESULTAT!E104,IF([0]!ChoixTypeLigne=3,RESULTAT!F104,0))))),""),"") ->  | J114: 0 | L114: 0
C115: M2 | E115: =IF(ExpositionModule=1,IF(NbPvM2>0, NbPvM2,""),"") ->  | G115: =IF(TypeFixation=1,IF(E115<>"",MAX(G105,ABS(IF([0]!ChoixTypeLigne=1,RESULTAT!D105,IF([0]!ChoixTypeLigne=2,RESULTAT!E105,IF([0]!ChoixTypeLigne=3,RESULTAT!F105,0))))),""),"") ->  | J115: 0 | L115: 0
C116: M3 | E116: =IF(ExpositionModule=1,IF(NbPvM3>0, NbPvM3,""),"") ->  | G116: =IF(TypeFixation=1,IF(E116<>"",MAX(G106,ABS(IF([0]!ChoixTypeLigne=1,RESULTAT!D106,IF([0]!ChoixTypeLigne=2,RESULTAT!E106,IF([0]!ChoixTypeLigne=3,RESULTAT!F106,0))))),""),"") ->  | J116: 0 | L116: 0
G117: ='Traduction Flat'!$A$69 -> Lestage total | J117: =SUM(J111:L116) -> 0 | L117: =IF(J117<>"",J117/10,"") -> 0
C118: ='Traduction Flat'!$A$70 -> Nombre total de Modules | F118: =SUM(E111:F116) -> 0
C120: =IF(TypeFixation=1,'Traduction Flat'!$A$120&" "&'Feuille de calcul'!$R$20&" Pa","") -> Le module photovoltaïque sélectionné pour le projet est compatible avec la charge descendante calculée de 296 Pa
C121: =IF(TypeFixation=1,'Traduction Flat'!$A$117&" "&'Feuille de calcul'!$AA$4&" Pa","") -> Le module photovoltaïque sélectionné pour le projet est compatible avec la charge descendante calculée de 720 Pa
C122: ='Traduction Flat'!$A$115 -> Le calcul de structure est à la charge du maître d’ouvrage
C123: Le poids de l’ensemble système ER FLAT + module(s) est déjà soustrait de la charge de lestage indiqué dans ce rapport

Sheet DESSIN
AJ6: NORD ▲
J10: 0 | O10: 3155 | U10: 4893 | AB10: 6631 | AI10: 8369 | AP10: 10107 | AW10: 11845 | BE10: 15000
C14: ORIENTATION PV | P14: 0 | V14: 1738 | AC14: 3476 | AJ14: 5214 | AQ14: 6952 | AX14: 8690
I15: 2018,5
S17: N1 | Z17: N1 | AG17: N1 | AN17: N1 | AU17: N1
I21: 4478,5 | P21: 2460
S23: N1 | Z23: N1 | AG23: N1 | AN23: N1 | AU23: N1
I27: 6938,5 | P27: 4920
S29: S1 | Z29: S1 | AG29: S1 | AN29: S1 | AU29: S1
I33: 9398,5 | P33: 7380
S35: S1 | Z35: S1 | AG35: S1 | AN35: S1 | AU35: S1
I39: 11858,5 | P39: 9840
S41: S1 | Z41: S1 | AG41: S1 | AN41: S1 | AU41: S1
I42: 13195,5 | P42: 11177
I49: 15000

Sheet NOMENCLATURE
B13: =traduction!A6 -> Nomenclature pour EASY ROOF FLAT | S13: =traduction!A7 -> Inscrire votre remise | U13: 0
B14: =traduction!A8 -> nombre de kits | G14: 1 | H14: 0 | I14: 0 | J14: 0 | K14: 0 | L14: 1
B15: =traduction!A150 -> Orientation | G15: S | H15: S | I15: S | J15: S | K15: S | L15: =ExpositionModuleBom -> S
B16: =traduction!A136 -> Fixation sur rail : | D16: =traduction!A167 -> PS (Orientation Sud) | E16: =traduction!A164 -> Méthode de choix du pas | G16: Calcul selon notice (mm) | H16: Calcul selon notice (mm) | I16: Calcul selon notice (mm) | J16: Entrée manuelle (mm) | K16: Entrée manuelle (mm) | L16: =PasLigneExpositionProjet -> 2460 | N16: =traduction!A9 -> VOTRE COMMANDE
D17: =traduction!A168 -> PEO (Orientation Est/Ouest) | E17: =traduction!A165 -> Entrée manuelle (mm) | G17: 2100 | J17: 1650 | K17: 1680
D18: =traduction!A169 -> cf. Onglet Calcul PS PEO | E18: =traduction!A166 -> Calcul selon notice (mm) | G18: =IF('Création champs PV'!O15=1,IF(NOMENCLATURE!G15="S",'Calcul PS PEO'!$C$18,'Calcul PS PEO'!$C$37),0) -> 0 | H18: =IF('Création champs PV'!AD15=1,IF(NOMENCLATURE!H15="S",'Calcul PS PEO'!$C$18,'Calcul PS PEO'!$C$37),0) -> 0 | I18: =IF('Création champs PV'!AS15=1,IF(NOMENCLATURE!I15="S",'Calcul PS PEO'!$C$18,'Calcul PS PEO'!$C$37),0) -> 0 | J18: 1482 | K18: =IF('Création champs PV'!AC34=1,IF(NOMENCLATURE!K15="S",'Calcul PS PEO'!$C$18,'Calcul PS PEO'!$C$37),0) -> 0
B19: =traduction!A10 -> Référence | C19: =traduction!A179 -> Référence historique | D19: =traduction!A11 -> nomenclature pièces | F19: =traduction!A12 -> Poids en g | G19: =traduction!A13 -> Champ PV 1 | H19: =traduction!A14 -> Champ PV 2 | I19: =traduction!A15 -> Champ PV 3 | J19: =traduction!A16 -> Champ PV 4 | K19: =traduction!A17 -> Champ PV 5 | L19: =traduction!A18 -> Champ PV 6 | N19: =traduction!A27 -> Complément | O19: =traduction!A28 -> Total | P19: =traduction!A29 -> Unité de vente | Q19: =traduction!A30 -> Qté commande | R19: =traduction!A31 -> Nb UDV | S19: =traduction!A32 -> Prix unitaire | T19: =traduction!A33 -> Prix unitaire après remise | U19: =traduction!A34 -> PRIX €* | Y19: =traduction!A95 -> oui
Y20: =traduction!A96 -> non
B21: 092406 | C21: ASM0P00413AA | D21: =traduction!A118 -> FLAT SOCLE | F21: 1068 | G21: =IF('Création champs PV'!O15=1,0,IF('Dispo FLA 2 ENS'!C3="oui",IF('Création champs PV'!$H$15=1,IF('Création champs PV'!$H$14<>1,COUNTIF('Nbre socle Module indép'!#REF!,1),COUNTIF('Nbre socle Module lié'!#REF!,1)),IF('Création champs PV'!$H$14=1,COUNT('Nbre socle Module lié'!#REF!)-COUNT('Nbre socle Module indép'!#REF!),0)),IF('Création champs PV'!$H$15<>1,IF('Création champs PV'!$H$14=1,COUNT('Nbre socle Module lié'!#REF!),COUNTIF('Nbre socle Module indép'!#REF!,1)),IF('Création champs PV'!$H$14<>1,COUNTIF('Nbre socle Module indép'!#REF!,1),COUNTIF('Nbre socle Module lié'!#REF!,1))))) -> 0 | H21: =IF('Création champs PV'!AD15=1,0,IF('Dispo FLA 2 ENS'!C3="oui",IF('Création champs PV'!$W$15=1,IF('Création champs PV'!$W$14<>1,COUNTIF('Nbre socle Module indép'!#REF!,1),COUNTIF('Nbre socle Module lié'!#REF!,1)),IF('Création champs PV'!W14=1,COUNT('Nbre socle Module lié'!#REF!)-COUNT('Nbre socle Module indép'!#REF!),0)),IF('Création champs PV'!$W$15<>1,IF('Création champs PV'!$W$14=1,COUNT('Nbre socle Module lié'!#REF!),COUNTIF('Nbre socle Module indép'!#REF!,1)),IF('Création champs PV'!$W$14<>1,COUNTIF('Nbre socle Module indép'!#REF!,1),COUNTIF('Nbre socle Module lié'!#REF!,1))))) ->  | I21: =IF('Création champs PV'!AS15=1,0,IF('Dispo FLA 2 ENS'!C3="oui",IF('Création champs PV'!$AL$15=1,IF('Création champs PV'!$AL$14<>1,COUNTIF('Nbre socle Module indép'!#REF!,1),COUNTIF('Nbre socle Module lié'!#REF!,1)),IF('Création champs PV'!AL14=1,COUNT('Nbre socle Module lié'!#REF!)-COUNT('Nbre socle Module indép'!#REF!),0)),IF('Création champs PV'!$AL$15<>1,IF('Création champs PV'!$AL$14=1,COUNT('Nbre socle Module lié'!#REF!),COUNTIF('Nbre socle Module indép'!#REF!,1)),IF('Création champs PV'!$AL$14<>1,COUNTIF('Nbre socle Module indép'!#REF!,1),COUNTIF('Nbre socle Module lié'!#REF!,1))))) -> 0 | J21: =IF('Création champs PV'!BH15=1,0,IF('Dispo FLA 2 ENS'!C3="oui",IF('Création champs PV'!$BA$15=1,IF('Création champs PV'!$BA$14<>1,COUNTIF('Nbre socle Module indép'!#REF!,1),COUNTIF('Nbre socle Module lié'!#REF!,1)),IF('Création champs PV'!BA14=1,COUNT('Nbre socle Module lié'!#REF!)-COUNT('Nbre socle Module indép'!#REF!),0)),IF('Création champs PV'!$BA$15<>1,IF('Création champs PV'!$BA$14=1,COUNT('Nbre socle Module lié'!#REF!),COUNTIF('Nbre socle Module indép'!#REF!,1)),IF('Création champs PV'!$BA$14<>1,COUNTIF('Nbre socle Module indép'!#REF!,1),COUNTIF('Nbre socle Module lié'!#REF!,1))))) ->  | K21: =IF('Création champs PV'!AC34=1,0,IF('Dispo FLA 2 ENS'!C3="oui",IF('Création champs PV'!$V$34=1,IF('Création champs PV'!$H$34<>1,COUNTIF('Nbre socle Module indép'!#REF!,1),COUNTIF('Nbre socle Module lié'!#REF!,1)),IF('Création champs PV'!H34=1,COUNT('Nbre socle Module lié'!#REF!)-COUNT('Nbre socle Module indép'!#REF!),0)),IF('Création champs PV'!$V$34<>1,IF('Création champs PV'!$H$34=1,COUNT('Nbre socle Module lié'!#REF!),COUNTIF('Nbre socle Module indép'!#REF!,1)),IF('Création champs PV'!$H$34<>1,COUNTIF('Nbre socle Module indép'!#REF!,1),COUNTIF('Nbre socle Module lié'!#REF!,1))))) -> 0 | L21: =IF('Création champs PV'!AC130=1,0,IF('Dispo FLA 2 ENS'!C3="oui",IF('Création champs PV'!$V$130=1,IF('Création champs PV'!$H$130<>1,COUNTIF('Nbre socle Module indép'!$C$4:$CQ$93,1),COUNTIF('Nbre socle Module lié'!$C$4:$CQ$94,1)),IF('Création champs PV'!H130=1,COUNT('Nbre socle Module lié'!C4:$CQ$94)-COUNT('Nbre socle Module indép'!C4:CQ93),0)),IF('Création champs PV'!$V$130<>1,IF('Création champs PV'!$H$130=1,COUNT('Nbre socle Module lié'!$C$4:$CQ$94),COUNTIF('Nbre socle Module indép'!$C$4:$CQ$93,1)),IF('Création champs PV'!$H$130<>1,COUNTIF('Nbre socle Module indép'!$C$4:$CQ$93,1),COUNTIF('Nbre socle Module lié'!$C$4:$CQ$94,1))))) -> 36 | O21: =L21 -> 36 | P21: 250 | Q21: =ROUNDUP(O21/P21,0)*P21 -> 250 | R21: =ROUNDUP(O21/P21,0) -> 1 | S21: 24.07176 | T21: =S21*(1-$U$13) -> 24.07176 | U21: =Q21*T21 -> 6017.94
B22: 092476 | C22: PRT0P00534AA | D22: =traduction!A122 -> FLAT SEMELLE TOP PV | F22: 1240 | G22: =IF('Création champs PV'!O15=1,0,IF('Création champs PV'!O14=1,G21,0)) -> 0 | H22: =IF('Création champs PV'!AD15=1,0,IF('Création champs PV'!AD14=1,H21,0)) ->  | I22: =IF('Création champs PV'!AS15=1,0,IF('Création champs PV'!AS14=1,I21,0)) -> 0 | J22: =IF('Création champs PV'!BH15=1,0,IF('Création champs PV'!BH14=1,J21,0)) ->  | K22: =IF('Création champs PV'!AC34=1,0,IF('Création champs PV'!O34=1,K21,0)) -> 0 | L22: =IF('Création champs PV'!AC130=1,0,IF('Création champs PV'!O130=1,L21,0)) -> 36 | O22: =L22 -> 36 | P22: 250 | Q22: =ROUNDUP(O22/P22,0)*P22 -> 250 | R22: =ROUNDUP(O22/P22,0) -> 1 | S22: 15.321096 | T22: =S22*(1-$U$13) -> 15.321096 | U22: =Q22*T22 -> 3830.274
B23: 092409 | C23: ASM0P01159AA | D23: =traduction!A176 -> FLAT ENS PIED AVT 125 EVO | F23: 288 | G23: =IF(AND('Création champs PV'!O15=1,NOT(NOMENCLATURE!G15="S"),NOT(G15="")),2*IF(OR('Dispo FLA 2 ENS'!$C$3="non",'Création champs PV'!O15=1),IF('Création champs PV'!H15=1,0,COUNTIF('Nbre socle Module indép'!#REF!,1)),0),IF(OR('Dispo FLA 2 ENS'!$C$3="non",'Création champs PV'!O15=1),IF('Création champs PV'!H15=1,0,COUNTIF('Nbre socle Module indép'!#REF!,1)),0)) ->  | H23: =IF(AND('Création champs PV'!AD15=1,NOT(NOMENCLATURE!H15="S"),NOT(H15="")),2*IF(OR('Dispo FLA 2 ENS'!$C$3="non",'Création champs PV'!AD15=1),IF('Création champs PV'!W15=1,0,COUNTIF('Nbre socle Module indép'!#REF!,1)),0),IF(OR('Dispo FLA 2 ENS'!$C$3="non",'Création champs PV'!AD15=1),IF('Création champs PV'!W15=1,0,COUNTIF('Nbre socle Module indép'!#REF!,1)),0)) ->  | I23: =IF(AND('Création champs PV'!AS15=1,NOT(NOMENCLATURE!I15="S"),NOT(I15="")),2*IF(OR('Création champs PV'!AD15=1,'Dispo FLA 2 ENS'!$C$3="non"),IF('Création champs PV'!AL15=1,0,COUNTIF('Nbre socle Module indép'!#REF!,1)),0),IF(OR('Création champs PV'!AD15=1,'Dispo FLA 2 ENS'!$C$3="non"),IF('Création champs PV'!AL15=1,0,COUNTIF('Nbre socle Module indép'!#REF!,1)),0)) ->  | J23: =IF(AND('Création champs PV'!BH15=1,NOT(NOMENCLATURE!J15="S"),NOT(J15="")),2*IF(OR('Dispo FLA 2 ENS'!$C$3="non",'Création champs PV'!BH15=1),IF('Création champs PV'!BA15=1,0,COUNTIF('Nbre socle Module indép'!#REF!,1)),0),IF(OR('Dispo FLA 2 ENS'!$C$3="non",'Création champs PV'!BH15=1),IF('Création champs PV'!BA15=1,0,COUNTIF('Nbre socle Module indép'!#REF!,1)),0)) ->  | K23: =IF(AND('Création champs PV'!AC34=1,NOT(NOMENCLATURE!K15="S"),NOT(K15="")),2*IF(OR('Dispo FLA 2 ENS'!$C$3="non",'Création champs PV'!AC34=1),IF('Création champs PV'!V34=1,0,COUNTIF('Nbre socle Module indép'!#REF!,1)),0),IF(OR('Dispo FLA 2 ENS'!$C$3="non",'Création champs PV'!AC34=1),IF('Création champs PV'!V34=1,0,COUNTIF('Nbre socle Module indép'!#REF!,1)),0)) ->  | L23: =IF(AND('Création champs PV'!AC130=1,NOT(NOMENCLATURE!L15="S"),NOT(L15="")),2*IF(OR('Dispo FLA 2 ENS'!$C$3="non",'Création champs PV'!AC130=1),IF('Création champs PV'!V130=1,0,COUNTIF('Nbre socle Module indép'!$C$4:$CQ$93,1)),0),IF(OR('Dispo FLA 2 ENS'!$C$3="non",'Création champs PV'!AC130=1),IF('Création champs PV'!V130=1,0,COUNTIF('Nbre socle Module indép'!$C$4:$CQ$93,1)),0)) -> 30 | O23: 30 | P23: 30 | Q23: =ROUNDUP(O23/P23,0)*P23 -> 30 | R23: =ROUNDUP(O23/P23,0) -> 1 | S23: 15.2417 | T23: 15.2417 | U23: 457.251
B24: 092414 | C24: ASM0P01160AA | D24: =traduction!A177 -> FLAT ENS PIED ARR 250 EVO | F24: 332 | G24: =IF(AND('Création champs PV'!O15=1,NOT(NOMENCLATURE!G15="S"),NOT(G15="")),2*IF('Création champs PV'!$H$15=1,2*COUNTIF('Nbre socle Module indép'!#REF!,1),IF('Dispo FLA 2 ENS'!C3="non",COUNTIF('Nbre socle Module indép'!#REF!,1),0)),IF('Création champs PV'!$H$15=1,2*COUNTIF('Nbre socle Module indép'!#REF!,1),IF('Dispo FLA 2 ENS'!C3="non",COUNTIF('Nbre socle Module indép'!#REF!,1),0))) ->  | H24: =IF(AND('Création champs PV'!AD15=1,NOT(NOMENCLATURE!H15="S"),NOT(H15="")),2*IF('Création champs PV'!$W$15=1,2*COUNTIF('Nbre socle Module indép'!#REF!,1),IF('Dispo FLA 2 ENS'!C3="non",COUNTIF('Nbre socle Module indép'!#REF!,1),0)),IF('Création champs PV'!$W$15=1,2*COUNTIF('Nbre socle Module indép'!#REF!,1),IF('Dispo FLA 2 ENS'!C3="non",COUNTIF('Nbre socle Module indép'!#REF!,1),0))) ->  | I24: =IF(AND('Création champs PV'!AS15=1,NOT(NOMENCLATURE!I15="S"),NOT(I15="")),2*IF('Création champs PV'!$AL$15=1,2*COUNTIF('Nbre socle Module indép'!#REF!,1),IF('Dispo FLA 2 ENS'!C3="non",COUNTIF('Nbre socle Module indép'!#REF!,1),0)),IF('Création champs PV'!$AL$15=1,2*COUNTIF('Nbre socle Module indép'!#REF!,1),IF('Dispo FLA 2 ENS'!C3="non",COUNTIF('Nbre socle Module indép'!#REF!,1),0))) ->  | J24: =IF(AND('Création champs PV'!BH15=1,NOT(NOMENCLATURE!J15="S"),NOT(J15="")),2*IF('Création champs PV'!$BA$15=1,2*COUNTIF('Nbre socle Module indép'!#REF!,1),IF('Dispo FLA 2 ENS'!C3="non",COUNTIF('Nbre socle Module indép'!#REF!,1),0)),IF('Création champs PV'!$BA$15=1,2*COUNTIF('Nbre socle Module indép'!#REF!,1),IF('Dispo FLA 2 ENS'!C3="non",COUNTIF('Nbre socle Module indép'!#REF!,1),0))) ->  | K24: =IF(AND('Création champs PV'!AC34=1,NOT(NOMENCLATURE!K15="S"),NOT(K15="")),2*IF('Création champs PV'!$V$34=1,2*COUNTIF('Nbre socle Module indép'!#REF!,1),IF('Dispo FLA 2 ENS'!C3="non",COUNTIF('Nbre socle Module indép'!#REF!,1),0)),IF('Création champs PV'!$V$34=1,2*COUNTIF('Nbre socle Module indép'!#REF!,1),IF('Dispo FLA 2 ENS'!C3="non",COUNTIF('Nbre socle Module indép'!#REF!,1),0))) ->  | L24: =IF(AND('Création champs PV'!AC130=1,NOT(NOMENCLATURE!L15="S"),NOT(L15="")),2*IF('Création champs PV'!$V$130=1,2*COUNTIF('Nbre socle Module indép'!$C$4:$CQ$93,1),IF('Dispo FLA 2 ENS'!C3="non",COUNTIF('Nbre socle Module indép'!$C$4:$CQ$93,1),0)),IF('Création champs PV'!$V$130=1,2*COUNTIF('Nbre socle Module indép'!$C$4:$CQ$93,1),IF('Dispo FLA 2 ENS'!C3="non",COUNTIF('Nbre socle Module indép'!$C$4:$CQ$93,1),0))) -> 30 | O24: 30 | P24: 30 | Q24: 30 | R24: 1 | S24: 18.9936 | T24: 18.9936 | U24: 569.808
B25: 093232 | D25: =traduction!A178 -> VIS M6X55 A2 DIN912 | F25: 10 | G25: =IF('Création champs PV'!O15=1,IF(NOMENCLATURE!G15<>"S",4*'Vis bord de champ'!P14,2*'Vis bord de champ'!P14),2*'Vis bord de champ'!P14) -> 0 | H25: =IF('Création champs PV'!AD15=1,IF(NOMENCLATURE!H15<>"S",4*'Vis bord de champ'!AE14,2*'Vis bord de champ'!AE14),2*'Vis bord de champ'!AE14) -> 12 | I25: =IF('Création champs PV'!AS15=1,IF(NOMENCLATURE!I15<>"S",4*'Vis bord de champ'!AT14,2*'Vis bord de champ'!AT14),2*'Vis bord de champ'!AT14) -> 12 | J25: =IF('Création champs PV'!BH15=1,IF(NOMENCLATURE!J15<>"S",4*'Vis bord de champ'!BI14,2*'Vis bord de champ'!BI14),2*'Vis bord de champ'!BI14) -> 12 | K25: =IF('Création champs PV'!AC34=1,IF(NOMENCLATURE!K15<>"S",4*'Vis bord de champ'!BI34,2*'Vis bord de champ'!BI34),2*'Vis bord de champ'!BI34) -> 36 | L25: =IF(AND('Création champs PV'!AC130=1,NOMENCLATURE!K4<>"S"),IF('Création champs PV'!H129=1,8,4*'Vis bord de champ'!CR130),IF('Création champs PV'!H129=1,4,2*'Vis bord de champ'!CR130)) -> 20 | O25: 20 | P25: 100 | Q25: 100 | R25: 1 | S25: 0.1 | T25: 0.1 | U25: 10
B26: 092449 | C26: PRT0P00476AA | D26: =traduction!A134 -> FLAT RAIL STANDARD 3000 | F26: 2082 | G26: =IF('Création champs PV'!O15=1,SUM('Nbre rail'!#REF!),0) -> 0 | H26: =IF('Création champs PV'!AD15=1,SUM('Nbre rail'!#REF!),0) -> 0 | I26: =IF('Création champs PV'!AS15=1,SUM('Nbre rail'!#REF!),0) -> 0 | J26: =IF('Création champs PV'!BH15=1,SUM('Nbre rail'!#REF!),0) -> 0 | K26: =IF('Création champs PV'!AC34=1,SUM('Nbre rail'!#REF!),0) -> 0 | L26: =IF('Création champs PV'!AC130=1,SUM('Nbre rail'!C95:CQ95),0) -> 0 | O26: 0 | P26: 8 | Q26: 0 | R26: 0 | S26: 21.384 | T26: =S26*(1-$U$13) -> 21.384 | U26: =Q26*T26 -> 0
B27: 092454 | C27: PRT0P00477AA | D27: =traduction!A135 -> FLAT ECLISSE 150 RAIL | F27: 30 | G27: =IF('Création champs PV'!O15=1,SUM('Nbre rail'!#REF!),0) -> 0 | H27: =IF('Création champs PV'!AD15=1,SUM('Nbre rail'!#REF!),0) -> 0 | I27: =IF('Création champs PV'!AS15=1,SUM('Nbre rail'!#REF!),0) -> 0 | J27: =IF('Création champs PV'!BH15=1,SUM('Nbre rail'!#REF!),0) -> 0 | K27: =IF('Création champs PV'!AC34=1,SUM('Nbre rail'!#REF!),0) -> 0 | L27: =IF('Création champs PV'!AC130=1,SUM('Nbre rail'!C96:CQ96),0) -> 0 | O27: 0 | P27: 16 | Q27: =ROUNDUP(O27/P27,0)*P27 -> 0 | R27: =ROUNDUP(O27/P27,0) -> 0 | S27: 1.62 | T27: =S27*(1-$U$13) -> 1.62 | U27: =Q27*T27 -> 0
F28: =traduction!A61 -> Poids en kg | G28: =(G21*$F$21+G22*$F$22+G23*$F$23+G24*$F$24+G25*$F$25+$F$26*G26+$F$27*G27)/1000 ->  | H28: =(H21*$F$21+H22*$F$22+H23*$F$23+H24*$F$24+H25*$F$25+$F$26*H26+$F$27*H27)/1000 ->  | J28: =(J21*$F$21+J22*$F$22+J23*$F$23+J24*$F$24+J25*$F$25+$F$26*J26+$F$27*J27)/1000 ->  | K28: =(K21*$F$21+K22*$F$22+K23*$F$23+K24*$F$24+K25*$F$25+$F$26*K26+$F$27*K27)/1000 ->  | L28: =(L21*$F$21+L22*$F$22+L23*$F$23+L24*$F$24+L25*$F$25+$F$26*L26+$F$27*L27)/1000 -> 101.888
E29: =IF(OR(AND(G14>0,'Création champs PV'!O15=1,G16=traduction!A166),AND(H14>0,'Création champs PV'!AD15=1,H16=traduction!A166),AND(I14>0,'Création champs PV'!AS15=1,I16=traduction!A166),AND(J14>0,'Création champs PV'!BH15=1,J16=traduction!A166),AND(K14>0,'Création champs PV'!AC34=1,K16=traduction!A166),AND(L14>0,'Création champs PV'!AC130=1,L16=traduction!A166)),traduction!A162,"") -> 
E30: =IF(OR(AND(G14>0,G27>0),AND(H14>0,H27>0),AND(I14>0,I27>0),AND(J14>0,J27>0),AND(K14>0,K27>0),AND(L14>0,L27>0)),traduction!A174,"") -> 

Sheet Feuille de calcul (hidden)
B2: Vitesse | C2: Catégorie de terrain | H2: Angle de module | I2: Angle de toit | J2: Calcul Vent | L2: Calcul Neige | P2: Calcul Eurocode pour la France | U2: Charges déjà connues | Y2: Calcul charges de neige | AC2: α ( angle du versant ) | AD2: 0° <= α <= 30° | AE2: 30° <= α <= 60° | AF2: α >= 60°
B3: vent
A4: 1 (22 m/s) | B4: 22 | C4: 0 | H4: 0 | I4: 0.01 | P4: l (Largeur batîment) | R4: =LargeurBatiment -> 15 | S4: m | U4: Charges ascendantes | V4: =Data!$B$21 -> 420 | W4: Pa | Y4: S = μ1 x Ce x Ct x sk pour les situations de projet durables / transitoires (N/m²) | AA4: =AA8*AA10*AA12*AA14*1000 -> 720 | AC4: µ1 | AD4: 0.8 | AE4: 0,80 ( 60 - α ) /30 | AF4: 0
A5: 2 (24 m/s) | B5: 24 | C5: II | H5: 8 | I5: 0.5 | P5: L (Longueur du batîment) | R5: =LongueurBatiment -> 15 | S5: m | AC5: µ1 | AD5: =IF(R7>=0,IF(R7<=30,0.8,0)) -> 0.8 | AE5: =IF(R7>=30,IF(R7<=60,(0.8*(60-R7)/30),0),0) -> 0 | AF5: =IF(R7>=60,0,0) -> 0
A6: 3 (26 m/s) | B6: 26 | C6: IIIa | H6: =H5+1 -> 9 | I6: 1 | P6: h (Hauteur du batîment) | R6: =HauteurBatiment -> 15 | S6: m | U6: Charges descendantes | V6: =Data!$B$21+Data!$B$22 -> 2420 | W6: Pa | Y6: S = μ1 x Ce x Ct x sad pour les situations de projet accidentelles. (N/m²) | AA6: =AA8*AA10*AA12*AA15*1000 -> 360
A7: 4 (28 m/s) | B7: 28 | C7: IIIb | H7: 10 | I7: 1.5 | P7: α (Angle du support module) | R7: =AngleModule -> 8 | S7: °
B8: 30 | C8: IV | H8: 11 | I8: 2 | P8: hp (hauteur acrotère) | R8: =Data!$B$35 -> 0 | S8: m | Y8: μ1 est le coefficient de forme (dépend du type de toiture, de la pente du versant et de la redistribution de la neige par le vent). | AA8: =IF(AA17>0,IF(AA17<=30,0.8,IF(#REF!="non",(0.8*(60-AA17)/30),0.8))) -> 0.8
B9: 32 | H9: 12 | I9: 2.5 | P9: r (rayon) | R9: =Data!$B$37 -> 0.5 | S9: m | AH9: De 200 à 500 m | AJ9: De 500 à 1000 m | AL9: De 1000 à 2000 m
B10: 34 | H10: 13 | I10: 3 | P10: Sk | R10: =AA14 -> 0.9 | Y10: Ce est le coefficient d'exposition, qu'on considérera égal à 1. | AA10: 1 | AC10: Zone de neige | AD10: Sk | AE10: Sk200 < 200 m | AF10: Sad | AG10: Sad<200 m | AH10: ▲s1 | AI10: ▲s2 | AJ10: ▲s1 | AK10: ▲s2 | AL10: ▲s1 | AM10: ▲s2
B11: 36 | H11: 14 | I11: 3.5 | P11: µ1( α) | R11: =AD5+AE5+AF5 -> 0.8 | AC11: A1 | AD11: =IF(PROJET!$D$42<200,AE11,IF(PROJET!$D$42<500,AE11+AH11,IF(PROJET!$D$42<1000,AE11+AJ11,IF(PROJET!$D$42<2001,AE11+AL11,0)))) -> 0.9 | AE11: 0.45 | AF11: =IF(PROJET!$D$42<200,AG11,IF(PROJET!$D$42<500,AG11+AH11,IF(PROJET!$D$42<1000,AG11+AJ11,IF(PROJET!$D$42<2000,AG11+AL11,0)))) -> 0.45 | AG11: 0 | AH11: =(AA18/1000)-0.2 -> 0.4 | AJ11: =1.5*(AA18/1000)-0.45 -> 0.45 | AL11: =3.5*(AA18/1000)-2.45 -> -0.35
I12: 4 | P12: ls | R12: =IF(R6<=7.5,IF(R6>=2.5,2*R6,0),0) -> 0 | S12: m | Y12: Ct est le coefficient thermique, qu'on considérera égal à 1. | AA12: 1 | AC12: A2 | AD12: =IF(PROJET!$D$42<200,AE12,IF(PROJET!$D$42<500,AE12+AH12,IF(PROJET!$D$42<1000,AE12+AJ12,IF(PROJET!$D$42<2001,AE12+AL12,0)))) -> 0.9 | AE12: 0.45 | AF12: =IF(PROJET!$D$42<200,AG12,IF(PROJET!$D$42<500,AG12+AH12,IF(PROJET!$D$42<1000,AG12+AJ12,IF(PROJET!$D$42<2000,AG12+AL12,0)))) -> 1.45 | AG12: 1 | AH12: =(AA18/1000)-0.2 -> 0.4 | AJ12: =1.5*(AA18/1000)-0.45 -> 0.45 | AL12: =3.5*(AA18/1000)-2.45 -> -0.35
I13: 4.5 | P13: A (Altitude) | R13: =Data!$B$15 -> 600 | AC13: B1 | AD13: =IF(PROJET!$D$42<200,AE13,IF(PROJET!$D$42<500,AE13+AH13,IF(PROJET!$D$42<1000,AE13+AJ13,IF(PROJET!$D$42<2001,AE13+AL13,0)))) -> 1 | AE13: 0.55 | AF13: =IF(PROJET!$D$42<200,AG13,IF(PROJET!$D$42<500,AG13+AH13,IF(PROJET!$D$42<1000,AG13+AJ13,IF(PROJET!$D$42<2000,AG13+AL13,0)))) -> 1.45 | AG13: 1 | AH13: =(AA18/1000)-0.2 -> 0.4 | AJ13: =1.5*(AA18/1000)-0.45 -> 0.45 | AL13: =3.5*(AA18/1000)-2.45 -> -0.35
A14: =Data!$B$12 -> 1 (22 m/s) | I14: 5 | P14: Zone 1 : Vb = 22 m/s - qb = 296 Pa | R14: 296 | S14: Pa | Y14: Sk | AA14: =IF(AA16="A1",AD11,IF(AA16="A2",AD12,IF(AA16="B1",AD13,IF(AA16="B2",AD14,IF(AA16="C1",AD15,IF(AA16="C2",AD16,IF(AA16="D",AD17,IF(AA16="E",AD18,)))))))) -> 0.9 | AC14: B2 | AD14: =IF(PROJET!$D$42<200,AE14,IF(PROJET!$D$42<500,AE14+AH14,IF(PROJET!$D$42<1000,AE14+AJ14,IF(PROJET!$D$42<2001,AE14+AL14,0)))) -> 1 | AE14: 0.55 | AF14: =IF(PROJET!$D$42<200,AG14,IF(PROJET!$D$42<500,AG14+AH14,IF(PROJET!$D$42<1000,AG14+AJ14,IF(PROJET!$D$42<2000,AG14+AL14,0)))) -> 1.8 | AG14: 1.35 | AH14: =(AA18/1000)-0.2 -> 0.4 | AJ14: =1.5*(AA18/1000)-0.45 -> 0.45 | AL14: =3.5*(AA18/1000)-2.45 -> -0.35
A15: =IF($A$14=A4,B4,IF($A$14=A5,B5,IF($A$14=A6,B6,IF($A$14=A7,B7,0)))) -> 22 | B15: =A15 -> 22 | P15: Zone 2 : Vb = 24 m/s - qb = 353 Pa | R15: 353 | S15: Pa | Y15: Sad | AA15: =IF(AA16="A1",AF11,IF(AA16="A2",AF12,IF(AA16="B1",AF13,IF(AA16="B2",AF14,IF(AA16="C1",AF15,IF(AA16="C2",AF16,IF(AA16="D",AF17,IF(AA16="E",AF18,)))))))) -> 0.45 | AC15: C1 | AD15: =IF(PROJET!$D$42<200,AE15,IF(PROJET!$D$42<500,AE15+AH15,IF(PROJET!$D$42<1000,AE15+AJ15,IF(PROJET!$D$42<2001,AE15+AL15,0)))) -> 1.1 | AE15: 0.65 | AF15: =IF(PROJET!$D$42<200,AG15,IF(PROJET!$D$42<500,AG15+AH15,IF(PROJET!$D$42<1000,AG15+AJ15,IF(PROJET!$D$42<2000,AG15+AL15,0)))) -> 0.45 | AG15: 0 | AH15: =(AA18/1000)-0.2 -> 0.4 | AJ15: =1.5*(AA18/1000)-0.45 -> 0.45 | AL15: =3.5*(AA18/1000)-2.45 -> -0.35
P16: Zone 3 : Vb = 26 m/s - qb = 414 Pa | R16: 414 | S16: Pa | Y16: Zone de neige | AA16: =PROJET!D38 -> A1 | AC16: C2 | AD16: =IF(PROJET!$D$42<200,AE16,IF(PROJET!$D$42<500,AE16+AH16,IF(PROJET!$D$42<1000,AE16+AJ16,IF(PROJET!$D$42<2001,AE16+AL16,0)))) -> 1.1 | AE16: 0.65 | AF16: =IF(PROJET!$D$42<200,AG16,IF(PROJET!$D$42<500,AG16+AH16,IF(PROJET!$D$42<1000,AG16+AJ16,IF(PROJET!$D$42<2000,AG16+AL16,0)))) -> 1.8 | AG16: 1.35 | AH16: =(AA18/1000)-0.2 -> 0.4 | AJ16: =1.5*(AA18/1000)-0.45 -> 0.45 | AL16: =3.5*(AA18/1000)-2.45 -> -0.35
P17: Zone 4 : Vb = 28 m/s - qb = 480 Pa | R17: 480 | S17: Pa | Y17: Angle du toit | AA17: =IF(Data!$B$53=FALSE,PROJET!D89,0) -> 8 | AC17: D | AD17: =IF(PROJET!$D$42<200,AE17,IF(PROJET!$D$42<500,AE17+AH17,IF(PROJET!$D$42<1000,AE17+AJ17,IF(PROJET!$D$42<2001,AE17+AL17,0)))) -> 1.35 | AE17: 0.9 | AF17: =IF(PROJET!$D$42<200,AG17,IF(PROJET!$D$42<500,AG17+AH17,IF(PROJET!$D$42<1000,AG17+AJ17,IF(PROJET!$D$42<2000,AG17+AL17,0)))) -> 2.25 | AG17: 1.8 | AH17: =(AA18/1000)-0.2 -> 0.4 | AJ17: =1.5*(AA18/1000)-0.45 -> 0.45 | AL17: =3.5*(AA18/1000)-2.45 -> -0.35
P18: Charge Maxi du vent sur Site (Entrée manuelle) | R18: =IF(ChoixEurocode=1,0,PROJET!N36) -> 0 | S18: Pa | Y18: Altitude | AA18: =PROJET!D42 -> 600 | AC18: E | AD18: =IF(PROJET!$D$42<200,AE18,IF(PROJET!$D$42<500,AE18+AI18,IF(PROJET!$D$42<1000,AE18+AK18,IF(PROJET!$D$42<2001,AE18+AM18,0)))) -> 2.2 | AE18: 1.4 | AF18: =IF(PROJET!$D$42<200,AG18,IF(PROJET!$D$42<500,AG18+AI18,IF(PROJET!$D$42<1000,AG18+AK18,IF(PROJET!$D$42<2000,AG18+AM18,0)))) -> 0.8 | AG18: 0 | AI18: =(1.5*AA18/1000)-0.3 -> 0.6 | AK18: =(3.5*AA18/1000)-1.3 -> 0.8 | AM18: =(7*AA18/1000)-4.8 -> -0.6
P19: Zone sélectionnée | R19: =B15 -> 22 | S19: m/s
P20: qb ( pression dynamique de référence ) | R20: =IF(R18=0,IF(R19=22,R14,IF(R19=24,R15,IF(R19=26,R16,IF(R19=28,R17,0)))),R18) -> 296 | S20: Pa | AA20: =Data!$B$53 -> FALSE
P21: Catégorie de terrain | R21: =Data!$B$14 -> IIIa
P23: Ce(z) (coefficient d'exposition) : | R23: =AC89 -> 2.1
P24: qp (pression dynamique de pointe ) = Ce(z) x qb | R24: =R20*R23 -> 621.6 | S24: Pa
P26: Rives arrondies | R26: =IF(R30=1,1,0) -> 0 | S26: r/h | T26: =PROJET!N62/PROJET!D49 -> 0.03333333333
P27: Acrotères | R27: =IF(R30=2,1,0) -> 1 | S27: hp/h | T27: =R8/V27 -> 0 | U27: h | V27: =R6-PROJET!N58 -> 14.7
P28: Brisis mansardés | R28: =IF(R30=3,1,0) -> 0 | S28: α (°) | T28: =PROJET!N60 -> 30 | U28: 30 | V28: 45 | W28: 60
P29: Rives à arêtes vives | R29: =IF(R30=4,1,0) -> 0
P30: Sélection | R30: =PROJET!O47 -> 2
P36: Ce(z) | S36: Rugosité
S37: 0 | T37: II | U37: IIIa | V37: IIIb | W37: IV | X37: Selection de la catégorie de rugosité
P38: Hauteur Z | Q38: 0.1 | R38: 0.1 | S38: 1.2 | T38: 1.1 | U38: 1.41 | V38: 1.35 | W38: 1.29 | X38: =IF(R38=$R$6,S38,0) -> 0 | Y38: =IF(R38=$R$6,T38,0) -> 0 | Z38: =IF(R38=$R$6,U38,0) -> 0 | AA38: =IF(R38=$R$6,V38,0) -> 0 | AB38: =IF(R38=$R$6,W38,0) -> 0
R39: 1 | S39: 1.7 | T39: 1.42 | U39: 1.41 | V39: 1.35 | W39: 1.29 | X39: =IF(R39=$R$6,S39,0) -> 0 | Y39: =IF(R39=$R$6,T39,0) -> 0 | Z39: =IF(R39=$R$6,U39,0) -> 0 | AA39: =IF(R39=$R$6,V39,0) -> 0 | AB39: =IF(R39=$R$6,W39,0) -> 0
R40: 2 | S40: 2.04 | T40: 1.42 | U40: 1.41 | V40: 1.35 | W40: 1.29 | X40: =IF(R40=$R$6,S40,0) -> 0 | Y40: =IF(R40=$R$6,T40,0) -> 0 | Z40: =IF(R40=$R$6,U40,0) -> 0 | AA40: =IF(R40=$R$6,V40,0) -> 0 | AB40: =IF(R40=$R$6,W40,0) -> 0
R41: 3 | S41: 2.24 | T41: 1.63 | U41: 1.41 | V41: 1.35 | W41: 1.29 | X41: 0 | Y41: 0 | Z41: 0 | AA41: 0 | AB41: 0
R42: 4 | S42: 2.39 | T42: 1.9 | U42: 1.41 | V42: 1.35 | W42: 1.29 | X42: 0 | Y42: 0 | Z42: 0 | AA42: 0 | AB42: 0
R43: 5 | S43: 2.51 | T43: 1.92 | U43: 1.41 | V43: 1.35 | W43: 1.29 | X43: 0 | Y43: 0 | Z43: 0 | AA43: 0 | AB43: 0
R44: 6 | S44: 2.61 | T44: 2.03 | U44: 1.52 | V44: 1.35 | W44: 1.29 | X44: 0 | Y44: 0 | Z44: 0 | AA44: 0 | AB44: 0
R45: 7 | S45: 2.7 | T45: 2.12 | U45: 1.61 | V45: 1.35 | W45: 1.29 | X45: 0 | Y45: 0 | Z45: 0 | AA45: 0 | AB45: 0
R46: 8 | S46: 2.77 | T46: 2.21 | U46: 1.69 | V46: 1.35 | W46: 1.29 | X46: 0 | Y46: 0 | Z46: 0 | AA46: 0 | AB46: 0
R47: 9 | S47: 2.84 | T47: 2.28 | U47: 1.77 | V47: 1.35 | W47: 1.29 | X47: 0 | Y47: 0 | Z47: 0 | AA47: 0 | AB47: 0
R48: 10 | S48: 2.9 | T48: 2.35 | U48: 1.84 | V48: 1.41 | W48: 1.29 | X48: 0 | Y48: 0 | Z48: 0 | AA48: 0 | AB48: 0
R49: 11 | S49: 2.96 | T49: 2.41 | U49: 1.9 | V49: 1.47 | W49: 1.29 | X49: 0 | Y49: 0 | Z49: 0 | AA49: 0 | AB49: 0
R50: 12 | S50: 3.01 | T50: 2.46 | U50: 1.95 | V50: 1.53 | W50: 1.29 | X50: 0 | Y50: 0 | Z50: 0 | AA50: 0 | AB50: 0
R51: 13 | S51: 3.06 | T51: 2.51 | U51: 2.01 | V51: 1.58 | W51: 1.29 | X51: 0 | Y51: 0 | Z51: 0 | AA51: 0 | AB51: 0
R52: 14 | S52: 3.1 | T52: 2.56 | U52: 2.06 | V52: 1.63 | W52: 1.29 | X52: 0 | Y52: 0 | Z52: 0 | AA52: 0 | AB52: 0
R53: 15 | S53: 3.14 | T53: 2.61 | U53: 2.1 | V53: 1.67 | W53: 1.29 | X53: 3.14 | Y53: 2.61 | Z53: 2.1 | AA53: 1.67 | AB53: 1.29
R54: 16 | S54: 3.18 | T54: 2.65 | U54: 2.15 | V54: 1.71 | W54: 1.33 | X54: 0 | Y54: 0 | Z54: 0 | AA54: 0 | AB54: 0
R55: 17 | S55: 3.22 | T55: 2.69 | U55: 2.19 | V55: 1.75 | W55: 1.37 | X55: 0 | Y55: 0 | Z55: 0 | AA55: 0 | AB55: 0
R56: 18 | S56: 3.25 | T56: 2.73 | U56: 2.23 | V56: 1.79 | W56: 1.41 | X56: 0 | Y56: 0 | Z56: 0 | AA56: 0 | AB56: 0
R57: 19 | S57: 3.29 | T57: 2.77 | U57: 2.26 | V57: 1.83 | W57: 1.44 | X57: 0 | Y57: 0 | Z57: 0 | AA57: 0 | AB57: 0
R58: 20 | S58: 3.32 | T58: 2.8 | U58: 2.3 | V58: 1.87 | W58: 1.48 | X58: 0 | Y58: 0 | Z58: 0 | AA58: 0 | AB58: 0
R59: =R58+1 -> 21 | S59: 3.35 | T59: 2.84 | U59: 2.33 | V59: 1.9 | W59: 1.51 | X59: 0 | Y59: 0 | Z59: 0 | AA59: 0 | AB59: 0
R60: 22 | S60: 3.38 | T60: 2.87 | U60: 2.37 | V60: 1.93 | W60: 1.54 | X60: 0 | Y60: 0 | Z60: 0 | AA60: 0 | AB60: 0
R61: 23 | S61: 3.4 | T61: 2.9 | U61: 2.4 | V61: 1.96 | W61: 1.57 | X61: 0 | Y61: 0 | Z61: 0 | AA61: 0 | AB61: 0
R62: 24 | S62: 3.43 | T62: 2.93 | U62: 2.43 | V62: 1.99 | W62: 1.6 | X62: 0 | Y62: 0 | Z62: 0 | AA62: 0 | AB62: 0
R63: 25 | S63: 3.46 | T63: 2.96 | U63: 2.46 | V63: 2.02 | W63: 1.63 | X63: 0 | Y63: 0 | Z63: 0 | AA63: 0 | AB63: 0
R64: 26 | S64: 3.48 | T64: 2.98 | U64: 2.49 | V64: 2.05 | W64: 1.65 | X64: 0 | Y64: 0 | Z64: 0 | AA64: 0 | AB64: 0
R65: 27 | S65: 3.5 | T65: 3.01 | U65: 2.52 | V65: 2.08 | W65: 1.68 | X65: 0 | Y65: 0 | Z65: 0 | AA65: 0 | AB65: 0
R66: 28 | S66: 3.53 | T66: 3.04 | U66: 2.54 | V66: 2.1 | W66: 1.7 | X66: 0 | Y66: 0 | Z66: 0 | AA66: 0 | AB66: 0
R67: 29 | S67: 3.55 | T67: 3.06 | U67: 2.57 | V67: 2.13 | W67: 1.73 | X67: 0 | Y67: 0 | Z67: 0 | AA67: 0 | AB67: 0
R68: 30 | S68: 3.57 | T68: 3.09 | U68: 2.59 | V68: 2.15 | W68: 1.75 | X68: 0 | Y68: 0 | Z68: 0 | AA68: 0 | AB68: 0
R69: 31 | S69: 3.59 | T69: 3.11 | U69: 2.62 | V69: 2.18 | W69: 1.77 | X69: 0 | Y69: 0 | Z69: 0 | AA69: 0 | AB69: 0
R70: 32 | S70: 3.61 | T70: 3.13 | U70: 2.64 | V70: 2.2 | W70: 1.8 | X70: 0 | Y70: 0 | Z70: 0 | AA70: 0 | AB70: 0
R71: 33 | S71: 3.63 | T71: 3.15 | U71: 2.66 | V71: 2.22 | W71: 1.82 | X71: 0 | Y71: 0 | Z71: 0 | AA71: 0 | AB71: 0
R72: 34 | S72: 3.65 | T72: 3.18 | U72: 2.69 | V72: 2.25 | W72: 1.84 | X72: 0 | Y72: 0 | Z72: 0 | AA72: 0 | AB72: 0
R73: 35 | S73: 3.67 | T73: 3.2 | U73: 2.71 | V73: 2.27 | W73: 1.86 | X73: 0 | Y73: 0 | Z73: 0 | AA73: 0 | AB73: 0
R74: 36 | S74: 3.69 | T74: 3.22 | U74: 2.73 | V74: 2.29 | W74: 1.88 | X74: 0 | Y74: 0 | Z74: 0 | AA74: 0 | AB74: 0
R75: 37 | S75: 3.71 | T75: 3.24 | U75: 2.75 | V75: 2.31 | W75: 1.9 | X75: 0 | Y75: 0 | Z75: 0 | AA75: 0 | AB75: 0
R76: 38 | S76: 3.72 | T76: 3.26 | U76: 2.77 | V76: 2.33 | W76: 1.92 | X76: 0 | Y76: 0 | Z76: 0 | AA76: 0 | AB76: 0
R77: 39 | S77: 3.74 | T77: 3.28 | U77: 2.79 | V77: 2.35 | W77: 1.94 | X77: 0 | Y77: 0 | Z77: 0 | AA77: 0 | AB77: 0
R78: 40 | S78: 3.76 | T78: 3.29 | U78: 2.81 | V78: 2.37 | W78: 1.96 | X78: 0 | Y78: 0 | Z78: 0 | AA78: 0 | AB78: 0
R79: 41 | S79: 3.77 | T79: 3.31 | U79: 2.83 | V79: 2.39 | W79: 1.98 | X79: 0 | Y79: 0 | Z79: 0 | AA79: 0 | AB79: 0
R80: 42 | S80: 3.79 | T80: 3.33 | U80: 2.85 | V80: 2.4 | W80: 1.99 | X80: 0 | Y80: 0 | Z80: 0 | AA80: 0 | AB80: 0
R81: 43 | S81: 3.8 | T81: 3.35 | U81: 2.86 | V81: 2.42 | W81: 2.01 | X81: 0 | Y81: 0 | Z81: 0 | AA81: 0 | AB81: 0
R82: 44 | S82: 3.82 | T82: 3.36 | U82: 2.88 | V82: 2.44 | W82: 2.03 | X82: 0 | Y82: 0 | Z82: 0 | AA82: 0 | AB82: 0
R83: 45 | S83: 3.83 | T83: 3.38 | U83: 2.9 | V83: 2.46 | W83: 2.05 | X83: 0 | Y83: 0 | Z83: 0 | AA83: 0 | AB83: 0
R84: 46 | S84: 3.85 | T84: 3.4 | U84: 2.92 | V84: 2.47 | W84: 2.06 | X84: 0 | Y84: 0 | Z84: 0 | AA84: 0 | AB84: 0
R85: 47 | S85: 3.86 | T85: 3.41 | U85: 2.93 | V85: 2.49 | W85: 2.08 | X85: 0 | Y85: 0 | Z85: 0 | AA85: 0 | AB85: 0
R86: 48 | S86: 3.88 | T86: 3.43 | U86: 2.95 | V86: 2.51 | W86: 2.09 | X86: 0 | Y86: 0 | Z86: 0 | AA86: 0 | AB86: 0
R87: 49 | S87: 3.89 | T87: 3.44 | U87: 2.96 | V87: 2.52 | W87: 2.11 | X87: 0 | Y87: 0 | Z87: 0 | AA87: 0 | AB87: 0
R88: 50 | S88: 3.9 | T88: 3.46 | U88: 2.98 | V88: 2.54 | W88: 2.12 | X88: 0 | Y88: 0 | Z88: 0 | AA88: 0 | AB88: 0
X89: =IF(R21="0",SUM(X38:X88),0) -> 0 | Y89: =IF(R21="II",SUM(Y38:Y88),0) -> 0 | Z89: =IF(R21="IIIa",SUM(Z38:Z88),0) -> 2.1 | AA89: =IF(R21="IIIb",SUM(AA38:AA88),0) -> 0 | AB89: =IF(R21="IV",SUM(AB38:AB88),0) -> 0 | AC89: =SUM(X89:AB89) -> 2.1
Y91: =IF(AB94<0.125,1,0) -> 1
AA92: Sélection
P93: Type de toiture | R93: Zone | AA93: r/h | AB93: hp/h | AC93: α (°)
R94: F | T94: G | V94: H | X94: I | AA94: =T26 -> 0.03333333333 | AB94: =T27 -> 0 | AC94: =T28 -> 30
R95: Cpe.10 | S95: Cpe.1 | T95: Cpe.10 | U95: Cpe.1 | V95: Cpe.10 | W95: Cpe.1 | X95: Cpe.10 | Y95: Cpe.1 | AA95: =R26 -> 0 | AB95: =R27 -> 1 | AC95: =R28 -> 0 | AD95: =R29 -> 0
P96: Rives à arêtes vives | R96: -1.8 | S96: -2.5 | T96: -1.2 | U96: -2 | V96: -0.7 | W96: -1.2 | X96: +0,2 | AA96: =IF($AD$95=1,R96,0) -> 0 | AB96: 0 | AC96: 0 | AD96: 0 | AE96: 0 | AF96: 0 | AG96: 0
X97: -0,2 | AG97: =IF($AD$95=1,X97,0) -> 0
P98: Avec acrotères | Q98: hp/h=0 | R98: =R100+(R102-R104) -> -1.7 | S98: -2.3 | T98: -1.2 | U98: -1.9 | V98: -0.7 | W98: -1.2 | X98: +0,2 | Z98: =IF(0<=$AB$94,IF($AB$94<0.025,1,0),0) -> 1 | AA98: =IF($AB$95=1,IF($Z$98=1,R98,0),0) -> -1.7 | AB98: -2.3 | AC98: -1.2 | AD98: -1.9 | AE98: -0.7 | AF98: -1.2 | AG98: =IF($AB$95=1,IF(Z98=1,X98,0),0) -> +0,2
X99: -0,2 | AG99: =IF($AB$95=1,IF(Z98=1,X99,0),0) -> -0,2
Q100: hp/h=0,025 | R100: -1.6 | S100: -2.2 | T100: -1.1 | U100: -1.8 | V100: -0.7 | W100: -1.2 | X100: +0,2 | Z100: =IF(0.025<=$AB$94,IF($AB$94<0.0375,1,0),0) -> 0 | AA100: =IF($AB$95=1,IF($Z$100=1,R100,0),0) -> 0 | AB100: 0 | AC100: 0 | AD100: 0 | AE100: 0 | AF100: 0 | AG100: =IF($AB$95=1,IF(Z100=1,X100,0),0) -> 0
X101: -0,2 | AG101: =IF($AB$95=1,IF(Z100=1,X101,0),0) -> 0
Q102: hp/h=0,0375 | R102: =(R104+R100)/2 -> -1.5 | S102: -2.1 | T102: -1 | U102: -1.7 | V102: -0.7 | W102: -1.2 | X102: +0,2 | Z102: =IF(0.0375<=$AB$94,IF($AB$94<0.05,1,0),0) -> 0 | AA102: =IF($AB$95=1,IF($Z$102=1,R102,0),0) -> 0 | AB102: 0 | AC102: 0 | AD102: 0 | AE102: 0 | AF102: 0 | AG102: =IF($AB$95=1,IF(Z102=1,X102,0),0) -> 0
X103: -0,2 | AG103: =IF($AB$95=1,IF(Z102=1,X103,0),0) -> 0
Q104: hp/h=0,05 | R104: -1.4 | S104: -2 | T104: -0.9 | U104: -1.6 | V104: -0.7 | W104: -1.2 | X104: +0,2 | Z104: =IF(0.05<=$AB$94,IF($AB$94<0.075,1,0),0) -> 0 | AA104: =IF($AB$95=1,IF($Z$104=1,R104,0),0) -> 0 | AB104: 0 | AC104: 0 | AD104: 0 | AE104: 0 | AF104: 0 | AG104: =IF($AB$95=1,IF(Z104=1,X104,0),0) -> 0
X105: -0,2 | AG105: =IF($AB$95=1,IF(Z104=1,X105,0),0) -> 0
Q106: hp/h=0,075 | R106: =(R108+R104)/2 -> -1.3 | S106: -1.9 | T106: -0.85 | U106: -1.5 | V106: -0.7 | W106: -1.2 | X106: +0,2 | Z106: =IF(0.075<=$AB$94,IF($AB$94<0.1,1,0),0) -> 0 | AA106: =IF($AB$95=1,IF($Z$106=1,R106,0),0) -> 0 | AB106: 0 | AC106: 0 | AD106: 0 | AE106: 0 | AF106: 0 | AG106: =IF($AB$95=1,IF(Z106=1,X106,0),0) -> 0
X107: -0,2 | AG107: =IF($AB$95=1,IF(Z106=1,X107,0),0) -> 0
Q108: hp/h=0,1 | R108: -1.2 | S108: -1.8 | T108: -0.8 | U108: -1.4 | V108: -0.7 | W108: -1.2 | X108: +0,2 | Z108: =IF(0.1<=$AB$94,IF($AB$94<0.125,1,0),0) -> 0 | AA108: =IF($AB$95=1,IF($Z$108=1,R108,0),0) -> 0 | AB108: 0 | AC108: 0 | AD108: 0 | AE108: 0 | AF108: 0 | AG108: =IF($AB$95=1,IF(Z108=1,X108,0),0) -> 0
X109: -0,2 | AG109: =IF($AB$95=1,IF(Z108=1,X109,0),0) -> 0
Q110: hp/h=0,125 | R110: =R108+(R106-R104) -> -1.1 | S110: -1.7 | T110: -0.75 | U110: -1.3 | V110: -0.7 | W110: -1.2 | X110: +0,2 | Z110: =IF(0.125<=$AB$94,IF($AB$94<10,1,0),0) -> 0 | AA110: =IF($AB$95=1,IF($Z$110=1,R110,0),0) -> 0 | AB110: 0 | AC110: 0 | AD110: 0 | AE110: 0 | AF110: 0 | AG110: =IF($AB$95=1,IF(Z110=1,X110,0),0) -> 0
X111: -0,2 | AG111: =IF($AB$95=1,IF(Z110=1,X111,0),0) -> 0
P112: Rives arrondies | Q112: r/h=0 | R112: =R114+(R116-R118) -> -1.15 | S112: -1.65 | T112: -1.4 | U112: -2 | V112: -0.45 | W112: -0.45 | X112: +0,2 | Z112: =IF(0<=$AA$94,IF($AA$94<0.05,1,0),0) -> 1 | AA112: =IF($AA$95=1,IF($Z$112=1,R112,0),0) -> 0 | AB112: 0 | AC112: 0 | AD112: 0 | AE112: 0 | AF112: 0 | AG112: =IF($AA$95=1,IF(Z112=1,X112,0),0) -> 0
X113: -0,2 | AG113: =IF($AA$95=1,IF(Z112=1,X113,0),0) -> 0
Q114: r/h=0,05 | R114: -1 | S114: -1.5 | T114: -1.2 | U114: -1.8 | V114: -0.4 | W114: -0.4 | X114: +0,2 | Z114: =IF(0.05<=$AA$94,IF($AA$94<0.075,1,0),0) -> 0 | AA114: =IF($AA$95=1,IF($Z$114=1,R114,0),0) -> 0 | AB114: 0 | AC114: 0 | AD114: 0 | AE114: 0 | AF114: 0 | AG114: =IF($AA$95=1,IF(Z114=1,X114,0),0) -> 0
X115: -0,2 | AG115: =IF($AA$95=1,IF(Z114=1,X115,0),0) -> 0
Q116: r/h=0,075 | R116: =(R118+R114)/2 -> -0.85 | S116: -1.35 | T116: -1 | U116: -1.6 | V116: -0.35 | W116: -0.35 | X116: +0,2 | Z116: =IF(0.075<=$AA$94,IF($AA$94<0.1,1,0),0) -> 0 | AA116: =IF($AA$95=1,IF($Z$1116=1,R116,0),0) -> 0 | AB116: 0 | AC116: 0 | AD116: 0 | AE116: 0 | AF116: 0 | AG116: =IF($AA$95=1,IF(Z116=1,X116,0),0) -> 0
X117: -0,2 | AG117: =IF($AA$95=1,IF(Z116=1,X117,0),0) -> 0
Q118: r/h=0,1 | R118: -0.7 | S118: -1.2 | T118: -0.8 | U118: -1.4 | V118: -0.3 | W118: -0.3 | X118: +0,2 | Z118: =IF(0.1<=$AA$94,IF($AA$94<0.15,1,0),0) -> 0 | AA118: =IF($AA$95=1,IF($Z$118=1,R118,0),0) -> 0 | AB118: 0 | AC118: 0 | AD118: 0 | AE118: 0 | AF118: 0 | AG118: =IF($AA$95=1,IF(Z118=1,X118,0),0) -> 0
X119: -0,2 | AG119: =IF($AA$95=1,IF(Z118=1,X119,0),0) -> 0
Q120: r/h=0,15 | R120: =(R122+R118)/2 -> -0.6 | S120: -1 | T120: -0.65 | U120: -1.1 | V120: -0.3 | W120: -0.3 | X120: +0,2 | Z120: =IF(0.15<=$AA$94,IF($AA$94<0.2,1,0),0) -> 0 | AA120: =IF($AA$95=1,IF($Z$120=1,R120,0),0) -> 0 | AB120: 0 | AC120: 0 | AD120: 0 | AE120: 0 | AF120: 0 | AG120: =IF($AA$95=1,IF(Z120=1,X120,0),0) -> 0
X121: -0,2 | AG121: =IF($AA$95=1,IF(Z120=1,X121,0),0) -> 0
Q122: r/h=0,2 | R122: -0.5 | S122: -0.8 | T122: -0.5 | U122: -0.8 | V122: -0.3 | W122: -0.3 | X122: +0,2 | Z122: =IF(0.2<=$AA$94,IF($AA$94<0.25,1,0),0) -> 0 | AA122: =IF($AA$95=1,IF($Z$122=1,R122,0),0) -> 0 | AB122: 0 | AC122: 0 | AD122: 0 | AE122: 0 | AF122: 0 | AG122: =IF($AA$95=1,IF(Z122=1,X122,0),0) -> 0
X123: -0,2 | AG123: =IF($AA$95=1,IF(Z122=1,X123,0),0) -> 0
Q124: r/h=0,25 | R124: =R122+(R120-R118) -> -0.4 | S124: -0.6 | T124: -0.35 | U124: -0.5 | V124: -0.3 | W124: -0.3 | X124: +0,2 | Z124: =IF(0.25<=$AA$94,IF($AA$94<10,1,0),0) -> 0 | AA124: =IF($AA$95=1,IF($Z$124=1,R124,0),0) -> 0 | AB124: 0 | AC124: 0 | AD124: 0 | AE124: 0 | AF124: 0 | AG124: =IF($AA$95=1,IF(Z124=1,X124,0),0) -> 0
X125: -0,2 | AG125: =IF($AA$95=1,IF(Z124=1,X125,0),0) -> 0
P126: Brisis mansardés | Q126: α=22,5° | R126: =R128+(R130-R132) -> -0.9 | S126: -1.35 | T126: -0.85 | U126: -1.3 | V126: -0.25 | W126: -0.25 | X126: +0,2 | Z126: =IF(0<=$AC$94,IF($AC$94<22.5,1,0),0) -> 0 | AA126: =IF($AC$95=1,IF($Z$126=1,R126,0),0) -> 0 | AB126: 0 | AC126: 0 | AD126: 0 | AE126: 0 | AF126: 0 | AG126: =IF($AC$95=1,IF(Z126=1,X126,0),0) -> 0
X127: -0,2 | AG127: =IF($AC$95=1,IF(Z126=1,X127,0),0) -> 0
Q128: α=30° | R128: -1 | S128: -1.5 | T128: -1 | U128: -1.5 | V128: -0.3 | W128: -0.3 | X128: +0,2 | Z128: =IF(22.5<=$AC$94,IF($AC$94<30,1,0),0) -> 0 | AA128: =IF($AC$95=1,IF($Z$128=1,R128,0),0) -> 0 | AB128: 0 | AC128: 0 | AD128: 0 | AE128: 0 | AF128: 0 | AG128: =IF($AC$95=1,IF(Z128=1,X128,0),0) -> 0
X129: -0,2 | AG129: =IF($AC$95=1,IF(Z128=1,X129,0),0) -> 0
Q130: α=37,5° | R130: =(R132+R128)/2 -> -1.1 | S130: -1.65 | T130: -1.15 | U130: -1.7 | V130: -0.35 | W130: -0.35 | X130: +0,2 | Z130: =IF(30<=$AC$94,IF($AC$94<37.5,1,0),0) -> 1 | AA130: =IF($AC$95=1,IF($Z$130=1,R130,0),0) -> 0 | AB130: 0 | AC130: 0 | AD130: 0 | AE130: 0 | AF130: 0 | AG130: =IF($AC$95=1,IF(Z130=1,X130,0),0) -> 0
X131: -0,2 | AG131: =IF($AC$95=1,IF(Z130=1,X131,0),0) -> 0
Q132: α=45° | R132: -1.2 | S132: -1.8 | T132: -1.3 | U132: -1.9 | V132: -0.4 | W132: -0.4 | X132: +0,2 | Z132: =IF(37.5<=$AC$94,IF($AC$94<45,1,0),0) -> 0 | AA132: =IF($AC$95=1,IF($Z$132=1,R132,0),0) -> 0 | AB132: 0 | AC132: 0 | AD132: 0 | AE132: 0 | AF132: 0 | AG132: =IF($AC$95=1,IF(Z132=1,X132,0),0) -> 0
X133: -0,2 | AG133: =IF($AC$95=1,IF(Z132=1,X133,0),0) -> 0
Q134: α=52,5° | R134: =(R136+R132)/2 -> -1.25 | S134: -1.85 | T134: -1.3 | U134: -1.9 | V134: -0.45 | W134: -0.45 | X134: +0,2 | Z134: =IF(45<=$AC$94,IF($AC$94<52.5,1,0),0) -> 0 | AA134: =IF($AC$95=1,IF($Z$134=1,R134,0),0) -> 0 | AB134: 0 | AC134: 0 | AD134: 0 | AE134: 0 | AF134: 0 | AG134: =IF($AC$95=1,IF(Z134=1,X134,0),0) -> 0
X135: -0,2 | AG135: =IF($AC$95=1,IF(Z134=1,X135,0),0) -> 0
Q136: α=60° | R136: -1.3 | S136: -1.9 | T136: -1.3 | U136: -1.9 | V136: -0.5 | W136: -0.5 | X136: +0,2 | Z136: =IF(52.5<=$AC$94,IF($AC$94<60,1,0),0) -> 0 | AA136: =IF($AC$95=1,IF($Z$136=1,R136,0),0) -> 0 | AB136: 0 | AC136: 0 | AD136: 0 | AE136: 0 | AF136: 0 | AG136: =IF($AC$95=1,IF(Z136=1,X136,0),0) -> 0
X137: -0,2 | AG137: =IF($AC$95=1,IF(Z136=1,X137,0),0) -> 0
Q138: α=67,5° | R138: =R136+(R134-R132) -> -1.35 | S138: -1.95 | T138: -1.3 | U138: -1.9 | V138: -0.55 | W138: -0.55 | X138: +0,2 | Z138: =IF(67.5<=$AC$94,IF($AC$94<75,1,0),0) -> 0 | AA138: =IF($AC$95=1,IF($Z$138=1,R138,0),0) -> 0 | AB138: 0 | AC138: 0 | AD138: 0 | AE138: 0 | AF138: 0 | AG138: =IF($AC$95=1,IF(Z138=1,X138,0),0) -> 0
X139: -0,2 | AG139: =IF($AC$95=1,IF(Z138=1,X139,0),0) -> 0
AA140: =SUM(AA96:AA139) -> -1.7 | AB140: -2.3 | AC140: -1.2 | AD140: -1.9 | AE140: -0.7 | AF140: -1.2 | AG140: +0,2
AG141: -0,2

Sheet Calcul essais au vent (hidden)
A2: Définition de l'action du vent | D2: Hauteur eau | G2: Pression dynamique de pointe | H2: ='Feuille de calcul'!$R$24 -> 621.6 | I2: daN/m² | M2: toit plat exposition Est Ouest ( 2 versants) | V2: Toit plat exposition Sud ( 1 versant )
D3: 2 | M3: Angle | N3: Obstruction | O3: Coeff de force | P3: Zone | Q3: Zone | R3: Zone | S3: Zone | V3: Angle | W3: Obstruction | X3: Coeff de force | Y3: Zone | Z3: Zone | AA3: Zone | AD3: position h | AE3: 90 | AG3: Calcul charges de neige
A4: W = Wk x Gamma f | D4: 3 | G4: Poids du module | H4: =PoidPV -> 22 | I4: kgs | M4: toit(°) | N4: Þ | O4: globaux Cf | P4: A | Q4: B | R4: C | S4: D | V4: toit(°) | W4: Þ | X4: globaux Cf | Y4: A | Z4: B | AA4: C | AD4: x | AE4: =-(100-AE3) -> -10
A5: W : Action du vent au ELU en Pa ou N/m² | D5: 4 | M5: 0 | N5: Maxi quel que soit Þ | O5: 0.3 | P5: 0.5 | Q5: 1.5 | R5: 0.8 | S5: 0.8 | V5: 0 | W5: Maxi quel que soit Þ | X5: 0.2 | Y5: 0.5 | Z5: 1.8 | AA5: 1.1 | AD5: z | AE5: =AE3 -> 90 | AG5: S = μ1 x Ce x Ct x sk pour les situations de projet durables / transitoires (N/m²) | AH5: =AH9*AH11*AH13*AH15*1000 -> 360
A6: Wk : Correspond à l'action du vent en Pa ou N/m² | D6: 5 | G6: Longueur du module | H6: =LongPV -> 1722 | I6: mm | N6: Mini Þ=0 | O6: -0.5 | P6: -0.7 | Q6: -1.3 | R6: -1.6 | S6: -0.6 | W6: Mini Þ=0 | X6: -0.5 | Y6: -0.6 | Z6: -1.3 | AA6: -1.4 | AD6: x/Le | AE6: =AE4/33 -> -0.303030303
A7: Gamma f : Coefficient partiel de sécurité sur l'action du vent égal à 1,5 | D7: 6 | N7: Mini Þ=1 | O7: -1.3 | P7: -1.5 | Q7: -2.4 | R7: -2.4 | S7: -0.6 | W7: Mini Þ=1 | X7: -1.5 | Y7: -1.5 | Z7: -1.8 | AA7: -2.2 | AD7: x/Lu | AE7: =AE4/100 -> -0.1 | AG7: S = μ1 x Ce x Ct x sad pour les situations de projet accidentelles. (N/m²) | AH7: =AH9*AH11*AH13*AH16*1000 -> 0
D8: 7 | G8: Largeur module | H8: =LargPV -> 1134 | I8: mm | M8: 5 | N8: Maxi quel que soit Þ | O8: 0.3 | P8: 0.6 | Q8: 1.8 | R8: 1.3 | S8: 0.4 | V8: 5 | W8: Maxi quel que soit Þ | X8: 0.4 | Y8: 0.8 | Z8: 2.1 | AA8: 1.3 | AD8: z/Le | AE8: =AE5/33 -> 2.727272727
A9: avec Wk = Cp x qp(z) = Cp ( 1 + 7.Iv(z) ) 1/2 Ro v²m(z) | D9: 8 | N9: Mini Þ=0 | O9: -0.6 | P9: -0.6 | Q9: -1.4 | R9: -1.4 | S9: -1.1 | W9: Mini Þ=0 | X9: -0.7 | Y9: -1.1 | Z9: -1.7 | AA9: -1.8 | AD9: A | AE9: =0.1552*POWER(AE8,4)-0.8575*POWER(AE8,3)+1.8133*POWER(AE8,2)-1.9115*AE8+1.0124 -> 0.4780563759 | AG9: μ1 est le coefficient de forme (dépend du type de toiture, de la pente du versant et de la redistribution de la neige par le vent). | AH9: =IF(AH18>0,IF(AH18<=30,0.8,IF(AH19="non",(0.8*(60-AH18)/30),0.8))) -> 0.8
A10: Cp : Coefficient de pression du vent , combinaison entre Cpe et Cpi | D10: 9 | G10: Largeur calcule | H10: =-H8*COS(10)/1000 -> 0.951507114 | I10: m | N10: Mini Þ=1 | O10: -1.3 | P10: -1.3 | Q10: -2 | R10: -1.8 | S10: -1.5 | W10: Mini Þ=1 | X10: -1.4 | Y10: -1.6 | Z10: -2.2 | AA10: -2.5 | AD10: B | AE10: =0.3542*POWER(AE8,2)-1.0577*AE8+2.6456 -> 2.395509091
A11: qp(z) : Pression dynamique de pointe en fonction de la hauteur Z du batîment | D11: 10 | M11: 10 | N11: Maxi quel que soit Þ | O11: 0.4 | P11: 0.7 | Q11: 1.8 | R11: 1.4 | S11: 0.4 | V11: 10 | W11: Maxi quel que soit Þ | X11: 0.5 | Y11: 1.2 | Z11: 2.4 | AA11: 1.6 | AD11: s | AE11: =AE9*EXP(AE10*AE7) -> 0.3762213841 | AG11: Ce est le coefficient d'exposition, qu'on considérera égal à 1. | AH11: 1
A12: Ro : masse volumique de l'air égale à 1,225 Kg/m3 | G12: Surface module | H12: =H10*(H6/1000) -> 1.63849525 | I12: m² | N12: Mini Þ=0 | O12: -0.7 | P12: -0.7 | Q12: -1.5 | R12: -1.4 | S12: -1.4 | W12: Mini Þ=0 | X12: -0.9 | Y12: -1.5 | Z12: -2 | AA12: -2.1
A13: Iv(z) : Intensité de turbulence à la hauteur Z | D13: Coéfficient de securité | E13: 1.2 | N13: Mini Þ=1 | O13: -1.3 | P13: -1.3 | Q13: -2 | R13: -1.8 | S13: -1.8 | W13: Mini Þ=1 | X13: -1.4 | Y13: -2.1 | Z13: -2.6 | AA13: -2.7 | AD13: Co3 | AE13: =1+0.6*AE11 -> 1.22573283 | AG13: Ct est le coefficient thermique, qu'on considérera égal à 1. | AH13: 1
A14: vm : vitesse moyenne avec vm(z) = C0 (z) X Cr(z) x vb | G14: Charges de neige | H14: =AH29/10 -> 36 | I14: daN/m² | M14: 15 | N14: Maxi quel que soit Þ | O14: 0.4 | P14: 0.9 | Q14: 1.9 | R14: 1.4 | S14: 0.4 | V14: 15 | W14: Maxi quel que soit Þ | X14: 0.7 | Y14: 1.4 | Z14: 2.7 | AA14: 1.8
A15: vb : Vitesse de référence avec vb = Cdir x Cseason x vb.0 | G15: Charges de neige en Pa (entrée manuelle) | H15: =IF(ChoixEurocode=1,0,PROJET!N39) -> 0 | I15: daN/m² | N15: Mini Þ=0 | O15: -0.8 | P15: -0.9 | Q15: -1.7 | R15: -1.4 | S15: -1.8 | W15: Mini Þ=0 | X15: -1.1 | Y15: -1.8 | Z15: -2.4 | AA15: -2.5 | AG15: Sk | AH15: =IF(AH17="A1",AH34,IF(AH17="A2",AH35,IF(AH17="B1",AH36,IF(AH17="B2",AH37,IF(AH17="C1",AH38,IF(AH17="C2",AH39,IF(AH17="D",AH40,IF(AH17="E",AH41,)))))))) -> 0.45
A16: Pas exposition Sud sans déflecteur | B16: 1.057 | G16: Charges de neige sur 1 module | H16: =H12*H14 -> 58.98582901 | I16: daN | N16: Mini Þ=1 | O16: -1.3 | P16: -1.3 | Q16: -2.2 | R16: -1.6 | S16: -2.1 | W16: Mini Þ=1 | X16: -1.4 | Y16: -1.6 | Z16: -2.9 | AA16: -3 | AG16: Sad | AH16: =IF(AH17="A1",AJ34,IF(AH17="A2",AJ35,IF(AH17="B1",AJ36,IF(AH17="B2",AJ37,IF(AH17="C1",AJ38,IF(AH17="C2",AJ39,IF(AH17="D",AJ40,IF(AH17="E",AJ41,)))))))) -> 0
A17: Pression dynamique de pointe | B17: ='Feuille de calcul'!R24 -> 621.6 | M17: 20 | N17: Maxi quel que soit Þ | O17: 0.6 | P17: 1.1 | Q17: 1.9 | R17: 1.5 | S17: 0.4 | V17: 20 | W17: Maxi quel que soit Þ | X17: 0.8 | Y17: 1.7 | Z17: 2.9 | AA17: 2.1 | AG17: Zone de neige | AH17: =Data!$B$13 -> A1
A18: Pas exposition Sud avec déflecteur | B18: 1.357 | D18: Aire de la semelle m² (0,85x0,25) | E18: =0.85*0.25 -> 0.2125 | G18: Toiture à 1 versant | H18: 0 | N18: Mini Þ=0 | O18: -0.9 | P18: -1.2 | Q18: -1.8 | R18: -1.4 | S18: -2 | W18: Mini Þ=0 | X18: -1.3 | Y18: -2.2 | Z18: -2.8 | AA18: -2.9 | AG18: Angle du toit | AH18: =M29 -> 8
A19: Pas exposition Est Ouest | B19: 2.117 | D19: Aire du socle m² | E19: 0.0345 | G19: Toiture à 2 versants | N19: Mini Þ=1 | O19: -1.3 | P19: -1.4 | Q19: -2.2 | R19: -1.6 | S19: -2.1 | W19: Mini Þ=1 | X19: -1.4 | Y19: -1.6 | Z19: -2.9 | AA19: -3 | AG19: Arrêt de neige | AH19: Oui | AJ19: Oui
A20: longueur du module | B20: =LongPV/1000 -> 1.722 | D20: Longueur du socle (m) | E20: 0.8 | M20: 25 | N20: Maxi quel que soit Þ | O20: 0.7 | P20: 1.2 | Q20: 1.9 | R20: 1.6 | S20: 0.5 | V20: 25 | W20: Maxi quel que soit Þ | X20: 1 | Y20: 2 | Z20: 3.1 | AA20: 2.3 | AG20: Dimension module : Longueur (m) | AH20: 1.64 | AJ20: Non
A21: Hauteur exposition Sud | B21: 0.322 | D21: Largeur du socle (m) | E21: 0.4 | N21: Mini Þ=0 | O21: -1 | P21: -1.4 | Q21: -1.9 | R21: -1.4 | S21: -2 | W21: Mini Þ=0 | X21: -1.6 | Y21: -2.6 | Z21: -3.2 | AA21: -3.2 | AG21: Dimension module : Largeur (m) | AH21: 0.992
A22: Hauteur exposition Est Ouest | B22: 0.309 | D22: hauteur d'eau (m) | E22: =Data!$B$34/100 -> 0.002 | N22: Mini Þ=1 | O22: -1.3 | P22: -1.4 | Q22: -2 | R22: -1.5 | S22: -2 | W22: Mini Þ=1 | X22: -1.4 | Y22: -1.5 | Z22: -2.5 | AA22: -2.8 | AG22: Surface du module (m²) | AH22: =AH20*AH21 -> 1.62688
A23: Wnet, 3x3 Block, S1, Vertical = cp, net, 3x3 Block, S1, Vertical * b * module length * numbers of substructures * qd(H) | D23: Poids du module (N) | E23: =PoidPV*10 -> 220 | M23: 30 | N23: Maxi quel que soit Þ | O23: 0.9 | P23: 1.3 | Q23: 1.9 | R23: 1.6 | S23: 0.7 | V23: 30 | W23: Maxi quel que soit Þ | X23: 1.2 | Y23: 2.2 | Z23: 3.2 | AA23: 2.4 | AG23: Altitude | AH23: 200
A24: Wnet, 3x3 Block, S1, Vertical = -0.15 * 1.357 * 1.650 * 9 * qd(H) | D24: Poussée d'Archimède (N) | E24: =1*((E18*0.008)+E19*(E22-0.008))*10000 -> 14.93 | N24: Mini Þ=0 | O24: -1 | P24: -1.4 | Q24: -1.9 | R24: -1.4 | S24: -2 | W24: Mini Þ=0 | X24: -1.8 | Y24: -3 | Z24: -3.8 | AA24: -3.6 | AG24: Charges maxi en N sur le module (projet durable / transitoire) | AH24: =AH5*AH22 -> 585.6768
N25: Mini Þ=1 | O25: -1.3 | P25: -1.4 | Q25: -1.8 | R25: -1.4 | S25: -2 | W25: Mini Þ=1 | X25: -1.4 | Y25: -1.5 | Z25: -2.2 | AA25: -2.7
D26: Exposition Est Ouest | AG26: Charges maxi en N sur le module (projet accidentel) | AH26: =IF(AH7=0,AH24,AH7*AH22) -> 585.6768
E27: Vertical | H27: Horizontal | N27: Orientation Est Ouest | W27: Orientation Sud
D28: Block Unit | E28: Suction | F28: Max. Suction | G28: Max. Suction | H28: E-W
E29: Block unit | F29: Row* | G29: Substructur* | H29: W-E | M29: =AngleModule -> 8 | N29: Maxi quel que soit Þ | O29: =IF($M$29=0,O5,IF($M$29=5,O8,IF($M$29=10,O11,IF($M$29=15,O14,IF($M$29=20,O17,IF($M$29=25,O20,IF($M$29=30,O23))))))) -> FALSE | P29: =IF($M$29=0,P5,IF($M$29=5,P8,IF($M$29=10,P11,IF($M$29=15,P14,IF($M$29=20,P17,IF($M$29=25,P20,IF($M$29=30,P23))))))) -> FALSE | Q29: =IF($M$29=0,Q5,IF($M$29=5,Q8,IF($M$29=10,Q11,IF($M$29=15,Q14,IF($M$29=20,Q17,IF($M$29=25,Q20,IF($M$29=30,Q23))))))) -> FALSE | R29: =IF($M$29=0,R5,IF($M$29=5,R8,IF($M$29=10,R11,IF($M$29=15,R14,IF($M$29=20,R17,IF($M$29=25,R20,IF($M$29=30,R23))))))) -> FALSE | S29: =IF($M$29=0,S5,IF($M$29=5,S8,IF($M$29=10,S11,IF($M$29=15,S14,IF($M$29=20,S17,IF($M$29=25,S20,IF($M$29=30,S23))))))) -> FALSE | V29: =AngleModule -> 8 | W29: Maxi quel que soit Þ | X29: =IF($M$29=0,X5,IF($M$29=5,X8,IF($M$29=10,X11,IF($M$29=15,X14,IF($M$29=20,X17,IF($M$29=25,X20,IF($M$29=30,X23))))))) -> FALSE | Y29: =IF($M$29=0,Y5,IF($M$29=5,Y8,IF($M$29=10,Y11,IF($M$29=15,Y14,IF($M$29=20,Y17,IF($M$29=25,Y20,IF($M$29=30,Y23))))))) -> FALSE | Z29: =IF($M$29=0,Z5,IF($M$29=5,Z8,IF($M$29=10,Z11,IF($M$29=15,Z14,IF($M$29=20,Z17,IF($M$29=25,Z20,IF($M$29=30,Z23))))))) -> FALSE | AA29: =IF($M$29=0,AA5,IF($M$29=5,AA8,IF($M$29=10,AA11,IF($M$29=15,AA14,IF($M$29=20,AA17,IF($M$29=25,AA20,IF($M$29=30,AA23))))))) -> FALSE | AG29: Pression maxi (Pa) | AH29: =IF(AH5<AH7,AH7,AH5) -> 360
D30: O1 | E30: -0.13 | F30: -0.3 | G30: -0.56 | H30: 0.27 | N30: Mini Þ=0 | O30: =IF($M$29=0,O6,IF(M29=5,O9,IF($M$29=10,O12,IF($M$29=15,O15,IF($M$29=20,O18,IF($M$29=25,O21,IF($M$29=30,O24))))))) -> FALSE | P30: =IF($M$29=0,P6,IF(N29=5,P9,IF($M$29=10,P12,IF($M$29=15,P15,IF($M$29=20,P18,IF($M$29=25,P21,IF($M$29=30,P24))))))) -> FALSE | Q30: =IF($M$29=0,Q6,IF(N29=5,Q9,IF($M$29=10,Q12,IF($M$29=15,Q15,IF($M$29=20,Q18,IF($M$29=25,Q21,IF($M$29=30,Q24))))))) -> FALSE | R30: =IF($M$29=0,R6,IF(O29=5,R9,IF($M$29=10,R12,IF($M$29=15,R15,IF($M$29=20,R18,IF($M$29=25,R21,IF($M$29=30,R24))))))) -> FALSE | S30: =IF($M$29=0,S6,IF(P29=5,S9,IF($M$29=10,S12,IF($M$29=15,S15,IF($M$29=20,S18,IF($M$29=25,S21,IF($M$29=30,S24))))))) -> FALSE | W30: Mini Þ=0 | X30: =IF($M$29=0,X6,IF(V29=5,X9,IF($M$29=10,X12,IF($M$29=15,X15,IF($M$29=20,X18,IF($M$29=25,X21,IF($M$29=30,X24))))))) -> FALSE | Y30: =IF($M$29=0,Y6,IF(W29=5,Y9,IF($M$29=10,Y12,IF($M$29=15,Y15,IF($M$29=20,Y18,IF($M$29=25,Y21,IF($M$29=30,Y24))))))) -> FALSE | Z30: =IF($M$29=0,Z6,IF(W29=5,Z9,IF($M$29=10,Z12,IF($M$29=15,Z15,IF($M$29=20,Z18,IF($M$29=25,Z21,IF($M$29=30,Z24))))))) -> FALSE | AA30: =IF($M$29=0,AA6,IF(X29=5,AA9,IF($M$29=10,AA12,IF($M$29=15,AA15,IF($M$29=20,AA18,IF($M$29=25,AA21,IF($M$29=30,AA24))))))) -> FALSE
D31: O2 | E31: -0.12 | F31: -0.29 | G31: -0.5 | H31: 0.26 | N31: Mini Þ=1 | O31: =IF($M$29=0,O7,IF($M$29=5,O10,IF($M$29=10,O13,IF($M$29=15,O16,IF($M$29=20,O19,IF($M$29=25,O22,IF($M$29=30,O25))))))) -> FALSE | P31: =IF($M$29=0,P7,IF($M$29=5,P10,IF($M$29=10,P13,IF($M$29=15,P16,IF($M$29=20,P19,IF($M$29=25,P22,IF($M$29=30,P25))))))) -> FALSE | Q31: =IF($M$29=0,Q7,IF($M$29=5,Q10,IF($M$29=10,Q13,IF($M$29=15,Q16,IF($M$29=20,Q19,IF($M$29=25,Q22,IF($M$29=30,Q25))))))) -> FALSE | R31: =IF($M$29=0,R7,IF($M$29=5,R10,IF($M$29=10,R13,IF($M$29=15,R16,IF($M$29=20,R19,IF($M$29=25,R22,IF($M$29=30,R25))))))) -> FALSE | S31: =IF($M$29=0,S7,IF($M$29=5,S10,IF($M$29=10,S13,IF($M$29=15,S16,IF($M$29=20,S19,IF($M$29=25,S22,IF($M$29=30,S25))))))) -> FALSE | W31: Mini Þ=1 | X31: =IF($M$29=0,X7,IF($M$29=5,X10,IF($M$29=10,X13,IF($M$29=15,X16,IF($M$29=20,X19,IF($M$29=25,X22,IF($M$29=30,X25))))))) -> FALSE | Y31: =IF($M$29=0,Y7,IF($M$29=5,Y10,IF($M$29=10,Y13,IF($M$29=15,Y16,IF($M$29=20,Y19,IF($M$29=25,Y22,IF($M$29=30,Y25))))))) -> FALSE | Z31: =IF($M$29=0,Z7,IF($M$29=5,Z10,IF($M$29=10,Z13,IF($M$29=15,Z16,IF($M$29=20,Z19,IF($M$29=25,Z22,IF($M$29=30,Z25))))))) -> FALSE | AA31: =IF($M$29=0,AA7,IF($M$29=5,AA10,IF($M$29=10,AA13,IF($M$29=15,AA16,IF($M$29=20,AA19,IF($M$29=25,AA22,IF($M$29=30,AA25))))))) -> FALSE
D32: O3 | E32: -0.11 | F32: -0.23 | G32: -0.4 | H32: 0.23 | AL32: De 200 à 500 m | AN32: De 500 à 1000 m | AP32: De 1000 à 2000 m
D33: M1 | E33: -0.12 | F33: -0.17 | G33: -0.4 | H33: 0.27 | AG33: Zone de neige | AH33: Sk | AI33: Sk200 < 200 m | AJ33: Sad | AK33: Sad<200 m | AL33: ▲s1 | AM33: ▲s2 | AN33: ▲s1 | AO33: ▲s2 | AP33: ▲s1 | AQ33: ▲s2
D34: M2 | E34: -0.11 | F34: -0.15 | G34: -0.38 | H34: 0.35 | M34: =IF(H18="Toiture à 2 versants",2,0) -> 0 | O34: Nombre de pan de toiture | V34: =IF(H18="Toiture à 1 versant",1,0) -> 0 | X34: Nombre de pan de toiture | AG34: A1 | AH34: 0.45 | AI34: 0.45 | AJ34: 0 | AK34: 0 | AL34: =(AH23/1000)-0.2 -> 0 | AN34: =1.5*(AH23/1000)-0.45 -> -0.15 | AP34: =3.5*(AH23/1000)-2.45 -> -1.75
D35: M3 | E35: -0.1 | F35: -0.14 | G35: -0.29 | H35: 0.21 | AG35: A2 | AH35: 0.45 | AI35: 0.45 | AJ35: 1 | AK35: 1 | AL35: =(AH23/1000)-0.2 -> 0 | AN35: =1.5*(AH23/1000)-0.45 -> -0.15 | AP35: =3.5*(AH23/1000)-2.45 -> -1.75
P36: Surface | Y36: Surface | AG36: B1 | AH36: 0.55 | AI36: 0.55 | AJ36: 1 | AK36: 1 | AL36: =(AH23/1000)-0.2 -> 0 | AN36: =1.5*(AH23/1000)-0.45 -> -0.15 | AP36: =3.5*(AH23/1000)-2.45 -> -1.75
M37: Maxi quel que soit Þ | N37: CpA+ | O37: =IF(M34>0,P29,0) -> 0 | P37: =(O70-2)*O86+(2*O73) -> 9.3708288 | V37: Maxi quel que soit Þ | W37: CpA+ | X37: =IF(V34>0,Y29,0) -> 0 | Y37: =(X70-2)*X86+(2*X73) -> 6.2472192 | AG37: B2 | AH37: 0.55 | AI37: 0.55 | AJ37: 1.35 | AK37: 1.35 | AL37: =(AH23/1000)-0.2 -> 0 | AN37: =1.5*(AH23/1000)-0.45 -> -0.15 | AP37: =3.5*(AH23/1000)-2.45 -> -1.75
E38: Vertical | H38: Horizontal | N38: CpB+ | O38: =IF(M34>0,Q29,0) -> 0 | P38: =IF(O70>=2,2*O74,O74) -> 0.650752 | W38: CpB+ | X38: =IF(V34>0,Z29,0) -> 0 | Y38: =IF(X70>=2,2*X74,X74) -> 0.1968128 | AG38: C1 | AH38: 0.65 | AI38: 0.65 | AJ38: 0 | AK38: 0 | AL38: =(AH23/1000)-0.2 -> 0 | AN38: =1.5*(AH23/1000)-0.45 -> -0.15 | AP38: =3.5*(AH23/1000)-2.45 -> -1.75
D39: Block Unit | E39: Suction | F39: Max. Suction | G39: Max. Suction | H39: E-W | N39: CpC+ | O39: =IF(M34>0,R29,0) -> 0 | P39: =O70*O75 -> 3.25376 | W39: CpC+ | X39: =IF(V34>0,AA29,0) -> 0 | Y39: =X70*X75 -> 1.62688 | AG39: C2 | AH39: 0.65 | AI39: 0.65 | AJ39: 1.35 | AK39: 1.35 | AL39: =(AH23/1000)-0.2 -> 0 | AN39: =1.5*(AH23/1000)-0.45 -> -0.15 | AP39: =3.5*(AH23/1000)-2.45 -> -1.75
E40: Block unit | F40: Row* | G40: Substructur* | H40: W-E | N40: CpD+ | O40: =IF(M34>0,S29,0) -> 0 | P40: =O70*O76 -> 3.25376 | AG40: D | AH40: 0.9 | AI40: 0.9 | AJ40: 1.8 | AK40: 1.8 | AL40: =(AH23/1000)-0.2 -> 0 | AN40: =1.5*(AH23/1000)-0.45 -> -0.15 | AP40: =3.5*(AH23/1000)-2.45 -> -1.75
D41: O1 | E41: =ABS(E30*$B$19*$B$20*9*$B$17) -> 2651.251167 | F41: =ABS(F30*$B$19*$B$20*3*$B$17) -> 2039.423975 | G41: =ABS(G30*$B$19*$B$20*1*$B$17) -> 1268.974918 | H41: =H30*$B$22*$B$20*$B$17*9 -> 803.7276438 | M41: Mini Þ=0 | N41: CpA- | O41: =IF(M34>0,P30,0) -> 0 | P41: =P37 -> 9.3708288 | V41: Mini Þ=0 | W41: CpA- | X41: =IF(V34>0,Y30,0) -> 0 | Y41: =Y37 -> 6.2472192 | AG41: E | AH41: 1.4 | AI41: 1.4 | AJ41: 0 | AK41: 0 | AM41: =(1.5*AH23/1000)-0.3 -> 0 | AO41: =(3.5*AH23/1000)-1.3 -> -0.6 | AQ41: =(7*AH23/1000)-4.8 -> -3.4
D42: O2 | E42: 2447.308769 | F42: 1971.443175 | G42: 1133.013319 | H42: 773.9599533 | N42: CpB- | O42: =IF(M34>0,Q30,0) -> 0 | P42: 0.650752 | W42: CpB- | X42: =IF(V34>0,Z30,0) -> 0 | Y42: =Y38 -> 0.1968128
D43: O3 | E43: 2243.366372 | F43: 1563.55838 | G43: 906.4106554 | H43: 684.6568818 | N43: CpC- | O43: =IF(M34>0,R29,0) -> 0 | P43: 3.25376 | W43: CpC- | X43: =IF(V34>0,AA30,0) -> 0 | Y43: =Y39 -> 1.62688
D44: M1 | E44: 2447.308769 | F44: 1155.673586 | G44: 906.4106554 | H44: 803.7276438 | N44: CpD- | O44: =IF(M34>0,S29,0) -> 0 | P44: 3.25376
D45: M2 | E45: 2243.366372 | F45: 1019.711987 | G45: 861.0901226 | H45: 1041.869168 | M45: Mini Þ=1 | N45: CpA- | O45: =IF(M34>0,P31,0) -> 0 | P45: 9.3708288 | V45: Mini Þ=1 | W45: CpA- | X45: =IF(V34>0,Y31,0) -> 0 | Y45: =Y41 -> 6.2472192
D46: M3 | E46: 2039.423975 | F46: 951.7311881 | G46: 657.1477251 | H46: 625.1215008 | N46: CpB- | O46: =IF(M34>0,Q31,0) -> 0 | P46: 0.650752 | W46: CpB- | X46: =IF(V34>0,Z31,0) -> 0 | Y46: =Y42 -> 0.1968128
N47: CpC- | O47: =IF(M34>0,R31,0) -> 0 | P47: 3.25376 | W47: CpC- | X47: =IF(V34>0,AA31,0) -> 0 | Y47: =Y43 -> 1.62688
D48: Charge par support | N48: CpD- | O48: =IF(M34>0,S31,0) -> 0 | P48: 3.25376
E49: Vertical | H49: Horizontal | I49: Horizontal | N49: Cf+ | O49: =IF(M34>0,O29,0) -> 0 | W49: Cf+ | X49: =IF(V34>0,X29,0) -> 0
D50: Block Unit | E50: Suction | F50: Max. Suction | G50: Max. Suction | H50: E-W | I50: E-W / W-E | N50: Cf- | O50: =IF(M34>0,O30,0) -> 0 | W50: Cf- | X50: =IF(V34>0,X30,0) -> 0
E51: Block unit | F51: Row* | G51: Substructur* | H51: W-E | I51: Corrigé à 100 mini
D52: O1 | E52: =ABS((E41/18)-$E$23+$E$24)*$E$13 -> 69.3339222 | F52: =ABS((F41/6)-$E$23+$E$24)*$E$13 -> 161.8007949 | G52: =ABS((G41/4)-$E$23+$E$24)*$E$13 -> 134.6084753 | H52: =(H41/18)*$E$13 -> 53.58184292 | I52: =IF(H52<100,100,H52) -> 100 | M52: Maxi quel que soit Þ | N52: WeCp+ | O52: =(O37*P37+O38*P38+O39*P39+O40*P40)/(P37+P38+P39+P40)*H2 -> 0 | P52: daN/m² | V52: Maxi quel que soit Þ | W52: WeCp+ | X52: =(X37*Y37+X38*Y38+X39*Y39)/(Y37+Y38+Y39)*H2 -> 0 | Y52: daN/m²
D53: O2 | E53: =ABS((E42/18)-$E$23+$E$24)*$E$13 -> 82.93008204 | F53: =ABS((F42/6)-$E$23+$E$24)*$E$13 -> 148.2046351 | G53: =ABS((G42/4)-$E$23+$E$24)*$E$13 -> 93.81999576 | H53: =(H42/18)*$E$13 -> 51.59733022 | I53: =IF(H53<100,100,H53) -> 100 | M53: Mini Þ=0 | N53: WeCp- | O53: =(O41*P41+O42*P42+O43*P43+O44*P44)/(P41+P42+P43+P44)*H2 -> 0 | P53: daN/m² | V53: Mini Þ=0 | W53: WeCp- | X53: =(X41*Y41+X42*Y42+X43*Y43)/(Y41+Y42+Y43)*H2 -> 0 | Y53: daN/m²
D54: O3 | E54: 96.52624187 | F54: 66.6276761 | G54: 25.83919661 | H54: 45.64379212 | I54: 100 | M54: Mini Þ=1 | N54: WeCp- | O54: =(O45*P45+O46*P46+O47*P47+O48*P48)/(P45+P46+P47+P48)*H2 -> 0 | P54: daN/m² | V54: Mini Þ=1 | W54: WeCp- | X54: =(X45*Y45+X46*Y46+X47*Y47)/(Y45+Y46+Y47)*H2 -> 0 | Y54: daN/m²
D55: M1 | E55: 82.93008204 | F55: 14.94928288 | G55: 25.83919661 | H55: 53.58184292 | I55: 100 | N55: WeCf+ | O55: =O49*H2 -> 0 | P55: daN/m² | W55: WeCf+ | X55: =X49*H2 -> 0 | Y55: daN/m²
D56: M2 | E56: 96.52624187 | F56: 42.14160254 | G56: 12.24303678 | H56: 69.45794453 | I56: 100 | N56: WeCf- | O56: =O50*H2 -> 0 | P56: daN/m² | W56: WeCf- | X56: =X50*H2 -> 0 | Y56: daN/m²
D57: M3 | E57: 110.1224017 | F57: 55.73776237 | G57: 48.93968246 | H57: 41.67476672 | I57: 100 | N57: Le signe + indique une action net du vent descendante /Le signe - indique une action nette du vent ascendante
N58: F+ | O58: =O52*H12 -> 0 | P58: daN | W58: F+ | X58: =X52*H12 -> 0 | Y58: daN
N59: F- | O59: =O53*H12+IF(M34>0,H4,0) -> 0 | P59: daN | W59: F- | X59: =X53*H12+IF(V34>0,H4,0) -> 0 | Y59: daN
D60: Exposition sud avec déflecteur | N60: F-Maxi | O60: =O54*H12+IF(M34>0,H4,0) -> 0 | P60: daN | W60: F-Maxi | X60: =X54*H12+IF(V34>0,H4,0) -> 0 | Y60: daN
N61: Cf max | O61: =IF(O56>O55,O56*H12,O55*H12) -> 0 | P61: daN | W61: Cf max | X61: =IF(X56>X55,X56*H12,X55*H12) -> 0 | Y61: daN
E63: Vertical | H63: Horizontal
D64: Block Unit | E64: Suction | F64: Max. Suction | G64: Max. Suction | H64: S-N | I64: N-S | O64: (m) | X64: (m)
E65: Block unit | F65: Row* | G65: Substructur* | N65: b | O65: 1.64 | W65: b | X65: 1.64
D66: S1 | E66: -0.15 | F66: -0.29 | G66: -0.61 | H66: 0.39 | I66: -0.3 | N66: b/10 | O66: =O65/10 -> 0.164 | W66: b/10 | X66: =O65/10 -> 0.164
D67: S2 | E67: -0.13 | F67: -0.28 | G67: -0.47 | H67: 0.22 | I67: -0.29 | N67: d | O67: 1.984 | W67: d | X67: 0.992
D68: S3 | E68: -0.11 | F68: -0.2 | G68: -0.33 | H68: 0.13 | I68: -0.24 | N68: d/10 | O68: =O67/10 -> 0.1984 | W68: d/10 | X68: =X67/10 -> 0.0992
D69: M1 | E69: -0.12 | F69: -0.17 | G69: -0.45 | H69: 0.2 | I69: -0.29 | N69: d/5 | O69: =O67/5 -> 0.3968
D70: M2 | E70: -0.11 | F70: -0.16 | G70: -0.42 | H70: 0.37 | I70: -0.4 | N70: Nb module/rangée | O70: 5 | W70: Nb module/rangée | X70: 5
D71: M3 | E71: -0.1 | F71: -0.13 | G71: -0.31 | H71: 0.2 | I71: -0.22
D72: N1 | E72: -0.14 | F72: -0.23 | G72: -0.54 | H72: 0.29 | I72: -0.27 | N72: Module extrémité | O72: (m²) | W72: Module extrémité | X72: (m²)
D73: N2 | E73: -0.13 | F73: -0.22 | G73: -0.39 | H73: 0.28 | I73: -0.15 | M73: Maxi quel que soit Þ | N73: CpA+ | O73: =(O67-(O68+O68+O69))*(O65-O66) -> 1.7570304 | V73: Maxi quel que soit Þ | W73: CpA+ | X73: =(X67-(X68+X68))*(X65-X66) -> 1.1713536
D74: N3 | E74: -0.12 | F74: -0.22 | G74: -0.37 | H74: 0.2 | I74: -0.12 | N74: CpB+ | O74: =O67*O66 -> 0.325376 | W74: CpB+ | X74: =X67*X68 -> 0.0984064
N75: CpC+ | O75: =O65*O68*2 -> 0.650752 | W75: CpC+ | X75: =X65*X68*2 -> 0.325376
N76: CpD+ | O76: =O65*O69 -> 0.650752
E77: Vertical | H77: Horizontal | M77: Mini Þ=0 | N77: CpA- | O77: =O73 -> 1.7570304 | V77: Mini Þ=0 | W77: CpA- | X77: =X73 -> 1.1713536
D78: Block Unit | E78: Suction | F78: Max. Suction | G78: Max. Suction | H78: S-N | I78: N-S | N78: CpB- | O78: 0.325376 | W78: CpB- | X78: =X74 -> 0.0984064
E79: Block unit | F79: Row* | G79: Substructur* | N79: CpC- | O79: 0.650752 | W79: CpC- | X79: =X75 -> 0.325376
D80: S1 | E80: =ABS(E66*$B$18*$B$20*9*$B$17) -> 1960.910487 | F80: =ABS(F66*$B$18*$B$20*3*$B$17) -> 1263.697869 | G80: =ABS(G66*$B$18*$B$20*1*$B$17) -> 886.0410347 | H80: =H66*$B$17*$B$21*$B$20*9 -> 1209.782063 | I80: =I66*$B$17*$B$20*$B$21*9 -> -930.6015869 | N80: CpD- | O80: 0.650752
D81: S2 | E81: =ABS(E67*$B$18*$B$20*9*$B$17) -> 1699.455755 | F81: =ABS(F67*$B$18*$B$20*3*$B$17) -> 1220.122081 | G81: =ABS(G67*$B$18*$B$20*1*$B$17) -> 682.6873546 | H81: =H67*$B$17*$B$21*$B$20*9 -> 682.4411637 | I81: =I67*$B$17*$B$20*$B$21*9 -> -899.581534 | M81: Mini Þ=1 | N81: CpA- | O81: 1.7570304 | V81: Mini Þ=1 | W81: CpA- | X81: =X77 -> 1.1713536
D82: S3 | E82: 1438.001024 | F82: 871.5157718 | G82: 479.3336745 | H82: 403.2606876 | I82: -744.4812695 | N82: CpB- | O82: 0.325376 | W82: CpB- | X82: =X78 -> 0.0984064
D83: M1 | E83: 1568.728389 | F83: 740.7884061 | G83: 653.6368289 | H83: 620.4010579 | I83: -899.581534 | N83: CpC- | O83: 0.650752 | W83: CpC- | X83: =X79 -> 0.325376
D84: M2 | E84: 1438.001024 | F84: 697.2126175 | G84: 610.0610403 | H84: 1147.741957 | I84: -1240.802116 | N84: CpD- | O84: 0.650752
D85: M3 | E85: 1307.273658 | F85: 566.4852517 | G85: 450.2831488 | H85: 620.4010579 | I85: -682.4411637 | N85: Module milieu | O85: (m²) | W85: Module milieu | X85: (m²)
D86: N1 | E86: 1830.183121 | F86: 1002.243138 | G86: 784.3641947 | H86: 899.581534 | I86: -837.5414282 | M86: Maxi quel que soit Þ | N86: CpA+ | O86: =(O67-(O68+O68+O69))*O65 -> 1.952256 | V86: Maxi quel que soit Þ | W86: CpA+ | X86: =(X67-X68-X68)*X65 -> 1.301504
D87: N2 | E87: 1699.455755 | F87: 958.667349 | G87: 566.4852517 | H87: 868.5614811 | I87: -465.3007934
D88: N3 | E88: 1568.728389 | F88: 958.667349 | G88: 537.434726 | H88: 620.4010579 | I88: -372.2406348 | N88: CpC+ | O88: =O65*O68*2 -> 0.650752 | W88: CpC+ | X88: =(X68+X68)*X65 -> 0.325376
N89: CpD+ | O89: =O65*O69 -> 0.650752
D90: Charge par support | M90: Mini Þ=0 | N90: CpA- | O90: =O86 -> 1.952256 | V90: Mini Þ=0 | W90: CpA- | X90: =X86 -> 1.301504
E91: Vertical | H91: Horizontal
D92: Block Unit | E92: Suction | F92: Max. Suction | G92: Max. Suction | H92: S-N | I92: N-S | J92: Maxi | K92: Maxi | N92: CpC- | O92: =O88 -> 0.650752 | W92: CpC- | X92: =X88 -> 0.325376
E93: Block unit | F93: Row* | G93: Substructur* | K93: Corrigé à 100 mini | N93: CpD- | O93: =O89 -> 0.650752
D94: S1 | E94: =ABS(E80/9+$E$23-$E$24)*$E$13 -> 507.5387316 | F94: =ABS(F80/3+$E$23-$E$24)*$E$13 -> 751.5631477 | G94: =ABS(G80/2+$E$23-$E$24)*$E$13 -> 777.7086208 | H94: =(H80/9)*$E$13 -> 161.3042751 | I94: =ABS(I80/9)*$E$13 -> 124.0802116 | J94: =MAX(H94,I94) -> 161.3042751 | K94: =IF(MAX(H94,I94)<100,100,MAX(H94,I94)) -> 161.3042751 | M94: Mini Þ=1 | N94: CpA- | O94: =O90 -> 1.952256 | V94: Mini Þ=1 | W94: CpA- | X94: =X90 -> 1.301504
D95: S2 | E95: =ABS(E81/9+$E$23-$E$24)*$E$13 -> 472.6781007 | F95: =ABS(F81/3+$E$23-$E$24)*$E$13 -> 734.1328322 | G95: =ABS(G81/2+$E$23-$E$24)*$E$13 -> 655.6964128 | H95: =(H81/9)*$E$13 -> 90.99215516 | I95: =ABS(I81/9)*$E$13 -> 119.9442045 | J95: =MAX(H95,I95) -> 119.9442045 | K95: =IF(MAX(H95,I95)<100,100,MAX(H95,I95)) -> 119.9442045
D96: S3 | E96: 437.8174698 | F96: 594.6903087 | G96: 533.6842047 | H96: 53.76809169 | I96: 99.26416927 | J96: 99.26416927 | K96: 100 | N96: CpC- | O96: =O92 -> 0.650752 | W96: CpC- | X96: =X92 -> 0.325376
D97: M1 | E97: 455.2477852 | F97: 542.3993624 | G97: 638.2660973 | H97: 82.72014106 | I97: 119.9442045 | J97: 119.9442045 | K97: 119.9442045 | N97: CpD- | O97: =O93 -> 0.650752
D98: M2 | E98: 437.8174698 | F98: 524.969047 | G98: 612.1206242 | H98: 153.032261 | I98: 165.4402821 | J98: 165.4402821 | K98: 165.4402821
D99: M3 | E99: 420.3871544 | F99: 472.6781007 | G99: 516.2538893 | H99: 82.72014106 | I99: 90.99215516 | J99: 90.99215516 | K99: 100
D100: N1 | E100: 490.1084161 | F100: 646.981255 | G100: 716.7025168 | H100: 119.9442045 | I100: 111.6721904 | J100: 119.9442045 | K100: 119.9442045
D101: N2 | E101: 472.6781007 | F101: 629.5509396 | G101: 585.975151 | H101: 115.8081975 | I101: 62.04010579 | J101: 115.8081975 | K101: 115.8081975
D102: N3 | E102: 455.2477852 | F102: 629.5509396 | G102: 568.5448356 | H102: 82.72014106 | I102: 49.63208463 | J102: 82.72014106 | K102: 100
D106: Exposition sud sans déflecteur
E108: Vertical | H108: Horizontal
D109: Block Unit | E109: Suction | F109: Max. Suction | G109: Max. Suction
E110: Block unit | F110: Row* | G110: Substructur*
D111: S1 | E111: -0.48 | F111: -0.52 | G111: -1.25 | H111: 0.36
D112: S2 | E112: -0.3 | F112: -0.51 | G112: -0.82 | H112: 0.27
D113: S3 | E113: -0.26 | F113: -0.37 | G113: -0.63 | H113: 0.21
D114: M1 | E114: -0.52 | F114: -0.55 | G114: -0.74 | H114: 0.25
D115: M2 | E115: -0.33 | F115: -0.43 | G115: -0.66 | H115: 0.33
D116: M3 | E116: -0.21 | F116: -0.27 | G116: -0.5 | H116: 0.19
D117: N1 | E117: -0.55 | F117: -0.62 | G117: -1.05 | H117: 0.31
D118: N2 | E118: -0.34 | F118: -0.45 | G118: -0.64 | H118: 0.37
D119: N3 | E119: -0.37 | F119: -0.41 | G119: -0.49 | H119: 0.25
E122: Vertical | H122: Horizontal
D123: Block Unit | E123: Suction | F123: Max. Suction | G123: Max. Suction
E124: Block unit | F124: Row* | G124: Substructur*
D125: S1 | E125: =ABS(E111*$B$16*$B$20*9*$B$17) -> 4887.681378 | F125: =ABS(F111*$B$16*$B$20*3*$B$17) -> 1764.996053 | G125: =ABS(G111*$B$16*$B$20*1*$B$17) -> 1414.259658 | H125: =H111*$B$17*$B$20*$B$21*9 -> 1116.721904
D126: S2 | E126: =ABS(E112*$B$16*$B$20*9*$B$17) -> 3054.800861 | F126: =ABS(F112*$B$16*$B$20*3*$B$17) -> 1731.053821 | G126: =ABS(G112*$B$16*$B$20*1*$B$17) -> 927.7543356 | H126: =H112*$B$17*$B$20*$B$21*9 -> 837.5414282
D127: S3 | E127: 2647.49408 | F127: 1255.862576 | G127: 712.7868676 | H127: 651.4211108
D128: M1 | E128: 5294.98816 | F128: 1866.822749 | G128: 837.2417175 | H128: 775.5013224
D129: M2 | E129: 3360.280947 | F129: 1459.515967 | G129: 746.7290994 | H129: 1023.661746
D130: M3 | E130: 2138.360603 | F130: 916.4402584 | G130: 565.7038632 | H130: 589.381005
D131: N1 | E131: 5600.468246 | F131: 2104.418371 | G131: 1187.978113 | H131: 961.6216398
D132: N2 | E132: 3462.107643 | F132: 1527.400431 | G132: 724.1009449 | H132: 1147.741957
D133: N3 | E133: 3767.587729 | F133: 1391.631503 | G133: 554.3897859 | H133: 775.5013224
D135: Charge par support
E136: Vertical | H136: Horizontal | I136: Horizontal
D137: Block Unit | E137: Suction | F137: Max. Suction | G137: Max. Suction | H137: S-N | I137: S-N
E138: Block unit | F138: Row* | G138: Substructur* | I138: Corrigé à 100 mini
D139: S1 | E139: =ABS((E125/9)-$E$23+$E$24)*$E$13 -> 405.6068504 | F139: =ABS(F125/3-$E$23+$E$24)*$E$13 -> 459.9144213 | G139: =ABS(G125/2-$E$23+$E$24)*$E$13 -> 602.4717948 | H139: =H125/9*$E$13 -> 148.8962539 | I139: =IF(H139<100,100,H139) -> 148.8962539
D140: S2 | E140: =ABS((E126/9)-$E$23+$E$24)*$E$13 -> 161.2227815 | F140: =ABS(F126/3-$E$23+$E$24)*$E$13 -> 446.3375286 | G140: =ABS(G126/2-$E$23+$E$24)*$E$13 -> 310.5686014 | H140: =H126/9*$E$13 -> 111.6721904 | I140: =IF(H140<100,100,H140) -> 111.6721904
D141: S3 | E141: 106.9152106 | F141: 256.2610305 | G141: 181.5881206 | H141: 86.85614811 | I141: 100
D142: M1 | E142: 459.9144213 | F142: 500.6450994 | G142: 256.2610305 | H142: 103.4001763 | I142: 103.4001763
D143: M2 | E143: 201.9534597 | F143: 337.7223868 | G143: 201.9534597 | H143: 136.4882327 | I143: 136.4882327
D144: M3 | E144: 39.03074705 | F144: 120.4921034 | G144: 93.33831792 | H144: 78.584134 | I144: 100
D145: N1 | E145: 500.6450994 | F145: 595.6833484 | G145: 466.7028676 | H145: 128.2162186 | I145: 128.2162186
D146: N2 | E146: 215.5303524 | F146: 364.8761723 | G146: 188.3765669 | H146: 153.032261 | I146: 153.032261
D147: N3 | E147: 256.2610305 | F147: 310.5686014 | G147: 86.54987156 | H147: 103.4001763 | I147: 103.4001763

Sheet Frottement (hidden)
D4: Selectionner le revetement (1,2 ou 3)
D6: =TypeRevetement -> 1
D7: (en N) | I7: Module à 0°
C8: Lestage en N | D8: Mesures Sur toitures bitumeuse avec semelle de protection | E8: Mesures Sur toitures PVC avec semelle de protection | F8: Mesures Sur toitures Béton sans semelle de protection | G8: Sélection/Type de revetement | I8: Force latérale (Module à 0°) | J8: Sélection/Type de revetement | K8: Lestage en N
C9: =C10-(C11-C10) -> 35 | D9: =D10-(D11-D10) -> 30 | E9: 30 | F9: 20 | G9: =IF($D$6=1,D9,IF($D$6=2,E9,IF($D$6=3,F9,0))) -> 30 | I9: =IF($D$100>G9,IF($D$100<G10,$D$100,0),0) -> 30.08278284 | J9: =IF(I9>0,G9,0) -> 30 | K9: =IF(J9>0,C9,0) -> 35
C10: =C11-(C12-C11) -> 52.5 | D10: 37.5 | E10: 37.5 | F10: 27.5 | G10: 37.5 | I10: 0 | J10: =IF(I10>0,G10,0) -> 0 | K10: =IF(J10>0,C10,0) -> 0
C11: 70 | D11: 45 | E11: 45 | F11: 35 | G11: 45 | I11: 0 | J11: 0 | K11: 0
C12: =(C11+C13)/2 -> 87.5 | D12: =(D11+D13)/2 -> 52.5 | E12: =(E11+E13)/2 -> 52.5 | F12: =(F11+F13)/2 -> 42.5 | G12: 52.5 | I12: 0 | J12: 0 | K12: 0
C13: =(C15+C11)/2 -> 105 | D13: =(D15+D11)/2 -> 60 | E13: =(E15+E11)/2 -> 60 | F13: =(F15+F11)/2 -> 50 | G13: 60 | I13: 0 | J13: 0 | K13: 0
C14: =(C13+C15)/2 -> 122.5 | D14: =(D13+D15)/2 -> 67.5 | E14: =(E13+E15)/2 -> 67.5 | F14: =(F13+F15)/2 -> 57.5 | G14: 67.5 | I14: 0 | J14: 0 | K14: 0
C15: 140 | D15: 75 | E15: 75 | F15: 65 | G15: 75 | I15: 0 | J15: 0 | K15: 0
C16: =(C15+C17)/2 -> 157.5 | D16: =(D15+D17)/2 -> 82.5 | E16: =(E15+E17)/2 -> 82.5 | F16: =(F15+F17)/2 -> 72.5 | G16: 82.5 | I16: 0 | J16: 0 | K16: 0
C17: =(C19+C15)/2 -> 175 | D17: =(D19+D15)/2 -> 90 | E17: =(E19+E15)/2 -> 90 | F17: =(F19+F15)/2 -> 80 | G17: 90 | I17: 0 | J17: 0 | K17: 0
C18: =(C17+C19)/2 -> 192.5 | D18: =(D17+D19)/2 -> 97.5 | E18: =(E17+E19)/2 -> 97.5 | F18: =(F17+F19)/2 -> 87.5 | G18: 97.5 | I18: 0 | J18: 0 | K18: 0
C19: 210 | D19: 105 | E19: 105 | F19: 95 | G19: 105 | I19: 0 | J19: 0 | K19: 0
C20: =(C19+C21)/2 -> 227.5 | D20: =(D19+D21)/2 -> 112.5 | E20: =(E19+E21)/2 -> 111.25 | F20: =(F19+F21)/2 -> 105 | G20: 112.5 | I20: 0 | J20: 0 | K20: 0
C21: =(C23+C19)/2 -> 245 | D21: =(D23+D19)/2 -> 120 | E21: =(E23+E19)/2 -> 117.5 | F21: =(F23+F19)/2 -> 115 | G21: 120 | I21: 0 | J21: 0 | K21: 0
C22: =(C21+C23)/2 -> 262.5 | D22: =(D21+D23)/2 -> 127.5 | E22: =(E21+E23)/2 -> 123.75 | F22: =(F21+F23)/2 -> 125 | G22: 127.5 | I22: 0 | J22: 0 | K22: 0
C23: 280 | D23: 135 | E23: 130 | F23: 135 | G23: 135 | I23: 0 | J23: 0 | K23: 0
C24: =(C23+C25)/2 -> 297.5 | D24: =(D23+D25)/2 -> 141.25 | E24: =(E23+E25)/2 -> 136.25 | F24: =(F23+F25)/2 -> 140 | G24: 141.25 | I24: 0 | J24: 0 | K24: 0
C25: =(C27+C23)/2 -> 315 | D25: =(D27+D23)/2 -> 147.5 | E25: =(E27+E23)/2 -> 142.5 | F25: =(F27+F23)/2 -> 145 | G25: 147.5 | I25: 0 | J25: 0 | K25: 0
C26: =(C25+C27)/2 -> 332.5 | D26: =(D25+D27)/2 -> 153.75 | E26: =(E25+E27)/2 -> 148.75 | F26: =(F25+F27)/2 -> 150 | G26: 153.75 | I26: 0 | J26: 0 | K26: 0
C27: 350 | D27: 160 | E27: 155 | F27: 155 | G27: 160 | I27: 0 | J27: 0 | K27: 0
C28: =(C27+C29)/2 -> 367.5 | D28: =(D27+D29)/2 -> 166.25 | E28: =(E27+E29)/2 -> 161.25 | F28: =(F27+F29)/2 -> 167.5 | G28: 166.25 | I28: 0 | J28: 0 | K28: 0
C29: =(C31+C27)/2 -> 385 | D29: =(D31+D27)/2 -> 172.5 | E29: =(E31+E27)/2 -> 167.5 | F29: =(F31+F27)/2 -> 180 | G29: 172.5 | I29: 0 | J29: 0 | K29: 0
C30: =(C29+C31)/2 -> 402.5 | D30: =(D29+D31)/2 -> 178.75 | E30: =(E29+E31)/2 -> 173.75 | F30: =(F29+F31)/2 -> 192.5 | G30: 178.75 | I30: 0 | J30: 0 | K30: 0
C31: 420 | D31: 185 | E31: 180 | F31: 205 | G31: 185 | I31: 0 | J31: 0 | K31: 0
C32: =(C31+C33)/2 -> 437.5 | D32: =(D31+D33)/2 -> 191.25 | E32: =(E31+E33)/2 -> 187.5 | F32: =(F31+F33)/2 -> 216.25 | G32: 191.25 | I32: 0 | J32: 0 | K32: 0
C33: =(C35+C31)/2 -> 455 | D33: =(D35+D31)/2 -> 197.5 | E33: =(E35+E31)/2 -> 195 | F33: =(F35+F31)/2 -> 227.5 | G33: 197.5 | I33: 0 | J33: 0 | K33: 0
C34: =(C33+C35)/2 -> 472.5 | D34: =(D33+D35)/2 -> 203.75 | E34: =(E33+E35)/2 -> 202.5 | F34: =(F33+F35)/2 -> 238.75 | G34: 203.75 | I34: 0 | J34: 0 | K34: 0
C35: 490 | D35: 210 | E35: 210 | F35: 250 | G35: 210 | I35: 0 | J35: 0 | K35: 0
C36: =(C35+C37)/2 -> 507.5 | D36: =(D35+D37)/2 -> 216.25 | E36: =(E35+E37)/2 -> 216.25 | F36: =(F35+F37)/2 -> 258.75 | G36: 216.25 | I36: 0 | J36: 0 | K36: 0
C37: =(C39+C35)/2 -> 525 | D37: =(D39+D35)/2 -> 222.5 | E37: =(E39+E35)/2 -> 222.5 | F37: =(F39+F35)/2 -> 267.5 | G37: 222.5 | I37: 0 | J37: 0 | K37: 0
C38: =(C37+C39)/2 -> 542.5 | D38: =(D37+D39)/2 -> 228.75 | E38: =(E37+E39)/2 -> 228.75 | F38: =(F37+F39)/2 -> 276.25 | G38: 228.75 | I38: 0 | J38: 0 | K38: 0
C39: 560 | D39: 235 | E39: 235 | F39: 285 | G39: =IF($D$6=1,D39,IF($D$6=2,E39,IF($D$6=3,F39,0))) -> 235 | I39: 0 | J39: 0 | K39: 0
K40: =SUM(K9:K39) -> 35
C41: =RESULTAT!$C$49 -> Exposition Sud sans déflecteur
C42: =RESULTAT!$C$52 -> Zone | D42: Lestage calculé | E42: Maxi horizontal | F42: % Théorique/Essais | G42: Le plus proche | H42: Lestage correspondant | I42: Lestage Maxi
C43: S1 | D43: =ABS(IF([0]!ChoixTypeLigne=1,RESULTAT!D53,IF([0]!ChoixTypeLigne=2,RESULTAT!E53,IF([0]!ChoixTypeLigne=3,RESULTAT!F53)))) -> 405.6068504 | E43: ='Calcul essais au vent'!I139 -> 148.8962539 | F43: =IF(H43=0,0,E43/H43) -> 0.4726865203 | G43: =MIN(IF(ABS($G$9:$G$39-E43)=MIN(ABS($G$9:$G$39-E43)),$G$9:$G$39)) -> 147.5 | H43: =IF(G43=$G$11,$C$11,IF($G$13=G43,$C$13,IF($G$15=G43,$C$15,IF($G$17=G43,$C$17,IF($G$19=G43,$C$19,IF($G$21=G43,$C$21,IF($G$23=G43,$C$23,IF($G$25=G43,$C$25,IF($G$27=G43,$C$27,IF($G$29=G43,$C$29,IF($G$31=G43,$C$31,IF($G$33=G43,$C$33,IF($G$35=G43,$C$35,IF($G$37=G43,$C$37,IF($G$39=G43,$C$39,IF($G$12=G43,$C$12,IF($G$14=G43,$C$14,IF($G$16=G43,$C$16,IF($G$18=G43,$C$18,IF($G$20=G43,$C$20,IF($G$22=G43,$C$22,IF($G$24=G43,$C$24,IF($G$26=G43,$C$26,IF($G$28=G43,$C$28,IF($G$30=G43,$C$30,IF($G$32=G43,$C$32,IF($G$34=G43,$C$34,IF($G$36=G43,$C$36,IF($G$38=G43,$C$38,IF(G9=G43,C9,IF(G10=G43,C10,0))))))))))))))))))))))))))))))) -> 315 | I43: =IF(D43>H43,D43,H43) -> 405.6068504
C44: S2 | D44: =ABS(IF([0]!ChoixTypeLigne=1,RESULTAT!D54,IF([0]!ChoixTypeLigne=2,RESULTAT!E54,IF([0]!ChoixTypeLigne=3,RESULTAT!F54)))) -> 161.2227815 | E44: ='Calcul essais au vent'!I140 -> 111.6721904 | F44: =IF(H44=0,0,E44/H44) -> 0.4908667711 | G44: =MIN(IF(ABS($G$9:$G$39-E44)=MIN(ABS($G$9:$G$39-E44)),$G$9:$G$39)) -> 112.5 | H44: =IF(G44=$G$11,$C$11,IF($G$13=G44,$C$13,IF($G$15=G44,$C$15,IF($G$17=G44,$C$17,IF($G$19=G44,$C$19,IF($G$21=G44,$C$21,IF($G$23=G44,$C$23,IF($G$25=G44,$C$25,IF($G$27=G44,$C$27,IF($G$29=G44,$C$29,IF($G$31=G44,$C$31,IF($G$33=G44,$C$33,IF($G$35=G44,$C$35,IF($G$37=G44,$C$37,IF($G$39=G44,$C$39,IF($G$12=G44,$C$12,IF($G$14=G44,$C$14,IF($G$16=G44,$C$16,IF($G$18=G44,$C$18,IF($G$20=G44,$C$20,IF($G$22=G44,$C$22,IF($G$24=G44,$C$24,IF($G$26=G44,$C$26,IF($G$28=G44,$C$28,IF($G$30=G44,$C$30,IF($G$32=G44,$C$32,IF($G$34=G44,$C$34,IF($G$36=G44,$C$36,IF($G$38=G44,$C$38,IF(G10=G44,C10,IF(G11=G44,C11,0))))))))))))))))))))))))))))))) -> 227.5 | I44: 227.5
C45: S3 | D45: =ABS(IF([0]!ChoixTypeLigne=1,RESULTAT!D55,IF([0]!ChoixTypeLigne=2,RESULTAT!E55,IF([0]!ChoixTypeLigne=3,RESULTAT!F55)))) -> 106.9152106 | E45: ='Calcul essais au vent'!I141 -> 100 | F45: 0.5194805195 | G45: =MIN(IF(ABS($G$9:$G$39-E45)=MIN(ABS($G$9:$G$39-E45)),$G$9:$G$39)) -> 97.5 | H45: 192.5 | I45: 192.5
C46: M1 | D46: =ABS(IF([0]!ChoixTypeLigne=1,RESULTAT!D56,IF([0]!ChoixTypeLigne=2,RESULTAT!E56,IF([0]!ChoixTypeLigne=3,RESULTAT!F56)))) -> 459.9144213 | E46: ='Calcul essais au vent'!I142 -> 103.4001763 | F46: 0.492381792 | G46: =MIN(IF(ABS($G$9:$G$39-E46)=MIN(ABS($G$9:$G$39-E46)),$G$9:$G$39)) -> 105 | H46: 210 | I46: 459.9144213
C47: M2 | D47: =ABS(IF([0]!ChoixTypeLigne=1,RESULTAT!D57,IF([0]!ChoixTypeLigne=2,RESULTAT!E57,IF([0]!ChoixTypeLigne=3,RESULTAT!F57)))) -> 201.9534597 | E47: ='Calcul essais au vent'!I143 -> 136.4882327 | F47: 0.4874579741 | G47: =MIN(IF(ABS($G$9:$G$39-E47)=MIN(ABS($G$9:$G$39-E47)),$G$9:$G$39)) -> 135 | H47: 280 | I47: 280
C48: M3 | D48: =ABS(IF([0]!ChoixTypeLigne=1,RESULTAT!D58,IF([0]!ChoixTypeLigne=2,RESULTAT!E58,IF([0]!ChoixTypeLigne=3,RESULTAT!F58)))) -> 39.03074705 | E48: ='Calcul essais au vent'!I144 -> 100 | F48: 0.5194805195 | G48: =MIN(IF(ABS($G$9:$G$39-E48)=MIN(ABS($G$9:$G$39-E48)),$G$9:$G$39)) -> 97.5 | H48: 192.5 | I48: 192.5
C49: N1 | D49: =ABS(IF([0]!ChoixTypeLigne=1,RESULTAT!D59,IF([0]!ChoixTypeLigne=2,RESULTAT!E59,IF([0]!ChoixTypeLigne=3,RESULTAT!F59)))) -> 500.6450994 | E49: ='Calcul essais au vent'!I145 -> 128.2162186 | F49: 0.4884427377 | G49: =MIN(IF(ABS($G$9:$G$39-E49)=MIN(ABS($G$9:$G$39-E49)),$G$9:$G$39)) -> 127.5 | H49: 262.5 | I49: 500.6450994
C50: N2 | D50: =ABS(IF([0]!ChoixTypeLigne=1,RESULTAT!D60,IF([0]!ChoixTypeLigne=2,RESULTAT!E60,IF([0]!ChoixTypeLigne=3,RESULTAT!F60)))) -> 215.5303524 | E50: ='Calcul essais au vent'!I146 -> 153.032261 | F50: 0.4602474014 | G50: =MIN(IF(ABS($G$9:$G$39-E50)=MIN(ABS($G$9:$G$39-E50)),$G$9:$G$39)) -> 153.75 | H50: 332.5 | I50: 332.5
C51: N3 | D51: =ABS(IF([0]!ChoixTypeLigne=1,RESULTAT!D61,IF([0]!ChoixTypeLigne=2,RESULTAT!E61,IF([0]!ChoixTypeLigne=3,RESULTAT!F61)))) -> 256.2610305 | E51: ='Calcul essais au vent'!I147 -> 103.4001763 | F51: 0.492381792 | G51: =MIN(IF(ABS($G$9:$G$39-E51)=MIN(ABS($G$9:$G$39-E51)),$G$9:$G$39)) -> 105 | H51: 210 | I51: 256.2610305
D52: =RESULTAT!$F$62 -> Lestage en Newton
C54: =RESULTAT!$C$97 -> Exposition Est-Ouest
C55: ='Traduction Flat'!$A$66 -> Zone | D55: Lestage calculé | E55: Maxi horizontal | F55: % Théorique/Essais | G55: Le plus proche | H55: Lestage correspondant | I55: Lestage Maxi
C56: O1 | D56: =ABS(IF([0]!ChoixTypeLigne=1,RESULTAT!D101,IF([0]!ChoixTypeLigne=2,RESULTAT!E101,IF([0]!ChoixTypeLigne=3,RESULTAT!F101,0)))) -> 0 | E56: ='Calcul essais au vent'!I52 -> 100 | F56: =IF(H56=0,0,E56/H56) -> 0.5194805195 | G56: =MIN(IF(ABS($G$9:$G$39-E56)=MIN(ABS($G$9:$G$39-E56)),$G$9:$G$39)) -> 97.5 | H56: =IF(G56=$G$11,$C$11,IF($G$13=G56,$C$13,IF($G$15=G56,$C$15,IF($G$17=G56,$C$17,IF($G$19=G56,$C$19,IF($G$21=G56,$C$21,IF($G$23=G56,$C$23,IF($G$25=G56,$C$25,IF($G$27=G56,$C$27,IF($G$29=G56,$C$29,IF($G$31=G56,$C$31,IF($G$33=G56,$C$33,IF($G$35=G56,$C$35,IF($G$37=G56,$C$37,IF($G$39=G56,$C$39,IF($G$12=G56,$C$12,IF($G$14=G56,$C$14,IF($G$16=G56,$C$16,IF($G$18=G56,$C$18,IF($G$20=G56,$C$20,IF($G$22=G56,$C$22,IF($G$24=G56,$C$24,IF($G$26=G56,$C$26,IF($G$28=G56,$C$28,IF($G$30=G56,$C$30,IF($G$32=G56,$C$32,IF($G$34=G56,$C$34,IF($G$36=G56,$C$36,IF($G$38=G56,$C$38,IF(G22=G56,C22,IF(G23=G56,C23,0))))))))))))))))))))))))))))))) -> 192.5 | I56: =IF(D56>H56,D56,H56) -> 192.5
C57: O2 | D57: =ABS(IF([0]!ChoixTypeLigne=1,RESULTAT!D102,IF([0]!ChoixTypeLigne=2,RESULTAT!E102,IF([0]!ChoixTypeLigne=3,RESULTAT!F102,0)))) -> 0 | E57: ='Calcul essais au vent'!I53 -> 100 | F57: 0.5194805195 | G57: =MIN(IF(ABS($G$9:$G$39-E57)=MIN(ABS($G$9:$G$39-E57)),$G$9:$G$39)) -> 97.5 | H57: 192.5 | I57: 192.5
C58: O3 | D58: =ABS(IF([0]!ChoixTypeLigne=1,RESULTAT!D103,IF([0]!ChoixTypeLigne=2,RESULTAT!E103,IF([0]!ChoixTypeLigne=3,RESULTAT!F103,0)))) -> 0 | E58: ='Calcul essais au vent'!I54 -> 100 | F58: 0.5194805195 | G58: =MIN(IF(ABS($G$9:$G$39-E58)=MIN(ABS($G$9:$G$39-E58)),$G$9:$G$39)) -> 97.5 | H58: 192.5 | I58: 192.5
C59: M1 | D59: =ABS(IF([0]!ChoixTypeLigne=1,RESULTAT!D104,IF([0]!ChoixTypeLigne=2,RESULTAT!E104,IF([0]!ChoixTypeLigne=3,RESULTAT!F104,0)))) -> 0 | E59: ='Calcul essais au vent'!I55 -> 100 | F59: 0.5194805195 | G59: =MIN(IF(ABS($G$9:$G$39-E59)=MIN(ABS($G$9:$G$39-E59)),$G$9:$G$39)) -> 97.5 | H59: 192.5 | I59: 192.5
C60: M2 | D60: =ABS(IF([0]!ChoixTypeLigne=1,RESULTAT!D105,IF([0]!ChoixTypeLigne=2,RESULTAT!E105,IF([0]!ChoixTypeLigne=3,RESULTAT!F105,0)))) -> 0 | E60: ='Calcul essais au vent'!I56 -> 100 | F60: 0.5194805195 | G60: =MIN(IF(ABS($G$9:$G$39-E60)=MIN(ABS($G$9:$G$39-E60)),$G$9:$G$39)) -> 97.5 | H60: 192.5 | I60: 192.5
C61: M3 | D61: =ABS(IF([0]!ChoixTypeLigne=1,RESULTAT!D106,IF([0]!ChoixTypeLigne=2,RESULTAT!E106,IF([0]!ChoixTypeLigne=3,RESULTAT!F106,0)))) -> 0 | E61: ='Calcul essais au vent'!I57 -> 100 | F61: 0.5194805195 | G61: =MIN(IF(ABS($G$9:$G$39-E61)=MIN(ABS($G$9:$G$39-E61)),$G$9:$G$39)) -> 97.5 | H61: 192.5 | I61: 192.5
D62: =RESULTAT!$F$107 -> Lestage en Newton
C74: Calcul de la force du vent :
C75: F=1/2 x masse volumique de l'air x (vitesse du vent)² x Coéfficient de trainée x Surface.
C76: Masse volumique de l'air : 1,293 Kg/m^3
C77: Vitesse de vent en m/s
C78: Coéfficient de trainée = 1
C79: Surface en m²
C81: Surface Maxi du module et des pieds (m²) :
C82: Lg Module | D82: =PROJET!M16/1000 -> 1.722
C83: ht Module | D83: =PROJET!M20/1000 -> 0.03
C84: Module | D84: =D82*D83 -> 0.05166 | E84: m²
C85: 2 Pieds (0,037x0,17) | D85: =2*((0.037*0.17)+(0.015*0.09)) -> 0.01528 | E85: m²
C86: Socles (0,23x0,04) | D86: =(0.23*0.04) -> 0.0092 | E86: m²
C87: Lestages (arbi. 0,4*0,05) | D87: =(0.4*0.05) -> 0.02
C88: Total | D88: =SUM(D84:D87) -> 0.09614 | E88: m²
B90: Eurocode | C90: Vitesse du vent : | D90: ='Feuille de calcul'!R19 -> 22 | E90: m/s
B91: Valeur entrée | C91: Vitesse du vent : | D91: =SQRT(PROJET!N36/0.613) -> 26.17546514 | E91: m/s | F91: =PROJET!O31 -> 1 | G91: Info eurocode/Pa
C92: Pression=0,613 x vitesse²
C93: Vitesse=racine(pression/0,613)
C96: Masse volumique de l'air : | D96: 1.293 | E96: Kg/m^3
C98: Coéfficient de trainée : | D98: 1
C100: Force horizontale : | D100: =IF(F91=2,(0.5*D96*D91*D91*D98*D88),IF(F91=1,0.5*D96*D90*D90*D98*D88,0)) -> 30.08278284 | E100: N
C102: Lestage calculé : | D102: =K40 -> 35 | E102: N
C104: Coefficient sécurité | D104: 1.25
C106: Lestage calculé : | D106: =D102*D104 -> 43.75 | E106: N
C107: Lestage calculé corrigé à 100 mni : | D107: =IF(D102*D104<100,100,D102*D104) -> 100 | E107: N

Sheet Data (hidden)
A1: =PROJET!$B$26 -> TYPE DE CALCUL EUROCODE | B1: =PROJET!$O$31 -> 1 | D1: Calcul | E1: Valeur | H1: Definition de la couleur | I1: Valeur | L1: Definition du tracer en cours | M1: Valeur | O1: Angle module | P1: 14 | Q1: Ecrou | R1: VRAI | T1: Data Combo nb ligne | U1: Data Combo nb colonne | V1: Limite batiment | W1: Version Projet | X1: Cote inter ligne E/O | Y1: Largeur module | Z1: Longueur module
D2: Pas de ligne exposition selectionnee | E2: =IF(TypeInclinaisonModule=FALSE,IF(ExpositionModule=1,PasLigneExpositionEO,PasLigneExpositionS),IF(ExpositionModule=1,PasLigneExpositionEOparalelle,PasLigneExpositionSparalelle)) -> 2460 | H2: Module Est | L2: Statu du tracer | M2: TRUE | O2: Latitude | P2: 41.9 | T2: 1 | U2: 1 | V2: 1 | W2: 1 | X2: 150 | Y2: 982 | Z2: 1555
A3: =PROJET!$L$10 -> MODULE PV | D3: TypeInclinaisonModule | H3: Module Ouest | L3: 0 nouveau champ PV 1 PV déjà configuré | O3: Largeur Module | P3: 1002 | T3: 2 | U3: 2 | V3: 2 | W3: 2 | X3: 160 | Y3: 983 | Z3: 1556
A4: =PROJET!L12 -> Modèle | B4: =PROJET!M12 -> 0 | D4: Pas ligne Exposition sud module incliné | E4: =IF(TypeFixation=1,PasLigneExpositionSEdilians,IF(TypeMontage=1,PasLigneExpositionSEdilians,PasLigneExpositionSPrieure)) -> 2460 | H4: Module Sud | O4: Cote entre rangée | P4: 150 | T4: 3 | U4: 3 | V4: 3 | W4: 3 | X4: 170 | Y4: 984 | Z4: 1557
A5: =PROJET!L16 -> Longueur (mm) | B5: =PROJET!M16 -> 1722 | D5: Pas ligne Exposition sud module horizontal | E5: =IF(TypeFixation=1,PasLigneExpositionSEdiliansParalelle,IF(TypeMontage=1,PasLigneExpositionSEdiliansParalelle,PasLigneExpositionSPrieureparalelle)) -> 1284 | H5: support haut ou gauche | L5: Nombre de ligne tracées | M5: 5 | O5: Depart Latitude | P5: 23.27 | T5: 4 | U5: 4 | V5: 4 | W5: 4 | X5: 180 | Y5: 985 | Z5: 1558
A6: =PROJET!L18 -> Largeur (mm) | B6: =PROJET!M18 -> 1134 | D6: Pas ligne Exposition sud Prieuré module incliné | E6: =ROUNDUP(PasLigneExpositionSEdilians/PasFixationPrieure,0)*PasFixationPrieure -> 2508 | F6: mm | H6: Support bas ou droit | L6: Nombre de colonne tracées | M6: 5 | T6: 5 | U6: 5 | V6: 5 | W6: 5 | X6: 190 | Y6: 986 | Z6: 1559
A7: =PROJET!L20 -> Hauteur (mm) | B7: =PROJET!M20 -> 30 | D7: Pas ligne Exposition sud Prieuré module paralelle | E7: A faire | F7: mm | H7: Bordure champ PV | T7: 6 | U7: 6 | V7: 6 | W7: 6 | X7: 200 | Y7: 987 | Z7: 1560
A8: =PROJET!L22 -> Puissance (W) | B8: =PROJET!M22 -> 425 | D8: Pas ligne Exposition sud EDILIANS module incliné | E8: =ROUND(((SIN(RADIANS(AngleModule))*LargPV)/TAN(RADIANS(90-Latitude-DepartLatitude)))+(COS(RADIANS(AngleModule))*LargPV),0) -> 2460 | F8: mm | L8: Nombre de module | M8: 25 | T8: 7 | U8: 7 | V8: 7 | W8: 7 | X8: 210 | Y8: 988 | Z8: 1561
A9: =PROJET!L24 -> Poids (Kg) | B9: =PROJET!M24 -> 22 | D9: Pas ligne Exposition sud EDILIANS module horizontal | E9: =ROUND(LargPV+SeparationModuleS,0) -> 1284 | F9: mm | O9: Exposition SUD | T9: 8 | U9: 8 | V9: 8 | W9: 8 | X9: 220 | Y9: 989 | Z9: 1562
L10: Nombre de module maxi pour lestage tracé | M10: 1000 | O10: PS | P10: =((SIN($P$1*PI()/180)*$P$3)/TAN((90-P2-$P$5)*PI()/180))+(COS($P$1*PI()/180)*$P$3) -> 1496.129819 | T10: 9 | U10: 9 | V10: 9 | W10: 9 | X10: 230 | Y10: 990 | Z10: 1563
A11: =PROJET!B34 -> DEFINITION GEOGRAPHIE | D11: Pas ligne Exposition EST/OUEST module incliné | E11: =IF(TypeFixation=1,PasLigneExpositionEOEdilians,IF(TypeMontage=1,PasLigneExpositionEOEdilians,PasLigneExpositionEOPrieure)) -> 2406 | H11: S1 | I11: S1 | T11: 10 | U11: 10 | V11: 10 | W11: 10 | X11: 240 | Y11: 991 | Z11: 1564
A12: =PROJET!B36 -> Zone de vent | B12: =PROJET!D36 -> 1 (22 m/s) | D12: Pas ligne Exposition EST/OUEST module horizontal | E12: =IF(TypeFixation=1,PasLigneExpositionEOEdiliansParalelle,IF(TypeMontage=1,PasLigneExpositionEOEdiliansParalelle,PasLigneExpositionEOPrieureparallele)) -> 2428 | H12: S2 | I12: S2 | L12: Exposition | M12: 3 | O12: Exposition EST/OUEST | T12: 11 | U12: 11 | V12: 11 | W12: 11 | X12: 250 | Y12: 992 | Z12: 1565
A13: =PROJET!B38 -> Zone de neige | B13: =PROJET!D38 -> A1 | D13: Pas ligne Exposition EST/OUEST Prieuré module incliné | E13: =ROUNDUP(PasLigneExpositionEOEdilians/PasFixationPrieure,0)*PasFixationPrieure -> 2432 | F13: mm | H13: S3 | I13: S3 | L13: Type de ligne ou bloc | M13: 1 | O13: PEO | P13: =2*(P3*(COS($P$1*PI()/180)))+P4+10 -> 2104.472635 | T13: 12 | U13: 12 | V13: 12 | W13: 12 | X13: 260 | Y13: 993 | Z13: 1566
A14: =PROJET!B40 -> Catégorie du terrain * | B14: =PROJET!D40 -> IIIa | D14: Pas ligne Exposition EST/OUEST Prieuré module paralelle | E14: A faire | F14: mm | H14: M1 | I14: M1 | L14: Orientation champ PV | M14: 2 | Q14: (notice) | R14: (Calculer) | T14: 13 | U14: 13 | V14: 13 | W14: 13 | X14: 270 | Y14: 994 | Z14: 1567
A15: =PROJET!B42 -> Altitude (m) | B15: =PROJET!D42 -> 600 | D15: Pas ligne Exposition EST/OUEST EDILIANS module incliné | E15: =ROUND(2*(LargPV*(COS(RADIANS(AngleModule))))+SeparationModuleEO+CoteEntreLigneEO,0) -> 2406 | F15: mm | H15: M2 | I15: M2 | L15: Nombe de module/ChampPV | P15: Latitude | Q15: Pas du système (mm) | R15: PS | T15: 14 | U15: 14 | V15: 14 | W15: 14 | X15: 280 | Y15: 995 | Z15: 1568
A16: =PROJET!B47 -> Latitude | B16: =PROJET!D47 -> 60 | D16: Pas ligne Exposition EST/OUEST EDILIANS module horizontal | E16: =ROUND(2*(LargPV)+SeparationModuleEO+CoteEntreLigneEO,0) -> 2428 | F16: mm | H16: M3 | I16: M3 | L16: Socle/Rail | M16: 1 | O16: Ajaccio | P16: 41.917 | Q16: 1387.600875 | R16: =((SIN($P$1*PI()/180)*$P$3)/TAN((90-P16-$P$5)*PI()/180))+(COS($P$1*PI()/180)*$P$3) -> 1496.53795 | T16: 15 | U16: 15 | V16: 15 | W16: 15 | X16: 290 | Y16: 996 | Z16: 1569
A17: Depart Latitude | B17: 23.27 | H17: N1 | I17: N1 | O17: Perpignan | P17: 42.7 | Q17: 1401.764577 | R17: =((SIN($P$1*PI()/180)*$P$3)/TAN((90-P17-$P$5)*PI()/180))+(COS($P$1*PI()/180)*$P$3) -> 1515.922213 | T17: 16 | U17: 16 | V17: 16 | X17: 300 | Y17: 997 | Z17: 1570
D18: Cote entre deux lignes Sud | E18: =ROUND(PasLigneExpositionS-Larg1Ligne,0) -> 1337 | F18: mm | H18: N2 | I18: N2 | O18: Marseille | P18: 43.3 | Q18: 1413.219444 | R18: 1531.599197 | T18: 17 | U18: 17 | V18: 17 | Y18: 998 | Z18: 1571
A19: =PROJET!L32 -> CHARGE EN Pa | D19: Largeur 1 ligne PV | E19: =ROUND(COS(RADIANS(AngleModule))*LargPV,0) -> 1123 | F19: mm | H19: N3 | I19: N3 | L19: Type ligne E/O | M19: 1 | O19: Toulouse | P19: 43.617 | Q19: 1419.497672 | R19: 1540.191501 | T19: 18 | U19: 18 | V19: 18 | Y19: 999 | Z19: 1572
A20: =PROJET!L34 -> CONDITION CLIMATIQUE | O20: Bordeaux | P20: 44.833 | Q20: 1445.173258 | R20: 1575.330781 | T20: 19 | U20: 19 | V20: 19 | Y20: 1000 | Z20: 1573
A21: =PROJET!L36 -> Charge maxi du vent sur site (N/m² ou Pa) | B21: =PROJET!N36 -> 420 | D21: Pas Colonne | E21: =LongPV+16 -> 1738 | F21: mm | H21: O1 | I21: O1 | L21: OrigineToitCellsX | M21: 11 | O21: Lyon | P21: 45.767 | Q21: 1466.812375 | R21: 1604.9458 | T21: 20 | U21: 20 | V21: 20 | Y21: 1001 | Z21: 1574
A22: =PROJET!L39 -> Charge maxi de la neige sur site (N/m² ou Pa) | B22: =PROJET!N39 -> 2000 | H22: O2 | I22: O2 | L22: OrigineToitCellsY | M22: 11 | O22: Poitiers | P22: 46.583 | Q22: 1487.28269 | R22: 1632.961213 | T22: 21 | U22: 21 | V22: 21 | Y22: 1002 | Z22: 1575
D23: Nb Module PV Théorique | E23: 60 | H23: O3 | I23: O3 | L23: LongueurToitCellsX | M23: 59 | O23: Nantes | P23: 47.233 | Q23: 1504.761823 | R23: 1656.882933 | T23: 22 | U23: 22 | V23: 22 | Y23: 1003 | Z23: 1576
A24: =PROJET!$B$45 -> DIMENSION DU BATIMENT | D24: Nb Module PV Selectionner | E24: 25 | L24: LongueurToitCellsY | M24: 49 | O24: Mulhouse | P24: 47.75 | Q24: 1519.484948 | R24: 1677.032814 | T24: 23 | U24: 23 | V24: 23 | Y24: 1004 | Z24: 1577
A25: =PROJET!B49 -> Hauteur Z (m) | B25: =PROJET!D49 -> 15 | C25: =IF(ChoixOrientionBatiment=1,PROJET!D53,PROJET!D51) -> 15 | O25: Brest | P25: 48.383 | Q25: 1538.598715 | R25: 1703.191673 | T25: 24 | U25: 24 | V25: 24 | Y25: 1005 | Z25: 1578
A26: =PROJET!B51 -> Largeur l (m) | B26: =IF(ExpositionModule<>1,C25,C26) -> 15 | C26: =IF(ChoixOrientionBatiment=1,PROJET!D51,PROJET!D53) -> 15 | D26: EspaceDispoSensLigne | E26: =(LargeurBatiment*1000)-(2*DistanceRiveSize) -> 13400 | L26: FormatImpressionDraw | M26: 1 | O26: Strasbourg | P26: 48.583 | Q26: 1544.905169 | R26: 1711.822604 | T26: 25 | U26: 25 | V26: 25 | Y26: 1006 | Z26: 1579
A27: =PROJET!B53 -> Longueur L (m) | B27: =IF(ExpositionModule<>1,C27,C28) -> 15 | C27: =IF(ChoixOrientionBatiment=1,PROJET!D51,PROJET!D53) -> 15 | D27: EspaceDispoSensColonne | E27: =(LongueurBatiment*1000)-(2*DistanceRiveSize) -> 13400 | H27: Orientation champ PV 0/90 | I27: 90 | O27: Paris | P27: 48.833 | Q27: 1552.979703 | R27: 1722.873309 | T27: 26 | U27: 26 | V27: 26 | Y27: 1007 | Z27: 1580
A28: =PROJET!B55 -> Inclinaison toiture (°) | B28: =PROJET!D55 -> 3 | C28: =IF(ChoixOrientionBatiment=1,PROJET!D53,PROJET!D51) -> 15 | D28: DataNbColonnePVMax | E28: =ROUNDDOWN(EspaceDispoSensColonne/PasColonneExposition,0) -> 7 | H28: Activation on/off | I28: 1 | L28: HauteurBatiment | M28: 15 | O28: Reims | P28: 49.25 | Q28: 1566.944902 | R28: 1741.985903 | T28: 27 | U28: 27 | V28: 27 | Y28: 1008 | Z28: 1581
A29: Orientation batiment | B29: =PROJET!$O$64 -> 2 | D29: DataNbLignePVMax | E29: =IF(ExpositionModule=1,E58,F58) -> 5 | L29: LargeurBatiment | M29: 15 | O29: Lille | P29: 50.65 | Q29: 1618.959426 | R29: 1813.172318 | T29: 28 | U29: 28 | V29: 28 | Y29: 1009 | Z29: 1582
A30: Installation au sol | B30: =PROJET!$O$48 -> FALSE | D30: DataNbColonnePV | E30: =B71 -> 5 | H30: Texte bouton | I30: ='Traduction Flat'!A85 -> PROJET | L30: LongueurBatiment | M30: 15 | O30: Dunkerque | P30: 51 | Q30: 1634.759112 | R30: 1832.892081 | T30: 29 | U30: 29 | V30: 29 | Y30: 1010 | Z30: 1583
A31: =PROJET!B58 -> Coefficient de frottement | B31: =PROJET!D58 -> 0.5 | D31: DataNbLignePV | E31: =B70 -> 5 | H31: Texte bouton | I31: ='Traduction Flat'!A86 -> RESULTAT | T31: 30 | U31: 30 | V31: 30 | Y31: 1011 | Z31: 1584
D32: DataHautChampPVSize | E32: =IF(ExpositionModule=1,E66,F66) -> 10963 | H32: Texte bouton | I32: ='Traduction Flat'!A87 -> DESSIN | L32: Separation Module EO | M32: 150 | O32: S1 | Q32: O1 | T32: 31 | U32: 31 | V32: 31 | Y32: 1012 | Z32: 1585
A33: Definition bord de toit | B33: =PROJET!$O$47 -> 2 | D33: DataLongChampPVSize | E33: =PasColonneExposition*DataNbColonnePV -> 8690 | H33: Texte bouton | I33: ='Traduction Flat'!$A$99 -> NOMENCLATURE | L33: Cote Entre Ligne EO | M33: 10 | O33: S2 | Q33: O2 | T33: 32 | U33: 32 | V33: 32 | Y33: 1013 | Z33: 1586
A34: =PROJET!L56 -> Hauteur de la rétention d'eau (cm) | B34: =PROJET!N56 -> 0.2 | H34: Texte bouton | I34: ='Traduction Flat'!A88 -> Imprimer le dossier | O34: S3 | Q34: O3 | T34: 33 | U34: 33 | V34: 33 | Y34: 1014 | Z34: 1587
A35: =PROJET!L58 -> Hauteur acrotère hp (m) | B35: =PROJET!M58 -> 0 | D35: Données Prieure | E35: Valeur | H35: Texte bouton | I35: ='Traduction Flat'!A89 -> Exporter en PDF | L35: Legende orientation PV sur plan | M35: ='Traduction Flat'!$A$118 -> ORIENTATION PV | O35: M1 | Q35: M1 | T35: 34 | U35: 34 | V35: 34 | Y35: 1015 | Z35: 1588
A36: =PROJET!M60 -> α (°) | B36: =PROJET!N60 -> 30 | D36: Nombre trou par plaque largeur 400 (4 x 76) | E36: 5 | H36: Texte bouton | I36: ='Traduction Flat'!A90 -> Initialiser les modules PV | O36: M2 | Q36: M2 | T36: 35 | U36: 35 | V36: 35 | Y36: 1016 | Z36: 1589
A37: =PROJET!M62 -> r (m) | B37: =PROJET!N62 -> 0.5 | D37: Pas fixation Prieure | E37: 76 | H37: Texte bouton | I37: ='Traduction Flat'!A91 -> Redessiner le plan | L37: Module // a la toiture | M37: FALSE | O37: M3 | Q37: M3 | T37: 36 | U37: 36 | V37: 36 | Y37: 1017 | Z37: 1590
B38: =PROJET!D34 -> 0 | D38: Pas repetion bloc Prieure Y | E38: 400 | O38: N1 | T38: 37 | U38: 37 | V38: 37 | Y38: 1018 | Z38: 1591
A39: =PROJET!B34 -> DEFINITION GEOGRAPHIE | D39: Pas repetion bloc Prieure X | E39: 600 | O39: N2 | T39: 38 | U39: 38 | V39: 38 | Y39: 1019 | Z39: 1592
A40: =PROJET!B36 -> Zone de vent | B40: =PROJET!D36 -> 1 (22 m/s) | O40: N3 | T40: 39 | U40: 39 | V40: 39 | Y40: 1020 | Z40: 1593
A41: =PROJET!B38 -> Zone de neige | B41: =PROJET!D38 -> A1 | D41: Distance rive/champ PV | E41: =IF(TypeInstallationAuSol=FALSE,E42,E43) -> 800 | T41: 40 | U41: 40 | V41: 40 | Y41: 1021 | Z41: 1594
A42: =PROJET!B40 -> Catégorie du terrain * | B42: =PROJET!D40 -> IIIa | D42: Distance rive/champ PV classique | E42: 800 | T42: 41 | U42: 41 | V42: 41 | Y42: 1022 | Z42: 1595
A43: =PROJET!B42 -> Altitude (m) | B43: =PROJET!D42 -> 600 | D43: Distance rive/champ PV au sol | E43: 0 | T43: 42 | U43: 42 | V43: 42 | Y43: 1023 | Z43: 1596
T44: 43 | U44: 43 | V44: 43 | Y44: 1024 | Z44: 1597
A45: =PROJET!$B$78 -> DEFINITION POSITION MODULE | T45: 44 | U45: 44 | V45: 44 | Y45: 1025 | Z45: 1598
L46: S1 | M46: 15 | T46: 45 | U46: 45 | V46: 45 | Y46: 1026 | Z46: 1599
A47: Exposition module | B47: =PROJET!O84 -> 3 | L47: S2 | M47: 0 | T47: 46 | U47: 46 | V47: 46 | Y47: 1027 | Z47: 1600
B48: =IF(ExpositionModule=1,"E/O","S") -> S | L48: S3 | M48: 0 | T48: 47 | U48: 47 | V48: 47 | Y48: 1028 | Z48: 1601
A49: Type de bloc module | B49: =PROJET!O85 -> 1 | L49: M1 | M49: 0 | T49: 48 | U49: 48 | V49: 48 | Y49: 1029 | Z49: 1602
A50: =PROJET!M98 -> Interval ligne (X) | B50: =PROJET!N98 -> 150 | C50: EO | L50: M2 | M50: 0 | T50: 49 | U50: 49 | V50: 49 | Y50: 1030 | Z50: 1603
A51: =PROJET!M99 -> Séparation module (M) | B51: =PROJET!N99 -> 10 | L51: M3 | M51: 0 | T51: 50 | U51: 50 | V51: 50 | Y51: 1031 | Z51: 1604
A52: Séparation module (X) | B52: =PROJET!$H$98 -> 150 | C52: S | L52: N1 | M52: 10 | T52: 51 | U52: 51 | V52: 51 | Y52: 1032 | Z52: 1605
A53: Module // a la toiture | B53: =PROJET!$O$90 -> FALSE | L53: N2 | M53: 0 | T53: 52 | U53: 52 | V53: 52 | Y53: 1033 | Z53: 1606
A54: =PROJET!B89 -> Inclinaison module α (°) | B54: =PROJET!D89 -> 8 | E54: Calcul NB Ligne E/O | F54: Calcul NB Ligne S | L54: N3 | M54: 0 | T54: 53 | U54: 53 | V54: 53 | Y54: 1034 | Z54: 1607
A55: =PROJET!B90 -> Inclinaison module α (%) | B55: =PROJET!D90 -> 14.05408347 | D55: NB ligne | E55: =EspaceDispoSensLigne/PasLigneExpositionProjet -> 5.447154472 | F55: =EspaceDispoSensLigne/PasLigneExpositionProjet -> 5.447154472 | L55: O1 | M55: 0 | T55: 54 | U55: 54 | V55: 54 | Y55: 1035 | Z55: 1608
D56: NB ligne arrondi | E56: =ROUNDDOWN(E55,0) -> 5 | F56: =ROUNDDOWN(F55,0) -> 5 | L56: O2 | M56: 0 | T56: 55 | U56: 55 | V56: 55 | Y56: 1036 | Z56: 1609
A57: Type exposition E/O | B57: =PROJET!$O$94 -> 1 | D57: Cote restante/ligne | E57: =EspaceDispoSensLigne-E56*PasLigneExpositionProjet -> 1100 | F57: =EspaceDispoSensLigne-F56*E2 -> 1100 | L57: O3 | M57: 0 | T57: 56 | U57: 56 | V57: 56 | Y57: 1037 | Z57: 1610
D58: Ajout 1/2 ligne si possible | E58: =IF(E57>=Larg1Ligne+CoteEntreLigneEO,E56*2+1,E56*2) -> 10 | F58: =F56 -> 5 | T58: 57 | U58: 57 | V58: 57 | Y58: 1038 | Z58: 1611
E59: =B70 -> 5 | F59: =B70 -> 5 | T59: 58 | U59: 58 | V59: 58 | Y59: 1039 | Z59: 1612
A60: =PROJET!$B$108 -> TYPE DE MONTAGE | E60: =IF(ISEVEN(E59),E59,E59-1) -> 4 | T60: 59 | U60: 59 | V60: 59 | Y60: 1040 | Z60: 1613
A61: Socle/Rail | B61: =PROJET!O110 -> 1 | E61: =ISEVEN(E59) -> FALSE | T61: 60 | U61: 60 | V61: 60 | Y61: 1041 | Z61: 1614
A62: Lestage/fixation plot beton | B62: =PROJET!O111 -> 1 | T62: 61 | U62: 61 | V62: 61 | Y62: 1042 | Z62: 1615
A63: Montage EDILIANS/ Prieuré | B63: =PROJET!O112 -> 1 | T63: 62 | U63: 62 | V63: 62 | Y63: 1043 | Z63: 1616
A64: Semelle | B64: =PROJET!$O$113 -> TRUE | D64: Hauteur champ PV NB ligne Arrondi | E64: =(E60/2)*PasLigneExpositionProjet -> 4920 | F64: =F59*PasLigneExpositionProjet-(PasLigneExpositionProjet-Larg1Ligne) -> 10963 | T64: 63 | U64: 63 | V64: 63 | Y64: 1044 | Z64: 1617
A65: Revetement toiture | B65: =PROJET!$O$114 -> 1 | D65: Hauteur champ PV NB ligne Arrondi +1 | E65: =(E60/2)*PasLigneExpositionProjet+Larg1Ligne+CoteEntreLigneEO -> 6053 | T65: 64 | U65: 64 | V65: 64 | Y65: 1045 | Z65: 1618
A66: =PROJET!$B$108 -> TYPE DE MONTAGE | D66: Hauteur champ PV Final | E66: =IF(E61,E64,E65) -> 6053 | F66: =F64 -> 10963 | T66: 65 | U66: 65 | V66: 65 | Y66: 1046 | Z66: 1619
A67: Nombre de ligne MAXI | B67: =DataNbLignePVMax -> 5 | T67: 66 | U67: 66 | V67: 66 | Y67: 1047 | Z67: 1620
A68: Nombre de colonne MAXI | B68: =DataNbColonnePVMax -> 7 | T68: 67 | U68: 67 | V68: 67 | Y68: 1048 | Z68: 1621
T69: 68 | U69: 68 | V69: 68 | Y69: 1049 | Z69: 1622
A70: Nombre de ligne sélctionné | B70: =PROJET!D92 -> 5 | T70: 69 | U70: 69 | V70: 69 | Y70: 1050 | Z70: 1623
A71: Nombre de colonne sélectionné | B71: =PROJET!D94 -> 5 | T71: 70 | U71: 70 | V71: 70 | Y71: 1051 | Z71: 1624
T72: 71 | U72: 71 | V72: 71 | Y72: 1052 | Z72: 1625
T73: 72 | U73: 72 | V73: 72 | Y73: 1053 | Z73: 1626
T74: 73 | U74: 73 | V74: 73 | Y74: 1054 | Z74: 1627
T75: 74 | U75: 74 | V75: 74 | Y75: 1055 | Z75: 1628
T76: 75 | U76: 75 | V76: 75 | Y76: 1056 | Z76: 1629
T77: 76 | U77: 76 | V77: 76 | Y77: 1057 | Z77: 1630
T78: 77 | U78: 77 | V78: 77 | Y78: 1058 | Z78: 1631
T79: 78 | U79: 78 | V79: 78 | Y79: 1059 | Z79: 1632
T80: 79 | U80: 79 | V80: 79 | Y80: 1060 | Z80: 1633
T81: 80 | U81: 80 | V81: 80 | Y81: 1061 | Z81: 1634
T82: 81 | U82: 81 | V82: 81 | Y82: 1062 | Z82: 1635
T83: 82 | U83: 82 | V83: 82 | Y83: 1063 | Z83: 1636
T84: 83 | U84: 83 | V84: 83 | Y84: 1064 | Z84: 1637
T85: 84 | U85: 84 | V85: 84 | Y85: 1065 | Z85: 1638
T86: 85 | U86: 85 | V86: 85 | Y86: 1066 | Z86: 1639
T87: 86 | U87: 86 | V87: 86 | Y87: 1067 | Z87: 1640
T88: 87 | U88: 87 | V88: 87 | Y88: 1068 | Z88: 1641
T89: 88 | U89: 88 | V89: 88 | Y89: 1069 | Z89: 1642
T90: 89 | U90: 89 | V90: 89 | Y90: 1070 | Z90: 1643
T91: 90 | U91: 90 | V91: 90 | Y91: 1071 | Z91: 1644
T92: 91 | U92: 91 | V92: 91 | Y92: 1072 | Z92: 1645
T93: 92 | U93: 92 | V93: 92 | Y93: 1073 | Z93: 1646
T94: 93 | U94: 93 | V94: 93 | Y94: 1074 | Z94: 1647
T95: 94 | U95: 94 | V95: 94 | Y95: 1075 | Z95: 1648
T96: 95 | U96: 95 | V96: 95 | Y96: 1076 | Z96: 1649
T97: 96 | U97: 96 | V97: 96 | Y97: 1077 | Z97: 1650
T98: 97 | U98: 97 | V98: 97 | Y98: 1078 | Z98: 1651
T99: 98 | U99: 98 | V99: 98 | Y99: 1079 | Z99: 1652
T100: 99 | U100: 99 | V100: 99 | Y100: 1080 | Z100: 1653
T101: 100 | U101: 100 | V101: 100 | Y101: 1081 | Z101: 1654
T102: 101 | U102: 101 | V102: 101 | Y102: 1082 | Z102: 1655
T103: 102 | U103: 102 | V103: 102 | Y103: 1083 | Z103: 1656
T104: 103 | U104: 103 | V104: 103 | Y104: 1084 | Z104: 1657
T105: 104 | U105: 104 | V105: 104 | Y105: 1085 | Z105: 1658
T106: 105 | U106: 105 | V106: 105 | Y106: 1086 | Z106: 1659
T107: 106 | V107: 106 | Y107: 1087 | Z107: 1660
T108: 107 | V108: 107 | Y108: 1088 | Z108: 1661
T109: 108 | V109: 108 | Y109: 1089 | Z109: 1662
T110: 109 | V110: 109 | Y110: 1090 | Z110: 1663
T111: 110 | V111: 110 | Y111: 1091 | Z111: 1664
T112: 111 | V112: 111 | Y112: 1092 | Z112: 1665
T113: 112 | V113: 112 | Y113: 1093 | Z113: 1666
T114: 113 | V114: 113 | Y114: 1094 | Z114: 1667
T115: 114 | V115: 114 | Y115: 1095 | Z115: 1668
T116: 115 | V116: 115 | Y116: 1096 | Z116: 1669
T117: 116 | V117: 116 | Y117: 1097 | Z117: 1670
T118: 117 | V118: 117 | Y118: 1098 | Z118: 1671
T119: 118 | V119: 118 | Y119: 1099 | Z119: 1672
T120: 119 | V120: 119 | Y120: 1100 | Z120: 1673
T121: 120 | V121: 120 | Y121: 1101 | Z121: 1674
T122: 121 | V122: 121 | Y122: 1102 | Z122: 1675
T123: 122 | V123: 122 | Y123: 1103 | Z123: 1676
T124: 123 | V124: 123 | Y124: 1104 | Z124: 1677
T125: 124 | V125: 124 | Y125: 1105 | Z125: 1678
T126: 125 | V126: 125 | Y126: 1106 | Z126: 1679
T127: 126 | V127: 126 | Y127: 1107 | Z127: 1680
T128: 127 | V128: 127 | Y128: 1108 | Z128: 1681
T129: 128 | V129: 128 | Y129: 1109 | Z129: 1682
T130: 129 | V130: 129 | Y130: 1110 | Z130: 1683
T131: 130 | V131: 130 | Y131: 1111 | Z131: 1684
T132: 131 | V132: 131 | Y132: 1112 | Z132: 1685
T133: 132 | V133: 132 | Y133: 1113 | Z133: 1686
T134: 133 | V134: 133 | Y134: 1114 | Z134: 1687
T135: 134 | V135: 134 | Y135: 1115 | Z135: 1688
T136: 135 | V136: 135 | Y136: 1116 | Z136: 1689
T137: 136 | V137: 136 | Y137: 1117 | Z137: 1690
T138: 137 | V138: 137 | Y138: 1118 | Z138: 1691
T139: 138 | V139: 138 | Y139: 1119 | Z139: 1692
T140: 139 | V140: 139 | Y140: 1120 | Z140: 1693
T141: 140 | V141: 140 | Y141: 1121 | Z141: 1694
T142: 141 | V142: 141 | Y142: 1122 | Z142: 1695
T143: 142 | V143: 142 | Y143: 1123 | Z143: 1696
T144: 143 | V144: 143 | Y144: 1124 | Z144: 1697
T145: 144 | V145: 144 | Y145: 1125 | Z145: 1698
T146: 145 | V146: 145 | Y146: 1126 | Z146: 1699
T147: 146 | V147: 146 | Y147: 1127 | Z147: 1700
T148: 147 | V148: 147 | Y148: 1128 | Z148: 1701
T149: 148 | V149: 148 | Y149: 1129 | Z149: 1702
T150: 149 | V150: 149 | Y150: 1130 | Z150: 1703
T151: 150 | V151: 150 | Y151: 1131 | Z151: 1704
T152: 151 | V152: 151 | Y152: 1132 | Z152: 1705
T153: 152 | V153: 152 | Y153: 1133 | Z153: 1706
T154: 153 | V154: 153 | Y154: 1134 | Z154: 1707
T155: 154 | V155: 154 | Y155: 1135 | Z155: 1708
T156: 155 | V156: 155 | Y156: 1136 | Z156: 1709
T157: 156 | V157: 156 | Y157: 1137 | Z157: 1710
T158: 157 | V158: 157 | Y158: 1138 | Z158: 1711
T159: 158 | V159: 158 | Y159: 1139 | Z159: 1712
T160: 159 | V160: 159 | Y160: 1140 | Z160: 1713
T161: 160 | V161: 160 | Y161: 1141 | Z161: 1714
T162: 161 | V162: 161 | Y162: 1142 | Z162: 1715
T163: 162 | V163: 162 | Y163: 1143 | Z163: 1716
T164: 163 | V164: 163 | Y164: 1144 | Z164: 1717
T165: 164 | V165: 164 | Y165: 1145 | Z165: 1718
T166: 165 | V166: 165 | Y166: 1146 | Z166: 1719
T167: 166 | V167: 166 | Y167: 1147 | Z167: 1720
T168: 167 | V168: 167 | Y168: 1148 | Z168: 1721
T169: 168 | V169: 168 | Y169: 1149 | Z169: 1722
T170: 169 | V170: 169 | Y170: 1150 | Z170: 1723
T171: 170 | V171: 170 | Y171: 1151 | Z171: 1724
T172: 171 | V172: 171 | Y172: 1152 | Z172: 1725
T173: 172 | V173: 172 | Y173: 1153 | Z173: 1726
T174: 173 | V174: 173 | Y174: 1154 | Z174: 1727
T175: 174 | V175: 174 | Y175: 1155 | Z175: 1728
T176: 175 | V176: 175 | Y176: 1156 | Z176: 1729
T177: 176 | V177: 176 | Y177: 1157 | Z177: 1730
T178: 177 | V178: 177 | Y178: 1158 | Z178: 1731
T179: 178 | V179: 178 | Y179: 1159 | Z179: 1732
T180: 179 | V180: 179 | Y180: 1160 | Z180: 1733
T181: 180 | V181: 180 | Y181: 1161 | Z181: 1734
V182: 181 | Y182: 1162 | Z182: 1735
V183: 182 | Y183: 1163 | Z183: 1736
V184: 183 | Y184: 1164 | Z184: 1737
V185: 184 | Y185: 1165 | Z185: 1738
V186: 185 | Y186: 1166 | Z186: 1739
V187: 186 | Y187: 1167 | Z187: 1740
V188: 187 | Y188: 1168 | Z188: 1741
V189: 188 | Y189: 1169 | Z189: 1742
V190: 189 | Y190: 1170 | Z190: 1743
V191: 190 | Z191: 1744
V192: 191 | Z192: 1745
V193: 192 | Z193: 1746
V194: 193 | Z194: 1747
V195: 194 | Z195: 1748
V196: 195 | Z196: 1749
V197: 196 | Z197: 1750
V198: 197 | Z198: 1751
V199: 198 | Z199: 1752
V200: 199 | Z200: 1753
... 447 more rows

Sheet Version (hidden)
A1: Version | B1: Détail | C1: Date | D1: Auteur
A2: 1.0 | B2: Lancement | C2: 26/01/21 | D2: PG
A3: 1.1 | B3: Correction de la position du symbole nord | C3: 26/01/21 | D3: PG
A4: 1.11 | B4: Correction de la position du symbole nord | C4: 27/01/21 | D4: PG
A5: 1.2 | B5: Correction de l'orientation du champ en EO | C5: 01/02/21 | D5: PG
A6: 1.3 | B6: Ajout du bornage module 982 à 1100 et 1930 à 2200 | C6: 23/02/21 | D6: PG
A7: 1.4 | B7: Correction des fautes d'orthographe | C7: 02/03/21 | D7: PG
A8: 1.5 | B8: Ajout case a cocher installation au sol | C8: 19/03/22 | D8: PG
B9: Suppression des réserves de rive pour installation au sol
B10: Activation de la sélection multiple sur le dessin
B11: Correction dessin légende module // a la toiture
B12: Ajout de la charge minimum de 100n par sécurité
A13: 1.6 | B13: Correction du calcul de la longueur de champ en expo SUD pour le sol | C13: 25/06/21 | D13: PG
A14: 1.7 | B14: Suppression des résultats lors de montage sur rail | C14: 30/06/21 | D14: PG
A15: 1.8 | B15: Correction des valeurs en milieu de champ incohérentes(valeur ABS), déplacement du symbole NORD au dessus du plan | C15: 30/07/21 | D15: PG
A16: 2.0 | B16: Correction des coefficients pour le tableau Sud sans déflecteur | C16: 30/09/21 | D16: PG
A17: 2.1 | B17: Elargissement des la plage module vers le bs : 1580 devient 1555 | C17: 18/10/21 | D17: PG
B18: Puissance totale du champ passé de wc à Kwc
A19: 2.2 | B19: Elargissement des la plage de largeur et longueur de bâtiment 100 devient 300 | C19: 04/11/21 | D19: PG
A20: 2.3 | B20: Correction de la sélection du coefficient pour la catégorie de terrain "0" onglet feuille calcul | C20: 16/11/21 | D20: PG
A21: 2.4 | B21: Ajout de la vis CHc M6x40 (butée de bride en bord de champ) en nomenclature | C21: 19/01/22 | D21: PG
B22: Calcul figé sur acrotère car les autres options n'on aucunes incidences sur les calculs
A23: 2.5 | B23: Suppression du prix dans la nomenclature | C23: 20/01/22 | D23: PG
A24: 2.6 | B24: Conversion EDILIANS | C24: 13/04/22 | D24: PG
B25: Correction bug affichage rapport en // toiture
B26: Optimisation de l'affichage dans le feuille résultat
B27: Correction nb vis 6x40 pour 1 module
A28: 2.7 | B28: Correction bouton option ligne et multiligne | C28: 26/04/22 | D28: PG
A29: 2.8 | B29: Dessin : Correction orientation symbole module à gauche pour EO : inversion | C29: 10/05/22 | D29: PG
A30: 2.9 | B30: Extension de la plage de 1100 mm à 1170 mm | C30: 27/06/22 | D30: PG
B31: Ajout d'un coefficient de sécurité de 1,2 sur les résultats
B32: Ajout de l'unité N sur les croquis de résultats
B33: Suppression de la catégorie de terrain 0
B34: Ajout numero hotline + email
A35: 2.10 | B35: Correction nomenclature : nb vis appui bride | C35: 03/10/22 | D35: PG

Sheet Traduction Flat (hidden)
A1: Langue | B1: Colonne choisie
A2: Français | B2: 1
A3: English
A6: =INDEX(B6:C6,$B$2) -> Français | B6: Français | C6: English
A7: LANGUE | B7: LANGUE | C7: LANGUAGE
A8: TYPE DE CALCUL EUROCODE | B8: TYPE DE CALCUL EUROCODE | C8: EUROCODE CALCULATION TYPE
A9: ZONE France | B9: ZONE France | C9: France ZONE
A10: CHARGE EN Pa | B10: CHARGE EN Pa | C10: LOAD IN Pa
A11: DIMENSION DU BATIMENT | B11: DIMENSION DU BATIMENT | C11: BUILDING DIMENSION
A12: DEFINITION GEOGRAPHIE | B12: DEFINITION GEOGRAPHIE | C12: DEFINITION GEOGRAPHY
A13: CONDITION CLIMATIQUE | B13: CONDITION CLIMATIQUE | C13: CLIMATIC CONDITION
A14: DEFINITION POSITION MODULE | B14: DEFINITION POSITION MODULE | C14: DEFINITION MODULE POSITION
A15: Hauteur Z (m) | B15: Hauteur Z (m) | C15: Height Z (m)
A16: Largeur l (m) | B16: Largeur l (m) | C16: Width l (m)
A17: =INDEX(B17:C17,$B$2) -> Longueur L (m) | B17: Longueur L (m) | C17: Length L (m)
A18: Définition bord du toit | B18: Définition bord du toit | C18: Definition edge of the roof
A19: Hauteur de la rétention d'eau (cm) | B19: Hauteur de la rétention d'eau (cm) | C19: Water retention height (cm)
A20: Hauteur acrotère hp (m) | B20: Hauteur acrotère hp (m) | C20: Acrotery height hp (m)
A21: 0
A22: Exposition des modules | B22: Exposition des modules | C22: Exhibition of modules
A23: =INDEX(B23:C23,$B$2) -> Inclinaison module α (°) | B23: Inclinaison module α (°) | C23: Module inclination α (°)
A24: Inclinaison module α (%) | B24: Inclinaison module α (%) | C24: Module inclination α (%)
A25: Zone de vent | B25: Zone de vent | C25: Wind area
A26: Orographie | B26: Orographie | C26: Orography
A27: Altitude (m) | B27: Altitude (m) | C27: Altitude (m)
A28: Catégorie du terrain * | B28: Catégorie du terrain * | C28: Terrain category *
A29: Exposition Est-Ouest | B29: Exposition Est-Ouest | C29: East-West exposure
A30: Exposition Sud avec déflecteur | B30: Exposition Sud avec déflecteur | C30: South exposure with deflector
A31: Exposition Sud sans déflecteur | B31: Exposition Sud sans déflecteur | C31: South exposure without deflector
A32: Bloc multi ligne | B32: Bloc multi ligne | C32: Multi line block
A33: Ligne unitaire | B33: Ligne unitaire | C33: Single line
A34: Module individuel | B34: Module individuel | C34: Individual module
A35: Sélection | B35: Sélection | C35: Selection
A36: Rives arrondies | B36: Rives arrondies | C36: Rounded edges
A37: Acrotères | B37: Acrotères | C37: Acroters
A38: Brisis mansardés | B38: Brisis mansardés | C38: Attic Brisis
A39: Rives à arêtes vives | B39: Rives à arêtes vives | C39: Sharp-edged banks
A40: PROJET | B40: PROJET | C40: PROJECT
A41: Date | B41: Date | C41: Date
A42: Projet | B42: Projet | C42: Project
A43: Nom du Client | B43: Nom du Client | C43: Client name
A44: Adresse du projet | B44: Adresse du projet | C44: Project address
A45: Observation | B45: Observation | C45: Observation
A46: MODULE PV | B46: MODULE PV | C46: PV MODULE
A47: Modèle | B47: Modèle | C47: Model
A48: Longueur (mm) | B48: Longueur (mm) | C48: Length (mm)
A49: Largeur (mm) | B49: Largeur (mm) | C49: Width (mm)
A50: Hauteur (mm) | B50: Hauteur (mm) | C50: Height (mm)
A51: Puissance (W) | B51: Puissance (W) | C51: Power (W)
A52: Poids (Kg) | B52: Poids (Kg) | C52: Weight (Kg)
A53: TYPE DE MONTAGE | B53: TYPE DE MONTAGE | C53: TYPE OF ASSEMBLY
A54: MONTAGE | B54: MONTAGE | C54: MOUNTING
A55: Sur socle support | B55: Sur socle support | C55: On support base
A56: Sur rail | B56: Sur rail | C56: On rail
A57: =INDEX(B57:C57,$B$2) -> Lestage | B57: Lestage | C57: Ballast
A58: =INDEX(B58:C58,$B$2) -> Fixation sur plot béton | B58: Fixation sur plot béton | C58: Fixing on concrete stud
A59: =INDEX(B59:C59,$B$2) -> Montage EDILIANS | B59: Montage EDILIANS | C59: EDILIANS Mounting
A60: Montage le Prieuré | B60: Montage le Prieuré | C60: Prieuré Mounting
A61: Coefficient de frottement | B61: Coefficient de frottement | C61: Coefficient of friction
A62: Inclinaison toiture (°) | B62: Inclinaison toiture (°) | C62: Roof pitch (°)
A63: Inclinaison toiture (%) | B63: Inclinaison toiture (%) | C63: Roof pitch (%)
A64: DEFINITION DU LESTAGE | B64: DEFINITION DU LESTAGE | C64: DEFINITION OF BALLAST
A65: Lestage en Newton | B65: Lestage en Newton | C65: Ballast in Newton
A66: Zone | B66: Zone | C66: Zoned
A67: Horizontal | B67: Horizontal | C67: Horizontal
A68: Vertical | B68: Vertical | C68: Vertical
A69: Lestage total | B69: Lestage total | C69: Total ballast
A70: Nombre total de Modules | B70: Nombre total de Modules | C70: Total number of Modules
A71: Nbre module | B71: Nbre module | C71: Number of modules
A72: Lestage (N/m²) | B72: Lestage (N/m²) | C72: Ballast (N / m²)
A73: Lestage par module | B73: Lestage par module | C73: Ballast by module
A74: Lestage par Zone | B74: Lestage par Zone | C74: Ballasting by Zone
A75: Latitude | B75: Latitude | C75: Latitude
A76: Interval ligne (X) | B76: Interval ligne (X) | C76: Line interval (X)
A77: Séparation module (M) | B77: Séparation module (M) | C77: Module separation (M)
A78: NORD | B78: NORD | C78: NORTH
A79: =INDEX(B80:C80,$B$2) -> SUD | B79: EST | C79: EAST
A80: =INDEX(B79:C79,$B$2) -> EST | B80: SUD | C80: SOUTH
A81: OUEST | B81: OUEST | C81: WEST
A82: ORIENTATION DU BATIMENT | B82: ORIENTATION DU BATIMENT | C82: BUILDING ORIENTATION
A83: =INDEX(B83:C83,$B$2) -> Exposition Sud | B83: Exposition Sud | C83: South exposure
A84: =INDEX(B84:C84,$B$2) -> Version projet | B84: Version projet | C84: Project version
A85: PROJET | B85: PROJET | C85: PROJECT
A86: RESULTAT | B86: RESULTAT | C86: RESULTS
A87: DESSIN | B87: DESSIN | C87: DRAWING
A88: Imprimer le dossier | B88: Imprimer le dossier | C88: Print the file
A89: Exporter en PDF | B89: Exporter en PDF | C89: Export to PDF
A90: Initialiser les modules PV | B90: Initialiser les modules PV | C90: Initialize the PV modules
A91: Redessiner le plan | B91: Redessiner le plan | C91: Redesign the plan
A92: Nombre de ligne MAXI | B92: Nombre de ligne MAXI | C92: Number MAXI line
A93: Nombre de colonne MAXI | B93: Nombre de colonne MAXI | C93: Number of column MAXI
A94: Nombre de ligne sélctionné | B94: Nombre de ligne sélctionné | C94: Number of line selected
A95: Nombre de colonne sélectionné | B95: Nombre de colonne sélectionné | C95: Number of column selected
A96: =INDEX(B96:C96,$B$2) -> Toiture totale | B96: Toiture totale | C96: Total roof
A97: =INDEX(B97:C97,$B$2) -> Nombre de PV MAXI | B97: Nombre de PV MAXI | C97: Number of MAXI PV
A98: Puissance (kW) totale | B98: Puissance (kW) totale | C98: Total power (kW)
A99: NOMENCLATURE | B99: NOMENCLATURE | C99: BOM
A100: Semelle de protection | B100: Semelle de protection | C100: Protection mat
A101: OPTION | B101: OPTION | C101: OPTION
A102: Module horizontal (parallèle à la toiture) | B102: Module horizontal (parallèle à la toiture) | C102: Horizontal module (parallel to the roof)
A103: =INDEX(B103:C103,$B$2) -> Nombre de PV | B103: Nombre de PV | C103: Number of PV
A104: Puissance (kW) | B104: Puissance (kW) | C104: Power (kW)
A105: Revêtement toiture | B105: Revêtement toiture | C105: Roof covering
A106: Bitumeuse ( + semelle de protection) | B106: Bitumeuse ( + semelle de protection) | C106: Bituminous (+ protective sole)
A107: PVC ( + semelle de protection) | B107: PVC ( + semelle de protection) | C107: PVC (+ protective sole)
A108: Béton/ gravier / au sol | B108: Béton/ gravier / au sol | C108: Concrete / gravel / ground
A109: =INDEX(B109:C109,$B$2) -> Charge maxi du vent sur site (N/m² ou Pa) | B109: Charge maxi du vent sur site (N/m² ou Pa) | C109: Maxi wind load on site (N/m² or Pa)
A110: Indiquer "0" pour un calcul EUROCODE | B110: Indiquer "0" pour un calcul EUROCODE | C110: Write "0" for an EUROCODE calculation
A111: Charge maxi de la neige sur site (N/m² ou Pa) | B111: Charge maxi de la neige sur site (N/m² ou Pa) | C111: Maxi snow load on site (N/m² ou Pa)
A112: Zone de neige | B112: Zone de neige | C112: Snow zone (France)
A113: Exposition Sud ou Est-Ouest avec Module à 0 degré d'inclinaison (Module parrallèle à la toiture) | B113: Exposition Sud ou Est-Ouest avec Module à 0 degré d'inclinaison (Module parrallèle à la toiture) | C113: South or East-West exposure with Module at 0 degrees of inclination
A114: Toutes les Zones | B114: Toutes les Zones | C114: All Zones
A115: Le calcul de structure est à la charge du maître d’ouvrage | B115: Le calcul de structure est à la charge du maître d’ouvrage | C115: The structural calculation is the responsibility of the client
A116: Le poids de l’ensemble système ERF FLAT + module(s) est déjà soustrait de la charge de lestage indiquée dans ce rapport | B116: Le poids de l’ensemble système ERF FLAT + module(s) est déjà soustrait de la charge de lestage indiquée dans ce rapport | C116: The weight of the ERE FLAT + module (s) system assembly is already subtracted from the ballast load indicated in this report
A117: Le module photovoltaïque sélectionné pour le projet est compatible avec la charge descendante calculée de | B117: Le module photovoltaïque sélectionné pour le projet est compatible avec la charge descendante calculée de | C117: The photovoltaic module selected for the project must be compatible with the calculated downlink load of
A118: ORIENTATION PV | B118: ORIENTATION PV | C118: PV ORIENTATION
A119: =INDEX(B119:C119,$B$2) -> Installation du système au sol | B119: Installation du système au sol | C119: Installation of the floor system
A120: Le module photovoltaïque sélectionné pour le projet est compatible avec la charge descendante calculée de | B120: Le module photovoltaïque sélectionné pour le projet est compatible avec la charge descendante calculée de | C120: The ascending load calculated on the photovoltaic modules is
A121: *Catégorie "0" non prise en charge | B121: *Catégorie "0" non prise en charge | C121: *Category "0" not supported
A122: 0
A123: 0
A124: 0
A125: 0

Sheet Commentaire (hidden)
A1: Traduction msgbox | E1: Hauteur de toit jusqu’à 25 m
A2: Supprimer les ABS sur resultat et mettre 0 sur valeur negative | E2: l'Eurocode EN 1991-1-4
A3: Inclinasion module | B3: 10° à 14° (1 châssis par module) | C3: 8° à 14° (configuration inter-module)
A4: Taille du module non piloté dans la feuille calcul au vent
A5: A quoi sert le colonne "Poids par zone (N/m²)" dans les resultats
A6: Different interligne en E/O
A7: PV Paralelle a la toiture?
A8: EO nb ligne impair possible ou pas?
A9: Resultat sur rail : charge affiché ou pas
A10: Couleur module sur rail
A11: Pas E/O pour Prieure
A12: Rafaichir changement de cote
A13: hauteur a 0 voir feuille calcul en rouge hauteur = 0,1
A14: Puissance totale
A15: Combo dimension module
A16: Info bulle combo
A17: Information sur PV dans le dessin + puissance
A18: Borner la latitude
A19: Pas variable user sur rail
A20: Ajouter la version du fichier excel
A21: Frottement : bouton de selection du type de frottement
A22: Fixation paralelle a la toiture : calcul
A23: Pas exposition Sud sans déflecteur | B23: 1.057 | C23: Pas variable en fonction du module
A24: Pas exposition Sud avec déflecteur | B24: 1.357 | C24: Pas variable en fonction du module
A25: Pas exposition Est Ouest | B25: 2.117 | C25: Pas variable en fonction du module
A26: Hauteur exposition Est Ouest | B26: 0.309 | C26: Pas variable en fonction du module
A28: Ajouter version du logiciel
A29: Traduction coquis resultat
A30: Piloter les options rives
A31: Gestion erreur dessin
A32: Aouter poids des semelle

Sheet Création champs PV (hidden)
A1: =traduction!A130 -> ATTENTION : | F1: =traduction!A132 -> Les modules PV sont fixés par EASY ROOF FLAT en format PAYSAGE | AD1: =traduction!A175 -> Le montage socle inter lignes est possible pour une installation sous une latitude 54° MAX.
B3: =traduction!A13 -> Champ PV 1 | Q3: =traduction!A14 -> Champ PV 2 | AF3: =traduction!A15 -> Champ PV 3 | AU3: =traduction!A16 -> Champ PV 4 | CQ3: 1
CQ4: 2
S6: 1 | T6: 1 | U6: 1 | V6: 1 | W6: 1 | X6: 1 | AH6: 1 | AI6: 1 | AJ6: 1 | AK6: 1
S7: 1 | T7: 1 | U7: 1 | V7: 1 | W7: 1 | X7: 1 | AH7: 1 | AI7: 1 | AJ7: 1 | AK7: 1 | AW7: 1 | AX7: 1 | AY7: 1 | AZ7: 1
S8: 1 | T8: 1 | U8: 1 | V8: 1 | W8: 1 | X8: 1 | AH8: 1 | AI8: 1 | AJ8: 1 | AK8: 1 | AW8: 1 | AX8: 1 | AY8: 1 | AZ8: 1
AW9: 1 | AX9: 1 | AY9: 1 | AZ9: 1
E13: =traduction!$A$90 -> Nombre de modules : | F13: =SUM(C5:N12) -> 0 | M13: =traduction!$A$151 -> Nombre de modules Cas rail E/O: | N13: =SUM(C5:N12)*2 -> 0 | T13: =traduction!$A$90 -> Nombre de modules : | U13: =SUM(R5:AC12) -> 18 | AB13: =traduction!$A$151 -> Nombre de modules Cas rail E/O: | AC13: =SUM(R5:AC12)*2 -> 36 | AI13: =traduction!$A$90 -> Nombre de modules : | AJ13: =SUM(AG5:AR12) -> 12 | AQ13: =traduction!$A$151 -> Nombre de modules Cas rail E/O: | AR13: =SUM(AG5:AR12)*2 -> 24 | AX13: =traduction!$A$90 -> Nombre de modules : | AY13: =SUM(AV5:BG12) -> 12 | BF13: =traduction!$A$151 -> Nombre de modules Cas rail E/O: | BG13: =SUM(AV5:BG12)*2 -> 24
B14: =traduction!$A$123 -> Montage Socle inter lignes: tapez 1 | H14: 1 | I14: =traduction!$A$124 -> Semelle de protection: tapez 1 | O14: 1 | Q14: =traduction!$A$123 -> Montage Socle inter lignes: tapez 1 | X14: =traduction!$A$124 -> Semelle de protection: tapez 1 | AD14: 1 | AF14: =traduction!$A$123 -> Montage Socle inter lignes: tapez 1 | AL14: 1 | AM14: =traduction!$A$124 -> Semelle de protection: tapez 1 | AS14: 1 | AU14: =traduction!$A$123 -> Montage Socle inter lignes: tapez 1 | BB14: =traduction!$A$124 -> Semelle de protection: tapez 1 | BH14: 1
B15: =traduction!$A$125 -> Parallèle Toiture: tapez 1 | I15: =traduction!$A$133 -> Fixation sur rail, tapez 1 | Q15: =traduction!$A$125 -> Parallèle Toiture: tapez 1 | X15: =traduction!$A$133 -> Fixation sur rail, tapez 1 | AF15: =traduction!$A$125 -> Parallèle Toiture: tapez 1 | AM15: =traduction!$A$133 -> Fixation sur rail, tapez 1 | AU15: =traduction!$A$125 -> Parallèle Toiture: tapez 1 | BB15: =traduction!$A$133 -> Fixation sur rail, tapez 1
B16: =traduction!A17 -> Champ PV 5
C17: 1 | D17: 2 | E17: 3 | F17: 4 | G17: 5 | H17: 6 | I17: 7 | J17: 8 | K17: 9 | L17: 10 | M17: 11 | N17: 12 | O17: 13 | P17: 14 | Q17: 15 | R17: 16 | S17: 17 | T17: 18 | U17: 19 | V17: 20 | W17: 21 | X17: 22 | Y17: 23 | Z17: 24 | AA17: 25 | AB17: 26 | AC17: 27 | AD17: 28 | AE17: 29 | AF17: 30 | AG17: 31 | AH17: 32 | AI17: 33 | AJ17: 34 | AK17: 35 | AL17: 36 | AM17: 37 | AN17: 38 | AO17: 39 | AP17: 40 | AQ17: 41 | AR17: 42 | AS17: 43 | AT17: 44 | AU17: 45 | AV17: 46 | AW17: 47 | AX17: 48 | AY17: 49 | AZ17: 50 | BA17: 51 | BB17: 52 | BC17: 53 | BD17: 54 | BE17: 55 | BF17: 56 | BG17: 57
A19: 1
A20: 2 | G20: 1 | H20: 1 | I20: 1 | J20: 1 | K20: 1
A21: 3 | G21: 1 | H21: 1 | I21: 1 | J21: 1 | K21: 1
A22: 4 | G22: 1 | H22: 1 | I22: 1 | J22: 1 | K22: 1
A23: 5 | G23: 1 | H23: 1 | I23: 1 | J23: 1 | K23: 1
A24: 6 | G24: 1 | H24: 1 | I24: 1 | J24: 1 | K24: 1
A25: 7 | G25: 1 | H25: 1 | I25: 1 | J25: 1 | K25: 1
A26: 8 | G26: 1 | H26: 1 | I26: 1 | J26: 1 | K26: 1
A27: 9 | G27: 1 | H27: 1 | I27: 1 | J27: 1 | K27: 1
A28: 10 | G28: 1 | H28: 1 | I28: 1 | J28: 1 | K28: 1
A29: 11
A30: 12
A31: 13
A32: 14
G33: =traduction!$A$90 -> Nombre de modules : | H33: =SUM(C19:BG32) -> 45 | AX33: =traduction!$A$151 -> Nombre de modules Cas rail E/O: | AY33: =SUM(C19:BG32)*2 -> 90
B34: =traduction!$A$123 -> Montage Socle inter lignes: tapez 1 | H34: 1 | I34: =traduction!$A$124 -> Semelle de protection: tapez 1 | O34: 1 | P34: =traduction!$A$125 -> Parallèle Toiture: tapez 1 | W34: =traduction!$A$133 -> Fixation sur rail, tapez 1
B36: =traduction!A18 -> Champ PV 6
C37: 1 | D37: 2 | E37: 3 | F37: 4 | G37: 5 | H37: 6 | I37: 7 | J37: 8 | K37: 9 | L37: 10 | M37: 11 | N37: 12 | O37: 13 | P37: 14 | Q37: 15 | R37: 16 | S37: 17 | T37: 18 | U37: 19 | V37: 20 | W37: 21 | X37: 22 | Y37: 23 | Z37: 24 | AA37: 25 | AB37: 26 | AC37: 27 | AD37: 28 | AE37: 29 | AF37: 30 | AG37: 31 | AH37: 32 | AI37: 33 | AJ37: 34 | AK37: 35 | AL37: 36 | AM37: 37 | AN37: 38 | AO37: 39 | AP37: 40 | AQ37: 41 | AR37: 42 | AS37: 43 | AT37: 44 | AU37: 45 | AV37: 46 | AW37: 47 | AX37: 48 | AY37: 49 | AZ37: 50 | BA37: 51 | BB37: 52 | BC37: 53 | BD37: 54 | BE37: 55 | BF37: 56 | BG37: 57 | BH37: 58 | BI37: 59 | BJ37: 60 | BK37: 61 | BL37: 62 | BM37: 63 | BN37: 64 | BO37: 65 | BP37: 66 | BQ37: 67 | BR37: 68 | BS37: 69 | BT37: 70 | BU37: 71 | BV37: 72 | BW37: 73 | BX37: 74 | BY37: 75 | BZ37: 76 | CA37: 77 | CB37: 78 | CC37: 79 | CD37: 80 | CE37: 81 | CF37: 82 | CG37: 83 | CH37: 84 | CI37: 85 | CJ37: 86 | CK37: 87 | CL37: 88 | CM37: 89 | CN37: 90 | CO37: 91 | CP37: 92
A39: 1 | C39: =DataPVBom!A1 -> 1 | D39: =DataPVBom!B1 -> 1 | E39: =DataPVBom!C1 -> 1 | F39: =DataPVBom!D1 -> 1 | G39: =DataPVBom!E1 -> 1 | H39: =DataPVBom!F1 -> 0 | I39: =DataPVBom!G1 -> 0 | J39: =DataPVBom!H1 -> 0 | K39: =DataPVBom!I1 -> 0 | L39: =DataPVBom!J1 -> 0 | M39: =DataPVBom!K1 -> 0 | N39: =DataPVBom!L1 -> 0 | O39: =DataPVBom!M1 -> 0 | P39: =DataPVBom!N1 -> 0 | Q39: =DataPVBom!O1 -> 0 | R39: =DataPVBom!P1 -> 0 | S39: =DataPVBom!Q1 -> 0 | T39: =DataPVBom!R1 -> 0 | U39: =DataPVBom!S1 -> 0 | V39: =DataPVBom!T1 -> 0 | W39: =DataPVBom!U1 -> 0 | X39: =DataPVBom!V1 -> 0 | Y39: =DataPVBom!W1 -> 0 | Z39: =DataPVBom!X1 -> 0 | AA39: =DataPVBom!Y1 -> 0 | AB39: =DataPVBom!Z1 -> 0 | AC39: =DataPVBom!AA1 -> 0 | AD39: =DataPVBom!AB1 -> 0 | AE39: =DataPVBom!AC1 -> 0 | AF39: =DataPVBom!AD1 -> 0 | AG39: =DataPVBom!AE1 -> 0 | AH39: =DataPVBom!AF1 -> 0 | AI39: =DataPVBom!AG1 -> 0 | AJ39: =DataPVBom!AH1 -> 0 | AK39: =DataPVBom!AI1 -> 0 | AL39: =DataPVBom!AJ1 -> 0 | AM39: =DataPVBom!AK1 -> 0 | AN39: =DataPVBom!AL1 -> 0 | AO39: =DataPVBom!AM1 -> 0 | AP39: =DataPVBom!AN1 -> 0 | AQ39: =DataPVBom!AO1 -> 0 | AR39: =DataPVBom!AP1 -> 0 | AS39: =DataPVBom!AQ1 -> 0 | AT39: =DataPVBom!AR1 -> 0 | AU39: =DataPVBom!AS1 -> 0 | AV39: =DataPVBom!AT1 -> 0 | AW39: =DataPVBom!AU1 -> 0 | AX39: =DataPVBom!AV1 -> 0 | AY39: =DataPVBom!AW1 -> 0 | AZ39: =DataPVBom!AX1 -> 0 | BA39: =DataPVBom!AY1 -> 0 | BB39: =DataPVBom!AZ1 -> 0 | BC39: =DataPVBom!BA1 -> 0 | BD39: =DataPVBom!BB1 -> 0 | BE39: =DataPVBom!BC1 -> 0 | BF39: =DataPVBom!BD1 -> 0 | BG39: =DataPVBom!BE1 -> 0 | BH39: =DataPVBom!BF1 -> 0 | BI39: =DataPVBom!BG1 -> 0 | BJ39: =DataPVBom!BH1 -> 0 | BK39: =DataPVBom!BI1 -> 0 | BL39: =DataPVBom!BJ1 -> 0 | BM39: =DataPVBom!BK1 -> 0 | BN39: =DataPVBom!BL1 -> 0 | BO39: =DataPVBom!BM1 -> 0 | BP39: =DataPVBom!BN1 -> 0 | BQ39: =DataPVBom!BO1 -> 0 | BR39: =DataPVBom!BP1 -> 0 | BS39: =DataPVBom!BQ1 -> 0 | BT39: =DataPVBom!BR1 -> 0 | BU39: =DataPVBom!BS1 -> 0 | BV39: =DataPVBom!BT1 -> 0 | BW39: =DataPVBom!BU1 -> 0 | BX39: =DataPVBom!BV1 -> 0 | BY39: =DataPVBom!BW1 -> 0 | BZ39: =DataPVBom!BX1 -> 0 | CA39: =DataPVBom!BY1 -> 0 | CB39: =DataPVBom!BZ1 -> 0 | CC39: =DataPVBom!CA1 -> 0 | CD39: =DataPVBom!CB1 -> 0 | CE39: =DataPVBom!CC1 -> 0 | CF39: =DataPVBom!CD1 -> 0 | CG39: =DataPVBom!CE1 -> 0 | CH39: =DataPVBom!CF1 -> 0 | CI39: =DataPVBom!CG1 -> 0 | CJ39: =DataPVBom!CH1 -> 0 | CK39: =DataPVBom!CI1 -> 0 | CL39: =DataPVBom!CJ1 -> 0 | CM39: =DataPVBom!CK1 -> 0 | CN39: =DataPVBom!CL1 -> 0 | CO39: =DataPVBom!CM1 -> 0 | CP39: =DataPVBom!CN1 -> 0
A40: 2 | C40: =DataPVBom!A2 -> 1 | D40: =DataPVBom!B2 -> 1 | E40: =DataPVBom!C2 -> 1 | F40: =DataPVBom!D2 -> 1 | G40: =DataPVBom!E2 -> 1 | H40: =DataPVBom!F2 -> 0 | I40: =DataPVBom!G2 -> 0 | J40: =DataPVBom!H2 -> 0 | K40: =DataPVBom!I2 -> 0 | L40: =DataPVBom!J2 -> 0 | M40: =DataPVBom!K2 -> 0 | N40: =DataPVBom!L2 -> 0 | O40: =DataPVBom!M2 -> 0 | P40: =DataPVBom!N2 -> 0 | Q40: =DataPVBom!O2 -> 0 | R40: =DataPVBom!P2 -> 0 | S40: =DataPVBom!Q2 -> 0 | T40: =DataPVBom!R2 -> 0 | U40: =DataPVBom!S2 -> 0 | V40: =DataPVBom!T2 -> 0 | W40: =DataPVBom!U2 -> 0 | X40: =DataPVBom!V2 -> 0 | Y40: =DataPVBom!W2 -> 0 | Z40: =DataPVBom!X2 -> 0 | AA40: =DataPVBom!Y2 -> 0 | AB40: =DataPVBom!Z2 -> 0 | AC40: =DataPVBom!AA2 -> 0 | AD40: =DataPVBom!AB2 -> 0 | AE40: =DataPVBom!AC2 -> 0 | AF40: =DataPVBom!AD2 -> 0 | AG40: =DataPVBom!AE2 -> 0 | AH40: =DataPVBom!AF2 -> 0 | AI40: =DataPVBom!AG2 -> 0 | AJ40: =DataPVBom!AH2 -> 0 | AK40: =DataPVBom!AI2 -> 0 | AL40: =DataPVBom!AJ2 -> 0 | AM40: =DataPVBom!AK2 -> 0 | AN40: =DataPVBom!AL2 -> 0 | AO40: =DataPVBom!AM2 -> 0 | AP40: =DataPVBom!AN2 -> 0 | AQ40: =DataPVBom!AO2 -> 0 | AR40: =DataPVBom!AP2 -> 0 | AS40: =DataPVBom!AQ2 -> 0 | AT40: =DataPVBom!AR2 -> 0 | AU40: =DataPVBom!AS2 -> 0 | AV40: =DataPVBom!AT2 -> 0 | AW40: =DataPVBom!AU2 -> 0 | AX40: =DataPVBom!AV2 -> 0 | AY40: =DataPVBom!AW2 -> 0 | AZ40: =DataPVBom!AX2 -> 0 | BA40: =DataPVBom!AY2 -> 0 | BB40: =DataPVBom!AZ2 -> 0 | BC40: =DataPVBom!BA2 -> 0 | BD40: =DataPVBom!BB2 -> 0 | BE40: =DataPVBom!BC2 -> 0 | BF40: =DataPVBom!BD2 -> 0 | BG40: =DataPVBom!BE2 -> 0 | BH40: =DataPVBom!BF2 -> 0 | BI40: =DataPVBom!BG2 -> 0 | BJ40: =DataPVBom!BH2 -> 0 | BK40: =DataPVBom!BI2 -> 0 | BL40: =DataPVBom!BJ2 -> 0 | BM40: =DataPVBom!BK2 -> 0 | BN40: =DataPVBom!BL2 -> 0 | BO40: =DataPVBom!BM2 -> 0 | BP40: =DataPVBom!BN2 -> 0 | BQ40: =DataPVBom!BO2 -> 0 | BR40: =DataPVBom!BP2 -> 0 | BS40: =DataPVBom!BQ2 -> 0 | BT40: =DataPVBom!BR2 -> 0 | BU40: =DataPVBom!BS2 -> 0 | BV40: =DataPVBom!BT2 -> 0 | BW40: =DataPVBom!BU2 -> 0 | BX40: =DataPVBom!BV2 -> 0 | BY40: =DataPVBom!BW2 -> 0 | BZ40: =DataPVBom!BX2 -> 0 | CA40: =DataPVBom!BY2 -> 0 | CB40: =DataPVBom!BZ2 -> 0 | CC40: =DataPVBom!CA2 -> 0 | CD40: =DataPVBom!CB2 -> 0 | CE40: =DataPVBom!CC2 -> 0 | CF40: =DataPVBom!CD2 -> 0 | CG40: =DataPVBom!CE2 -> 0 | CH40: =DataPVBom!CF2 -> 0 | CI40: =DataPVBom!CG2 -> 0 | CJ40: =DataPVBom!CH2 -> 0 | CK40: =DataPVBom!CI2 -> 0 | CL40: =DataPVBom!CJ2 -> 0 | CM40: =DataPVBom!CK2 -> 0 | CN40: =DataPVBom!CL2 -> 0 | CO40: =DataPVBom!CM2 -> 0 | CP40: =DataPVBom!CN2 -> 0
A41: 3 | C41: =DataPVBom!A3 -> 1 | D41: =DataPVBom!B3 -> 1 | E41: =DataPVBom!C3 -> 1 | F41: =DataPVBom!D3 -> 1 | G41: =DataPVBom!E3 -> 1 | H41: =DataPVBom!F3 -> 0 | I41: =DataPVBom!G3 -> 0 | J41: =DataPVBom!H3 -> 0 | K41: =DataPVBom!I3 -> 0 | L41: =DataPVBom!J3 -> 0 | M41: =DataPVBom!K3 -> 0 | N41: =DataPVBom!L3 -> 0 | O41: =DataPVBom!M3 -> 0 | P41: =DataPVBom!N3 -> 0 | Q41: =DataPVBom!O3 -> 0 | R41: =DataPVBom!P3 -> 0 | S41: =DataPVBom!Q3 -> 0 | T41: =DataPVBom!R3 -> 0 | U41: =DataPVBom!S3 -> 0 | V41: =DataPVBom!T3 -> 0 | W41: =DataPVBom!U3 -> 0 | X41: =DataPVBom!V3 -> 0 | Y41: =DataPVBom!W3 -> 0 | Z41: =DataPVBom!X3 -> 0 | AA41: =DataPVBom!Y3 -> 0 | AB41: =DataPVBom!Z3 -> 0 | AC41: =DataPVBom!AA3 -> 0 | AD41: =DataPVBom!AB3 -> 0 | AE41: =DataPVBom!AC3 -> 0 | AF41: =DataPVBom!AD3 -> 0 | AG41: =DataPVBom!AE3 -> 0 | AH41: =DataPVBom!AF3 -> 0 | AI41: =DataPVBom!AG3 -> 0 | AJ41: =DataPVBom!AH3 -> 0 | AK41: =DataPVBom!AI3 -> 0 | AL41: =DataPVBom!AJ3 -> 0 | AM41: =DataPVBom!AK3 -> 0 | AN41: =DataPVBom!AL3 -> 0 | AO41: =DataPVBom!AM3 -> 0 | AP41: =DataPVBom!AN3 -> 0 | AQ41: =DataPVBom!AO3 -> 0 | AR41: =DataPVBom!AP3 -> 0 | AS41: =DataPVBom!AQ3 -> 0 | AT41: =DataPVBom!AR3 -> 0 | AU41: =DataPVBom!AS3 -> 0 | AV41: =DataPVBom!AT3 -> 0 | AW41: =DataPVBom!AU3 -> 0 | AX41: =DataPVBom!AV3 -> 0 | AY41: =DataPVBom!AW3 -> 0 | AZ41: =DataPVBom!AX3 -> 0 | BA41: =DataPVBom!AY3 -> 0 | BB41: =DataPVBom!AZ3 -> 0 | BC41: =DataPVBom!BA3 -> 0 | BD41: =DataPVBom!BB3 -> 0 | BE41: =DataPVBom!BC3 -> 0 | BF41: =DataPVBom!BD3 -> 0 | BG41: =DataPVBom!BE3 -> 0 | BH41: =DataPVBom!BF3 -> 0 | BI41: =DataPVBom!BG3 -> 0 | BJ41: =DataPVBom!BH3 -> 0 | BK41: =DataPVBom!BI3 -> 0 | BL41: =DataPVBom!BJ3 -> 0 | BM41: =DataPVBom!BK3 -> 0 | BN41: =DataPVBom!BL3 -> 0 | BO41: =DataPVBom!BM3 -> 0 | BP41: =DataPVBom!BN3 -> 0 | BQ41: =DataPVBom!BO3 -> 0 | BR41: =DataPVBom!BP3 -> 0 | BS41: =DataPVBom!BQ3 -> 0 | BT41: =DataPVBom!BR3 -> 0 | BU41: =DataPVBom!BS3 -> 0 | BV41: =DataPVBom!BT3 -> 0 | BW41: =DataPVBom!BU3 -> 0 | BX41: =DataPVBom!BV3 -> 0 | BY41: =DataPVBom!BW3 -> 0 | BZ41: =DataPVBom!BX3 -> 0 | CA41: =DataPVBom!BY3 -> 0 | CB41: =DataPVBom!BZ3 -> 0 | CC41: =DataPVBom!CA3 -> 0 | CD41: =DataPVBom!CB3 -> 0 | CE41: =DataPVBom!CC3 -> 0 | CF41: =DataPVBom!CD3 -> 0 | CG41: =DataPVBom!CE3 -> 0 | CH41: =DataPVBom!CF3 -> 0 | CI41: =DataPVBom!CG3 -> 0 | CJ41: =DataPVBom!CH3 -> 0 | CK41: =DataPVBom!CI3 -> 0 | CL41: =DataPVBom!CJ3 -> 0 | CM41: =DataPVBom!CK3 -> 0 | CN41: =DataPVBom!CL3 -> 0 | CO41: =DataPVBom!CM3 -> 0 | CP41: =DataPVBom!CN3 -> 0
A42: 4 | C42: =DataPVBom!A4 -> 1 | D42: =DataPVBom!B4 -> 1 | E42: =DataPVBom!C4 -> 1 | F42: =DataPVBom!D4 -> 1 | G42: =DataPVBom!E4 -> 1 | H42: =DataPVBom!F4 -> 0 | I42: =DataPVBom!G4 -> 0 | J42: =DataPVBom!H4 -> 0 | K42: =DataPVBom!I4 -> 0 | L42: =DataPVBom!J4 -> 0 | M42: =DataPVBom!K4 -> 0 | N42: =DataPVBom!L4 -> 0 | O42: =DataPVBom!M4 -> 0 | P42: =DataPVBom!N4 -> 0 | Q42: =DataPVBom!O4 -> 0 | R42: =DataPVBom!P4 -> 0 | S42: =DataPVBom!Q4 -> 0 | T42: =DataPVBom!R4 -> 0 | U42: =DataPVBom!S4 -> 0 | V42: =DataPVBom!T4 -> 0 | W42: =DataPVBom!U4 -> 0 | X42: =DataPVBom!V4 -> 0 | Y42: =DataPVBom!W4 -> 0 | Z42: =DataPVBom!X4 -> 0 | AA42: =DataPVBom!Y4 -> 0 | AB42: =DataPVBom!Z4 -> 0 | AC42: =DataPVBom!AA4 -> 0 | AD42: =DataPVBom!AB4 -> 0 | AE42: =DataPVBom!AC4 -> 0 | AF42: =DataPVBom!AD4 -> 0 | AG42: =DataPVBom!AE4 -> 0 | AH42: =DataPVBom!AF4 -> 0 | AI42: =DataPVBom!AG4 -> 0 | AJ42: =DataPVBom!AH4 -> 0 | AK42: =DataPVBom!AI4 -> 0 | AL42: =DataPVBom!AJ4 -> 0 | AM42: =DataPVBom!AK4 -> 0 | AN42: =DataPVBom!AL4 -> 0 | AO42: =DataPVBom!AM4 -> 0 | AP42: =DataPVBom!AN4 -> 0 | AQ42: =DataPVBom!AO4 -> 0 | AR42: =DataPVBom!AP4 -> 0 | AS42: =DataPVBom!AQ4 -> 0 | AT42: =DataPVBom!AR4 -> 0 | AU42: =DataPVBom!AS4 -> 0 | AV42: =DataPVBom!AT4 -> 0 | AW42: =DataPVBom!AU4 -> 0 | AX42: =DataPVBom!AV4 -> 0 | AY42: =DataPVBom!AW4 -> 0 | AZ42: =DataPVBom!AX4 -> 0 | BA42: =DataPVBom!AY4 -> 0 | BB42: =DataPVBom!AZ4 -> 0 | BC42: =DataPVBom!BA4 -> 0 | BD42: =DataPVBom!BB4 -> 0 | BE42: =DataPVBom!BC4 -> 0 | BF42: =DataPVBom!BD4 -> 0 | BG42: =DataPVBom!BE4 -> 0 | BH42: =DataPVBom!BF4 -> 0 | BI42: =DataPVBom!BG4 -> 0 | BJ42: =DataPVBom!BH4 -> 0 | BK42: =DataPVBom!BI4 -> 0 | BL42: =DataPVBom!BJ4 -> 0 | BM42: =DataPVBom!BK4 -> 0 | BN42: =DataPVBom!BL4 -> 0 | BO42: =DataPVBom!BM4 -> 0 | BP42: =DataPVBom!BN4 -> 0 | BQ42: =DataPVBom!BO4 -> 0 | BR42: =DataPVBom!BP4 -> 0 | BS42: =DataPVBom!BQ4 -> 0 | BT42: =DataPVBom!BR4 -> 0 | BU42: =DataPVBom!BS4 -> 0 | BV42: =DataPVBom!BT4 -> 0 | BW42: =DataPVBom!BU4 -> 0 | BX42: =DataPVBom!BV4 -> 0 | BY42: =DataPVBom!BW4 -> 0 | BZ42: =DataPVBom!BX4 -> 0 | CA42: =DataPVBom!BY4 -> 0 | CB42: =DataPVBom!BZ4 -> 0 | CC42: =DataPVBom!CA4 -> 0 | CD42: =DataPVBom!CB4 -> 0 | CE42: =DataPVBom!CC4 -> 0 | CF42: =DataPVBom!CD4 -> 0 | CG42: =DataPVBom!CE4 -> 0 | CH42: =DataPVBom!CF4 -> 0 | CI42: =DataPVBom!CG4 -> 0 | CJ42: =DataPVBom!CH4 -> 0 | CK42: =DataPVBom!CI4 -> 0 | CL42: =DataPVBom!CJ4 -> 0 | CM42: =DataPVBom!CK4 -> 0 | CN42: =DataPVBom!CL4 -> 0 | CO42: =DataPVBom!CM4 -> 0 | CP42: =DataPVBom!CN4 -> 0
A43: 5 | C43: =DataPVBom!A5 -> 1 | D43: =DataPVBom!B5 -> 1 | E43: =DataPVBom!C5 -> 1 | F43: =DataPVBom!D5 -> 1 | G43: =DataPVBom!E5 -> 1 | H43: =DataPVBom!F5 -> 0 | I43: =DataPVBom!G5 -> 0 | J43: =DataPVBom!H5 -> 0 | K43: =DataPVBom!I5 -> 0 | L43: =DataPVBom!J5 -> 0 | M43: =DataPVBom!K5 -> 0 | N43: =DataPVBom!L5 -> 0 | O43: =DataPVBom!M5 -> 0 | P43: =DataPVBom!N5 -> 0 | Q43: =DataPVBom!O5 -> 0 | R43: =DataPVBom!P5 -> 0 | S43: =DataPVBom!Q5 -> 0 | T43: =DataPVBom!R5 -> 0 | U43: =DataPVBom!S5 -> 0 | V43: =DataPVBom!T5 -> 0 | W43: =DataPVBom!U5 -> 0 | X43: =DataPVBom!V5 -> 0 | Y43: =DataPVBom!W5 -> 0 | Z43: =DataPVBom!X5 -> 0 | AA43: =DataPVBom!Y5 -> 0 | AB43: =DataPVBom!Z5 -> 0 | AC43: =DataPVBom!AA5 -> 0 | AD43: =DataPVBom!AB5 -> 0 | AE43: =DataPVBom!AC5 -> 0 | AF43: =DataPVBom!AD5 -> 0 | AG43: =DataPVBom!AE5 -> 0 | AH43: =DataPVBom!AF5 -> 0 | AI43: =DataPVBom!AG5 -> 0 | AJ43: =DataPVBom!AH5 -> 0 | AK43: =DataPVBom!AI5 -> 0 | AL43: =DataPVBom!AJ5 -> 0 | AM43: =DataPVBom!AK5 -> 0 | AN43: =DataPVBom!AL5 -> 0 | AO43: =DataPVBom!AM5 -> 0 | AP43: =DataPVBom!AN5 -> 0 | AQ43: =DataPVBom!AO5 -> 0 | AR43: =DataPVBom!AP5 -> 0 | AS43: =DataPVBom!AQ5 -> 0 | AT43: =DataPVBom!AR5 -> 0 | AU43: =DataPVBom!AS5 -> 0 | AV43: =DataPVBom!AT5 -> 0 | AW43: =DataPVBom!AU5 -> 0 | AX43: =DataPVBom!AV5 -> 0 | AY43: =DataPVBom!AW5 -> 0 | AZ43: =DataPVBom!AX5 -> 0 | BA43: =DataPVBom!AY5 -> 0 | BB43: =DataPVBom!AZ5 -> 0 | BC43: =DataPVBom!BA5 -> 0 | BD43: =DataPVBom!BB5 -> 0 | BE43: =DataPVBom!BC5 -> 0 | BF43: =DataPVBom!BD5 -> 0 | BG43: =DataPVBom!BE5 -> 0 | BH43: =DataPVBom!BF5 -> 0 | BI43: =DataPVBom!BG5 -> 0 | BJ43: =DataPVBom!BH5 -> 0 | BK43: =DataPVBom!BI5 -> 0 | BL43: =DataPVBom!BJ5 -> 0 | BM43: =DataPVBom!BK5 -> 0 | BN43: =DataPVBom!BL5 -> 0 | BO43: =DataPVBom!BM5 -> 0 | BP43: =DataPVBom!BN5 -> 0 | BQ43: =DataPVBom!BO5 -> 0 | BR43: =DataPVBom!BP5 -> 0 | BS43: =DataPVBom!BQ5 -> 0 | BT43: =DataPVBom!BR5 -> 0 | BU43: =DataPVBom!BS5 -> 0 | BV43: =DataPVBom!BT5 -> 0 | BW43: =DataPVBom!BU5 -> 0 | BX43: =DataPVBom!BV5 -> 0 | BY43: =DataPVBom!BW5 -> 0 | BZ43: =DataPVBom!BX5 -> 0 | CA43: =DataPVBom!BY5 -> 0 | CB43: =DataPVBom!BZ5 -> 0 | CC43: =DataPVBom!CA5 -> 0 | CD43: =DataPVBom!CB5 -> 0 | CE43: =DataPVBom!CC5 -> 0 | CF43: =DataPVBom!CD5 -> 0 | CG43: =DataPVBom!CE5 -> 0 | CH43: =DataPVBom!CF5 -> 0 | CI43: =DataPVBom!CG5 -> 0 | CJ43: =DataPVBom!CH5 -> 0 | CK43: =DataPVBom!CI5 -> 0 | CL43: =DataPVBom!CJ5 -> 0 | CM43: =DataPVBom!CK5 -> 0 | CN43: =DataPVBom!CL5 -> 0 | CO43: =DataPVBom!CM5 -> 0 | CP43: =DataPVBom!CN5 -> 0
A44: 6 | C44: =DataPVBom!A6 -> 0 | D44: =DataPVBom!B6 -> 0 | E44: =DataPVBom!C6 -> 0 | F44: =DataPVBom!D6 -> 0 | G44: =DataPVBom!E6 -> 0 | H44: =DataPVBom!F6 -> 0 | I44: =DataPVBom!G6 -> 0 | J44: =DataPVBom!H6 -> 0 | K44: =DataPVBom!I6 -> 0 | L44: =DataPVBom!J6 -> 0 | M44: =DataPVBom!K6 -> 0 | N44: =DataPVBom!L6 -> 0 | O44: =DataPVBom!M6 -> 0 | P44: =DataPVBom!N6 -> 0 | Q44: =DataPVBom!O6 -> 0 | R44: =DataPVBom!P6 -> 0 | S44: =DataPVBom!Q6 -> 0 | T44: =DataPVBom!R6 -> 0 | U44: =DataPVBom!S6 -> 0 | V44: =DataPVBom!T6 -> 0 | W44: =DataPVBom!U6 -> 0 | X44: =DataPVBom!V6 -> 0 | Y44: =DataPVBom!W6 -> 0 | Z44: =DataPVBom!X6 -> 0 | AA44: =DataPVBom!Y6 -> 0 | AB44: =DataPVBom!Z6 -> 0 | AC44: =DataPVBom!AA6 -> 0 | AD44: =DataPVBom!AB6 -> 0 | AE44: =DataPVBom!AC6 -> 0 | AF44: =DataPVBom!AD6 -> 0 | AG44: =DataPVBom!AE6 -> 0 | AH44: =DataPVBom!AF6 -> 0 | AI44: =DataPVBom!AG6 -> 0 | AJ44: =DataPVBom!AH6 -> 0 | AK44: =DataPVBom!AI6 -> 0 | AL44: =DataPVBom!AJ6 -> 0 | AM44: =DataPVBom!AK6 -> 0 | AN44: =DataPVBom!AL6 -> 0 | AO44: =DataPVBom!AM6 -> 0 | AP44: =DataPVBom!AN6 -> 0 | AQ44: =DataPVBom!AO6 -> 0 | AR44: =DataPVBom!AP6 -> 0 | AS44: =DataPVBom!AQ6 -> 0 | AT44: =DataPVBom!AR6 -> 0 | AU44: =DataPVBom!AS6 -> 0 | AV44: =DataPVBom!AT6 -> 0 | AW44: =DataPVBom!AU6 -> 0 | AX44: =DataPVBom!AV6 -> 0 | AY44: =DataPVBom!AW6 -> 0 | AZ44: =DataPVBom!AX6 -> 0 | BA44: =DataPVBom!AY6 -> 0 | BB44: =DataPVBom!AZ6 -> 0 | BC44: =DataPVBom!BA6 -> 0 | BD44: =DataPVBom!BB6 -> 0 | BE44: =DataPVBom!BC6 -> 0 | BF44: =DataPVBom!BD6 -> 0 | BG44: =DataPVBom!BE6 -> 0 | BH44: =DataPVBom!BF6 -> 0 | BI44: =DataPVBom!BG6 -> 0 | BJ44: =DataPVBom!BH6 -> 0 | BK44: =DataPVBom!BI6 -> 0 | BL44: =DataPVBom!BJ6 -> 0 | BM44: =DataPVBom!BK6 -> 0 | BN44: =DataPVBom!BL6 -> 0 | BO44: =DataPVBom!BM6 -> 0 | BP44: =DataPVBom!BN6 -> 0 | BQ44: =DataPVBom!BO6 -> 0 | BR44: =DataPVBom!BP6 -> 0 | BS44: =DataPVBom!BQ6 -> 0 | BT44: =DataPVBom!BR6 -> 0 | BU44: =DataPVBom!BS6 -> 0 | BV44: =DataPVBom!BT6 -> 0 | BW44: =DataPVBom!BU6 -> 0 | BX44: =DataPVBom!BV6 -> 0 | BY44: =DataPVBom!BW6 -> 0 | BZ44: =DataPVBom!BX6 -> 0 | CA44: =DataPVBom!BY6 -> 0 | CB44: =DataPVBom!BZ6 -> 0 | CC44: =DataPVBom!CA6 -> 0 | CD44: =DataPVBom!CB6 -> 0 | CE44: =DataPVBom!CC6 -> 0 | CF44: =DataPVBom!CD6 -> 0 | CG44: =DataPVBom!CE6 -> 0 | CH44: =DataPVBom!CF6 -> 0 | CI44: =DataPVBom!CG6 -> 0 | CJ44: =DataPVBom!CH6 -> 0 | CK44: =DataPVBom!CI6 -> 0 | CL44: =DataPVBom!CJ6 -> 0 | CM44: =DataPVBom!CK6 -> 0 | CN44: =DataPVBom!CL6 -> 0 | CO44: =DataPVBom!CM6 -> 0 | CP44: =DataPVBom!CN6 -> 0
A45: 7 | C45: =DataPVBom!A7 -> 0 | D45: =DataPVBom!B7 -> 0 | E45: =DataPVBom!C7 -> 0 | F45: =DataPVBom!D7 -> 0 | G45: =DataPVBom!E7 -> 0 | H45: =DataPVBom!F7 -> 0 | I45: =DataPVBom!G7 -> 0 | J45: =DataPVBom!H7 -> 0 | K45: =DataPVBom!I7 -> 0 | L45: =DataPVBom!J7 -> 0 | M45: =DataPVBom!K7 -> 0 | N45: =DataPVBom!L7 -> 0 | O45: =DataPVBom!M7 -> 0 | P45: =DataPVBom!N7 -> 0 | Q45: =DataPVBom!O7 -> 0 | R45: =DataPVBom!P7 -> 0 | S45: =DataPVBom!Q7 -> 0 | T45: =DataPVBom!R7 -> 0 | U45: =DataPVBom!S7 -> 0 | V45: =DataPVBom!T7 -> 0 | W45: =DataPVBom!U7 -> 0 | X45: =DataPVBom!V7 -> 0 | Y45: =DataPVBom!W7 -> 0 | Z45: =DataPVBom!X7 -> 0 | AA45: =DataPVBom!Y7 -> 0 | AB45: =DataPVBom!Z7 -> 0 | AC45: =DataPVBom!AA7 -> 0 | AD45: =DataPVBom!AB7 -> 0 | AE45: =DataPVBom!AC7 -> 0 | AF45: =DataPVBom!AD7 -> 0 | AG45: =DataPVBom!AE7 -> 0 | AH45: =DataPVBom!AF7 -> 0 | AI45: =DataPVBom!AG7 -> 0 | AJ45: =DataPVBom!AH7 -> 0 | AK45: =DataPVBom!AI7 -> 0 | AL45: =DataPVBom!AJ7 -> 0 | AM45: =DataPVBom!AK7 -> 0 | AN45: =DataPVBom!AL7 -> 0 | AO45: =DataPVBom!AM7 -> 0 | AP45: =DataPVBom!AN7 -> 0 | AQ45: =DataPVBom!AO7 -> 0 | AR45: =DataPVBom!AP7 -> 0 | AS45: =DataPVBom!AQ7 -> 0 | AT45: =DataPVBom!AR7 -> 0 | AU45: =DataPVBom!AS7 -> 0 | AV45: =DataPVBom!AT7 -> 0 | AW45: =DataPVBom!AU7 -> 0 | AX45: =DataPVBom!AV7 -> 0 | AY45: =DataPVBom!AW7 -> 0 | AZ45: =DataPVBom!AX7 -> 0 | BA45: =DataPVBom!AY7 -> 0 | BB45: =DataPVBom!AZ7 -> 0 | BC45: =DataPVBom!BA7 -> 0 | BD45: =DataPVBom!BB7 -> 0 | BE45: =DataPVBom!BC7 -> 0 | BF45: =DataPVBom!BD7 -> 0 | BG45: =DataPVBom!BE7 -> 0 | BH45: =DataPVBom!BF7 -> 0 | BI45: =DataPVBom!BG7 -> 0 | BJ45: =DataPVBom!BH7 -> 0 | BK45: =DataPVBom!BI7 -> 0 | BL45: =DataPVBom!BJ7 -> 0 | BM45: =DataPVBom!BK7 -> 0 | BN45: =DataPVBom!BL7 -> 0 | BO45: =DataPVBom!BM7 -> 0 | BP45: =DataPVBom!BN7 -> 0 | BQ45: =DataPVBom!BO7 -> 0 | BR45: =DataPVBom!BP7 -> 0 | BS45: =DataPVBom!BQ7 -> 0 | BT45: =DataPVBom!BR7 -> 0 | BU45: =DataPVBom!BS7 -> 0 | BV45: =DataPVBom!BT7 -> 0 | BW45: =DataPVBom!BU7 -> 0 | BX45: =DataPVBom!BV7 -> 0 | BY45: =DataPVBom!BW7 -> 0 | BZ45: =DataPVBom!BX7 -> 0 | CA45: =DataPVBom!BY7 -> 0 | CB45: =DataPVBom!BZ7 -> 0 | CC45: =DataPVBom!CA7 -> 0 | CD45: =DataPVBom!CB7 -> 0 | CE45: =DataPVBom!CC7 -> 0 | CF45: =DataPVBom!CD7 -> 0 | CG45: =DataPVBom!CE7 -> 0 | CH45: =DataPVBom!CF7 -> 0 | CI45: =DataPVBom!CG7 -> 0 | CJ45: =DataPVBom!CH7 -> 0 | CK45: =DataPVBom!CI7 -> 0 | CL45: =DataPVBom!CJ7 -> 0 | CM45: =DataPVBom!CK7 -> 0 | CN45: =DataPVBom!CL7 -> 0 | CO45: =DataPVBom!CM7 -> 0 | CP45: =DataPVBom!CN7 -> 0
A46: 8 | C46: =DataPVBom!A8 -> 0 | D46: =DataPVBom!B8 -> 0 | E46: =DataPVBom!C8 -> 0 | F46: =DataPVBom!D8 -> 0 | G46: =DataPVBom!E8 -> 0 | H46: =DataPVBom!F8 -> 0 | I46: =DataPVBom!G8 -> 0 | J46: =DataPVBom!H8 -> 0 | K46: =DataPVBom!I8 -> 0 | L46: =DataPVBom!J8 -> 0 | M46: =DataPVBom!K8 -> 0 | N46: =DataPVBom!L8 -> 0 | O46: =DataPVBom!M8 -> 0 | P46: =DataPVBom!N8 -> 0 | Q46: =DataPVBom!O8 -> 0 | R46: =DataPVBom!P8 -> 0 | S46: =DataPVBom!Q8 -> 0 | T46: =DataPVBom!R8 -> 0 | U46: =DataPVBom!S8 -> 0 | V46: =DataPVBom!T8 -> 0 | W46: =DataPVBom!U8 -> 0 | X46: =DataPVBom!V8 -> 0 | Y46: =DataPVBom!W8 -> 0 | Z46: =DataPVBom!X8 -> 0 | AA46: =DataPVBom!Y8 -> 0 | AB46: =DataPVBom!Z8 -> 0 | AC46: =DataPVBom!AA8 -> 0 | AD46: =DataPVBom!AB8 -> 0 | AE46: =DataPVBom!AC8 -> 0 | AF46: =DataPVBom!AD8 -> 0 | AG46: =DataPVBom!AE8 -> 0 | AH46: =DataPVBom!AF8 -> 0 | AI46: =DataPVBom!AG8 -> 0 | AJ46: =DataPVBom!AH8 -> 0 | AK46: =DataPVBom!AI8 -> 0 | AL46: =DataPVBom!AJ8 -> 0 | AM46: =DataPVBom!AK8 -> 0 | AN46: =DataPVBom!AL8 -> 0 | AO46: =DataPVBom!AM8 -> 0 | AP46: =DataPVBom!AN8 -> 0 | AQ46: =DataPVBom!AO8 -> 0 | AR46: =DataPVBom!AP8 -> 0 | AS46: =DataPVBom!AQ8 -> 0 | AT46: =DataPVBom!AR8 -> 0 | AU46: =DataPVBom!AS8 -> 0 | AV46: =DataPVBom!AT8 -> 0 | AW46: =DataPVBom!AU8 -> 0 | AX46: =DataPVBom!AV8 -> 0 | AY46: =DataPVBom!AW8 -> 0 | AZ46: =DataPVBom!AX8 -> 0 | BA46: =DataPVBom!AY8 -> 0 | BB46: =DataPVBom!AZ8 -> 0 | BC46: =DataPVBom!BA8 -> 0 | BD46: =DataPVBom!BB8 -> 0 | BE46: =DataPVBom!BC8 -> 0 | BF46: =DataPVBom!BD8 -> 0 | BG46: =DataPVBom!BE8 -> 0 | BH46: =DataPVBom!BF8 -> 0 | BI46: =DataPVBom!BG8 -> 0 | BJ46: =DataPVBom!BH8 -> 0 | BK46: =DataPVBom!BI8 -> 0 | BL46: =DataPVBom!BJ8 -> 0 | BM46: =DataPVBom!BK8 -> 0 | BN46: =DataPVBom!BL8 -> 0 | BO46: =DataPVBom!BM8 -> 0 | BP46: =DataPVBom!BN8 -> 0 | BQ46: =DataPVBom!BO8 -> 0 | BR46: =DataPVBom!BP8 -> 0 | BS46: =DataPVBom!BQ8 -> 0 | BT46: =DataPVBom!BR8 -> 0 | BU46: =DataPVBom!BS8 -> 0 | BV46: =DataPVBom!BT8 -> 0 | BW46: =DataPVBom!BU8 -> 0 | BX46: =DataPVBom!BV8 -> 0 | BY46: =DataPVBom!BW8 -> 0 | BZ46: =DataPVBom!BX8 -> 0 | CA46: =DataPVBom!BY8 -> 0 | CB46: =DataPVBom!BZ8 -> 0 | CC46: =DataPVBom!CA8 -> 0 | CD46: =DataPVBom!CB8 -> 0 | CE46: =DataPVBom!CC8 -> 0 | CF46: =DataPVBom!CD8 -> 0 | CG46: =DataPVBom!CE8 -> 0 | CH46: =DataPVBom!CF8 -> 0 | CI46: =DataPVBom!CG8 -> 0 | CJ46: =DataPVBom!CH8 -> 0 | CK46: =DataPVBom!CI8 -> 0 | CL46: =DataPVBom!CJ8 -> 0 | CM46: =DataPVBom!CK8 -> 0 | CN46: =DataPVBom!CL8 -> 0 | CO46: =DataPVBom!CM8 -> 0 | CP46: =DataPVBom!CN8 -> 0
A47: 9 | C47: =DataPVBom!A9 -> 0 | D47: =DataPVBom!B9 -> 0 | E47: =DataPVBom!C9 -> 0 | F47: =DataPVBom!D9 -> 0 | G47: =DataPVBom!E9 -> 0 | H47: =DataPVBom!F9 -> 0 | I47: =DataPVBom!G9 -> 0 | J47: =DataPVBom!H9 -> 0 | K47: =DataPVBom!I9 -> 0 | L47: =DataPVBom!J9 -> 0 | M47: =DataPVBom!K9 -> 0 | N47: =DataPVBom!L9 -> 0 | O47: =DataPVBom!M9 -> 0 | P47: =DataPVBom!N9 -> 0 | Q47: =DataPVBom!O9 -> 0 | R47: =DataPVBom!P9 -> 0 | S47: =DataPVBom!Q9 -> 0 | T47: =DataPVBom!R9 -> 0 | U47: =DataPVBom!S9 -> 0 | V47: =DataPVBom!T9 -> 0 | W47: =DataPVBom!U9 -> 0 | X47: =DataPVBom!V9 -> 0 | Y47: =DataPVBom!W9 -> 0 | Z47: =DataPVBom!X9 -> 0 | AA47: =DataPVBom!Y9 -> 0 | AB47: =DataPVBom!Z9 -> 0 | AC47: =DataPVBom!AA9 -> 0 | AD47: =DataPVBom!AB9 -> 0 | AE47: =DataPVBom!AC9 -> 0 | AF47: =DataPVBom!AD9 -> 0 | AG47: =DataPVBom!AE9 -> 0 | AH47: =DataPVBom!AF9 -> 0 | AI47: =DataPVBom!AG9 -> 0 | AJ47: =DataPVBom!AH9 -> 0 | AK47: =DataPVBom!AI9 -> 0 | AL47: =DataPVBom!AJ9 -> 0 | AM47: =DataPVBom!AK9 -> 0 | AN47: =DataPVBom!AL9 -> 0 | AO47: =DataPVBom!AM9 -> 0 | AP47: =DataPVBom!AN9 -> 0 | AQ47: =DataPVBom!AO9 -> 0 | AR47: =DataPVBom!AP9 -> 0 | AS47: =DataPVBom!AQ9 -> 0 | AT47: =DataPVBom!AR9 -> 0 | AU47: =DataPVBom!AS9 -> 0 | AV47: =DataPVBom!AT9 -> 0 | AW47: =DataPVBom!AU9 -> 0 | AX47: =DataPVBom!AV9 -> 0 | AY47: =DataPVBom!AW9 -> 0 | AZ47: =DataPVBom!AX9 -> 0 | BA47: =DataPVBom!AY9 -> 0 | BB47: =DataPVBom!AZ9 -> 0 | BC47: =DataPVBom!BA9 -> 0 | BD47: =DataPVBom!BB9 -> 0 | BE47: =DataPVBom!BC9 -> 0 | BF47: =DataPVBom!BD9 -> 0 | BG47: =DataPVBom!BE9 -> 0 | BH47: =DataPVBom!BF9 -> 0 | BI47: =DataPVBom!BG9 -> 0 | BJ47: =DataPVBom!BH9 -> 0 | BK47: =DataPVBom!BI9 -> 0 | BL47: =DataPVBom!BJ9 -> 0 | BM47: =DataPVBom!BK9 -> 0 | BN47: =DataPVBom!BL9 -> 0 | BO47: =DataPVBom!BM9 -> 0 | BP47: =DataPVBom!BN9 -> 0 | BQ47: =DataPVBom!BO9 -> 0 | BR47: =DataPVBom!BP9 -> 0 | BS47: =DataPVBom!BQ9 -> 0 | BT47: =DataPVBom!BR9 -> 0 | BU47: =DataPVBom!BS9 -> 0 | BV47: =DataPVBom!BT9 -> 0 | BW47: =DataPVBom!BU9 -> 0 | BX47: =DataPVBom!BV9 -> 0 | BY47: =DataPVBom!BW9 -> 0 | BZ47: =DataPVBom!BX9 -> 0 | CA47: =DataPVBom!BY9 -> 0 | CB47: =DataPVBom!BZ9 -> 0 | CC47: =DataPVBom!CA9 -> 0 | CD47: =DataPVBom!CB9 -> 0 | CE47: =DataPVBom!CC9 -> 0 | CF47: =DataPVBom!CD9 -> 0 | CG47: =DataPVBom!CE9 -> 0 | CH47: =DataPVBom!CF9 -> 0 | CI47: =DataPVBom!CG9 -> 0 | CJ47: =DataPVBom!CH9 -> 0 | CK47: =DataPVBom!CI9 -> 0 | CL47: =DataPVBom!CJ9 -> 0 | CM47: =DataPVBom!CK9 -> 0 | CN47: =DataPVBom!CL9 -> 0 | CO47: =DataPVBom!CM9 -> 0 | CP47: =DataPVBom!CN9 -> 0
A48: 10 | C48: =DataPVBom!A10 -> 0 | D48: =DataPVBom!B10 -> 0 | E48: =DataPVBom!C10 -> 0 | F48: =DataPVBom!D10 -> 0 | G48: =DataPVBom!E10 -> 0 | H48: =DataPVBom!F10 -> 0 | I48: =DataPVBom!G10 -> 0 | J48: =DataPVBom!H10 -> 0 | K48: =DataPVBom!I10 -> 0 | L48: =DataPVBom!J10 -> 0 | M48: =DataPVBom!K10 -> 0 | N48: =DataPVBom!L10 -> 0 | O48: =DataPVBom!M10 -> 0 | P48: =DataPVBom!N10 -> 0 | Q48: =DataPVBom!O10 -> 0 | R48: =DataPVBom!P10 -> 0 | S48: =DataPVBom!Q10 -> 0 | T48: =DataPVBom!R10 -> 0 | U48: =DataPVBom!S10 -> 0 | V48: =DataPVBom!T10 -> 0 | W48: =DataPVBom!U10 -> 0 | X48: =DataPVBom!V10 -> 0 | Y48: =DataPVBom!W10 -> 0 | Z48: =DataPVBom!X10 -> 0 | AA48: =DataPVBom!Y10 -> 0 | AB48: =DataPVBom!Z10 -> 0 | AC48: =DataPVBom!AA10 -> 0 | AD48: =DataPVBom!AB10 -> 0 | AE48: =DataPVBom!AC10 -> 0 | AF48: =DataPVBom!AD10 -> 0 | AG48: =DataPVBom!AE10 -> 0 | AH48: =DataPVBom!AF10 -> 0 | AI48: =DataPVBom!AG10 -> 0 | AJ48: =DataPVBom!AH10 -> 0 | AK48: =DataPVBom!AI10 -> 0 | AL48: =DataPVBom!AJ10 -> 0 | AM48: =DataPVBom!AK10 -> 0 | AN48: =DataPVBom!AL10 -> 0 | AO48: =DataPVBom!AM10 -> 0 | AP48: =DataPVBom!AN10 -> 0 | AQ48: =DataPVBom!AO10 -> 0 | AR48: =DataPVBom!AP10 -> 0 | AS48: =DataPVBom!AQ10 -> 0 | AT48: =DataPVBom!AR10 -> 0 | AU48: =DataPVBom!AS10 -> 0 | AV48: =DataPVBom!AT10 -> 0 | AW48: =DataPVBom!AU10 -> 0 | AX48: =DataPVBom!AV10 -> 0 | AY48: =DataPVBom!AW10 -> 0 | AZ48: =DataPVBom!AX10 -> 0 | BA48: =DataPVBom!AY10 -> 0 | BB48: =DataPVBom!AZ10 -> 0 | BC48: =DataPVBom!BA10 -> 0 | BD48: =DataPVBom!BB10 -> 0 | BE48: =DataPVBom!BC10 -> 0 | BF48: =DataPVBom!BD10 -> 0 | BG48: =DataPVBom!BE10 -> 0 | BH48: =DataPVBom!BF10 -> 0 | BI48: =DataPVBom!BG10 -> 0 | BJ48: =DataPVBom!BH10 -> 0 | BK48: =DataPVBom!BI10 -> 0 | BL48: =DataPVBom!BJ10 -> 0 | BM48: =DataPVBom!BK10 -> 0 | BN48: =DataPVBom!BL10 -> 0 | BO48: =DataPVBom!BM10 -> 0 | BP48: =DataPVBom!BN10 -> 0 | BQ48: =DataPVBom!BO10 -> 0 | BR48: =DataPVBom!BP10 -> 0 | BS48: =DataPVBom!BQ10 -> 0 | BT48: =DataPVBom!BR10 -> 0 | BU48: =DataPVBom!BS10 -> 0 | BV48: =DataPVBom!BT10 -> 0 | BW48: =DataPVBom!BU10 -> 0 | BX48: =DataPVBom!BV10 -> 0 | BY48: =DataPVBom!BW10 -> 0 | BZ48: =DataPVBom!BX10 -> 0 | CA48: =DataPVBom!BY10 -> 0 | CB48: =DataPVBom!BZ10 -> 0 | CC48: =DataPVBom!CA10 -> 0 | CD48: =DataPVBom!CB10 -> 0 | CE48: =DataPVBom!CC10 -> 0 | CF48: =DataPVBom!CD10 -> 0 | CG48: =DataPVBom!CE10 -> 0 | CH48: =DataPVBom!CF10 -> 0 | CI48: =DataPVBom!CG10 -> 0 | CJ48: =DataPVBom!CH10 -> 0 | CK48: =DataPVBom!CI10 -> 0 | CL48: =DataPVBom!CJ10 -> 0 | CM48: =DataPVBom!CK10 -> 0 | CN48: =DataPVBom!CL10 -> 0 | CO48: =DataPVBom!CM10 -> 0 | CP48: =DataPVBom!CN10 -> 0
A49: 11 | C49: =DataPVBom!A11 -> 0 | D49: =DataPVBom!B11 -> 0 | E49: =DataPVBom!C11 -> 0 | F49: =DataPVBom!D11 -> 0 | G49: =DataPVBom!E11 -> 0 | H49: =DataPVBom!F11 -> 0 | I49: =DataPVBom!G11 -> 0 | J49: =DataPVBom!H11 -> 0 | K49: =DataPVBom!I11 -> 0 | L49: =DataPVBom!J11 -> 0 | M49: =DataPVBom!K11 -> 0 | N49: =DataPVBom!L11 -> 0 | O49: =DataPVBom!M11 -> 0 | P49: =DataPVBom!N11 -> 0 | Q49: =DataPVBom!O11 -> 0 | R49: =DataPVBom!P11 -> 0 | S49: =DataPVBom!Q11 -> 0 | T49: =DataPVBom!R11 -> 0 | U49: =DataPVBom!S11 -> 0 | V49: =DataPVBom!T11 -> 0 | W49: =DataPVBom!U11 -> 0 | X49: =DataPVBom!V11 -> 0 | Y49: =DataPVBom!W11 -> 0 | Z49: =DataPVBom!X11 -> 0 | AA49: =DataPVBom!Y11 -> 0 | AB49: =DataPVBom!Z11 -> 0 | AC49: =DataPVBom!AA11 -> 0 | AD49: =DataPVBom!AB11 -> 0 | AE49: =DataPVBom!AC11 -> 0 | AF49: =DataPVBom!AD11 -> 0 | AG49: =DataPVBom!AE11 -> 0 | AH49: =DataPVBom!AF11 -> 0 | AI49: =DataPVBom!AG11 -> 0 | AJ49: =DataPVBom!AH11 -> 0 | AK49: =DataPVBom!AI11 -> 0 | AL49: =DataPVBom!AJ11 -> 0 | AM49: =DataPVBom!AK11 -> 0 | AN49: =DataPVBom!AL11 -> 0 | AO49: =DataPVBom!AM11 -> 0 | AP49: =DataPVBom!AN11 -> 0 | AQ49: =DataPVBom!AO11 -> 0 | AR49: =DataPVBom!AP11 -> 0 | AS49: =DataPVBom!AQ11 -> 0 | AT49: =DataPVBom!AR11 -> 0 | AU49: =DataPVBom!AS11 -> 0 | AV49: =DataPVBom!AT11 -> 0 | AW49: =DataPVBom!AU11 -> 0 | AX49: =DataPVBom!AV11 -> 0 | AY49: =DataPVBom!AW11 -> 0 | AZ49: =DataPVBom!AX11 -> 0 | BA49: =DataPVBom!AY11 -> 0 | BB49: =DataPVBom!AZ11 -> 0 | BC49: =DataPVBom!BA11 -> 0 | BD49: =DataPVBom!BB11 -> 0 | BE49: =DataPVBom!BC11 -> 0 | BF49: =DataPVBom!BD11 -> 0 | BG49: =DataPVBom!BE11 -> 0 | BH49: =DataPVBom!BF11 -> 0 | BI49: =DataPVBom!BG11 -> 0 | BJ49: =DataPVBom!BH11 -> 0 | BK49: =DataPVBom!BI11 -> 0 | BL49: =DataPVBom!BJ11 -> 0 | BM49: =DataPVBom!BK11 -> 0 | BN49: =DataPVBom!BL11 -> 0 | BO49: =DataPVBom!BM11 -> 0 | BP49: =DataPVBom!BN11 -> 0 | BQ49: =DataPVBom!BO11 -> 0 | BR49: =DataPVBom!BP11 -> 0 | BS49: =DataPVBom!BQ11 -> 0 | BT49: =DataPVBom!BR11 -> 0 | BU49: =DataPVBom!BS11 -> 0 | BV49: =DataPVBom!BT11 -> 0 | BW49: =DataPVBom!BU11 -> 0 | BX49: =DataPVBom!BV11 -> 0 | BY49: =DataPVBom!BW11 -> 0 | BZ49: =DataPVBom!BX11 -> 0 | CA49: =DataPVBom!BY11 -> 0 | CB49: =DataPVBom!BZ11 -> 0 | CC49: =DataPVBom!CA11 -> 0 | CD49: =DataPVBom!CB11 -> 0 | CE49: =DataPVBom!CC11 -> 0 | CF49: =DataPVBom!CD11 -> 0 | CG49: =DataPVBom!CE11 -> 0 | CH49: =DataPVBom!CF11 -> 0 | CI49: =DataPVBom!CG11 -> 0 | CJ49: =DataPVBom!CH11 -> 0 | CK49: =DataPVBom!CI11 -> 0 | CL49: =DataPVBom!CJ11 -> 0 | CM49: =DataPVBom!CK11 -> 0 | CN49: =DataPVBom!CL11 -> 0 | CO49: =DataPVBom!CM11 -> 0 | CP49: =DataPVBom!CN11 -> 0
A50: 12 | C50: =DataPVBom!A12 -> 0 | D50: =DataPVBom!B12 -> 0 | E50: =DataPVBom!C12 -> 0 | F50: =DataPVBom!D12 -> 0 | G50: =DataPVBom!E12 -> 0 | H50: =DataPVBom!F12 -> 0 | I50: =DataPVBom!G12 -> 0 | J50: =DataPVBom!H12 -> 0 | K50: =DataPVBom!I12 -> 0 | L50: =DataPVBom!J12 -> 0 | M50: =DataPVBom!K12 -> 0 | N50: =DataPVBom!L12 -> 0 | O50: =DataPVBom!M12 -> 0 | P50: =DataPVBom!N12 -> 0 | Q50: =DataPVBom!O12 -> 0 | R50: =DataPVBom!P12 -> 0 | S50: =DataPVBom!Q12 -> 0 | T50: =DataPVBom!R12 -> 0 | U50: =DataPVBom!S12 -> 0 | V50: =DataPVBom!T12 -> 0 | W50: =DataPVBom!U12 -> 0 | X50: =DataPVBom!V12 -> 0 | Y50: =DataPVBom!W12 -> 0 | Z50: =DataPVBom!X12 -> 0 | AA50: =DataPVBom!Y12 -> 0 | AB50: =DataPVBom!Z12 -> 0 | AC50: =DataPVBom!AA12 -> 0 | AD50: =DataPVBom!AB12 -> 0 | AE50: =DataPVBom!AC12 -> 0 | AF50: =DataPVBom!AD12 -> 0 | AG50: =DataPVBom!AE12 -> 0 | AH50: =DataPVBom!AF12 -> 0 | AI50: =DataPVBom!AG12 -> 0 | AJ50: =DataPVBom!AH12 -> 0 | AK50: =DataPVBom!AI12 -> 0 | AL50: =DataPVBom!AJ12 -> 0 | AM50: =DataPVBom!AK12 -> 0 | AN50: =DataPVBom!AL12 -> 0 | AO50: =DataPVBom!AM12 -> 0 | AP50: =DataPVBom!AN12 -> 0 | AQ50: =DataPVBom!AO12 -> 0 | AR50: =DataPVBom!AP12 -> 0 | AS50: =DataPVBom!AQ12 -> 0 | AT50: =DataPVBom!AR12 -> 0 | AU50: =DataPVBom!AS12 -> 0 | AV50: =DataPVBom!AT12 -> 0 | AW50: =DataPVBom!AU12 -> 0 | AX50: =DataPVBom!AV12 -> 0 | AY50: =DataPVBom!AW12 -> 0 | AZ50: =DataPVBom!AX12 -> 0 | BA50: =DataPVBom!AY12 -> 0 | BB50: =DataPVBom!AZ12 -> 0 | BC50: =DataPVBom!BA12 -> 0 | BD50: =DataPVBom!BB12 -> 0 | BE50: =DataPVBom!BC12 -> 0 | BF50: =DataPVBom!BD12 -> 0 | BG50: =DataPVBom!BE12 -> 0 | BH50: =DataPVBom!BF12 -> 0 | BI50: =DataPVBom!BG12 -> 0 | BJ50: =DataPVBom!BH12 -> 0 | BK50: =DataPVBom!BI12 -> 0 | BL50: =DataPVBom!BJ12 -> 0 | BM50: =DataPVBom!BK12 -> 0 | BN50: =DataPVBom!BL12 -> 0 | BO50: =DataPVBom!BM12 -> 0 | BP50: =DataPVBom!BN12 -> 0 | BQ50: =DataPVBom!BO12 -> 0 | BR50: =DataPVBom!BP12 -> 0 | BS50: =DataPVBom!BQ12 -> 0 | BT50: =DataPVBom!BR12 -> 0 | BU50: =DataPVBom!BS12 -> 0 | BV50: =DataPVBom!BT12 -> 0 | BW50: =DataPVBom!BU12 -> 0 | BX50: =DataPVBom!BV12 -> 0 | BY50: =DataPVBom!BW12 -> 0 | BZ50: =DataPVBom!BX12 -> 0 | CA50: =DataPVBom!BY12 -> 0 | CB50: =DataPVBom!BZ12 -> 0 | CC50: =DataPVBom!CA12 -> 0 | CD50: =DataPVBom!CB12 -> 0 | CE50: =DataPVBom!CC12 -> 0 | CF50: =DataPVBom!CD12 -> 0 | CG50: =DataPVBom!CE12 -> 0 | CH50: =DataPVBom!CF12 -> 0 | CI50: =DataPVBom!CG12 -> 0 | CJ50: =DataPVBom!CH12 -> 0 | CK50: =DataPVBom!CI12 -> 0 | CL50: =DataPVBom!CJ12 -> 0 | CM50: =DataPVBom!CK12 -> 0 | CN50: =DataPVBom!CL12 -> 0 | CO50: =DataPVBom!CM12 -> 0 | CP50: =DataPVBom!CN12 -> 0
A51: 13 | C51: =DataPVBom!A13 -> 0 | D51: =DataPVBom!B13 -> 0 | E51: =DataPVBom!C13 -> 0 | F51: =DataPVBom!D13 -> 0 | G51: =DataPVBom!E13 -> 0 | H51: =DataPVBom!F13 -> 0 | I51: =DataPVBom!G13 -> 0 | J51: =DataPVBom!H13 -> 0 | K51: =DataPVBom!I13 -> 0 | L51: =DataPVBom!J13 -> 0 | M51: =DataPVBom!K13 -> 0 | N51: =DataPVBom!L13 -> 0 | O51: =DataPVBom!M13 -> 0 | P51: =DataPVBom!N13 -> 0 | Q51: =DataPVBom!O13 -> 0 | R51: =DataPVBom!P13 -> 0 | S51: =DataPVBom!Q13 -> 0 | T51: =DataPVBom!R13 -> 0 | U51: =DataPVBom!S13 -> 0 | V51: =DataPVBom!T13 -> 0 | W51: =DataPVBom!U13 -> 0 | X51: =DataPVBom!V13 -> 0 | Y51: =DataPVBom!W13 -> 0 | Z51: =DataPVBom!X13 -> 0 | AA51: =DataPVBom!Y13 -> 0 | AB51: =DataPVBom!Z13 -> 0 | AC51: =DataPVBom!AA13 -> 0 | AD51: =DataPVBom!AB13 -> 0 | AE51: =DataPVBom!AC13 -> 0 | AF51: =DataPVBom!AD13 -> 0 | AG51: =DataPVBom!AE13 -> 0 | AH51: =DataPVBom!AF13 -> 0 | AI51: =DataPVBom!AG13 -> 0 | AJ51: =DataPVBom!AH13 -> 0 | AK51: =DataPVBom!AI13 -> 0 | AL51: =DataPVBom!AJ13 -> 0 | AM51: =DataPVBom!AK13 -> 0 | AN51: =DataPVBom!AL13 -> 0 | AO51: =DataPVBom!AM13 -> 0 | AP51: =DataPVBom!AN13 -> 0 | AQ51: =DataPVBom!AO13 -> 0 | AR51: =DataPVBom!AP13 -> 0 | AS51: =DataPVBom!AQ13 -> 0 | AT51: =DataPVBom!AR13 -> 0 | AU51: =DataPVBom!AS13 -> 0 | AV51: =DataPVBom!AT13 -> 0 | AW51: =DataPVBom!AU13 -> 0 | AX51: =DataPVBom!AV13 -> 0 | AY51: =DataPVBom!AW13 -> 0 | AZ51: =DataPVBom!AX13 -> 0 | BA51: =DataPVBom!AY13 -> 0 | BB51: =DataPVBom!AZ13 -> 0 | BC51: =DataPVBom!BA13 -> 0 | BD51: =DataPVBom!BB13 -> 0 | BE51: =DataPVBom!BC13 -> 0 | BF51: =DataPVBom!BD13 -> 0 | BG51: =DataPVBom!BE13 -> 0 | BH51: =DataPVBom!BF13 -> 0 | BI51: =DataPVBom!BG13 -> 0 | BJ51: =DataPVBom!BH13 -> 0 | BK51: =DataPVBom!BI13 -> 0 | BL51: =DataPVBom!BJ13 -> 0 | BM51: =DataPVBom!BK13 -> 0 | BN51: =DataPVBom!BL13 -> 0 | BO51: =DataPVBom!BM13 -> 0 | BP51: =DataPVBom!BN13 -> 0 | BQ51: =DataPVBom!BO13 -> 0 | BR51: =DataPVBom!BP13 -> 0 | BS51: =DataPVBom!BQ13 -> 0 | BT51: =DataPVBom!BR13 -> 0 | BU51: =DataPVBom!BS13 -> 0 | BV51: =DataPVBom!BT13 -> 0 | BW51: =DataPVBom!BU13 -> 0 | BX51: =DataPVBom!BV13 -> 0 | BY51: =DataPVBom!BW13 -> 0 | BZ51: =DataPVBom!BX13 -> 0 | CA51: =DataPVBom!BY13 -> 0 | CB51: =DataPVBom!BZ13 -> 0 | CC51: =DataPVBom!CA13 -> 0 | CD51: =DataPVBom!CB13 -> 0 | CE51: =DataPVBom!CC13 -> 0 | CF51: =DataPVBom!CD13 -> 0 | CG51: =DataPVBom!CE13 -> 0 | CH51: =DataPVBom!CF13 -> 0 | CI51: =DataPVBom!CG13 -> 0 | CJ51: =DataPVBom!CH13 -> 0 | CK51: =DataPVBom!CI13 -> 0 | CL51: =DataPVBom!CJ13 -> 0 | CM51: =DataPVBom!CK13 -> 0 | CN51: =DataPVBom!CL13 -> 0 | CO51: =DataPVBom!CM13 -> 0 | CP51: =DataPVBom!CN13 -> 0
A52: 14 | C52: =DataPVBom!A14 -> 0 | D52: =DataPVBom!B14 -> 0 | E52: =DataPVBom!C14 -> 0 | F52: =DataPVBom!D14 -> 0 | G52: =DataPVBom!E14 -> 0 | H52: =DataPVBom!F14 -> 0 | I52: =DataPVBom!G14 -> 0 | J52: =DataPVBom!H14 -> 0 | K52: =DataPVBom!I14 -> 0 | L52: =DataPVBom!J14 -> 0 | M52: =DataPVBom!K14 -> 0 | N52: =DataPVBom!L14 -> 0 | O52: =DataPVBom!M14 -> 0 | P52: =DataPVBom!N14 -> 0 | Q52: =DataPVBom!O14 -> 0 | R52: =DataPVBom!P14 -> 0 | S52: =DataPVBom!Q14 -> 0 | T52: =DataPVBom!R14 -> 0 | U52: =DataPVBom!S14 -> 0 | V52: =DataPVBom!T14 -> 0 | W52: =DataPVBom!U14 -> 0 | X52: =DataPVBom!V14 -> 0 | Y52: =DataPVBom!W14 -> 0 | Z52: =DataPVBom!X14 -> 0 | AA52: =DataPVBom!Y14 -> 0 | AB52: =DataPVBom!Z14 -> 0 | AC52: =DataPVBom!AA14 -> 0 | AD52: =DataPVBom!AB14 -> 0 | AE52: =DataPVBom!AC14 -> 0 | AF52: =DataPVBom!AD14 -> 0 | AG52: =DataPVBom!AE14 -> 0 | AH52: =DataPVBom!AF14 -> 0 | AI52: =DataPVBom!AG14 -> 0 | AJ52: =DataPVBom!AH14 -> 0 | AK52: =DataPVBom!AI14 -> 0 | AL52: =DataPVBom!AJ14 -> 0 | AM52: =DataPVBom!AK14 -> 0 | AN52: =DataPVBom!AL14 -> 0 | AO52: =DataPVBom!AM14 -> 0 | AP52: =DataPVBom!AN14 -> 0 | AQ52: =DataPVBom!AO14 -> 0 | AR52: =DataPVBom!AP14 -> 0 | AS52: =DataPVBom!AQ14 -> 0 | AT52: =DataPVBom!AR14 -> 0 | AU52: =DataPVBom!AS14 -> 0 | AV52: =DataPVBom!AT14 -> 0 | AW52: =DataPVBom!AU14 -> 0 | AX52: =DataPVBom!AV14 -> 0 | AY52: =DataPVBom!AW14 -> 0 | AZ52: =DataPVBom!AX14 -> 0 | BA52: =DataPVBom!AY14 -> 0 | BB52: =DataPVBom!AZ14 -> 0 | BC52: =DataPVBom!BA14 -> 0 | BD52: =DataPVBom!BB14 -> 0 | BE52: =DataPVBom!BC14 -> 0 | BF52: =DataPVBom!BD14 -> 0 | BG52: =DataPVBom!BE14 -> 0 | BH52: =DataPVBom!BF14 -> 0 | BI52: =DataPVBom!BG14 -> 0 | BJ52: =DataPVBom!BH14 -> 0 | BK52: =DataPVBom!BI14 -> 0 | BL52: =DataPVBom!BJ14 -> 0 | BM52: =DataPVBom!BK14 -> 0 | BN52: =DataPVBom!BL14 -> 0 | BO52: =DataPVBom!BM14 -> 0 | BP52: =DataPVBom!BN14 -> 0 | BQ52: =DataPVBom!BO14 -> 0 | BR52: =DataPVBom!BP14 -> 0 | BS52: =DataPVBom!BQ14 -> 0 | BT52: =DataPVBom!BR14 -> 0 | BU52: =DataPVBom!BS14 -> 0 | BV52: =DataPVBom!BT14 -> 0 | BW52: =DataPVBom!BU14 -> 0 | BX52: =DataPVBom!BV14 -> 0 | BY52: =DataPVBom!BW14 -> 0 | BZ52: =DataPVBom!BX14 -> 0 | CA52: =DataPVBom!BY14 -> 0 | CB52: =DataPVBom!BZ14 -> 0 | CC52: =DataPVBom!CA14 -> 0 | CD52: =DataPVBom!CB14 -> 0 | CE52: =DataPVBom!CC14 -> 0 | CF52: =DataPVBom!CD14 -> 0 | CG52: =DataPVBom!CE14 -> 0 | CH52: =DataPVBom!CF14 -> 0 | CI52: =DataPVBom!CG14 -> 0 | CJ52: =DataPVBom!CH14 -> 0 | CK52: =DataPVBom!CI14 -> 0 | CL52: =DataPVBom!CJ14 -> 0 | CM52: =DataPVBom!CK14 -> 0 | CN52: =DataPVBom!CL14 -> 0 | CO52: =DataPVBom!CM14 -> 0 | CP52: =DataPVBom!CN14 -> 0
A53: 15 | C53: =DataPVBom!A15 -> 0 | D53: =DataPVBom!B15 -> 0 | E53: =DataPVBom!C15 -> 0 | F53: =DataPVBom!D15 -> 0 | G53: =DataPVBom!E15 -> 0 | H53: =DataPVBom!F15 -> 0 | I53: =DataPVBom!G15 -> 0 | J53: =DataPVBom!H15 -> 0 | K53: =DataPVBom!I15 -> 0 | L53: =DataPVBom!J15 -> 0 | M53: =DataPVBom!K15 -> 0 | N53: =DataPVBom!L15 -> 0 | O53: =DataPVBom!M15 -> 0 | P53: =DataPVBom!N15 -> 0 | Q53: =DataPVBom!O15 -> 0 | R53: =DataPVBom!P15 -> 0 | S53: =DataPVBom!Q15 -> 0 | T53: =DataPVBom!R15 -> 0 | U53: =DataPVBom!S15 -> 0 | V53: =DataPVBom!T15 -> 0 | W53: =DataPVBom!U15 -> 0 | X53: =DataPVBom!V15 -> 0 | Y53: =DataPVBom!W15 -> 0 | Z53: =DataPVBom!X15 -> 0 | AA53: =DataPVBom!Y15 -> 0 | AB53: =DataPVBom!Z15 -> 0 | AC53: =DataPVBom!AA15 -> 0 | AD53: =DataPVBom!AB15 -> 0 | AE53: =DataPVBom!AC15 -> 0 | AF53: =DataPVBom!AD15 -> 0 | AG53: =DataPVBom!AE15 -> 0 | AH53: =DataPVBom!AF15 -> 0 | AI53: =DataPVBom!AG15 -> 0 | AJ53: =DataPVBom!AH15 -> 0 | AK53: =DataPVBom!AI15 -> 0 | AL53: =DataPVBom!AJ15 -> 0 | AM53: =DataPVBom!AK15 -> 0 | AN53: =DataPVBom!AL15 -> 0 | AO53: =DataPVBom!AM15 -> 0 | AP53: =DataPVBom!AN15 -> 0 | AQ53: =DataPVBom!AO15 -> 0 | AR53: =DataPVBom!AP15 -> 0 | AS53: =DataPVBom!AQ15 -> 0 | AT53: =DataPVBom!AR15 -> 0 | AU53: =DataPVBom!AS15 -> 0 | AV53: =DataPVBom!AT15 -> 0 | AW53: =DataPVBom!AU15 -> 0 | AX53: =DataPVBom!AV15 -> 0 | AY53: =DataPVBom!AW15 -> 0 | AZ53: =DataPVBom!AX15 -> 0 | BA53: =DataPVBom!AY15 -> 0 | BB53: =DataPVBom!AZ15 -> 0 | BC53: =DataPVBom!BA15 -> 0 | BD53: =DataPVBom!BB15 -> 0 | BE53: =DataPVBom!BC15 -> 0 | BF53: =DataPVBom!BD15 -> 0 | BG53: =DataPVBom!BE15 -> 0 | BH53: =DataPVBom!BF15 -> 0 | BI53: =DataPVBom!BG15 -> 0 | BJ53: =DataPVBom!BH15 -> 0 | BK53: =DataPVBom!BI15 -> 0 | BL53: =DataPVBom!BJ15 -> 0 | BM53: =DataPVBom!BK15 -> 0 | BN53: =DataPVBom!BL15 -> 0 | BO53: =DataPVBom!BM15 -> 0 | BP53: =DataPVBom!BN15 -> 0 | BQ53: =DataPVBom!BO15 -> 0 | BR53: =DataPVBom!BP15 -> 0 | BS53: =DataPVBom!BQ15 -> 0 | BT53: =DataPVBom!BR15 -> 0 | BU53: =DataPVBom!BS15 -> 0 | BV53: =DataPVBom!BT15 -> 0 | BW53: =DataPVBom!BU15 -> 0 | BX53: =DataPVBom!BV15 -> 0 | BY53: =DataPVBom!BW15 -> 0 | BZ53: =DataPVBom!BX15 -> 0 | CA53: =DataPVBom!BY15 -> 0 | CB53: =DataPVBom!BZ15 -> 0 | CC53: =DataPVBom!CA15 -> 0 | CD53: =DataPVBom!CB15 -> 0 | CE53: =DataPVBom!CC15 -> 0 | CF53: =DataPVBom!CD15 -> 0 | CG53: =DataPVBom!CE15 -> 0 | CH53: =DataPVBom!CF15 -> 0 | CI53: =DataPVBom!CG15 -> 0 | CJ53: =DataPVBom!CH15 -> 0 | CK53: =DataPVBom!CI15 -> 0 | CL53: =DataPVBom!CJ15 -> 0 | CM53: =DataPVBom!CK15 -> 0 | CN53: =DataPVBom!CL15 -> 0 | CO53: =DataPVBom!CM15 -> 0 | CP53: =DataPVBom!CN15 -> 0
A54: 16 | C54: =DataPVBom!A16 -> 0 | D54: =DataPVBom!B16 -> 0 | E54: =DataPVBom!C16 -> 0 | F54: =DataPVBom!D16 -> 0 | G54: =DataPVBom!E16 -> 0 | H54: =DataPVBom!F16 -> 0 | I54: =DataPVBom!G16 -> 0 | J54: =DataPVBom!H16 -> 0 | K54: =DataPVBom!I16 -> 0 | L54: =DataPVBom!J16 -> 0 | M54: =DataPVBom!K16 -> 0 | N54: =DataPVBom!L16 -> 0 | O54: =DataPVBom!M16 -> 0 | P54: =DataPVBom!N16 -> 0 | Q54: =DataPVBom!O16 -> 0 | R54: =DataPVBom!P16 -> 0 | S54: =DataPVBom!Q16 -> 0 | T54: =DataPVBom!R16 -> 0 | U54: =DataPVBom!S16 -> 0 | V54: =DataPVBom!T16 -> 0 | W54: =DataPVBom!U16 -> 0 | X54: =DataPVBom!V16 -> 0 | Y54: =DataPVBom!W16 -> 0 | Z54: =DataPVBom!X16 -> 0 | AA54: =DataPVBom!Y16 -> 0 | AB54: =DataPVBom!Z16 -> 0 | AC54: =DataPVBom!AA16 -> 0 | AD54: =DataPVBom!AB16 -> 0 | AE54: =DataPVBom!AC16 -> 0 | AF54: =DataPVBom!AD16 -> 0 | AG54: =DataPVBom!AE16 -> 0 | AH54: =DataPVBom!AF16 -> 0 | AI54: =DataPVBom!AG16 -> 0 | AJ54: =DataPVBom!AH16 -> 0 | AK54: =DataPVBom!AI16 -> 0 | AL54: =DataPVBom!AJ16 -> 0 | AM54: =DataPVBom!AK16 -> 0 | AN54: =DataPVBom!AL16 -> 0 | AO54: =DataPVBom!AM16 -> 0 | AP54: =DataPVBom!AN16 -> 0 | AQ54: =DataPVBom!AO16 -> 0 | AR54: =DataPVBom!AP16 -> 0 | AS54: =DataPVBom!AQ16 -> 0 | AT54: =DataPVBom!AR16 -> 0 | AU54: =DataPVBom!AS16 -> 0 | AV54: =DataPVBom!AT16 -> 0 | AW54: =DataPVBom!AU16 -> 0 | AX54: =DataPVBom!AV16 -> 0 | AY54: =DataPVBom!AW16 -> 0 | AZ54: =DataPVBom!AX16 -> 0 | BA54: =DataPVBom!AY16 -> 0 | BB54: =DataPVBom!AZ16 -> 0 | BC54: =DataPVBom!BA16 -> 0 | BD54: =DataPVBom!BB16 -> 0 | BE54: =DataPVBom!BC16 -> 0 | BF54: =DataPVBom!BD16 -> 0 | BG54: =DataPVBom!BE16 -> 0 | BH54: =DataPVBom!BF16 -> 0 | BI54: =DataPVBom!BG16 -> 0 | BJ54: =DataPVBom!BH16 -> 0 | BK54: =DataPVBom!BI16 -> 0 | BL54: =DataPVBom!BJ16 -> 0 | BM54: =DataPVBom!BK16 -> 0 | BN54: =DataPVBom!BL16 -> 0 | BO54: =DataPVBom!BM16 -> 0 | BP54: =DataPVBom!BN16 -> 0 | BQ54: =DataPVBom!BO16 -> 0 | BR54: =DataPVBom!BP16 -> 0 | BS54: =DataPVBom!BQ16 -> 0 | BT54: =DataPVBom!BR16 -> 0 | BU54: =DataPVBom!BS16 -> 0 | BV54: =DataPVBom!BT16 -> 0 | BW54: =DataPVBom!BU16 -> 0 | BX54: =DataPVBom!BV16 -> 0 | BY54: =DataPVBom!BW16 -> 0 | BZ54: =DataPVBom!BX16 -> 0 | CA54: =DataPVBom!BY16 -> 0 | CB54: =DataPVBom!BZ16 -> 0 | CC54: =DataPVBom!CA16 -> 0 | CD54: =DataPVBom!CB16 -> 0 | CE54: =DataPVBom!CC16 -> 0 | CF54: =DataPVBom!CD16 -> 0 | CG54: =DataPVBom!CE16 -> 0 | CH54: =DataPVBom!CF16 -> 0 | CI54: =DataPVBom!CG16 -> 0 | CJ54: =DataPVBom!CH16 -> 0 | CK54: =DataPVBom!CI16 -> 0 | CL54: =DataPVBom!CJ16 -> 0 | CM54: =DataPVBom!CK16 -> 0 | CN54: =DataPVBom!CL16 -> 0 | CO54: =DataPVBom!CM16 -> 0 | CP54: =DataPVBom!CN16 -> 0
A55: 17 | C55: =DataPVBom!A17 -> 0 | D55: =DataPVBom!B17 -> 0 | E55: =DataPVBom!C17 -> 0 | F55: =DataPVBom!D17 -> 0 | G55: =DataPVBom!E17 -> 0 | H55: =DataPVBom!F17 -> 0 | I55: =DataPVBom!G17 -> 0 | J55: =DataPVBom!H17 -> 0 | K55: =DataPVBom!I17 -> 0 | L55: =DataPVBom!J17 -> 0 | M55: =DataPVBom!K17 -> 0 | N55: =DataPVBom!L17 -> 0 | O55: =DataPVBom!M17 -> 0 | P55: =DataPVBom!N17 -> 0 | Q55: =DataPVBom!O17 -> 0 | R55: =DataPVBom!P17 -> 0 | S55: =DataPVBom!Q17 -> 0 | T55: =DataPVBom!R17 -> 0 | U55: =DataPVBom!S17 -> 0 | V55: =DataPVBom!T17 -> 0 | W55: =DataPVBom!U17 -> 0 | X55: =DataPVBom!V17 -> 0 | Y55: =DataPVBom!W17 -> 0 | Z55: =DataPVBom!X17 -> 0 | AA55: =DataPVBom!Y17 -> 0 | AB55: =DataPVBom!Z17 -> 0 | AC55: =DataPVBom!AA17 -> 0 | AD55: =DataPVBom!AB17 -> 0 | AE55: =DataPVBom!AC17 -> 0 | AF55: =DataPVBom!AD17 -> 0 | AG55: =DataPVBom!AE17 -> 0 | AH55: =DataPVBom!AF17 -> 0 | AI55: =DataPVBom!AG17 -> 0 | AJ55: =DataPVBom!AH17 -> 0 | AK55: =DataPVBom!AI17 -> 0 | AL55: =DataPVBom!AJ17 -> 0 | AM55: =DataPVBom!AK17 -> 0 | AN55: =DataPVBom!AL17 -> 0 | AO55: =DataPVBom!AM17 -> 0 | AP55: =DataPVBom!AN17 -> 0 | AQ55: =DataPVBom!AO17 -> 0 | AR55: =DataPVBom!AP17 -> 0 | AS55: =DataPVBom!AQ17 -> 0 | AT55: =DataPVBom!AR17 -> 0 | AU55: =DataPVBom!AS17 -> 0 | AV55: =DataPVBom!AT17 -> 0 | AW55: =DataPVBom!AU17 -> 0 | AX55: =DataPVBom!AV17 -> 0 | AY55: =DataPVBom!AW17 -> 0 | AZ55: =DataPVBom!AX17 -> 0 | BA55: =DataPVBom!AY17 -> 0 | BB55: =DataPVBom!AZ17 -> 0 | BC55: =DataPVBom!BA17 -> 0 | BD55: =DataPVBom!BB17 -> 0 | BE55: =DataPVBom!BC17 -> 0 | BF55: =DataPVBom!BD17 -> 0 | BG55: =DataPVBom!BE17 -> 0 | BH55: =DataPVBom!BF17 -> 0 | BI55: =DataPVBom!BG17 -> 0 | BJ55: =DataPVBom!BH17 -> 0 | BK55: =DataPVBom!BI17 -> 0 | BL55: =DataPVBom!BJ17 -> 0 | BM55: =DataPVBom!BK17 -> 0 | BN55: =DataPVBom!BL17 -> 0 | BO55: =DataPVBom!BM17 -> 0 | BP55: =DataPVBom!BN17 -> 0 | BQ55: =DataPVBom!BO17 -> 0 | BR55: =DataPVBom!BP17 -> 0 | BS55: =DataPVBom!BQ17 -> 0 | BT55: =DataPVBom!BR17 -> 0 | BU55: =DataPVBom!BS17 -> 0 | BV55: =DataPVBom!BT17 -> 0 | BW55: =DataPVBom!BU17 -> 0 | BX55: =DataPVBom!BV17 -> 0 | BY55: =DataPVBom!BW17 -> 0 | BZ55: =DataPVBom!BX17 -> 0 | CA55: =DataPVBom!BY17 -> 0 | CB55: =DataPVBom!BZ17 -> 0 | CC55: =DataPVBom!CA17 -> 0 | CD55: =DataPVBom!CB17 -> 0 | CE55: =DataPVBom!CC17 -> 0 | CF55: =DataPVBom!CD17 -> 0 | CG55: =DataPVBom!CE17 -> 0 | CH55: =DataPVBom!CF17 -> 0 | CI55: =DataPVBom!CG17 -> 0 | CJ55: =DataPVBom!CH17 -> 0 | CK55: =DataPVBom!CI17 -> 0 | CL55: =DataPVBom!CJ17 -> 0 | CM55: =DataPVBom!CK17 -> 0 | CN55: =DataPVBom!CL17 -> 0 | CO55: =DataPVBom!CM17 -> 0 | CP55: =DataPVBom!CN17 -> 0
A56: 18 | C56: =DataPVBom!A18 -> 0 | D56: =DataPVBom!B18 -> 0 | E56: =DataPVBom!C18 -> 0 | F56: =DataPVBom!D18 -> 0 | G56: =DataPVBom!E18 -> 0 | H56: =DataPVBom!F18 -> 0 | I56: =DataPVBom!G18 -> 0 | J56: =DataPVBom!H18 -> 0 | K56: =DataPVBom!I18 -> 0 | L56: =DataPVBom!J18 -> 0 | M56: =DataPVBom!K18 -> 0 | N56: =DataPVBom!L18 -> 0 | O56: =DataPVBom!M18 -> 0 | P56: =DataPVBom!N18 -> 0 | Q56: =DataPVBom!O18 -> 0 | R56: =DataPVBom!P18 -> 0 | S56: =DataPVBom!Q18 -> 0 | T56: =DataPVBom!R18 -> 0 | U56: =DataPVBom!S18 -> 0 | V56: =DataPVBom!T18 -> 0 | W56: =DataPVBom!U18 -> 0 | X56: =DataPVBom!V18 -> 0 | Y56: =DataPVBom!W18 -> 0 | Z56: =DataPVBom!X18 -> 0 | AA56: =DataPVBom!Y18 -> 0 | AB56: =DataPVBom!Z18 -> 0 | AC56: =DataPVBom!AA18 -> 0 | AD56: =DataPVBom!AB18 -> 0 | AE56: =DataPVBom!AC18 -> 0 | AF56: =DataPVBom!AD18 -> 0 | AG56: =DataPVBom!AE18 -> 0 | AH56: =DataPVBom!AF18 -> 0 | AI56: =DataPVBom!AG18 -> 0 | AJ56: =DataPVBom!AH18 -> 0 | AK56: =DataPVBom!AI18 -> 0 | AL56: =DataPVBom!AJ18 -> 0 | AM56: =DataPVBom!AK18 -> 0 | AN56: =DataPVBom!AL18 -> 0 | AO56: =DataPVBom!AM18 -> 0 | AP56: =DataPVBom!AN18 -> 0 | AQ56: =DataPVBom!AO18 -> 0 | AR56: =DataPVBom!AP18 -> 0 | AS56: =DataPVBom!AQ18 -> 0 | AT56: =DataPVBom!AR18 -> 0 | AU56: =DataPVBom!AS18 -> 0 | AV56: =DataPVBom!AT18 -> 0 | AW56: =DataPVBom!AU18 -> 0 | AX56: =DataPVBom!AV18 -> 0 | AY56: =DataPVBom!AW18 -> 0 | AZ56: =DataPVBom!AX18 -> 0 | BA56: =DataPVBom!AY18 -> 0 | BB56: =DataPVBom!AZ18 -> 0 | BC56: =DataPVBom!BA18 -> 0 | BD56: =DataPVBom!BB18 -> 0 | BE56: =DataPVBom!BC18 -> 0 | BF56: =DataPVBom!BD18 -> 0 | BG56: =DataPVBom!BE18 -> 0 | BH56: =DataPVBom!BF18 -> 0 | BI56: =DataPVBom!BG18 -> 0 | BJ56: =DataPVBom!BH18 -> 0 | BK56: =DataPVBom!BI18 -> 0 | BL56: =DataPVBom!BJ18 -> 0 | BM56: =DataPVBom!BK18 -> 0 | BN56: =DataPVBom!BL18 -> 0 | BO56: =DataPVBom!BM18 -> 0 | BP56: =DataPVBom!BN18 -> 0 | BQ56: =DataPVBom!BO18 -> 0 | BR56: =DataPVBom!BP18 -> 0 | BS56: =DataPVBom!BQ18 -> 0 | BT56: =DataPVBom!BR18 -> 0 | BU56: =DataPVBom!BS18 -> 0 | BV56: =DataPVBom!BT18 -> 0 | BW56: =DataPVBom!BU18 -> 0 | BX56: =DataPVBom!BV18 -> 0 | BY56: =DataPVBom!BW18 -> 0 | BZ56: =DataPVBom!BX18 -> 0 | CA56: =DataPVBom!BY18 -> 0 | CB56: =DataPVBom!BZ18 -> 0 | CC56: =DataPVBom!CA18 -> 0 | CD56: =DataPVBom!CB18 -> 0 | CE56: =DataPVBom!CC18 -> 0 | CF56: =DataPVBom!CD18 -> 0 | CG56: =DataPVBom!CE18 -> 0 | CH56: =DataPVBom!CF18 -> 0 | CI56: =DataPVBom!CG18 -> 0 | CJ56: =DataPVBom!CH18 -> 0 | CK56: =DataPVBom!CI18 -> 0 | CL56: =DataPVBom!CJ18 -> 0 | CM56: =DataPVBom!CK18 -> 0 | CN56: =DataPVBom!CL18 -> 0 | CO56: =DataPVBom!CM18 -> 0 | CP56: =DataPVBom!CN18 -> 0
A57: 19 | C57: =DataPVBom!A19 -> 0 | D57: =DataPVBom!B19 -> 0 | E57: =DataPVBom!C19 -> 0 | F57: =DataPVBom!D19 -> 0 | G57: =DataPVBom!E19 -> 0 | H57: =DataPVBom!F19 -> 0 | I57: =DataPVBom!G19 -> 0 | J57: =DataPVBom!H19 -> 0 | K57: =DataPVBom!I19 -> 0 | L57: =DataPVBom!J19 -> 0 | M57: =DataPVBom!K19 -> 0 | N57: =DataPVBom!L19 -> 0 | O57: =DataPVBom!M19 -> 0 | P57: =DataPVBom!N19 -> 0 | Q57: =DataPVBom!O19 -> 0 | R57: =DataPVBom!P19 -> 0 | S57: =DataPVBom!Q19 -> 0 | T57: =DataPVBom!R19 -> 0 | U57: =DataPVBom!S19 -> 0 | V57: =DataPVBom!T19 -> 0 | W57: =DataPVBom!U19 -> 0 | X57: =DataPVBom!V19 -> 0 | Y57: =DataPVBom!W19 -> 0 | Z57: =DataPVBom!X19 -> 0 | AA57: =DataPVBom!Y19 -> 0 | AB57: =DataPVBom!Z19 -> 0 | AC57: =DataPVBom!AA19 -> 0 | AD57: =DataPVBom!AB19 -> 0 | AE57: =DataPVBom!AC19 -> 0 | AF57: =DataPVBom!AD19 -> 0 | AG57: =DataPVBom!AE19 -> 0 | AH57: =DataPVBom!AF19 -> 0 | AI57: =DataPVBom!AG19 -> 0 | AJ57: =DataPVBom!AH19 -> 0 | AK57: =DataPVBom!AI19 -> 0 | AL57: =DataPVBom!AJ19 -> 0 | AM57: =DataPVBom!AK19 -> 0 | AN57: =DataPVBom!AL19 -> 0 | AO57: =DataPVBom!AM19 -> 0 | AP57: =DataPVBom!AN19 -> 0 | AQ57: =DataPVBom!AO19 -> 0 | AR57: =DataPVBom!AP19 -> 0 | AS57: =DataPVBom!AQ19 -> 0 | AT57: =DataPVBom!AR19 -> 0 | AU57: =DataPVBom!AS19 -> 0 | AV57: =DataPVBom!AT19 -> 0 | AW57: =DataPVBom!AU19 -> 0 | AX57: =DataPVBom!AV19 -> 0 | AY57: =DataPVBom!AW19 -> 0 | AZ57: =DataPVBom!AX19 -> 0 | BA57: =DataPVBom!AY19 -> 0 | BB57: =DataPVBom!AZ19 -> 0 | BC57: =DataPVBom!BA19 -> 0 | BD57: =DataPVBom!BB19 -> 0 | BE57: =DataPVBom!BC19 -> 0 | BF57: =DataPVBom!BD19 -> 0 | BG57: =DataPVBom!BE19 -> 0 | BH57: =DataPVBom!BF19 -> 0 | BI57: =DataPVBom!BG19 -> 0 | BJ57: =DataPVBom!BH19 -> 0 | BK57: =DataPVBom!BI19 -> 0 | BL57: =DataPVBom!BJ19 -> 0 | BM57: =DataPVBom!BK19 -> 0 | BN57: =DataPVBom!BL19 -> 0 | BO57: =DataPVBom!BM19 -> 0 | BP57: =DataPVBom!BN19 -> 0 | BQ57: =DataPVBom!BO19 -> 0 | BR57: =DataPVBom!BP19 -> 0 | BS57: =DataPVBom!BQ19 -> 0 | BT57: =DataPVBom!BR19 -> 0 | BU57: =DataPVBom!BS19 -> 0 | BV57: =DataPVBom!BT19 -> 0 | BW57: =DataPVBom!BU19 -> 0 | BX57: =DataPVBom!BV19 -> 0 | BY57: =DataPVBom!BW19 -> 0 | BZ57: =DataPVBom!BX19 -> 0 | CA57: =DataPVBom!BY19 -> 0 | CB57: =DataPVBom!BZ19 -> 0 | CC57: =DataPVBom!CA19 -> 0 | CD57: =DataPVBom!CB19 -> 0 | CE57: =DataPVBom!CC19 -> 0 | CF57: =DataPVBom!CD19 -> 0 | CG57: =DataPVBom!CE19 -> 0 | CH57: =DataPVBom!CF19 -> 0 | CI57: =DataPVBom!CG19 -> 0 | CJ57: =DataPVBom!CH19 -> 0 | CK57: =DataPVBom!CI19 -> 0 | CL57: =DataPVBom!CJ19 -> 0 | CM57: =DataPVBom!CK19 -> 0 | CN57: =DataPVBom!CL19 -> 0 | CO57: =DataPVBom!CM19 -> 0 | CP57: =DataPVBom!CN19 -> 0
A58: 20 | C58: =DataPVBom!A20 -> 0 | D58: =DataPVBom!B20 -> 0 | E58: =DataPVBom!C20 -> 0 | F58: =DataPVBom!D20 -> 0 | G58: =DataPVBom!E20 -> 0 | H58: =DataPVBom!F20 -> 0 | I58: =DataPVBom!G20 -> 0 | J58: =DataPVBom!H20 -> 0 | K58: =DataPVBom!I20 -> 0 | L58: =DataPVBom!J20 -> 0 | M58: =DataPVBom!K20 -> 0 | N58: =DataPVBom!L20 -> 0 | O58: =DataPVBom!M20 -> 0 | P58: =DataPVBom!N20 -> 0 | Q58: =DataPVBom!O20 -> 0 | R58: =DataPVBom!P20 -> 0 | S58: =DataPVBom!Q20 -> 0 | T58: =DataPVBom!R20 -> 0 | U58: =DataPVBom!S20 -> 0 | V58: =DataPVBom!T20 -> 0 | W58: =DataPVBom!U20 -> 0 | X58: =DataPVBom!V20 -> 0 | Y58: =DataPVBom!W20 -> 0 | Z58: =DataPVBom!X20 -> 0 | AA58: =DataPVBom!Y20 -> 0 | AB58: =DataPVBom!Z20 -> 0 | AC58: =DataPVBom!AA20 -> 0 | AD58: =DataPVBom!AB20 -> 0 | AE58: =DataPVBom!AC20 -> 0 | AF58: =DataPVBom!AD20 -> 0 | AG58: =DataPVBom!AE20 -> 0 | AH58: =DataPVBom!AF20 -> 0 | AI58: =DataPVBom!AG20 -> 0 | AJ58: =DataPVBom!AH20 -> 0 | AK58: =DataPVBom!AI20 -> 0 | AL58: =DataPVBom!AJ20 -> 0 | AM58: =DataPVBom!AK20 -> 0 | AN58: =DataPVBom!AL20 -> 0 | AO58: =DataPVBom!AM20 -> 0 | AP58: =DataPVBom!AN20 -> 0 | AQ58: =DataPVBom!AO20 -> 0 | AR58: =DataPVBom!AP20 -> 0 | AS58: =DataPVBom!AQ20 -> 0 | AT58: =DataPVBom!AR20 -> 0 | AU58: =DataPVBom!AS20 -> 0 | AV58: =DataPVBom!AT20 -> 0 | AW58: =DataPVBom!AU20 -> 0 | AX58: =DataPVBom!AV20 -> 0 | AY58: =DataPVBom!AW20 -> 0 | AZ58: =DataPVBom!AX20 -> 0 | BA58: =DataPVBom!AY20 -> 0 | BB58: =DataPVBom!AZ20 -> 0 | BC58: =DataPVBom!BA20 -> 0 | BD58: =DataPVBom!BB20 -> 0 | BE58: =DataPVBom!BC20 -> 0 | BF58: =DataPVBom!BD20 -> 0 | BG58: =DataPVBom!BE20 -> 0 | BH58: =DataPVBom!BF20 -> 0 | BI58: =DataPVBom!BG20 -> 0 | BJ58: =DataPVBom!BH20 -> 0 | BK58: =DataPVBom!BI20 -> 0 | BL58: =DataPVBom!BJ20 -> 0 | BM58: =DataPVBom!BK20 -> 0 | BN58: =DataPVBom!BL20 -> 0 | BO58: =DataPVBom!BM20 -> 0 | BP58: =DataPVBom!BN20 -> 0 | BQ58: =DataPVBom!BO20 -> 0 | BR58: =DataPVBom!BP20 -> 0 | BS58: =DataPVBom!BQ20 -> 0 | BT58: =DataPVBom!BR20 -> 0 | BU58: =DataPVBom!BS20 -> 0 | BV58: =DataPVBom!BT20 -> 0 | BW58: =DataPVBom!BU20 -> 0 | BX58: =DataPVBom!BV20 -> 0 | BY58: =DataPVBom!BW20 -> 0 | BZ58: =DataPVBom!BX20 -> 0 | CA58: =DataPVBom!BY20 -> 0 | CB58: =DataPVBom!BZ20 -> 0 | CC58: =DataPVBom!CA20 -> 0 | CD58: =DataPVBom!CB20 -> 0 | CE58: =DataPVBom!CC20 -> 0 | CF58: =DataPVBom!CD20 -> 0 | CG58: =DataPVBom!CE20 -> 0 | CH58: =DataPVBom!CF20 -> 0 | CI58: =DataPVBom!CG20 -> 0 | CJ58: =DataPVBom!CH20 -> 0 | CK58: =DataPVBom!CI20 -> 0 | CL58: =DataPVBom!CJ20 -> 0 | CM58: =DataPVBom!CK20 -> 0 | CN58: =DataPVBom!CL20 -> 0 | CO58: =DataPVBom!CM20 -> 0 | CP58: =DataPVBom!CN20 -> 0
A59: 21 | C59: =DataPVBom!A21 -> 0 | D59: =DataPVBom!B21 -> 0 | E59: =DataPVBom!C21 -> 0 | F59: =DataPVBom!D21 -> 0 | G59: =DataPVBom!E21 -> 0 | H59: =DataPVBom!F21 -> 0 | I59: =DataPVBom!G21 -> 0 | J59: =DataPVBom!H21 -> 0 | K59: =DataPVBom!I21 -> 0 | L59: =DataPVBom!J21 -> 0 | M59: =DataPVBom!K21 -> 0 | N59: =DataPVBom!L21 -> 0 | O59: =DataPVBom!M21 -> 0 | P59: =DataPVBom!N21 -> 0 | Q59: =DataPVBom!O21 -> 0 | R59: =DataPVBom!P21 -> 0 | S59: =DataPVBom!Q21 -> 0 | T59: =DataPVBom!R21 -> 0 | U59: =DataPVBom!S21 -> 0 | V59: =DataPVBom!T21 -> 0 | W59: =DataPVBom!U21 -> 0 | X59: =DataPVBom!V21 -> 0 | Y59: =DataPVBom!W21 -> 0 | Z59: =DataPVBom!X21 -> 0 | AA59: =DataPVBom!Y21 -> 0 | AB59: =DataPVBom!Z21 -> 0 | AC59: =DataPVBom!AA21 -> 0 | AD59: =DataPVBom!AB21 -> 0 | AE59: =DataPVBom!AC21 -> 0 | AF59: =DataPVBom!AD21 -> 0 | AG59: =DataPVBom!AE21 -> 0 | AH59: =DataPVBom!AF21 -> 0 | AI59: =DataPVBom!AG21 -> 0 | AJ59: =DataPVBom!AH21 -> 0 | AK59: =DataPVBom!AI21 -> 0 | AL59: =DataPVBom!AJ21 -> 0 | AM59: =DataPVBom!AK21 -> 0 | AN59: =DataPVBom!AL21 -> 0 | AO59: =DataPVBom!AM21 -> 0 | AP59: =DataPVBom!AN21 -> 0 | AQ59: =DataPVBom!AO21 -> 0 | AR59: =DataPVBom!AP21 -> 0 | AS59: =DataPVBom!AQ21 -> 0 | AT59: =DataPVBom!AR21 -> 0 | AU59: =DataPVBom!AS21 -> 0 | AV59: =DataPVBom!AT21 -> 0 | AW59: =DataPVBom!AU21 -> 0 | AX59: =DataPVBom!AV21 -> 0 | AY59: =DataPVBom!AW21 -> 0 | AZ59: =DataPVBom!AX21 -> 0 | BA59: =DataPVBom!AY21 -> 0 | BB59: =DataPVBom!AZ21 -> 0 | BC59: =DataPVBom!BA21 -> 0 | BD59: =DataPVBom!BB21 -> 0 | BE59: =DataPVBom!BC21 -> 0 | BF59: =DataPVBom!BD21 -> 0 | BG59: =DataPVBom!BE21 -> 0 | BH59: =DataPVBom!BF21 -> 0 | BI59: =DataPVBom!BG21 -> 0 | BJ59: =DataPVBom!BH21 -> 0 | BK59: =DataPVBom!BI21 -> 0 | BL59: =DataPVBom!BJ21 -> 0 | BM59: =DataPVBom!BK21 -> 0 | BN59: =DataPVBom!BL21 -> 0 | BO59: =DataPVBom!BM21 -> 0 | BP59: =DataPVBom!BN21 -> 0 | BQ59: =DataPVBom!BO21 -> 0 | BR59: =DataPVBom!BP21 -> 0 | BS59: =DataPVBom!BQ21 -> 0 | BT59: =DataPVBom!BR21 -> 0 | BU59: =DataPVBom!BS21 -> 0 | BV59: =DataPVBom!BT21 -> 0 | BW59: =DataPVBom!BU21 -> 0 | BX59: =DataPVBom!BV21 -> 0 | BY59: =DataPVBom!BW21 -> 0 | BZ59: =DataPVBom!BX21 -> 0 | CA59: =DataPVBom!BY21 -> 0 | CB59: =DataPVBom!BZ21 -> 0 | CC59: =DataPVBom!CA21 -> 0 | CD59: =DataPVBom!CB21 -> 0 | CE59: =DataPVBom!CC21 -> 0 | CF59: =DataPVBom!CD21 -> 0 | CG59: =DataPVBom!CE21 -> 0 | CH59: =DataPVBom!CF21 -> 0 | CI59: =DataPVBom!CG21 -> 0 | CJ59: =DataPVBom!CH21 -> 0 | CK59: =DataPVBom!CI21 -> 0 | CL59: =DataPVBom!CJ21 -> 0 | CM59: =DataPVBom!CK21 -> 0 | CN59: =DataPVBom!CL21 -> 0 | CO59: =DataPVBom!CM21 -> 0 | CP59: =DataPVBom!CN21 -> 0
A60: 22 | C60: =DataPVBom!A22 -> 0 | D60: =DataPVBom!B22 -> 0 | E60: =DataPVBom!C22 -> 0 | F60: =DataPVBom!D22 -> 0 | G60: =DataPVBom!E22 -> 0 | H60: =DataPVBom!F22 -> 0 | I60: =DataPVBom!G22 -> 0 | J60: =DataPVBom!H22 -> 0 | K60: =DataPVBom!I22 -> 0 | L60: =DataPVBom!J22 -> 0 | M60: =DataPVBom!K22 -> 0 | N60: =DataPVBom!L22 -> 0 | O60: =DataPVBom!M22 -> 0 | P60: =DataPVBom!N22 -> 0 | Q60: =DataPVBom!O22 -> 0 | R60: =DataPVBom!P22 -> 0 | S60: =DataPVBom!Q22 -> 0 | T60: =DataPVBom!R22 -> 0 | U60: =DataPVBom!S22 -> 0 | V60: =DataPVBom!T22 -> 0 | W60: =DataPVBom!U22 -> 0 | X60: =DataPVBom!V22 -> 0 | Y60: =DataPVBom!W22 -> 0 | Z60: =DataPVBom!X22 -> 0 | AA60: =DataPVBom!Y22 -> 0 | AB60: =DataPVBom!Z22 -> 0 | AC60: =DataPVBom!AA22 -> 0 | AD60: =DataPVBom!AB22 -> 0 | AE60: =DataPVBom!AC22 -> 0 | AF60: =DataPVBom!AD22 -> 0 | AG60: =DataPVBom!AE22 -> 0 | AH60: =DataPVBom!AF22 -> 0 | AI60: =DataPVBom!AG22 -> 0 | AJ60: =DataPVBom!AH22 -> 0 | AK60: =DataPVBom!AI22 -> 0 | AL60: =DataPVBom!AJ22 -> 0 | AM60: =DataPVBom!AK22 -> 0 | AN60: =DataPVBom!AL22 -> 0 | AO60: =DataPVBom!AM22 -> 0 | AP60: =DataPVBom!AN22 -> 0 | AQ60: =DataPVBom!AO22 -> 0 | AR60: =DataPVBom!AP22 -> 0 | AS60: =DataPVBom!AQ22 -> 0 | AT60: =DataPVBom!AR22 -> 0 | AU60: =DataPVBom!AS22 -> 0 | AV60: =DataPVBom!AT22 -> 0 | AW60: =DataPVBom!AU22 -> 0 | AX60: =DataPVBom!AV22 -> 0 | AY60: =DataPVBom!AW22 -> 0 | AZ60: =DataPVBom!AX22 -> 0 | BA60: =DataPVBom!AY22 -> 0 | BB60: =DataPVBom!AZ22 -> 0 | BC60: =DataPVBom!BA22 -> 0 | BD60: =DataPVBom!BB22 -> 0 | BE60: =DataPVBom!BC22 -> 0 | BF60: =DataPVBom!BD22 -> 0 | BG60: =DataPVBom!BE22 -> 0 | BH60: =DataPVBom!BF22 -> 0 | BI60: =DataPVBom!BG22 -> 0 | BJ60: =DataPVBom!BH22 -> 0 | BK60: =DataPVBom!BI22 -> 0 | BL60: =DataPVBom!BJ22 -> 0 | BM60: =DataPVBom!BK22 -> 0 | BN60: =DataPVBom!BL22 -> 0 | BO60: =DataPVBom!BM22 -> 0 | BP60: =DataPVBom!BN22 -> 0 | BQ60: =DataPVBom!BO22 -> 0 | BR60: =DataPVBom!BP22 -> 0 | BS60: =DataPVBom!BQ22 -> 0 | BT60: =DataPVBom!BR22 -> 0 | BU60: =DataPVBom!BS22 -> 0 | BV60: =DataPVBom!BT22 -> 0 | BW60: =DataPVBom!BU22 -> 0 | BX60: =DataPVBom!BV22 -> 0 | BY60: =DataPVBom!BW22 -> 0 | BZ60: =DataPVBom!BX22 -> 0 | CA60: =DataPVBom!BY22 -> 0 | CB60: =DataPVBom!BZ22 -> 0 | CC60: =DataPVBom!CA22 -> 0 | CD60: =DataPVBom!CB22 -> 0 | CE60: =DataPVBom!CC22 -> 0 | CF60: =DataPVBom!CD22 -> 0 | CG60: =DataPVBom!CE22 -> 0 | CH60: =DataPVBom!CF22 -> 0 | CI60: =DataPVBom!CG22 -> 0 | CJ60: =DataPVBom!CH22 -> 0 | CK60: =DataPVBom!CI22 -> 0 | CL60: =DataPVBom!CJ22 -> 0 | CM60: =DataPVBom!CK22 -> 0 | CN60: =DataPVBom!CL22 -> 0 | CO60: =DataPVBom!CM22 -> 0 | CP60: =DataPVBom!CN22 -> 0
A61: 23 | C61: =DataPVBom!A23 -> 0 | D61: =DataPVBom!B23 -> 0 | E61: =DataPVBom!C23 -> 0 | F61: =DataPVBom!D23 -> 0 | G61: =DataPVBom!E23 -> 0 | H61: =DataPVBom!F23 -> 0 | I61: =DataPVBom!G23 -> 0 | J61: =DataPVBom!H23 -> 0 | K61: =DataPVBom!I23 -> 0 | L61: =DataPVBom!J23 -> 0 | M61: =DataPVBom!K23 -> 0 | N61: =DataPVBom!L23 -> 0 | O61: =DataPVBom!M23 -> 0 | P61: =DataPVBom!N23 -> 0 | Q61: =DataPVBom!O23 -> 0 | R61: =DataPVBom!P23 -> 0 | S61: =DataPVBom!Q23 -> 0 | T61: =DataPVBom!R23 -> 0 | U61: =DataPVBom!S23 -> 0 | V61: =DataPVBom!T23 -> 0 | W61: =DataPVBom!U23 -> 0 | X61: =DataPVBom!V23 -> 0 | Y61: =DataPVBom!W23 -> 0 | Z61: =DataPVBom!X23 -> 0 | AA61: =DataPVBom!Y23 -> 0 | AB61: =DataPVBom!Z23 -> 0 | AC61: =DataPVBom!AA23 -> 0 | AD61: =DataPVBom!AB23 -> 0 | AE61: =DataPVBom!AC23 -> 0 | AF61: =DataPVBom!AD23 -> 0 | AG61: =DataPVBom!AE23 -> 0 | AH61: =DataPVBom!AF23 -> 0 | AI61: =DataPVBom!AG23 -> 0 | AJ61: =DataPVBom!AH23 -> 0 | AK61: =DataPVBom!AI23 -> 0 | AL61: =DataPVBom!AJ23 -> 0 | AM61: =DataPVBom!AK23 -> 0 | AN61: =DataPVBom!AL23 -> 0 | AO61: =DataPVBom!AM23 -> 0 | AP61: =DataPVBom!AN23 -> 0 | AQ61: =DataPVBom!AO23 -> 0 | AR61: =DataPVBom!AP23 -> 0 | AS61: =DataPVBom!AQ23 -> 0 | AT61: =DataPVBom!AR23 -> 0 | AU61: =DataPVBom!AS23 -> 0 | AV61: =DataPVBom!AT23 -> 0 | AW61: =DataPVBom!AU23 -> 0 | AX61: =DataPVBom!AV23 -> 0 | AY61: =DataPVBom!AW23 -> 0 | AZ61: =DataPVBom!AX23 -> 0 | BA61: =DataPVBom!AY23 -> 0 | BB61: =DataPVBom!AZ23 -> 0 | BC61: =DataPVBom!BA23 -> 0 | BD61: =DataPVBom!BB23 -> 0 | BE61: =DataPVBom!BC23 -> 0 | BF61: =DataPVBom!BD23 -> 0 | BG61: =DataPVBom!BE23 -> 0 | BH61: =DataPVBom!BF23 -> 0 | BI61: =DataPVBom!BG23 -> 0 | BJ61: =DataPVBom!BH23 -> 0 | BK61: =DataPVBom!BI23 -> 0 | BL61: =DataPVBom!BJ23 -> 0 | BM61: =DataPVBom!BK23 -> 0 | BN61: =DataPVBom!BL23 -> 0 | BO61: =DataPVBom!BM23 -> 0 | BP61: =DataPVBom!BN23 -> 0 | BQ61: =DataPVBom!BO23 -> 0 | BR61: =DataPVBom!BP23 -> 0 | BS61: =DataPVBom!BQ23 -> 0 | BT61: =DataPVBom!BR23 -> 0 | BU61: =DataPVBom!BS23 -> 0 | BV61: =DataPVBom!BT23 -> 0 | BW61: =DataPVBom!BU23 -> 0 | BX61: =DataPVBom!BV23 -> 0 | BY61: =DataPVBom!BW23 -> 0 | BZ61: =DataPVBom!BX23 -> 0 | CA61: =DataPVBom!BY23 -> 0 | CB61: =DataPVBom!BZ23 -> 0 | CC61: =DataPVBom!CA23 -> 0 | CD61: =DataPVBom!CB23 -> 0 | CE61: =DataPVBom!CC23 -> 0 | CF61: =DataPVBom!CD23 -> 0 | CG61: =DataPVBom!CE23 -> 0 | CH61: =DataPVBom!CF23 -> 0 | CI61: =DataPVBom!CG23 -> 0 | CJ61: =DataPVBom!CH23 -> 0 | CK61: =DataPVBom!CI23 -> 0 | CL61: =DataPVBom!CJ23 -> 0 | CM61: =DataPVBom!CK23 -> 0 | CN61: =DataPVBom!CL23 -> 0 | CO61: =DataPVBom!CM23 -> 0 | CP61: =DataPVBom!CN23 -> 0
A62: 24 | C62: =DataPVBom!A24 -> 0 | D62: =DataPVBom!B24 -> 0 | E62: =DataPVBom!C24 -> 0 | F62: =DataPVBom!D24 -> 0 | G62: =DataPVBom!E24 -> 0 | H62: =DataPVBom!F24 -> 0 | I62: =DataPVBom!G24 -> 0 | J62: =DataPVBom!H24 -> 0 | K62: =DataPVBom!I24 -> 0 | L62: =DataPVBom!J24 -> 0 | M62: =DataPVBom!K24 -> 0 | N62: =DataPVBom!L24 -> 0 | O62: =DataPVBom!M24 -> 0 | P62: =DataPVBom!N24 -> 0 | Q62: =DataPVBom!O24 -> 0 | R62: =DataPVBom!P24 -> 0 | S62: =DataPVBom!Q24 -> 0 | T62: =DataPVBom!R24 -> 0 | U62: =DataPVBom!S24 -> 0 | V62: =DataPVBom!T24 -> 0 | W62: =DataPVBom!U24 -> 0 | X62: =DataPVBom!V24 -> 0 | Y62: =DataPVBom!W24 -> 0 | Z62: =DataPVBom!X24 -> 0 | AA62: =DataPVBom!Y24 -> 0 | AB62: =DataPVBom!Z24 -> 0 | AC62: =DataPVBom!AA24 -> 0 | AD62: =DataPVBom!AB24 -> 0 | AE62: =DataPVBom!AC24 -> 0 | AF62: =DataPVBom!AD24 -> 0 | AG62: =DataPVBom!AE24 -> 0 | AH62: =DataPVBom!AF24 -> 0 | AI62: =DataPVBom!AG24 -> 0 | AJ62: =DataPVBom!AH24 -> 0 | AK62: =DataPVBom!AI24 -> 0 | AL62: =DataPVBom!AJ24 -> 0 | AM62: =DataPVBom!AK24 -> 0 | AN62: =DataPVBom!AL24 -> 0 | AO62: =DataPVBom!AM24 -> 0 | AP62: =DataPVBom!AN24 -> 0 | AQ62: =DataPVBom!AO24 -> 0 | AR62: =DataPVBom!AP24 -> 0 | AS62: =DataPVBom!AQ24 -> 0 | AT62: =DataPVBom!AR24 -> 0 | AU62: =DataPVBom!AS24 -> 0 | AV62: =DataPVBom!AT24 -> 0 | AW62: =DataPVBom!AU24 -> 0 | AX62: =DataPVBom!AV24 -> 0 | AY62: =DataPVBom!AW24 -> 0 | AZ62: =DataPVBom!AX24 -> 0 | BA62: =DataPVBom!AY24 -> 0 | BB62: =DataPVBom!AZ24 -> 0 | BC62: =DataPVBom!BA24 -> 0 | BD62: =DataPVBom!BB24 -> 0 | BE62: =DataPVBom!BC24 -> 0 | BF62: =DataPVBom!BD24 -> 0 | BG62: =DataPVBom!BE24 -> 0 | BH62: =DataPVBom!BF24 -> 0 | BI62: =DataPVBom!BG24 -> 0 | BJ62: =DataPVBom!BH24 -> 0 | BK62: =DataPVBom!BI24 -> 0 | BL62: =DataPVBom!BJ24 -> 0 | BM62: =DataPVBom!BK24 -> 0 | BN62: =DataPVBom!BL24 -> 0 | BO62: =DataPVBom!BM24 -> 0 | BP62: =DataPVBom!BN24 -> 0 | BQ62: =DataPVBom!BO24 -> 0 | BR62: =DataPVBom!BP24 -> 0 | BS62: =DataPVBom!BQ24 -> 0 | BT62: =DataPVBom!BR24 -> 0 | BU62: =DataPVBom!BS24 -> 0 | BV62: =DataPVBom!BT24 -> 0 | BW62: =DataPVBom!BU24 -> 0 | BX62: =DataPVBom!BV24 -> 0 | BY62: =DataPVBom!BW24 -> 0 | BZ62: =DataPVBom!BX24 -> 0 | CA62: =DataPVBom!BY24 -> 0 | CB62: =DataPVBom!BZ24 -> 0 | CC62: =DataPVBom!CA24 -> 0 | CD62: =DataPVBom!CB24 -> 0 | CE62: =DataPVBom!CC24 -> 0 | CF62: =DataPVBom!CD24 -> 0 | CG62: =DataPVBom!CE24 -> 0 | CH62: =DataPVBom!CF24 -> 0 | CI62: =DataPVBom!CG24 -> 0 | CJ62: =DataPVBom!CH24 -> 0 | CK62: =DataPVBom!CI24 -> 0 | CL62: =DataPVBom!CJ24 -> 0 | CM62: =DataPVBom!CK24 -> 0 | CN62: =DataPVBom!CL24 -> 0 | CO62: =DataPVBom!CM24 -> 0 | CP62: =DataPVBom!CN24 -> 0
A63: 25 | C63: =DataPVBom!A25 -> 0 | D63: =DataPVBom!B25 -> 0 | E63: =DataPVBom!C25 -> 0 | F63: =DataPVBom!D25 -> 0 | G63: =DataPVBom!E25 -> 0 | H63: =DataPVBom!F25 -> 0 | I63: =DataPVBom!G25 -> 0 | J63: =DataPVBom!H25 -> 0 | K63: =DataPVBom!I25 -> 0 | L63: =DataPVBom!J25 -> 0 | M63: =DataPVBom!K25 -> 0 | N63: =DataPVBom!L25 -> 0 | O63: =DataPVBom!M25 -> 0 | P63: =DataPVBom!N25 -> 0 | Q63: =DataPVBom!O25 -> 0 | R63: =DataPVBom!P25 -> 0 | S63: =DataPVBom!Q25 -> 0 | T63: =DataPVBom!R25 -> 0 | U63: =DataPVBom!S25 -> 0 | V63: =DataPVBom!T25 -> 0 | W63: =DataPVBom!U25 -> 0 | X63: =DataPVBom!V25 -> 0 | Y63: =DataPVBom!W25 -> 0 | Z63: =DataPVBom!X25 -> 0 | AA63: =DataPVBom!Y25 -> 0 | AB63: =DataPVBom!Z25 -> 0 | AC63: =DataPVBom!AA25 -> 0 | AD63: =DataPVBom!AB25 -> 0 | AE63: =DataPVBom!AC25 -> 0 | AF63: =DataPVBom!AD25 -> 0 | AG63: =DataPVBom!AE25 -> 0 | AH63: =DataPVBom!AF25 -> 0 | AI63: =DataPVBom!AG25 -> 0 | AJ63: =DataPVBom!AH25 -> 0 | AK63: =DataPVBom!AI25 -> 0 | AL63: =DataPVBom!AJ25 -> 0 | AM63: =DataPVBom!AK25 -> 0 | AN63: =DataPVBom!AL25 -> 0 | AO63: =DataPVBom!AM25 -> 0 | AP63: =DataPVBom!AN25 -> 0 | AQ63: =DataPVBom!AO25 -> 0 | AR63: =DataPVBom!AP25 -> 0 | AS63: =DataPVBom!AQ25 -> 0 | AT63: =DataPVBom!AR25 -> 0 | AU63: =DataPVBom!AS25 -> 0 | AV63: =DataPVBom!AT25 -> 0 | AW63: =DataPVBom!AU25 -> 0 | AX63: =DataPVBom!AV25 -> 0 | AY63: =DataPVBom!AW25 -> 0 | AZ63: =DataPVBom!AX25 -> 0 | BA63: =DataPVBom!AY25 -> 0 | BB63: =DataPVBom!AZ25 -> 0 | BC63: =DataPVBom!BA25 -> 0 | BD63: =DataPVBom!BB25 -> 0 | BE63: =DataPVBom!BC25 -> 0 | BF63: =DataPVBom!BD25 -> 0 | BG63: =DataPVBom!BE25 -> 0 | BH63: =DataPVBom!BF25 -> 0 | BI63: =DataPVBom!BG25 -> 0 | BJ63: =DataPVBom!BH25 -> 0 | BK63: =DataPVBom!BI25 -> 0 | BL63: =DataPVBom!BJ25 -> 0 | BM63: =DataPVBom!BK25 -> 0 | BN63: =DataPVBom!BL25 -> 0 | BO63: =DataPVBom!BM25 -> 0 | BP63: =DataPVBom!BN25 -> 0 | BQ63: =DataPVBom!BO25 -> 0 | BR63: =DataPVBom!BP25 -> 0 | BS63: =DataPVBom!BQ25 -> 0 | BT63: =DataPVBom!BR25 -> 0 | BU63: =DataPVBom!BS25 -> 0 | BV63: =DataPVBom!BT25 -> 0 | BW63: =DataPVBom!BU25 -> 0 | BX63: =DataPVBom!BV25 -> 0 | BY63: =DataPVBom!BW25 -> 0 | BZ63: =DataPVBom!BX25 -> 0 | CA63: =DataPVBom!BY25 -> 0 | CB63: =DataPVBom!BZ25 -> 0 | CC63: =DataPVBom!CA25 -> 0 | CD63: =DataPVBom!CB25 -> 0 | CE63: =DataPVBom!CC25 -> 0 | CF63: =DataPVBom!CD25 -> 0 | CG63: =DataPVBom!CE25 -> 0 | CH63: =DataPVBom!CF25 -> 0 | CI63: =DataPVBom!CG25 -> 0 | CJ63: =DataPVBom!CH25 -> 0 | CK63: =DataPVBom!CI25 -> 0 | CL63: =DataPVBom!CJ25 -> 0 | CM63: =DataPVBom!CK25 -> 0 | CN63: =DataPVBom!CL25 -> 0 | CO63: =DataPVBom!CM25 -> 0 | CP63: =DataPVBom!CN25 -> 0
A64: 26 | C64: =DataPVBom!A26 -> 0 | D64: =DataPVBom!B26 -> 0 | E64: =DataPVBom!C26 -> 0 | F64: =DataPVBom!D26 -> 0 | G64: =DataPVBom!E26 -> 0 | H64: =DataPVBom!F26 -> 0 | I64: =DataPVBom!G26 -> 0 | J64: =DataPVBom!H26 -> 0 | K64: =DataPVBom!I26 -> 0 | L64: =DataPVBom!J26 -> 0 | M64: =DataPVBom!K26 -> 0 | N64: =DataPVBom!L26 -> 0 | O64: =DataPVBom!M26 -> 0 | P64: =DataPVBom!N26 -> 0 | Q64: =DataPVBom!O26 -> 0 | R64: =DataPVBom!P26 -> 0 | S64: =DataPVBom!Q26 -> 0 | T64: =DataPVBom!R26 -> 0 | U64: =DataPVBom!S26 -> 0 | V64: =DataPVBom!T26 -> 0 | W64: =DataPVBom!U26 -> 0 | X64: =DataPVBom!V26 -> 0 | Y64: =DataPVBom!W26 -> 0 | Z64: =DataPVBom!X26 -> 0 | AA64: =DataPVBom!Y26 -> 0 | AB64: =DataPVBom!Z26 -> 0 | AC64: =DataPVBom!AA26 -> 0 | AD64: =DataPVBom!AB26 -> 0 | AE64: =DataPVBom!AC26 -> 0 | AF64: =DataPVBom!AD26 -> 0 | AG64: =DataPVBom!AE26 -> 0 | AH64: =DataPVBom!AF26 -> 0 | AI64: =DataPVBom!AG26 -> 0 | AJ64: =DataPVBom!AH26 -> 0 | AK64: =DataPVBom!AI26 -> 0 | AL64: =DataPVBom!AJ26 -> 0 | AM64: =DataPVBom!AK26 -> 0 | AN64: =DataPVBom!AL26 -> 0 | AO64: =DataPVBom!AM26 -> 0 | AP64: =DataPVBom!AN26 -> 0 | AQ64: =DataPVBom!AO26 -> 0 | AR64: =DataPVBom!AP26 -> 0 | AS64: =DataPVBom!AQ26 -> 0 | AT64: =DataPVBom!AR26 -> 0 | AU64: =DataPVBom!AS26 -> 0 | AV64: =DataPVBom!AT26 -> 0 | AW64: =DataPVBom!AU26 -> 0 | AX64: =DataPVBom!AV26 -> 0 | AY64: =DataPVBom!AW26 -> 0 | AZ64: =DataPVBom!AX26 -> 0 | BA64: =DataPVBom!AY26 -> 0 | BB64: =DataPVBom!AZ26 -> 0 | BC64: =DataPVBom!BA26 -> 0 | BD64: =DataPVBom!BB26 -> 0 | BE64: =DataPVBom!BC26 -> 0 | BF64: =DataPVBom!BD26 -> 0 | BG64: =DataPVBom!BE26 -> 0 | BH64: =DataPVBom!BF26 -> 0 | BI64: =DataPVBom!BG26 -> 0 | BJ64: =DataPVBom!BH26 -> 0 | BK64: =DataPVBom!BI26 -> 0 | BL64: =DataPVBom!BJ26 -> 0 | BM64: =DataPVBom!BK26 -> 0 | BN64: =DataPVBom!BL26 -> 0 | BO64: =DataPVBom!BM26 -> 0 | BP64: =DataPVBom!BN26 -> 0 | BQ64: =DataPVBom!BO26 -> 0 | BR64: =DataPVBom!BP26 -> 0 | BS64: =DataPVBom!BQ26 -> 0 | BT64: =DataPVBom!BR26 -> 0 | BU64: =DataPVBom!BS26 -> 0 | BV64: =DataPVBom!BT26 -> 0 | BW64: =DataPVBom!BU26 -> 0 | BX64: =DataPVBom!BV26 -> 0 | BY64: =DataPVBom!BW26 -> 0 | BZ64: =DataPVBom!BX26 -> 0 | CA64: =DataPVBom!BY26 -> 0 | CB64: =DataPVBom!BZ26 -> 0 | CC64: =DataPVBom!CA26 -> 0 | CD64: =DataPVBom!CB26 -> 0 | CE64: =DataPVBom!CC26 -> 0 | CF64: =DataPVBom!CD26 -> 0 | CG64: =DataPVBom!CE26 -> 0 | CH64: =DataPVBom!CF26 -> 0 | CI64: =DataPVBom!CG26 -> 0 | CJ64: =DataPVBom!CH26 -> 0 | CK64: =DataPVBom!CI26 -> 0 | CL64: =DataPVBom!CJ26 -> 0 | CM64: =DataPVBom!CK26 -> 0 | CN64: =DataPVBom!CL26 -> 0 | CO64: =DataPVBom!CM26 -> 0 | CP64: =DataPVBom!CN26 -> 0
A65: 27 | C65: =DataPVBom!A27 -> 0 | D65: =DataPVBom!B27 -> 0 | E65: =DataPVBom!C27 -> 0 | F65: =DataPVBom!D27 -> 0 | G65: =DataPVBom!E27 -> 0 | H65: =DataPVBom!F27 -> 0 | I65: =DataPVBom!G27 -> 0 | J65: =DataPVBom!H27 -> 0 | K65: =DataPVBom!I27 -> 0 | L65: =DataPVBom!J27 -> 0 | M65: =DataPVBom!K27 -> 0 | N65: =DataPVBom!L27 -> 0 | O65: =DataPVBom!M27 -> 0 | P65: =DataPVBom!N27 -> 0 | Q65: =DataPVBom!O27 -> 0 | R65: =DataPVBom!P27 -> 0 | S65: =DataPVBom!Q27 -> 0 | T65: =DataPVBom!R27 -> 0 | U65: =DataPVBom!S27 -> 0 | V65: =DataPVBom!T27 -> 0 | W65: =DataPVBom!U27 -> 0 | X65: =DataPVBom!V27 -> 0 | Y65: =DataPVBom!W27 -> 0 | Z65: =DataPVBom!X27 -> 0 | AA65: =DataPVBom!Y27 -> 0 | AB65: =DataPVBom!Z27 -> 0 | AC65: =DataPVBom!AA27 -> 0 | AD65: =DataPVBom!AB27 -> 0 | AE65: =DataPVBom!AC27 -> 0 | AF65: =DataPVBom!AD27 -> 0 | AG65: =DataPVBom!AE27 -> 0 | AH65: =DataPVBom!AF27 -> 0 | AI65: =DataPVBom!AG27 -> 0 | AJ65: =DataPVBom!AH27 -> 0 | AK65: =DataPVBom!AI27 -> 0 | AL65: =DataPVBom!AJ27 -> 0 | AM65: =DataPVBom!AK27 -> 0 | AN65: =DataPVBom!AL27 -> 0 | AO65: =DataPVBom!AM27 -> 0 | AP65: =DataPVBom!AN27 -> 0 | AQ65: =DataPVBom!AO27 -> 0 | AR65: =DataPVBom!AP27 -> 0 | AS65: =DataPVBom!AQ27 -> 0 | AT65: =DataPVBom!AR27 -> 0 | AU65: =DataPVBom!AS27 -> 0 | AV65: =DataPVBom!AT27 -> 0 | AW65: =DataPVBom!AU27 -> 0 | AX65: =DataPVBom!AV27 -> 0 | AY65: =DataPVBom!AW27 -> 0 | AZ65: =DataPVBom!AX27 -> 0 | BA65: =DataPVBom!AY27 -> 0 | BB65: =DataPVBom!AZ27 -> 0 | BC65: =DataPVBom!BA27 -> 0 | BD65: =DataPVBom!BB27 -> 0 | BE65: =DataPVBom!BC27 -> 0 | BF65: =DataPVBom!BD27 -> 0 | BG65: =DataPVBom!BE27 -> 0 | BH65: =DataPVBom!BF27 -> 0 | BI65: =DataPVBom!BG27 -> 0 | BJ65: =DataPVBom!BH27 -> 0 | BK65: =DataPVBom!BI27 -> 0 | BL65: =DataPVBom!BJ27 -> 0 | BM65: =DataPVBom!BK27 -> 0 | BN65: =DataPVBom!BL27 -> 0 | BO65: =DataPVBom!BM27 -> 0 | BP65: =DataPVBom!BN27 -> 0 | BQ65: =DataPVBom!BO27 -> 0 | BR65: =DataPVBom!BP27 -> 0 | BS65: =DataPVBom!BQ27 -> 0 | BT65: =DataPVBom!BR27 -> 0 | BU65: =DataPVBom!BS27 -> 0 | BV65: =DataPVBom!BT27 -> 0 | BW65: =DataPVBom!BU27 -> 0 | BX65: =DataPVBom!BV27 -> 0 | BY65: =DataPVBom!BW27 -> 0 | BZ65: =DataPVBom!BX27 -> 0 | CA65: =DataPVBom!BY27 -> 0 | CB65: =DataPVBom!BZ27 -> 0 | CC65: =DataPVBom!CA27 -> 0 | CD65: =DataPVBom!CB27 -> 0 | CE65: =DataPVBom!CC27 -> 0 | CF65: =DataPVBom!CD27 -> 0 | CG65: =DataPVBom!CE27 -> 0 | CH65: =DataPVBom!CF27 -> 0 | CI65: =DataPVBom!CG27 -> 0 | CJ65: =DataPVBom!CH27 -> 0 | CK65: =DataPVBom!CI27 -> 0 | CL65: =DataPVBom!CJ27 -> 0 | CM65: =DataPVBom!CK27 -> 0 | CN65: =DataPVBom!CL27 -> 0 | CO65: =DataPVBom!CM27 -> 0 | CP65: =DataPVBom!CN27 -> 0
A66: 28 | C66: =DataPVBom!A28 -> 0 | D66: =DataPVBom!B28 -> 0 | E66: =DataPVBom!C28 -> 0 | F66: =DataPVBom!D28 -> 0 | G66: =DataPVBom!E28 -> 0 | H66: =DataPVBom!F28 -> 0 | I66: =DataPVBom!G28 -> 0 | J66: =DataPVBom!H28 -> 0 | K66: =DataPVBom!I28 -> 0 | L66: =DataPVBom!J28 -> 0 | M66: =DataPVBom!K28 -> 0 | N66: =DataPVBom!L28 -> 0 | O66: =DataPVBom!M28 -> 0 | P66: =DataPVBom!N28 -> 0 | Q66: =DataPVBom!O28 -> 0 | R66: =DataPVBom!P28 -> 0 | S66: =DataPVBom!Q28 -> 0 | T66: =DataPVBom!R28 -> 0 | U66: =DataPVBom!S28 -> 0 | V66: =DataPVBom!T28 -> 0 | W66: =DataPVBom!U28 -> 0 | X66: =DataPVBom!V28 -> 0 | Y66: =DataPVBom!W28 -> 0 | Z66: =DataPVBom!X28 -> 0 | AA66: =DataPVBom!Y28 -> 0 | AB66: =DataPVBom!Z28 -> 0 | AC66: =DataPVBom!AA28 -> 0 | AD66: =DataPVBom!AB28 -> 0 | AE66: =DataPVBom!AC28 -> 0 | AF66: =DataPVBom!AD28 -> 0 | AG66: =DataPVBom!AE28 -> 0 | AH66: =DataPVBom!AF28 -> 0 | AI66: =DataPVBom!AG28 -> 0 | AJ66: =DataPVBom!AH28 -> 0 | AK66: =DataPVBom!AI28 -> 0 | AL66: =DataPVBom!AJ28 -> 0 | AM66: =DataPVBom!AK28 -> 0 | AN66: =DataPVBom!AL28 -> 0 | AO66: =DataPVBom!AM28 -> 0 | AP66: =DataPVBom!AN28 -> 0 | AQ66: =DataPVBom!AO28 -> 0 | AR66: =DataPVBom!AP28 -> 0 | AS66: =DataPVBom!AQ28 -> 0 | AT66: =DataPVBom!AR28 -> 0 | AU66: =DataPVBom!AS28 -> 0 | AV66: =DataPVBom!AT28 -> 0 | AW66: =DataPVBom!AU28 -> 0 | AX66: =DataPVBom!AV28 -> 0 | AY66: =DataPVBom!AW28 -> 0 | AZ66: =DataPVBom!AX28 -> 0 | BA66: =DataPVBom!AY28 -> 0 | BB66: =DataPVBom!AZ28 -> 0 | BC66: =DataPVBom!BA28 -> 0 | BD66: =DataPVBom!BB28 -> 0 | BE66: =DataPVBom!BC28 -> 0 | BF66: =DataPVBom!BD28 -> 0 | BG66: =DataPVBom!BE28 -> 0 | BH66: =DataPVBom!BF28 -> 0 | BI66: =DataPVBom!BG28 -> 0 | BJ66: =DataPVBom!BH28 -> 0 | BK66: =DataPVBom!BI28 -> 0 | BL66: =DataPVBom!BJ28 -> 0 | BM66: =DataPVBom!BK28 -> 0 | BN66: =DataPVBom!BL28 -> 0 | BO66: =DataPVBom!BM28 -> 0 | BP66: =DataPVBom!BN28 -> 0 | BQ66: =DataPVBom!BO28 -> 0 | BR66: =DataPVBom!BP28 -> 0 | BS66: =DataPVBom!BQ28 -> 0 | BT66: =DataPVBom!BR28 -> 0 | BU66: =DataPVBom!BS28 -> 0 | BV66: =DataPVBom!BT28 -> 0 | BW66: =DataPVBom!BU28 -> 0 | BX66: =DataPVBom!BV28 -> 0 | BY66: =DataPVBom!BW28 -> 0 | BZ66: =DataPVBom!BX28 -> 0 | CA66: =DataPVBom!BY28 -> 0 | CB66: =DataPVBom!BZ28 -> 0 | CC66: =DataPVBom!CA28 -> 0 | CD66: =DataPVBom!CB28 -> 0 | CE66: =DataPVBom!CC28 -> 0 | CF66: =DataPVBom!CD28 -> 0 | CG66: =DataPVBom!CE28 -> 0 | CH66: =DataPVBom!CF28 -> 0 | CI66: =DataPVBom!CG28 -> 0 | CJ66: =DataPVBom!CH28 -> 0 | CK66: =DataPVBom!CI28 -> 0 | CL66: =DataPVBom!CJ28 -> 0 | CM66: =DataPVBom!CK28 -> 0 | CN66: =DataPVBom!CL28 -> 0 | CO66: =DataPVBom!CM28 -> 0 | CP66: =DataPVBom!CN28 -> 0
A67: 29 | C67: =DataPVBom!A29 -> 0 | D67: =DataPVBom!B29 -> 0 | E67: =DataPVBom!C29 -> 0 | F67: =DataPVBom!D29 -> 0 | G67: =DataPVBom!E29 -> 0 | H67: =DataPVBom!F29 -> 0 | I67: =DataPVBom!G29 -> 0 | J67: =DataPVBom!H29 -> 0 | K67: =DataPVBom!I29 -> 0 | L67: =DataPVBom!J29 -> 0 | M67: =DataPVBom!K29 -> 0 | N67: =DataPVBom!L29 -> 0 | O67: =DataPVBom!M29 -> 0 | P67: =DataPVBom!N29 -> 0 | Q67: =DataPVBom!O29 -> 0 | R67: =DataPVBom!P29 -> 0 | S67: =DataPVBom!Q29 -> 0 | T67: =DataPVBom!R29 -> 0 | U67: =DataPVBom!S29 -> 0 | V67: =DataPVBom!T29 -> 0 | W67: =DataPVBom!U29 -> 0 | X67: =DataPVBom!V29 -> 0 | Y67: =DataPVBom!W29 -> 0 | Z67: =DataPVBom!X29 -> 0 | AA67: =DataPVBom!Y29 -> 0 | AB67: =DataPVBom!Z29 -> 0 | AC67: =DataPVBom!AA29 -> 0 | AD67: =DataPVBom!AB29 -> 0 | AE67: =DataPVBom!AC29 -> 0 | AF67: =DataPVBom!AD29 -> 0 | AG67: =DataPVBom!AE29 -> 0 | AH67: =DataPVBom!AF29 -> 0 | AI67: =DataPVBom!AG29 -> 0 | AJ67: =DataPVBom!AH29 -> 0 | AK67: =DataPVBom!AI29 -> 0 | AL67: =DataPVBom!AJ29 -> 0 | AM67: =DataPVBom!AK29 -> 0 | AN67: =DataPVBom!AL29 -> 0 | AO67: =DataPVBom!AM29 -> 0 | AP67: =DataPVBom!AN29 -> 0 | AQ67: =DataPVBom!AO29 -> 0 | AR67: =DataPVBom!AP29 -> 0 | AS67: =DataPVBom!AQ29 -> 0 | AT67: =DataPVBom!AR29 -> 0 | AU67: =DataPVBom!AS29 -> 0 | AV67: =DataPVBom!AT29 -> 0 | AW67: =DataPVBom!AU29 -> 0 | AX67: =DataPVBom!AV29 -> 0 | AY67: =DataPVBom!AW29 -> 0 | AZ67: =DataPVBom!AX29 -> 0 | BA67: =DataPVBom!AY29 -> 0 | BB67: =DataPVBom!AZ29 -> 0 | BC67: =DataPVBom!BA29 -> 0 | BD67: =DataPVBom!BB29 -> 0 | BE67: =DataPVBom!BC29 -> 0 | BF67: =DataPVBom!BD29 -> 0 | BG67: =DataPVBom!BE29 -> 0 | BH67: =DataPVBom!BF29 -> 0 | BI67: =DataPVBom!BG29 -> 0 | BJ67: =DataPVBom!BH29 -> 0 | BK67: =DataPVBom!BI29 -> 0 | BL67: =DataPVBom!BJ29 -> 0 | BM67: =DataPVBom!BK29 -> 0 | BN67: =DataPVBom!BL29 -> 0 | BO67: =DataPVBom!BM29 -> 0 | BP67: =DataPVBom!BN29 -> 0 | BQ67: =DataPVBom!BO29 -> 0 | BR67: =DataPVBom!BP29 -> 0 | BS67: =DataPVBom!BQ29 -> 0 | BT67: =DataPVBom!BR29 -> 0 | BU67: =DataPVBom!BS29 -> 0 | BV67: =DataPVBom!BT29 -> 0 | BW67: =DataPVBom!BU29 -> 0 | BX67: =DataPVBom!BV29 -> 0 | BY67: =DataPVBom!BW29 -> 0 | BZ67: =DataPVBom!BX29 -> 0 | CA67: =DataPVBom!BY29 -> 0 | CB67: =DataPVBom!BZ29 -> 0 | CC67: =DataPVBom!CA29 -> 0 | CD67: =DataPVBom!CB29 -> 0 | CE67: =DataPVBom!CC29 -> 0 | CF67: =DataPVBom!CD29 -> 0 | CG67: =DataPVBom!CE29 -> 0 | CH67: =DataPVBom!CF29 -> 0 | CI67: =DataPVBom!CG29 -> 0 | CJ67: =DataPVBom!CH29 -> 0 | CK67: =DataPVBom!CI29 -> 0 | CL67: =DataPVBom!CJ29 -> 0 | CM67: =DataPVBom!CK29 -> 0 | CN67: =DataPVBom!CL29 -> 0 | CO67: =DataPVBom!CM29 -> 0 | CP67: =DataPVBom!CN29 -> 0
A68: 30 | C68: =DataPVBom!A30 -> 0 | D68: =DataPVBom!B30 -> 0 | E68: =DataPVBom!C30 -> 0 | F68: =DataPVBom!D30 -> 0 | G68: =DataPVBom!E30 -> 0 | H68: =DataPVBom!F30 -> 0 | I68: =DataPVBom!G30 -> 0 | J68: =DataPVBom!H30 -> 0 | K68: =DataPVBom!I30 -> 0 | L68: =DataPVBom!J30 -> 0 | M68: =DataPVBom!K30 -> 0 | N68: =DataPVBom!L30 -> 0 | O68: =DataPVBom!M30 -> 0 | P68: =DataPVBom!N30 -> 0 | Q68: =DataPVBom!O30 -> 0 | R68: =DataPVBom!P30 -> 0 | S68: =DataPVBom!Q30 -> 0 | T68: =DataPVBom!R30 -> 0 | U68: =DataPVBom!S30 -> 0 | V68: =DataPVBom!T30 -> 0 | W68: =DataPVBom!U30 -> 0 | X68: =DataPVBom!V30 -> 0 | Y68: =DataPVBom!W30 -> 0 | Z68: =DataPVBom!X30 -> 0 | AA68: =DataPVBom!Y30 -> 0 | AB68: =DataPVBom!Z30 -> 0 | AC68: =DataPVBom!AA30 -> 0 | AD68: =DataPVBom!AB30 -> 0 | AE68: =DataPVBom!AC30 -> 0 | AF68: =DataPVBom!AD30 -> 0 | AG68: =DataPVBom!AE30 -> 0 | AH68: =DataPVBom!AF30 -> 0 | AI68: =DataPVBom!AG30 -> 0 | AJ68: =DataPVBom!AH30 -> 0 | AK68: =DataPVBom!AI30 -> 0 | AL68: =DataPVBom!AJ30 -> 0 | AM68: =DataPVBom!AK30 -> 0 | AN68: =DataPVBom!AL30 -> 0 | AO68: =DataPVBom!AM30 -> 0 | AP68: =DataPVBom!AN30 -> 0 | AQ68: =DataPVBom!AO30 -> 0 | AR68: =DataPVBom!AP30 -> 0 | AS68: =DataPVBom!AQ30 -> 0 | AT68: =DataPVBom!AR30 -> 0 | AU68: =DataPVBom!AS30 -> 0 | AV68: =DataPVBom!AT30 -> 0 | AW68: =DataPVBom!AU30 -> 0 | AX68: =DataPVBom!AV30 -> 0 | AY68: =DataPVBom!AW30 -> 0 | AZ68: =DataPVBom!AX30 -> 0 | BA68: =DataPVBom!AY30 -> 0 | BB68: =DataPVBom!AZ30 -> 0 | BC68: =DataPVBom!BA30 -> 0 | BD68: =DataPVBom!BB30 -> 0 | BE68: =DataPVBom!BC30 -> 0 | BF68: =DataPVBom!BD30 -> 0 | BG68: =DataPVBom!BE30 -> 0 | BH68: =DataPVBom!BF30 -> 0 | BI68: =DataPVBom!BG30 -> 0 | BJ68: =DataPVBom!BH30 -> 0 | BK68: =DataPVBom!BI30 -> 0 | BL68: =DataPVBom!BJ30 -> 0 | BM68: =DataPVBom!BK30 -> 0 | BN68: =DataPVBom!BL30 -> 0 | BO68: =DataPVBom!BM30 -> 0 | BP68: =DataPVBom!BN30 -> 0 | BQ68: =DataPVBom!BO30 -> 0 | BR68: =DataPVBom!BP30 -> 0 | BS68: =DataPVBom!BQ30 -> 0 | BT68: =DataPVBom!BR30 -> 0 | BU68: =DataPVBom!BS30 -> 0 | BV68: =DataPVBom!BT30 -> 0 | BW68: =DataPVBom!BU30 -> 0 | BX68: =DataPVBom!BV30 -> 0 | BY68: =DataPVBom!BW30 -> 0 | BZ68: =DataPVBom!BX30 -> 0 | CA68: =DataPVBom!BY30 -> 0 | CB68: =DataPVBom!BZ30 -> 0 | CC68: =DataPVBom!CA30 -> 0 | CD68: =DataPVBom!CB30 -> 0 | CE68: =DataPVBom!CC30 -> 0 | CF68: =DataPVBom!CD30 -> 0 | CG68: =DataPVBom!CE30 -> 0 | CH68: =DataPVBom!CF30 -> 0 | CI68: =DataPVBom!CG30 -> 0 | CJ68: =DataPVBom!CH30 -> 0 | CK68: =DataPVBom!CI30 -> 0 | CL68: =DataPVBom!CJ30 -> 0 | CM68: =DataPVBom!CK30 -> 0 | CN68: =DataPVBom!CL30 -> 0 | CO68: =DataPVBom!CM30 -> 0 | CP68: =DataPVBom!CN30 -> 0
A69: 31 | C69: =DataPVBom!A31 -> 0 | D69: =DataPVBom!B31 -> 0 | E69: =DataPVBom!C31 -> 0 | F69: =DataPVBom!D31 -> 0 | G69: =DataPVBom!E31 -> 0 | H69: =DataPVBom!F31 -> 0 | I69: =DataPVBom!G31 -> 0 | J69: =DataPVBom!H31 -> 0 | K69: =DataPVBom!I31 -> 0 | L69: =DataPVBom!J31 -> 0 | M69: =DataPVBom!K31 -> 0 | N69: =DataPVBom!L31 -> 0 | O69: =DataPVBom!M31 -> 0 | P69: =DataPVBom!N31 -> 0 | Q69: =DataPVBom!O31 -> 0 | R69: =DataPVBom!P31 -> 0 | S69: =DataPVBom!Q31 -> 0 | T69: =DataPVBom!R31 -> 0 | U69: =DataPVBom!S31 -> 0 | V69: =DataPVBom!T31 -> 0 | W69: =DataPVBom!U31 -> 0 | X69: =DataPVBom!V31 -> 0 | Y69: =DataPVBom!W31 -> 0 | Z69: =DataPVBom!X31 -> 0 | AA69: =DataPVBom!Y31 -> 0 | AB69: =DataPVBom!Z31 -> 0 | AC69: =DataPVBom!AA31 -> 0 | AD69: =DataPVBom!AB31 -> 0 | AE69: =DataPVBom!AC31 -> 0 | AF69: =DataPVBom!AD31 -> 0 | AG69: =DataPVBom!AE31 -> 0 | AH69: =DataPVBom!AF31 -> 0 | AI69: =DataPVBom!AG31 -> 0 | AJ69: =DataPVBom!AH31 -> 0 | AK69: =DataPVBom!AI31 -> 0 | AL69: =DataPVBom!AJ31 -> 0 | AM69: =DataPVBom!AK31 -> 0 | AN69: =DataPVBom!AL31 -> 0 | AO69: =DataPVBom!AM31 -> 0 | AP69: =DataPVBom!AN31 -> 0 | AQ69: =DataPVBom!AO31 -> 0 | AR69: =DataPVBom!AP31 -> 0 | AS69: =DataPVBom!AQ31 -> 0 | AT69: =DataPVBom!AR31 -> 0 | AU69: =DataPVBom!AS31 -> 0 | AV69: =DataPVBom!AT31 -> 0 | AW69: =DataPVBom!AU31 -> 0 | AX69: =DataPVBom!AV31 -> 0 | AY69: =DataPVBom!AW31 -> 0 | AZ69: =DataPVBom!AX31 -> 0 | BA69: =DataPVBom!AY31 -> 0 | BB69: =DataPVBom!AZ31 -> 0 | BC69: =DataPVBom!BA31 -> 0 | BD69: =DataPVBom!BB31 -> 0 | BE69: =DataPVBom!BC31 -> 0 | BF69: =DataPVBom!BD31 -> 0 | BG69: =DataPVBom!BE31 -> 0 | BH69: =DataPVBom!BF31 -> 0 | BI69: =DataPVBom!BG31 -> 0 | BJ69: =DataPVBom!BH31 -> 0 | BK69: =DataPVBom!BI31 -> 0 | BL69: =DataPVBom!BJ31 -> 0 | BM69: =DataPVBom!BK31 -> 0 | BN69: =DataPVBom!BL31 -> 0 | BO69: =DataPVBom!BM31 -> 0 | BP69: =DataPVBom!BN31 -> 0 | BQ69: =DataPVBom!BO31 -> 0 | BR69: =DataPVBom!BP31 -> 0 | BS69: =DataPVBom!BQ31 -> 0 | BT69: =DataPVBom!BR31 -> 0 | BU69: =DataPVBom!BS31 -> 0 | BV69: =DataPVBom!BT31 -> 0 | BW69: =DataPVBom!BU31 -> 0 | BX69: =DataPVBom!BV31 -> 0 | BY69: =DataPVBom!BW31 -> 0 | BZ69: =DataPVBom!BX31 -> 0 | CA69: =DataPVBom!BY31 -> 0 | CB69: =DataPVBom!BZ31 -> 0 | CC69: =DataPVBom!CA31 -> 0 | CD69: =DataPVBom!CB31 -> 0 | CE69: =DataPVBom!CC31 -> 0 | CF69: =DataPVBom!CD31 -> 0 | CG69: =DataPVBom!CE31 -> 0 | CH69: =DataPVBom!CF31 -> 0 | CI69: =DataPVBom!CG31 -> 0 | CJ69: =DataPVBom!CH31 -> 0 | CK69: =DataPVBom!CI31 -> 0 | CL69: =DataPVBom!CJ31 -> 0 | CM69: =DataPVBom!CK31 -> 0 | CN69: =DataPVBom!CL31 -> 0 | CO69: =DataPVBom!CM31 -> 0 | CP69: =DataPVBom!CN31 -> 0
A70: 32 | C70: =DataPVBom!A32 -> 0 | D70: =DataPVBom!B32 -> 0 | E70: =DataPVBom!C32 -> 0 | F70: =DataPVBom!D32 -> 0 | G70: =DataPVBom!E32 -> 0 | H70: =DataPVBom!F32 -> 0 | I70: =DataPVBom!G32 -> 0 | J70: =DataPVBom!H32 -> 0 | K70: =DataPVBom!I32 -> 0 | L70: =DataPVBom!J32 -> 0 | M70: =DataPVBom!K32 -> 0 | N70: =DataPVBom!L32 -> 0 | O70: =DataPVBom!M32 -> 0 | P70: =DataPVBom!N32 -> 0 | Q70: =DataPVBom!O32 -> 0 | R70: =DataPVBom!P32 -> 0 | S70: =DataPVBom!Q32 -> 0 | T70: =DataPVBom!R32 -> 0 | U70: =DataPVBom!S32 -> 0 | V70: =DataPVBom!T32 -> 0 | W70: =DataPVBom!U32 -> 0 | X70: =DataPVBom!V32 -> 0 | Y70: =DataPVBom!W32 -> 0 | Z70: =DataPVBom!X32 -> 0 | AA70: =DataPVBom!Y32 -> 0 | AB70: =DataPVBom!Z32 -> 0 | AC70: =DataPVBom!AA32 -> 0 | AD70: =DataPVBom!AB32 -> 0 | AE70: =DataPVBom!AC32 -> 0 | AF70: =DataPVBom!AD32 -> 0 | AG70: =DataPVBom!AE32 -> 0 | AH70: =DataPVBom!AF32 -> 0 | AI70: =DataPVBom!AG32 -> 0 | AJ70: =DataPVBom!AH32 -> 0 | AK70: =DataPVBom!AI32 -> 0 | AL70: =DataPVBom!AJ32 -> 0 | AM70: =DataPVBom!AK32 -> 0 | AN70: =DataPVBom!AL32 -> 0 | AO70: =DataPVBom!AM32 -> 0 | AP70: =DataPVBom!AN32 -> 0 | AQ70: =DataPVBom!AO32 -> 0 | AR70: =DataPVBom!AP32 -> 0 | AS70: =DataPVBom!AQ32 -> 0 | AT70: =DataPVBom!AR32 -> 0 | AU70: =DataPVBom!AS32 -> 0 | AV70: =DataPVBom!AT32 -> 0 | AW70: =DataPVBom!AU32 -> 0 | AX70: =DataPVBom!AV32 -> 0 | AY70: =DataPVBom!AW32 -> 0 | AZ70: =DataPVBom!AX32 -> 0 | BA70: =DataPVBom!AY32 -> 0 | BB70: =DataPVBom!AZ32 -> 0 | BC70: =DataPVBom!BA32 -> 0 | BD70: =DataPVBom!BB32 -> 0 | BE70: =DataPVBom!BC32 -> 0 | BF70: =DataPVBom!BD32 -> 0 | BG70: =DataPVBom!BE32 -> 0 | BH70: =DataPVBom!BF32 -> 0 | BI70: =DataPVBom!BG32 -> 0 | BJ70: =DataPVBom!BH32 -> 0 | BK70: =DataPVBom!BI32 -> 0 | BL70: =DataPVBom!BJ32 -> 0 | BM70: =DataPVBom!BK32 -> 0 | BN70: =DataPVBom!BL32 -> 0 | BO70: =DataPVBom!BM32 -> 0 | BP70: =DataPVBom!BN32 -> 0 | BQ70: =DataPVBom!BO32 -> 0 | BR70: =DataPVBom!BP32 -> 0 | BS70: =DataPVBom!BQ32 -> 0 | BT70: =DataPVBom!BR32 -> 0 | BU70: =DataPVBom!BS32 -> 0 | BV70: =DataPVBom!BT32 -> 0 | BW70: =DataPVBom!BU32 -> 0 | BX70: =DataPVBom!BV32 -> 0 | BY70: =DataPVBom!BW32 -> 0 | BZ70: =DataPVBom!BX32 -> 0 | CA70: =DataPVBom!BY32 -> 0 | CB70: =DataPVBom!BZ32 -> 0 | CC70: =DataPVBom!CA32 -> 0 | CD70: =DataPVBom!CB32 -> 0 | CE70: =DataPVBom!CC32 -> 0 | CF70: =DataPVBom!CD32 -> 0 | CG70: =DataPVBom!CE32 -> 0 | CH70: =DataPVBom!CF32 -> 0 | CI70: =DataPVBom!CG32 -> 0 | CJ70: =DataPVBom!CH32 -> 0 | CK70: =DataPVBom!CI32 -> 0 | CL70: =DataPVBom!CJ32 -> 0 | CM70: =DataPVBom!CK32 -> 0 | CN70: =DataPVBom!CL32 -> 0 | CO70: =DataPVBom!CM32 -> 0 | CP70: =DataPVBom!CN32 -> 0
A71: 33 | C71: =DataPVBom!A33 -> 0 | D71: =DataPVBom!B33 -> 0 | E71: =DataPVBom!C33 -> 0 | F71: =DataPVBom!D33 -> 0 | G71: =DataPVBom!E33 -> 0 | H71: =DataPVBom!F33 -> 0 | I71: =DataPVBom!G33 -> 0 | J71: =DataPVBom!H33 -> 0 | K71: =DataPVBom!I33 -> 0 | L71: =DataPVBom!J33 -> 0 | M71: =DataPVBom!K33 -> 0 | N71: =DataPVBom!L33 -> 0 | O71: =DataPVBom!M33 -> 0 | P71: =DataPVBom!N33 -> 0 | Q71: =DataPVBom!O33 -> 0 | R71: =DataPVBom!P33 -> 0 | S71: =DataPVBom!Q33 -> 0 | T71: =DataPVBom!R33 -> 0 | U71: =DataPVBom!S33 -> 0 | V71: =DataPVBom!T33 -> 0 | W71: =DataPVBom!U33 -> 0 | X71: =DataPVBom!V33 -> 0 | Y71: =DataPVBom!W33 -> 0 | Z71: =DataPVBom!X33 -> 0 | AA71: =DataPVBom!Y33 -> 0 | AB71: =DataPVBom!Z33 -> 0 | AC71: =DataPVBom!AA33 -> 0 | AD71: =DataPVBom!AB33 -> 0 | AE71: =DataPVBom!AC33 -> 0 | AF71: =DataPVBom!AD33 -> 0 | AG71: =DataPVBom!AE33 -> 0 | AH71: =DataPVBom!AF33 -> 0 | AI71: =DataPVBom!AG33 -> 0 | AJ71: =DataPVBom!AH33 -> 0 | AK71: =DataPVBom!AI33 -> 0 | AL71: =DataPVBom!AJ33 -> 0 | AM71: =DataPVBom!AK33 -> 0 | AN71: =DataPVBom!AL33 -> 0 | AO71: =DataPVBom!AM33 -> 0 | AP71: =DataPVBom!AN33 -> 0 | AQ71: =DataPVBom!AO33 -> 0 | AR71: =DataPVBom!AP33 -> 0 | AS71: =DataPVBom!AQ33 -> 0 | AT71: =DataPVBom!AR33 -> 0 | AU71: =DataPVBom!AS33 -> 0 | AV71: =DataPVBom!AT33 -> 0 | AW71: =DataPVBom!AU33 -> 0 | AX71: =DataPVBom!AV33 -> 0 | AY71: =DataPVBom!AW33 -> 0 | AZ71: =DataPVBom!AX33 -> 0 | BA71: =DataPVBom!AY33 -> 0 | BB71: =DataPVBom!AZ33 -> 0 | BC71: =DataPVBom!BA33 -> 0 | BD71: =DataPVBom!BB33 -> 0 | BE71: =DataPVBom!BC33 -> 0 | BF71: =DataPVBom!BD33 -> 0 | BG71: =DataPVBom!BE33 -> 0 | BH71: =DataPVBom!BF33 -> 0 | BI71: =DataPVBom!BG33 -> 0 | BJ71: =DataPVBom!BH33 -> 0 | BK71: =DataPVBom!BI33 -> 0 | BL71: =DataPVBom!BJ33 -> 0 | BM71: =DataPVBom!BK33 -> 0 | BN71: =DataPVBom!BL33 -> 0 | BO71: =DataPVBom!BM33 -> 0 | BP71: =DataPVBom!BN33 -> 0 | BQ71: =DataPVBom!BO33 -> 0 | BR71: =DataPVBom!BP33 -> 0 | BS71: =DataPVBom!BQ33 -> 0 | BT71: =DataPVBom!BR33 -> 0 | BU71: =DataPVBom!BS33 -> 0 | BV71: =DataPVBom!BT33 -> 0 | BW71: =DataPVBom!BU33 -> 0 | BX71: =DataPVBom!BV33 -> 0 | BY71: =DataPVBom!BW33 -> 0 | BZ71: =DataPVBom!BX33 -> 0 | CA71: =DataPVBom!BY33 -> 0 | CB71: =DataPVBom!BZ33 -> 0 | CC71: =DataPVBom!CA33 -> 0 | CD71: =DataPVBom!CB33 -> 0 | CE71: =DataPVBom!CC33 -> 0 | CF71: =DataPVBom!CD33 -> 0 | CG71: =DataPVBom!CE33 -> 0 | CH71: =DataPVBom!CF33 -> 0 | CI71: =DataPVBom!CG33 -> 0 | CJ71: =DataPVBom!CH33 -> 0 | CK71: =DataPVBom!CI33 -> 0 | CL71: =DataPVBom!CJ33 -> 0 | CM71: =DataPVBom!CK33 -> 0 | CN71: =DataPVBom!CL33 -> 0 | CO71: =DataPVBom!CM33 -> 0 | CP71: =DataPVBom!CN33 -> 0
A72: 34 | C72: =DataPVBom!A34 -> 0 | D72: =DataPVBom!B34 -> 0 | E72: =DataPVBom!C34 -> 0 | F72: =DataPVBom!D34 -> 0 | G72: =DataPVBom!E34 -> 0 | H72: =DataPVBom!F34 -> 0 | I72: =DataPVBom!G34 -> 0 | J72: =DataPVBom!H34 -> 0 | K72: =DataPVBom!I34 -> 0 | L72: =DataPVBom!J34 -> 0 | M72: =DataPVBom!K34 -> 0 | N72: =DataPVBom!L34 -> 0 | O72: =DataPVBom!M34 -> 0 | P72: =DataPVBom!N34 -> 0 | Q72: =DataPVBom!O34 -> 0 | R72: =DataPVBom!P34 -> 0 | S72: =DataPVBom!Q34 -> 0 | T72: =DataPVBom!R34 -> 0 | U72: =DataPVBom!S34 -> 0 | V72: =DataPVBom!T34 -> 0 | W72: =DataPVBom!U34 -> 0 | X72: =DataPVBom!V34 -> 0 | Y72: =DataPVBom!W34 -> 0 | Z72: =DataPVBom!X34 -> 0 | AA72: =DataPVBom!Y34 -> 0 | AB72: =DataPVBom!Z34 -> 0 | AC72: =DataPVBom!AA34 -> 0 | AD72: =DataPVBom!AB34 -> 0 | AE72: =DataPVBom!AC34 -> 0 | AF72: =DataPVBom!AD34 -> 0 | AG72: =DataPVBom!AE34 -> 0 | AH72: =DataPVBom!AF34 -> 0 | AI72: =DataPVBom!AG34 -> 0 | AJ72: =DataPVBom!AH34 -> 0 | AK72: =DataPVBom!AI34 -> 0 | AL72: =DataPVBom!AJ34 -> 0 | AM72: =DataPVBom!AK34 -> 0 | AN72: =DataPVBom!AL34 -> 0 | AO72: =DataPVBom!AM34 -> 0 | AP72: =DataPVBom!AN34 -> 0 | AQ72: =DataPVBom!AO34 -> 0 | AR72: =DataPVBom!AP34 -> 0 | AS72: =DataPVBom!AQ34 -> 0 | AT72: =DataPVBom!AR34 -> 0 | AU72: =DataPVBom!AS34 -> 0 | AV72: =DataPVBom!AT34 -> 0 | AW72: =DataPVBom!AU34 -> 0 | AX72: =DataPVBom!AV34 -> 0 | AY72: =DataPVBom!AW34 -> 0 | AZ72: =DataPVBom!AX34 -> 0 | BA72: =DataPVBom!AY34 -> 0 | BB72: =DataPVBom!AZ34 -> 0 | BC72: =DataPVBom!BA34 -> 0 | BD72: =DataPVBom!BB34 -> 0 | BE72: =DataPVBom!BC34 -> 0 | BF72: =DataPVBom!BD34 -> 0 | BG72: =DataPVBom!BE34 -> 0 | BH72: =DataPVBom!BF34 -> 0 | BI72: =DataPVBom!BG34 -> 0 | BJ72: =DataPVBom!BH34 -> 0 | BK72: =DataPVBom!BI34 -> 0 | BL72: =DataPVBom!BJ34 -> 0 | BM72: =DataPVBom!BK34 -> 0 | BN72: =DataPVBom!BL34 -> 0 | BO72: =DataPVBom!BM34 -> 0 | BP72: =DataPVBom!BN34 -> 0 | BQ72: =DataPVBom!BO34 -> 0 | BR72: =DataPVBom!BP34 -> 0 | BS72: =DataPVBom!BQ34 -> 0 | BT72: =DataPVBom!BR34 -> 0 | BU72: =DataPVBom!BS34 -> 0 | BV72: =DataPVBom!BT34 -> 0 | BW72: =DataPVBom!BU34 -> 0 | BX72: =DataPVBom!BV34 -> 0 | BY72: =DataPVBom!BW34 -> 0 | BZ72: =DataPVBom!BX34 -> 0 | CA72: =DataPVBom!BY34 -> 0 | CB72: =DataPVBom!BZ34 -> 0 | CC72: =DataPVBom!CA34 -> 0 | CD72: =DataPVBom!CB34 -> 0 | CE72: =DataPVBom!CC34 -> 0 | CF72: =DataPVBom!CD34 -> 0 | CG72: =DataPVBom!CE34 -> 0 | CH72: =DataPVBom!CF34 -> 0 | CI72: =DataPVBom!CG34 -> 0 | CJ72: =DataPVBom!CH34 -> 0 | CK72: =DataPVBom!CI34 -> 0 | CL72: =DataPVBom!CJ34 -> 0 | CM72: =DataPVBom!CK34 -> 0 | CN72: =DataPVBom!CL34 -> 0 | CO72: =DataPVBom!CM34 -> 0 | CP72: =DataPVBom!CN34 -> 0
A73: 35 | C73: =DataPVBom!A35 -> 0 | D73: =DataPVBom!B35 -> 0 | E73: =DataPVBom!C35 -> 0 | F73: =DataPVBom!D35 -> 0 | G73: =DataPVBom!E35 -> 0 | H73: =DataPVBom!F35 -> 0 | I73: =DataPVBom!G35 -> 0 | J73: =DataPVBom!H35 -> 0 | K73: =DataPVBom!I35 -> 0 | L73: =DataPVBom!J35 -> 0 | M73: =DataPVBom!K35 -> 0 | N73: =DataPVBom!L35 -> 0 | O73: =DataPVBom!M35 -> 0 | P73: =DataPVBom!N35 -> 0 | Q73: =DataPVBom!O35 -> 0 | R73: =DataPVBom!P35 -> 0 | S73: =DataPVBom!Q35 -> 0 | T73: =DataPVBom!R35 -> 0 | U73: =DataPVBom!S35 -> 0 | V73: =DataPVBom!T35 -> 0 | W73: =DataPVBom!U35 -> 0 | X73: =DataPVBom!V35 -> 0 | Y73: =DataPVBom!W35 -> 0 | Z73: =DataPVBom!X35 -> 0 | AA73: =DataPVBom!Y35 -> 0 | AB73: =DataPVBom!Z35 -> 0 | AC73: =DataPVBom!AA35 -> 0 | AD73: =DataPVBom!AB35 -> 0 | AE73: =DataPVBom!AC35 -> 0 | AF73: =DataPVBom!AD35 -> 0 | AG73: =DataPVBom!AE35 -> 0 | AH73: =DataPVBom!AF35 -> 0 | AI73: =DataPVBom!AG35 -> 0 | AJ73: =DataPVBom!AH35 -> 0 | AK73: =DataPVBom!AI35 -> 0 | AL73: =DataPVBom!AJ35 -> 0 | AM73: =DataPVBom!AK35 -> 0 | AN73: =DataPVBom!AL35 -> 0 | AO73: =DataPVBom!AM35 -> 0 | AP73: =DataPVBom!AN35 -> 0 | AQ73: =DataPVBom!AO35 -> 0 | AR73: =DataPVBom!AP35 -> 0 | AS73: =DataPVBom!AQ35 -> 0 | AT73: =DataPVBom!AR35 -> 0 | AU73: =DataPVBom!AS35 -> 0 | AV73: =DataPVBom!AT35 -> 0 | AW73: =DataPVBom!AU35 -> 0 | AX73: =DataPVBom!AV35 -> 0 | AY73: =DataPVBom!AW35 -> 0 | AZ73: =DataPVBom!AX35 -> 0 | BA73: =DataPVBom!AY35 -> 0 | BB73: =DataPVBom!AZ35 -> 0 | BC73: =DataPVBom!BA35 -> 0 | BD73: =DataPVBom!BB35 -> 0 | BE73: =DataPVBom!BC35 -> 0 | BF73: =DataPVBom!BD35 -> 0 | BG73: =DataPVBom!BE35 -> 0 | BH73: =DataPVBom!BF35 -> 0 | BI73: =DataPVBom!BG35 -> 0 | BJ73: =DataPVBom!BH35 -> 0 | BK73: =DataPVBom!BI35 -> 0 | BL73: =DataPVBom!BJ35 -> 0 | BM73: =DataPVBom!BK35 -> 0 | BN73: =DataPVBom!BL35 -> 0 | BO73: =DataPVBom!BM35 -> 0 | BP73: =DataPVBom!BN35 -> 0 | BQ73: =DataPVBom!BO35 -> 0 | BR73: =DataPVBom!BP35 -> 0 | BS73: =DataPVBom!BQ35 -> 0 | BT73: =DataPVBom!BR35 -> 0 | BU73: =DataPVBom!BS35 -> 0 | BV73: =DataPVBom!BT35 -> 0 | BW73: =DataPVBom!BU35 -> 0 | BX73: =DataPVBom!BV35 -> 0 | BY73: =DataPVBom!BW35 -> 0 | BZ73: =DataPVBom!BX35 -> 0 | CA73: =DataPVBom!BY35 -> 0 | CB73: =DataPVBom!BZ35 -> 0 | CC73: =DataPVBom!CA35 -> 0 | CD73: =DataPVBom!CB35 -> 0 | CE73: =DataPVBom!CC35 -> 0 | CF73: =DataPVBom!CD35 -> 0 | CG73: =DataPVBom!CE35 -> 0 | CH73: =DataPVBom!CF35 -> 0 | CI73: =DataPVBom!CG35 -> 0 | CJ73: =DataPVBom!CH35 -> 0 | CK73: =DataPVBom!CI35 -> 0 | CL73: =DataPVBom!CJ35 -> 0 | CM73: =DataPVBom!CK35 -> 0 | CN73: =DataPVBom!CL35 -> 0 | CO73: =DataPVBom!CM35 -> 0 | CP73: =DataPVBom!CN35 -> 0
A74: 36 | C74: =DataPVBom!A36 -> 0 | D74: =DataPVBom!B36 -> 0 | E74: =DataPVBom!C36 -> 0 | F74: =DataPVBom!D36 -> 0 | G74: =DataPVBom!E36 -> 0 | H74: =DataPVBom!F36 -> 0 | I74: =DataPVBom!G36 -> 0 | J74: =DataPVBom!H36 -> 0 | K74: =DataPVBom!I36 -> 0 | L74: =DataPVBom!J36 -> 0 | M74: =DataPVBom!K36 -> 0 | N74: =DataPVBom!L36 -> 0 | O74: =DataPVBom!M36 -> 0 | P74: =DataPVBom!N36 -> 0 | Q74: =DataPVBom!O36 -> 0 | R74: =DataPVBom!P36 -> 0 | S74: =DataPVBom!Q36 -> 0 | T74: =DataPVBom!R36 -> 0 | U74: =DataPVBom!S36 -> 0 | V74: =DataPVBom!T36 -> 0 | W74: =DataPVBom!U36 -> 0 | X74: =DataPVBom!V36 -> 0 | Y74: =DataPVBom!W36 -> 0 | Z74: =DataPVBom!X36 -> 0 | AA74: =DataPVBom!Y36 -> 0 | AB74: =DataPVBom!Z36 -> 0 | AC74: =DataPVBom!AA36 -> 0 | AD74: =DataPVBom!AB36 -> 0 | AE74: =DataPVBom!AC36 -> 0 | AF74: =DataPVBom!AD36 -> 0 | AG74: =DataPVBom!AE36 -> 0 | AH74: =DataPVBom!AF36 -> 0 | AI74: =DataPVBom!AG36 -> 0 | AJ74: =DataPVBom!AH36 -> 0 | AK74: =DataPVBom!AI36 -> 0 | AL74: =DataPVBom!AJ36 -> 0 | AM74: =DataPVBom!AK36 -> 0 | AN74: =DataPVBom!AL36 -> 0 | AO74: =DataPVBom!AM36 -> 0 | AP74: =DataPVBom!AN36 -> 0 | AQ74: =DataPVBom!AO36 -> 0 | AR74: =DataPVBom!AP36 -> 0 | AS74: =DataPVBom!AQ36 -> 0 | AT74: =DataPVBom!AR36 -> 0 | AU74: =DataPVBom!AS36 -> 0 | AV74: =DataPVBom!AT36 -> 0 | AW74: =DataPVBom!AU36 -> 0 | AX74: =DataPVBom!AV36 -> 0 | AY74: =DataPVBom!AW36 -> 0 | AZ74: =DataPVBom!AX36 -> 0 | BA74: =DataPVBom!AY36 -> 0 | BB74: =DataPVBom!AZ36 -> 0 | BC74: =DataPVBom!BA36 -> 0 | BD74: =DataPVBom!BB36 -> 0 | BE74: =DataPVBom!BC36 -> 0 | BF74: =DataPVBom!BD36 -> 0 | BG74: =DataPVBom!BE36 -> 0 | BH74: =DataPVBom!BF36 -> 0 | BI74: =DataPVBom!BG36 -> 0 | BJ74: =DataPVBom!BH36 -> 0 | BK74: =DataPVBom!BI36 -> 0 | BL74: =DataPVBom!BJ36 -> 0 | BM74: =DataPVBom!BK36 -> 0 | BN74: =DataPVBom!BL36 -> 0 | BO74: =DataPVBom!BM36 -> 0 | BP74: =DataPVBom!BN36 -> 0 | BQ74: =DataPVBom!BO36 -> 0 | BR74: =DataPVBom!BP36 -> 0 | BS74: =DataPVBom!BQ36 -> 0 | BT74: =DataPVBom!BR36 -> 0 | BU74: =DataPVBom!BS36 -> 0 | BV74: =DataPVBom!BT36 -> 0 | BW74: =DataPVBom!BU36 -> 0 | BX74: =DataPVBom!BV36 -> 0 | BY74: =DataPVBom!BW36 -> 0 | BZ74: =DataPVBom!BX36 -> 0 | CA74: =DataPVBom!BY36 -> 0 | CB74: =DataPVBom!BZ36 -> 0 | CC74: =DataPVBom!CA36 -> 0 | CD74: =DataPVBom!CB36 -> 0 | CE74: =DataPVBom!CC36 -> 0 | CF74: =DataPVBom!CD36 -> 0 | CG74: =DataPVBom!CE36 -> 0 | CH74: =DataPVBom!CF36 -> 0 | CI74: =DataPVBom!CG36 -> 0 | CJ74: =DataPVBom!CH36 -> 0 | CK74: =DataPVBom!CI36 -> 0 | CL74: =DataPVBom!CJ36 -> 0 | CM74: =DataPVBom!CK36 -> 0 | CN74: =DataPVBom!CL36 -> 0 | CO74: =DataPVBom!CM36 -> 0 | CP74: =DataPVBom!CN36 -> 0
A75: 37 | C75: =DataPVBom!A37 -> 0 | D75: =DataPVBom!B37 -> 0 | E75: =DataPVBom!C37 -> 0 | F75: =DataPVBom!D37 -> 0 | G75: =DataPVBom!E37 -> 0 | H75: =DataPVBom!F37 -> 0 | I75: =DataPVBom!G37 -> 0 | J75: =DataPVBom!H37 -> 0 | K75: =DataPVBom!I37 -> 0 | L75: =DataPVBom!J37 -> 0 | M75: =DataPVBom!K37 -> 0 | N75: =DataPVBom!L37 -> 0 | O75: =DataPVBom!M37 -> 0 | P75: =DataPVBom!N37 -> 0 | Q75: =DataPVBom!O37 -> 0 | R75: =DataPVBom!P37 -> 0 | S75: =DataPVBom!Q37 -> 0 | T75: =DataPVBom!R37 -> 0 | U75: =DataPVBom!S37 -> 0 | V75: =DataPVBom!T37 -> 0 | W75: =DataPVBom!U37 -> 0 | X75: =DataPVBom!V37 -> 0 | Y75: =DataPVBom!W37 -> 0 | Z75: =DataPVBom!X37 -> 0 | AA75: =DataPVBom!Y37 -> 0 | AB75: =DataPVBom!Z37 -> 0 | AC75: =DataPVBom!AA37 -> 0 | AD75: =DataPVBom!AB37 -> 0 | AE75: =DataPVBom!AC37 -> 0 | AF75: =DataPVBom!AD37 -> 0 | AG75: =DataPVBom!AE37 -> 0 | AH75: =DataPVBom!AF37 -> 0 | AI75: =DataPVBom!AG37 -> 0 | AJ75: =DataPVBom!AH37 -> 0 | AK75: =DataPVBom!AI37 -> 0 | AL75: =DataPVBom!AJ37 -> 0 | AM75: =DataPVBom!AK37 -> 0 | AN75: =DataPVBom!AL37 -> 0 | AO75: =DataPVBom!AM37 -> 0 | AP75: =DataPVBom!AN37 -> 0 | AQ75: =DataPVBom!AO37 -> 0 | AR75: =DataPVBom!AP37 -> 0 | AS75: =DataPVBom!AQ37 -> 0 | AT75: =DataPVBom!AR37 -> 0 | AU75: =DataPVBom!AS37 -> 0 | AV75: =DataPVBom!AT37 -> 0 | AW75: =DataPVBom!AU37 -> 0 | AX75: =DataPVBom!AV37 -> 0 | AY75: =DataPVBom!AW37 -> 0 | AZ75: =DataPVBom!AX37 -> 0 | BA75: =DataPVBom!AY37 -> 0 | BB75: =DataPVBom!AZ37 -> 0 | BC75: =DataPVBom!BA37 -> 0 | BD75: =DataPVBom!BB37 -> 0 | BE75: =DataPVBom!BC37 -> 0 | BF75: =DataPVBom!BD37 -> 0 | BG75: =DataPVBom!BE37 -> 0 | BH75: =DataPVBom!BF37 -> 0 | BI75: =DataPVBom!BG37 -> 0 | BJ75: =DataPVBom!BH37 -> 0 | BK75: =DataPVBom!BI37 -> 0 | BL75: =DataPVBom!BJ37 -> 0 | BM75: =DataPVBom!BK37 -> 0 | BN75: =DataPVBom!BL37 -> 0 | BO75: =DataPVBom!BM37 -> 0 | BP75: =DataPVBom!BN37 -> 0 | BQ75: =DataPVBom!BO37 -> 0 | BR75: =DataPVBom!BP37 -> 0 | BS75: =DataPVBom!BQ37 -> 0 | BT75: =DataPVBom!BR37 -> 0 | BU75: =DataPVBom!BS37 -> 0 | BV75: =DataPVBom!BT37 -> 0 | BW75: =DataPVBom!BU37 -> 0 | BX75: =DataPVBom!BV37 -> 0 | BY75: =DataPVBom!BW37 -> 0 | BZ75: =DataPVBom!BX37 -> 0 | CA75: =DataPVBom!BY37 -> 0 | CB75: =DataPVBom!BZ37 -> 0 | CC75: =DataPVBom!CA37 -> 0 | CD75: =DataPVBom!CB37 -> 0 | CE75: =DataPVBom!CC37 -> 0 | CF75: =DataPVBom!CD37 -> 0 | CG75: =DataPVBom!CE37 -> 0 | CH75: =DataPVBom!CF37 -> 0 | CI75: =DataPVBom!CG37 -> 0 | CJ75: =DataPVBom!CH37 -> 0 | CK75: =DataPVBom!CI37 -> 0 | CL75: =DataPVBom!CJ37 -> 0 | CM75: =DataPVBom!CK37 -> 0 | CN75: =DataPVBom!CL37 -> 0 | CO75: =DataPVBom!CM37 -> 0 | CP75: =DataPVBom!CN37 -> 0
A76: 38 | C76: =DataPVBom!A38 -> 0 | D76: =DataPVBom!B38 -> 0 | E76: =DataPVBom!C38 -> 0 | F76: =DataPVBom!D38 -> 0 | G76: =DataPVBom!E38 -> 0 | H76: =DataPVBom!F38 -> 0 | I76: =DataPVBom!G38 -> 0 | J76: =DataPVBom!H38 -> 0 | K76: =DataPVBom!I38 -> 0 | L76: =DataPVBom!J38 -> 0 | M76: =DataPVBom!K38 -> 0 | N76: =DataPVBom!L38 -> 0 | O76: =DataPVBom!M38 -> 0 | P76: =DataPVBom!N38 -> 0 | Q76: =DataPVBom!O38 -> 0 | R76: =DataPVBom!P38 -> 0 | S76: =DataPVBom!Q38 -> 0 | T76: =DataPVBom!R38 -> 0 | U76: =DataPVBom!S38 -> 0 | V76: =DataPVBom!T38 -> 0 | W76: =DataPVBom!U38 -> 0 | X76: =DataPVBom!V38 -> 0 | Y76: =DataPVBom!W38 -> 0 | Z76: =DataPVBom!X38 -> 0 | AA76: =DataPVBom!Y38 -> 0 | AB76: =DataPVBom!Z38 -> 0 | AC76: =DataPVBom!AA38 -> 0 | AD76: =DataPVBom!AB38 -> 0 | AE76: =DataPVBom!AC38 -> 0 | AF76: =DataPVBom!AD38 -> 0 | AG76: =DataPVBom!AE38 -> 0 | AH76: =DataPVBom!AF38 -> 0 | AI76: =DataPVBom!AG38 -> 0 | AJ76: =DataPVBom!AH38 -> 0 | AK76: =DataPVBom!AI38 -> 0 | AL76: =DataPVBom!AJ38 -> 0 | AM76: =DataPVBom!AK38 -> 0 | AN76: =DataPVBom!AL38 -> 0 | AO76: =DataPVBom!AM38 -> 0 | AP76: =DataPVBom!AN38 -> 0 | AQ76: =DataPVBom!AO38 -> 0 | AR76: =DataPVBom!AP38 -> 0 | AS76: =DataPVBom!AQ38 -> 0 | AT76: =DataPVBom!AR38 -> 0 | AU76: =DataPVBom!AS38 -> 0 | AV76: =DataPVBom!AT38 -> 0 | AW76: =DataPVBom!AU38 -> 0 | AX76: =DataPVBom!AV38 -> 0 | AY76: =DataPVBom!AW38 -> 0 | AZ76: =DataPVBom!AX38 -> 0 | BA76: =DataPVBom!AY38 -> 0 | BB76: =DataPVBom!AZ38 -> 0 | BC76: =DataPVBom!BA38 -> 0 | BD76: =DataPVBom!BB38 -> 0 | BE76: =DataPVBom!BC38 -> 0 | BF76: =DataPVBom!BD38 -> 0 | BG76: =DataPVBom!BE38 -> 0 | BH76: =DataPVBom!BF38 -> 0 | BI76: =DataPVBom!BG38 -> 0 | BJ76: =DataPVBom!BH38 -> 0 | BK76: =DataPVBom!BI38 -> 0 | BL76: =DataPVBom!BJ38 -> 0 | BM76: =DataPVBom!BK38 -> 0 | BN76: =DataPVBom!BL38 -> 0 | BO76: =DataPVBom!BM38 -> 0 | BP76: =DataPVBom!BN38 -> 0 | BQ76: =DataPVBom!BO38 -> 0 | BR76: =DataPVBom!BP38 -> 0 | BS76: =DataPVBom!BQ38 -> 0 | BT76: =DataPVBom!BR38 -> 0 | BU76: =DataPVBom!BS38 -> 0 | BV76: =DataPVBom!BT38 -> 0 | BW76: =DataPVBom!BU38 -> 0 | BX76: =DataPVBom!BV38 -> 0 | BY76: =DataPVBom!BW38 -> 0 | BZ76: =DataPVBom!BX38 -> 0 | CA76: =DataPVBom!BY38 -> 0 | CB76: =DataPVBom!BZ38 -> 0 | CC76: =DataPVBom!CA38 -> 0 | CD76: =DataPVBom!CB38 -> 0 | CE76: =DataPVBom!CC38 -> 0 | CF76: =DataPVBom!CD38 -> 0 | CG76: =DataPVBom!CE38 -> 0 | CH76: =DataPVBom!CF38 -> 0 | CI76: =DataPVBom!CG38 -> 0 | CJ76: =DataPVBom!CH38 -> 0 | CK76: =DataPVBom!CI38 -> 0 | CL76: =DataPVBom!CJ38 -> 0 | CM76: =DataPVBom!CK38 -> 0 | CN76: =DataPVBom!CL38 -> 0 | CO76: =DataPVBom!CM38 -> 0 | CP76: =DataPVBom!CN38 -> 0
A77: 39 | C77: =DataPVBom!A39 -> 0 | D77: =DataPVBom!B39 -> 0 | E77: =DataPVBom!C39 -> 0 | F77: =DataPVBom!D39 -> 0 | G77: =DataPVBom!E39 -> 0 | H77: =DataPVBom!F39 -> 0 | I77: =DataPVBom!G39 -> 0 | J77: =DataPVBom!H39 -> 0 | K77: =DataPVBom!I39 -> 0 | L77: =DataPVBom!J39 -> 0 | M77: =DataPVBom!K39 -> 0 | N77: =DataPVBom!L39 -> 0 | O77: =DataPVBom!M39 -> 0 | P77: =DataPVBom!N39 -> 0 | Q77: =DataPVBom!O39 -> 0 | R77: =DataPVBom!P39 -> 0 | S77: =DataPVBom!Q39 -> 0 | T77: =DataPVBom!R39 -> 0 | U77: =DataPVBom!S39 -> 0 | V77: =DataPVBom!T39 -> 0 | W77: =DataPVBom!U39 -> 0 | X77: =DataPVBom!V39 -> 0 | Y77: =DataPVBom!W39 -> 0 | Z77: =DataPVBom!X39 -> 0 | AA77: =DataPVBom!Y39 -> 0 | AB77: =DataPVBom!Z39 -> 0 | AC77: =DataPVBom!AA39 -> 0 | AD77: =DataPVBom!AB39 -> 0 | AE77: =DataPVBom!AC39 -> 0 | AF77: =DataPVBom!AD39 -> 0 | AG77: =DataPVBom!AE39 -> 0 | AH77: =DataPVBom!AF39 -> 0 | AI77: =DataPVBom!AG39 -> 0 | AJ77: =DataPVBom!AH39 -> 0 | AK77: =DataPVBom!AI39 -> 0 | AL77: =DataPVBom!AJ39 -> 0 | AM77: =DataPVBom!AK39 -> 0 | AN77: =DataPVBom!AL39 -> 0 | AO77: =DataPVBom!AM39 -> 0 | AP77: =DataPVBom!AN39 -> 0 | AQ77: =DataPVBom!AO39 -> 0 | AR77: =DataPVBom!AP39 -> 0 | AS77: =DataPVBom!AQ39 -> 0 | AT77: =DataPVBom!AR39 -> 0 | AU77: =DataPVBom!AS39 -> 0 | AV77: =DataPVBom!AT39 -> 0 | AW77: =DataPVBom!AU39 -> 0 | AX77: =DataPVBom!AV39 -> 0 | AY77: =DataPVBom!AW39 -> 0 | AZ77: =DataPVBom!AX39 -> 0 | BA77: =DataPVBom!AY39 -> 0 | BB77: =DataPVBom!AZ39 -> 0 | BC77: =DataPVBom!BA39 -> 0 | BD77: =DataPVBom!BB39 -> 0 | BE77: =DataPVBom!BC39 -> 0 | BF77: =DataPVBom!BD39 -> 0 | BG77: =DataPVBom!BE39 -> 0 | BH77: =DataPVBom!BF39 -> 0 | BI77: =DataPVBom!BG39 -> 0 | BJ77: =DataPVBom!BH39 -> 0 | BK77: =DataPVBom!BI39 -> 0 | BL77: =DataPVBom!BJ39 -> 0 | BM77: =DataPVBom!BK39 -> 0 | BN77: =DataPVBom!BL39 -> 0 | BO77: =DataPVBom!BM39 -> 0 | BP77: =DataPVBom!BN39 -> 0 | BQ77: =DataPVBom!BO39 -> 0 | BR77: =DataPVBom!BP39 -> 0 | BS77: =DataPVBom!BQ39 -> 0 | BT77: =DataPVBom!BR39 -> 0 | BU77: =DataPVBom!BS39 -> 0 | BV77: =DataPVBom!BT39 -> 0 | BW77: =DataPVBom!BU39 -> 0 | BX77: =DataPVBom!BV39 -> 0 | BY77: =DataPVBom!BW39 -> 0 | BZ77: =DataPVBom!BX39 -> 0 | CA77: =DataPVBom!BY39 -> 0 | CB77: =DataPVBom!BZ39 -> 0 | CC77: =DataPVBom!CA39 -> 0 | CD77: =DataPVBom!CB39 -> 0 | CE77: =DataPVBom!CC39 -> 0 | CF77: =DataPVBom!CD39 -> 0 | CG77: =DataPVBom!CE39 -> 0 | CH77: =DataPVBom!CF39 -> 0 | CI77: =DataPVBom!CG39 -> 0 | CJ77: =DataPVBom!CH39 -> 0 | CK77: =DataPVBom!CI39 -> 0 | CL77: =DataPVBom!CJ39 -> 0 | CM77: =DataPVBom!CK39 -> 0 | CN77: =DataPVBom!CL39 -> 0 | CO77: =DataPVBom!CM39 -> 0 | CP77: =DataPVBom!CN39 -> 0
A78: 40 | C78: =DataPVBom!A40 -> 0 | D78: =DataPVBom!B40 -> 0 | E78: =DataPVBom!C40 -> 0 | F78: =DataPVBom!D40 -> 0 | G78: =DataPVBom!E40 -> 0 | H78: =DataPVBom!F40 -> 0 | I78: =DataPVBom!G40 -> 0 | J78: =DataPVBom!H40 -> 0 | K78: =DataPVBom!I40 -> 0 | L78: =DataPVBom!J40 -> 0 | M78: =DataPVBom!K40 -> 0 | N78: =DataPVBom!L40 -> 0 | O78: =DataPVBom!M40 -> 0 | P78: =DataPVBom!N40 -> 0 | Q78: =DataPVBom!O40 -> 0 | R78: =DataPVBom!P40 -> 0 | S78: =DataPVBom!Q40 -> 0 | T78: =DataPVBom!R40 -> 0 | U78: =DataPVBom!S40 -> 0 | V78: =DataPVBom!T40 -> 0 | W78: =DataPVBom!U40 -> 0 | X78: =DataPVBom!V40 -> 0 | Y78: =DataPVBom!W40 -> 0 | Z78: =DataPVBom!X40 -> 0 | AA78: =DataPVBom!Y40 -> 0 | AB78: =DataPVBom!Z40 -> 0 | AC78: =DataPVBom!AA40 -> 0 | AD78: =DataPVBom!AB40 -> 0 | AE78: =DataPVBom!AC40 -> 0 | AF78: =DataPVBom!AD40 -> 0 | AG78: =DataPVBom!AE40 -> 0 | AH78: =DataPVBom!AF40 -> 0 | AI78: =DataPVBom!AG40 -> 0 | AJ78: =DataPVBom!AH40 -> 0 | AK78: =DataPVBom!AI40 -> 0 | AL78: =DataPVBom!AJ40 -> 0 | AM78: =DataPVBom!AK40 -> 0 | AN78: =DataPVBom!AL40 -> 0 | AO78: =DataPVBom!AM40 -> 0 | AP78: =DataPVBom!AN40 -> 0 | AQ78: =DataPVBom!AO40 -> 0 | AR78: =DataPVBom!AP40 -> 0 | AS78: =DataPVBom!AQ40 -> 0 | AT78: =DataPVBom!AR40 -> 0 | AU78: =DataPVBom!AS40 -> 0 | AV78: =DataPVBom!AT40 -> 0 | AW78: =DataPVBom!AU40 -> 0 | AX78: =DataPVBom!AV40 -> 0 | AY78: =DataPVBom!AW40 -> 0 | AZ78: =DataPVBom!AX40 -> 0 | BA78: =DataPVBom!AY40 -> 0 | BB78: =DataPVBom!AZ40 -> 0 | BC78: =DataPVBom!BA40 -> 0 | BD78: =DataPVBom!BB40 -> 0 | BE78: =DataPVBom!BC40 -> 0 | BF78: =DataPVBom!BD40 -> 0 | BG78: =DataPVBom!BE40 -> 0 | BH78: =DataPVBom!BF40 -> 0 | BI78: =DataPVBom!BG40 -> 0 | BJ78: =DataPVBom!BH40 -> 0 | BK78: =DataPVBom!BI40 -> 0 | BL78: =DataPVBom!BJ40 -> 0 | BM78: =DataPVBom!BK40 -> 0 | BN78: =DataPVBom!BL40 -> 0 | BO78: =DataPVBom!BM40 -> 0 | BP78: =DataPVBom!BN40 -> 0 | BQ78: =DataPVBom!BO40 -> 0 | BR78: =DataPVBom!BP40 -> 0 | BS78: =DataPVBom!BQ40 -> 0 | BT78: =DataPVBom!BR40 -> 0 | BU78: =DataPVBom!BS40 -> 0 | BV78: =DataPVBom!BT40 -> 0 | BW78: =DataPVBom!BU40 -> 0 | BX78: =DataPVBom!BV40 -> 0 | BY78: =DataPVBom!BW40 -> 0 | BZ78: =DataPVBom!BX40 -> 0 | CA78: =DataPVBom!BY40 -> 0 | CB78: =DataPVBom!BZ40 -> 0 | CC78: =DataPVBom!CA40 -> 0 | CD78: =DataPVBom!CB40 -> 0 | CE78: =DataPVBom!CC40 -> 0 | CF78: =DataPVBom!CD40 -> 0 | CG78: =DataPVBom!CE40 -> 0 | CH78: =DataPVBom!CF40 -> 0 | CI78: =DataPVBom!CG40 -> 0 | CJ78: =DataPVBom!CH40 -> 0 | CK78: =DataPVBom!CI40 -> 0 | CL78: =DataPVBom!CJ40 -> 0 | CM78: =DataPVBom!CK40 -> 0 | CN78: =DataPVBom!CL40 -> 0 | CO78: =DataPVBom!CM40 -> 0 | CP78: =DataPVBom!CN40 -> 0
A79: 41 | C79: =DataPVBom!A41 -> 0 | D79: =DataPVBom!B41 -> 0 | E79: =DataPVBom!C41 -> 0 | F79: =DataPVBom!D41 -> 0 | G79: =DataPVBom!E41 -> 0 | H79: =DataPVBom!F41 -> 0 | I79: =DataPVBom!G41 -> 0 | J79: =DataPVBom!H41 -> 0 | K79: =DataPVBom!I41 -> 0 | L79: =DataPVBom!J41 -> 0 | M79: =DataPVBom!K41 -> 0 | N79: =DataPVBom!L41 -> 0 | O79: =DataPVBom!M41 -> 0 | P79: =DataPVBom!N41 -> 0 | Q79: =DataPVBom!O41 -> 0 | R79: =DataPVBom!P41 -> 0 | S79: =DataPVBom!Q41 -> 0 | T79: =DataPVBom!R41 -> 0 | U79: =DataPVBom!S41 -> 0 | V79: =DataPVBom!T41 -> 0 | W79: =DataPVBom!U41 -> 0 | X79: =DataPVBom!V41 -> 0 | Y79: =DataPVBom!W41 -> 0 | Z79: =DataPVBom!X41 -> 0 | AA79: =DataPVBom!Y41 -> 0 | AB79: =DataPVBom!Z41 -> 0 | AC79: =DataPVBom!AA41 -> 0 | AD79: =DataPVBom!AB41 -> 0 | AE79: =DataPVBom!AC41 -> 0 | AF79: =DataPVBom!AD41 -> 0 | AG79: =DataPVBom!AE41 -> 0 | AH79: =DataPVBom!AF41 -> 0 | AI79: =DataPVBom!AG41 -> 0 | AJ79: =DataPVBom!AH41 -> 0 | AK79: =DataPVBom!AI41 -> 0 | AL79: =DataPVBom!AJ41 -> 0 | AM79: =DataPVBom!AK41 -> 0 | AN79: =DataPVBom!AL41 -> 0 | AO79: =DataPVBom!AM41 -> 0 | AP79: =DataPVBom!AN41 -> 0 | AQ79: =DataPVBom!AO41 -> 0 | AR79: =DataPVBom!AP41 -> 0 | AS79: =DataPVBom!AQ41 -> 0 | AT79: =DataPVBom!AR41 -> 0 | AU79: =DataPVBom!AS41 -> 0 | AV79: =DataPVBom!AT41 -> 0 | AW79: =DataPVBom!AU41 -> 0 | AX79: =DataPVBom!AV41 -> 0 | AY79: =DataPVBom!AW41 -> 0 | AZ79: =DataPVBom!AX41 -> 0 | BA79: =DataPVBom!AY41 -> 0 | BB79: =DataPVBom!AZ41 -> 0 | BC79: =DataPVBom!BA41 -> 0 | BD79: =DataPVBom!BB41 -> 0 | BE79: =DataPVBom!BC41 -> 0 | BF79: =DataPVBom!BD41 -> 0 | BG79: =DataPVBom!BE41 -> 0 | BH79: =DataPVBom!BF41 -> 0 | BI79: =DataPVBom!BG41 -> 0 | BJ79: =DataPVBom!BH41 -> 0 | BK79: =DataPVBom!BI41 -> 0 | BL79: =DataPVBom!BJ41 -> 0 | BM79: =DataPVBom!BK41 -> 0 | BN79: =DataPVBom!BL41 -> 0 | BO79: =DataPVBom!BM41 -> 0 | BP79: =DataPVBom!BN41 -> 0 | BQ79: =DataPVBom!BO41 -> 0 | BR79: =DataPVBom!BP41 -> 0 | BS79: =DataPVBom!BQ41 -> 0 | BT79: =DataPVBom!BR41 -> 0 | BU79: =DataPVBom!BS41 -> 0 | BV79: =DataPVBom!BT41 -> 0 | BW79: =DataPVBom!BU41 -> 0 | BX79: =DataPVBom!BV41 -> 0 | BY79: =DataPVBom!BW41 -> 0 | BZ79: =DataPVBom!BX41 -> 0 | CA79: =DataPVBom!BY41 -> 0 | CB79: =DataPVBom!BZ41 -> 0 | CC79: =DataPVBom!CA41 -> 0 | CD79: =DataPVBom!CB41 -> 0 | CE79: =DataPVBom!CC41 -> 0 | CF79: =DataPVBom!CD41 -> 0 | CG79: =DataPVBom!CE41 -> 0 | CH79: =DataPVBom!CF41 -> 0 | CI79: =DataPVBom!CG41 -> 0 | CJ79: =DataPVBom!CH41 -> 0 | CK79: =DataPVBom!CI41 -> 0 | CL79: =DataPVBom!CJ41 -> 0 | CM79: =DataPVBom!CK41 -> 0 | CN79: =DataPVBom!CL41 -> 0 | CO79: =DataPVBom!CM41 -> 0 | CP79: =DataPVBom!CN41 -> 0
A80: 42 | C80: =DataPVBom!A42 -> 0 | D80: =DataPVBom!B42 -> 0 | E80: =DataPVBom!C42 -> 0 | F80: =DataPVBom!D42 -> 0 | G80: =DataPVBom!E42 -> 0 | H80: =DataPVBom!F42 -> 0 | I80: =DataPVBom!G42 -> 0 | J80: =DataPVBom!H42 -> 0 | K80: =DataPVBom!I42 -> 0 | L80: =DataPVBom!J42 -> 0 | M80: =DataPVBom!K42 -> 0 | N80: =DataPVBom!L42 -> 0 | O80: =DataPVBom!M42 -> 0 | P80: =DataPVBom!N42 -> 0 | Q80: =DataPVBom!O42 -> 0 | R80: =DataPVBom!P42 -> 0 | S80: =DataPVBom!Q42 -> 0 | T80: =DataPVBom!R42 -> 0 | U80: =DataPVBom!S42 -> 0 | V80: =DataPVBom!T42 -> 0 | W80: =DataPVBom!U42 -> 0 | X80: =DataPVBom!V42 -> 0 | Y80: =DataPVBom!W42 -> 0 | Z80: =DataPVBom!X42 -> 0 | AA80: =DataPVBom!Y42 -> 0 | AB80: =DataPVBom!Z42 -> 0 | AC80: =DataPVBom!AA42 -> 0 | AD80: =DataPVBom!AB42 -> 0 | AE80: =DataPVBom!AC42 -> 0 | AF80: =DataPVBom!AD42 -> 0 | AG80: =DataPVBom!AE42 -> 0 | AH80: =DataPVBom!AF42 -> 0 | AI80: =DataPVBom!AG42 -> 0 | AJ80: =DataPVBom!AH42 -> 0 | AK80: =DataPVBom!AI42 -> 0 | AL80: =DataPVBom!AJ42 -> 0 | AM80: =DataPVBom!AK42 -> 0 | AN80: =DataPVBom!AL42 -> 0 | AO80: =DataPVBom!AM42 -> 0 | AP80: =DataPVBom!AN42 -> 0 | AQ80: =DataPVBom!AO42 -> 0 | AR80: =DataPVBom!AP42 -> 0 | AS80: =DataPVBom!AQ42 -> 0 | AT80: =DataPVBom!AR42 -> 0 | AU80: =DataPVBom!AS42 -> 0 | AV80: =DataPVBom!AT42 -> 0 | AW80: =DataPVBom!AU42 -> 0 | AX80: =DataPVBom!AV42 -> 0 | AY80: =DataPVBom!AW42 -> 0 | AZ80: =DataPVBom!AX42 -> 0 | BA80: =DataPVBom!AY42 -> 0 | BB80: =DataPVBom!AZ42 -> 0 | BC80: =DataPVBom!BA42 -> 0 | BD80: =DataPVBom!BB42 -> 0 | BE80: =DataPVBom!BC42 -> 0 | BF80: =DataPVBom!BD42 -> 0 | BG80: =DataPVBom!BE42 -> 0 | BH80: =DataPVBom!BF42 -> 0 | BI80: =DataPVBom!BG42 -> 0 | BJ80: =DataPVBom!BH42 -> 0 | BK80: =DataPVBom!BI42 -> 0 | BL80: =DataPVBom!BJ42 -> 0 | BM80: =DataPVBom!BK42 -> 0 | BN80: =DataPVBom!BL42 -> 0 | BO80: =DataPVBom!BM42 -> 0 | BP80: =DataPVBom!BN42 -> 0 | BQ80: =DataPVBom!BO42 -> 0 | BR80: =DataPVBom!BP42 -> 0 | BS80: =DataPVBom!BQ42 -> 0 | BT80: =DataPVBom!BR42 -> 0 | BU80: =DataPVBom!BS42 -> 0 | BV80: =DataPVBom!BT42 -> 0 | BW80: =DataPVBom!BU42 -> 0 | BX80: =DataPVBom!BV42 -> 0 | BY80: =DataPVBom!BW42 -> 0 | BZ80: =DataPVBom!BX42 -> 0 | CA80: =DataPVBom!BY42 -> 0 | CB80: =DataPVBom!BZ42 -> 0 | CC80: =DataPVBom!CA42 -> 0 | CD80: =DataPVBom!CB42 -> 0 | CE80: =DataPVBom!CC42 -> 0 | CF80: =DataPVBom!CD42 -> 0 | CG80: =DataPVBom!CE42 -> 0 | CH80: =DataPVBom!CF42 -> 0 | CI80: =DataPVBom!CG42 -> 0 | CJ80: =DataPVBom!CH42 -> 0 | CK80: =DataPVBom!CI42 -> 0 | CL80: =DataPVBom!CJ42 -> 0 | CM80: =DataPVBom!CK42 -> 0 | CN80: =DataPVBom!CL42 -> 0 | CO80: =DataPVBom!CM42 -> 0 | CP80: =DataPVBom!CN42 -> 0
A81: 43 | C81: =DataPVBom!A43 -> 0 | D81: =DataPVBom!B43 -> 0 | E81: =DataPVBom!C43 -> 0 | F81: =DataPVBom!D43 -> 0 | G81: =DataPVBom!E43 -> 0 | H81: =DataPVBom!F43 -> 0 | I81: =DataPVBom!G43 -> 0 | J81: =DataPVBom!H43 -> 0 | K81: =DataPVBom!I43 -> 0 | L81: =DataPVBom!J43 -> 0 | M81: =DataPVBom!K43 -> 0 | N81: =DataPVBom!L43 -> 0 | O81: =DataPVBom!M43 -> 0 | P81: =DataPVBom!N43 -> 0 | Q81: =DataPVBom!O43 -> 0 | R81: =DataPVBom!P43 -> 0 | S81: =DataPVBom!Q43 -> 0 | T81: =DataPVBom!R43 -> 0 | U81: =DataPVBom!S43 -> 0 | V81: =DataPVBom!T43 -> 0 | W81: =DataPVBom!U43 -> 0 | X81: =DataPVBom!V43 -> 0 | Y81: =DataPVBom!W43 -> 0 | Z81: =DataPVBom!X43 -> 0 | AA81: =DataPVBom!Y43 -> 0 | AB81: =DataPVBom!Z43 -> 0 | AC81: =DataPVBom!AA43 -> 0 | AD81: =DataPVBom!AB43 -> 0 | AE81: =DataPVBom!AC43 -> 0 | AF81: =DataPVBom!AD43 -> 0 | AG81: =DataPVBom!AE43 -> 0 | AH81: =DataPVBom!AF43 -> 0 | AI81: =DataPVBom!AG43 -> 0 | AJ81: =DataPVBom!AH43 -> 0 | AK81: =DataPVBom!AI43 -> 0 | AL81: =DataPVBom!AJ43 -> 0 | AM81: =DataPVBom!AK43 -> 0 | AN81: =DataPVBom!AL43 -> 0 | AO81: =DataPVBom!AM43 -> 0 | AP81: =DataPVBom!AN43 -> 0 | AQ81: =DataPVBom!AO43 -> 0 | AR81: =DataPVBom!AP43 -> 0 | AS81: =DataPVBom!AQ43 -> 0 | AT81: =DataPVBom!AR43 -> 0 | AU81: =DataPVBom!AS43 -> 0 | AV81: =DataPVBom!AT43 -> 0 | AW81: =DataPVBom!AU43 -> 0 | AX81: =DataPVBom!AV43 -> 0 | AY81: =DataPVBom!AW43 -> 0 | AZ81: =DataPVBom!AX43 -> 0 | BA81: =DataPVBom!AY43 -> 0 | BB81: =DataPVBom!AZ43 -> 0 | BC81: =DataPVBom!BA43 -> 0 | BD81: =DataPVBom!BB43 -> 0 | BE81: =DataPVBom!BC43 -> 0 | BF81: =DataPVBom!BD43 -> 0 | BG81: =DataPVBom!BE43 -> 0 | BH81: =DataPVBom!BF43 -> 0 | BI81: =DataPVBom!BG43 -> 0 | BJ81: =DataPVBom!BH43 -> 0 | BK81: =DataPVBom!BI43 -> 0 | BL81: =DataPVBom!BJ43 -> 0 | BM81: =DataPVBom!BK43 -> 0 | BN81: =DataPVBom!BL43 -> 0 | BO81: =DataPVBom!BM43 -> 0 | BP81: =DataPVBom!BN43 -> 0 | BQ81: =DataPVBom!BO43 -> 0 | BR81: =DataPVBom!BP43 -> 0 | BS81: =DataPVBom!BQ43 -> 0 | BT81: =DataPVBom!BR43 -> 0 | BU81: =DataPVBom!BS43 -> 0 | BV81: =DataPVBom!BT43 -> 0 | BW81: =DataPVBom!BU43 -> 0 | BX81: =DataPVBom!BV43 -> 0 | BY81: =DataPVBom!BW43 -> 0 | BZ81: =DataPVBom!BX43 -> 0 | CA81: =DataPVBom!BY43 -> 0 | CB81: =DataPVBom!BZ43 -> 0 | CC81: =DataPVBom!CA43 -> 0 | CD81: =DataPVBom!CB43 -> 0 | CE81: =DataPVBom!CC43 -> 0 | CF81: =DataPVBom!CD43 -> 0 | CG81: =DataPVBom!CE43 -> 0 | CH81: =DataPVBom!CF43 -> 0 | CI81: =DataPVBom!CG43 -> 0 | CJ81: =DataPVBom!CH43 -> 0 | CK81: =DataPVBom!CI43 -> 0 | CL81: =DataPVBom!CJ43 -> 0 | CM81: =DataPVBom!CK43 -> 0 | CN81: =DataPVBom!CL43 -> 0 | CO81: =DataPVBom!CM43 -> 0 | CP81: =DataPVBom!CN43 -> 0
A82: 44 | C82: =DataPVBom!A44 -> 0 | D82: =DataPVBom!B44 -> 0 | E82: =DataPVBom!C44 -> 0 | F82: =DataPVBom!D44 -> 0 | G82: =DataPVBom!E44 -> 0 | H82: =DataPVBom!F44 -> 0 | I82: =DataPVBom!G44 -> 0 | J82: =DataPVBom!H44 -> 0 | K82: =DataPVBom!I44 -> 0 | L82: =DataPVBom!J44 -> 0 | M82: =DataPVBom!K44 -> 0 | N82: =DataPVBom!L44 -> 0 | O82: =DataPVBom!M44 -> 0 | P82: =DataPVBom!N44 -> 0 | Q82: =DataPVBom!O44 -> 0 | R82: =DataPVBom!P44 -> 0 | S82: =DataPVBom!Q44 -> 0 | T82: =DataPVBom!R44 -> 0 | U82: =DataPVBom!S44 -> 0 | V82: =DataPVBom!T44 -> 0 | W82: =DataPVBom!U44 -> 0 | X82: =DataPVBom!V44 -> 0 | Y82: =DataPVBom!W44 -> 0 | Z82: =DataPVBom!X44 -> 0 | AA82: =DataPVBom!Y44 -> 0 | AB82: =DataPVBom!Z44 -> 0 | AC82: =DataPVBom!AA44 -> 0 | AD82: =DataPVBom!AB44 -> 0 | AE82: =DataPVBom!AC44 -> 0 | AF82: =DataPVBom!AD44 -> 0 | AG82: =DataPVBom!AE44 -> 0 | AH82: =DataPVBom!AF44 -> 0 | AI82: =DataPVBom!AG44 -> 0 | AJ82: =DataPVBom!AH44 -> 0 | AK82: =DataPVBom!AI44 -> 0 | AL82: =DataPVBom!AJ44 -> 0 | AM82: =DataPVBom!AK44 -> 0 | AN82: =DataPVBom!AL44 -> 0 | AO82: =DataPVBom!AM44 -> 0 | AP82: =DataPVBom!AN44 -> 0 | AQ82: =DataPVBom!AO44 -> 0 | AR82: =DataPVBom!AP44 -> 0 | AS82: =DataPVBom!AQ44 -> 0 | AT82: =DataPVBom!AR44 -> 0 | AU82: =DataPVBom!AS44 -> 0 | AV82: =DataPVBom!AT44 -> 0 | AW82: =DataPVBom!AU44 -> 0 | AX82: =DataPVBom!AV44 -> 0 | AY82: =DataPVBom!AW44 -> 0 | AZ82: =DataPVBom!AX44 -> 0 | BA82: =DataPVBom!AY44 -> 0 | BB82: =DataPVBom!AZ44 -> 0 | BC82: =DataPVBom!BA44 -> 0 | BD82: =DataPVBom!BB44 -> 0 | BE82: =DataPVBom!BC44 -> 0 | BF82: =DataPVBom!BD44 -> 0 | BG82: =DataPVBom!BE44 -> 0 | BH82: =DataPVBom!BF44 -> 0 | BI82: =DataPVBom!BG44 -> 0 | BJ82: =DataPVBom!BH44 -> 0 | BK82: =DataPVBom!BI44 -> 0 | BL82: =DataPVBom!BJ44 -> 0 | BM82: =DataPVBom!BK44 -> 0 | BN82: =DataPVBom!BL44 -> 0 | BO82: =DataPVBom!BM44 -> 0 | BP82: =DataPVBom!BN44 -> 0 | BQ82: =DataPVBom!BO44 -> 0 | BR82: =DataPVBom!BP44 -> 0 | BS82: =DataPVBom!BQ44 -> 0 | BT82: =DataPVBom!BR44 -> 0 | BU82: =DataPVBom!BS44 -> 0 | BV82: =DataPVBom!BT44 -> 0 | BW82: =DataPVBom!BU44 -> 0 | BX82: =DataPVBom!BV44 -> 0 | BY82: =DataPVBom!BW44 -> 0 | BZ82: =DataPVBom!BX44 -> 0 | CA82: =DataPVBom!BY44 -> 0 | CB82: =DataPVBom!BZ44 -> 0 | CC82: =DataPVBom!CA44 -> 0 | CD82: =DataPVBom!CB44 -> 0 | CE82: =DataPVBom!CC44 -> 0 | CF82: =DataPVBom!CD44 -> 0 | CG82: =DataPVBom!CE44 -> 0 | CH82: =DataPVBom!CF44 -> 0 | CI82: =DataPVBom!CG44 -> 0 | CJ82: =DataPVBom!CH44 -> 0 | CK82: =DataPVBom!CI44 -> 0 | CL82: =DataPVBom!CJ44 -> 0 | CM82: =DataPVBom!CK44 -> 0 | CN82: =DataPVBom!CL44 -> 0 | CO82: =DataPVBom!CM44 -> 0 | CP82: =DataPVBom!CN44 -> 0
A83: 45 | C83: =DataPVBom!A45 -> 0 | D83: =DataPVBom!B45 -> 0 | E83: =DataPVBom!C45 -> 0 | F83: =DataPVBom!D45 -> 0 | G83: =DataPVBom!E45 -> 0 | H83: =DataPVBom!F45 -> 0 | I83: =DataPVBom!G45 -> 0 | J83: =DataPVBom!H45 -> 0 | K83: =DataPVBom!I45 -> 0 | L83: =DataPVBom!J45 -> 0 | M83: =DataPVBom!K45 -> 0 | N83: =DataPVBom!L45 -> 0 | O83: =DataPVBom!M45 -> 0 | P83: =DataPVBom!N45 -> 0 | Q83: =DataPVBom!O45 -> 0 | R83: =DataPVBom!P45 -> 0 | S83: =DataPVBom!Q45 -> 0 | T83: =DataPVBom!R45 -> 0 | U83: =DataPVBom!S45 -> 0 | V83: =DataPVBom!T45 -> 0 | W83: =DataPVBom!U45 -> 0 | X83: =DataPVBom!V45 -> 0 | Y83: =DataPVBom!W45 -> 0 | Z83: =DataPVBom!X45 -> 0 | AA83: =DataPVBom!Y45 -> 0 | AB83: =DataPVBom!Z45 -> 0 | AC83: =DataPVBom!AA45 -> 0 | AD83: =DataPVBom!AB45 -> 0 | AE83: =DataPVBom!AC45 -> 0 | AF83: =DataPVBom!AD45 -> 0 | AG83: =DataPVBom!AE45 -> 0 | AH83: =DataPVBom!AF45 -> 0 | AI83: =DataPVBom!AG45 -> 0 | AJ83: =DataPVBom!AH45 -> 0 | AK83: =DataPVBom!AI45 -> 0 | AL83: =DataPVBom!AJ45 -> 0 | AM83: =DataPVBom!AK45 -> 0 | AN83: =DataPVBom!AL45 -> 0 | AO83: =DataPVBom!AM45 -> 0 | AP83: =DataPVBom!AN45 -> 0 | AQ83: =DataPVBom!AO45 -> 0 | AR83: =DataPVBom!AP45 -> 0 | AS83: =DataPVBom!AQ45 -> 0 | AT83: =DataPVBom!AR45 -> 0 | AU83: =DataPVBom!AS45 -> 0 | AV83: =DataPVBom!AT45 -> 0 | AW83: =DataPVBom!AU45 -> 0 | AX83: =DataPVBom!AV45 -> 0 | AY83: =DataPVBom!AW45 -> 0 | AZ83: =DataPVBom!AX45 -> 0 | BA83: =DataPVBom!AY45 -> 0 | BB83: =DataPVBom!AZ45 -> 0 | BC83: =DataPVBom!BA45 -> 0 | BD83: =DataPVBom!BB45 -> 0 | BE83: =DataPVBom!BC45 -> 0 | BF83: =DataPVBom!BD45 -> 0 | BG83: =DataPVBom!BE45 -> 0 | BH83: =DataPVBom!BF45 -> 0 | BI83: =DataPVBom!BG45 -> 0 | BJ83: =DataPVBom!BH45 -> 0 | BK83: =DataPVBom!BI45 -> 0 | BL83: =DataPVBom!BJ45 -> 0 | BM83: =DataPVBom!BK45 -> 0 | BN83: =DataPVBom!BL45 -> 0 | BO83: =DataPVBom!BM45 -> 0 | BP83: =DataPVBom!BN45 -> 0 | BQ83: =DataPVBom!BO45 -> 0 | BR83: =DataPVBom!BP45 -> 0 | BS83: =DataPVBom!BQ45 -> 0 | BT83: =DataPVBom!BR45 -> 0 | BU83: =DataPVBom!BS45 -> 0 | BV83: =DataPVBom!BT45 -> 0 | BW83: =DataPVBom!BU45 -> 0 | BX83: =DataPVBom!BV45 -> 0 | BY83: =DataPVBom!BW45 -> 0 | BZ83: =DataPVBom!BX45 -> 0 | CA83: =DataPVBom!BY45 -> 0 | CB83: =DataPVBom!BZ45 -> 0 | CC83: =DataPVBom!CA45 -> 0 | CD83: =DataPVBom!CB45 -> 0 | CE83: =DataPVBom!CC45 -> 0 | CF83: =DataPVBom!CD45 -> 0 | CG83: =DataPVBom!CE45 -> 0 | CH83: =DataPVBom!CF45 -> 0 | CI83: =DataPVBom!CG45 -> 0 | CJ83: =DataPVBom!CH45 -> 0 | CK83: =DataPVBom!CI45 -> 0 | CL83: =DataPVBom!CJ45 -> 0 | CM83: =DataPVBom!CK45 -> 0 | CN83: =DataPVBom!CL45 -> 0 | CO83: =DataPVBom!CM45 -> 0 | CP83: =DataPVBom!CN45 -> 0
A84: 46 | C84: =DataPVBom!A46 -> 0 | D84: =DataPVBom!B46 -> 0 | E84: =DataPVBom!C46 -> 0 | F84: =DataPVBom!D46 -> 0 | G84: =DataPVBom!E46 -> 0 | H84: =DataPVBom!F46 -> 0 | I84: =DataPVBom!G46 -> 0 | J84: =DataPVBom!H46 -> 0 | K84: =DataPVBom!I46 -> 0 | L84: =DataPVBom!J46 -> 0 | M84: =DataPVBom!K46 -> 0 | N84: =DataPVBom!L46 -> 0 | O84: =DataPVBom!M46 -> 0 | P84: =DataPVBom!N46 -> 0 | Q84: =DataPVBom!O46 -> 0 | R84: =DataPVBom!P46 -> 0 | S84: =DataPVBom!Q46 -> 0 | T84: =DataPVBom!R46 -> 0 | U84: =DataPVBom!S46 -> 0 | V84: =DataPVBom!T46 -> 0 | W84: =DataPVBom!U46 -> 0 | X84: =DataPVBom!V46 -> 0 | Y84: =DataPVBom!W46 -> 0 | Z84: =DataPVBom!X46 -> 0 | AA84: =DataPVBom!Y46 -> 0 | AB84: =DataPVBom!Z46 -> 0 | AC84: =DataPVBom!AA46 -> 0 | AD84: =DataPVBom!AB46 -> 0 | AE84: =DataPVBom!AC46 -> 0 | AF84: =DataPVBom!AD46 -> 0 | AG84: =DataPVBom!AE46 -> 0 | AH84: =DataPVBom!AF46 -> 0 | AI84: =DataPVBom!AG46 -> 0 | AJ84: =DataPVBom!AH46 -> 0 | AK84: =DataPVBom!AI46 -> 0 | AL84: =DataPVBom!AJ46 -> 0 | AM84: =DataPVBom!AK46 -> 0 | AN84: =DataPVBom!AL46 -> 0 | AO84: =DataPVBom!AM46 -> 0 | AP84: =DataPVBom!AN46 -> 0 | AQ84: =DataPVBom!AO46 -> 0 | AR84: =DataPVBom!AP46 -> 0 | AS84: =DataPVBom!AQ46 -> 0 | AT84: =DataPVBom!AR46 -> 0 | AU84: =DataPVBom!AS46 -> 0 | AV84: =DataPVBom!AT46 -> 0 | AW84: =DataPVBom!AU46 -> 0 | AX84: =DataPVBom!AV46 -> 0 | AY84: =DataPVBom!AW46 -> 0 | AZ84: =DataPVBom!AX46 -> 0 | BA84: =DataPVBom!AY46 -> 0 | BB84: =DataPVBom!AZ46 -> 0 | BC84: =DataPVBom!BA46 -> 0 | BD84: =DataPVBom!BB46 -> 0 | BE84: =DataPVBom!BC46 -> 0 | BF84: =DataPVBom!BD46 -> 0 | BG84: =DataPVBom!BE46 -> 0 | BH84: =DataPVBom!BF46 -> 0 | BI84: =DataPVBom!BG46 -> 0 | BJ84: =DataPVBom!BH46 -> 0 | BK84: =DataPVBom!BI46 -> 0 | BL84: =DataPVBom!BJ46 -> 0 | BM84: =DataPVBom!BK46 -> 0 | BN84: =DataPVBom!BL46 -> 0 | BO84: =DataPVBom!BM46 -> 0 | BP84: =DataPVBom!BN46 -> 0 | BQ84: =DataPVBom!BO46 -> 0 | BR84: =DataPVBom!BP46 -> 0 | BS84: =DataPVBom!BQ46 -> 0 | BT84: =DataPVBom!BR46 -> 0 | BU84: =DataPVBom!BS46 -> 0 | BV84: =DataPVBom!BT46 -> 0 | BW84: =DataPVBom!BU46 -> 0 | BX84: =DataPVBom!BV46 -> 0 | BY84: =DataPVBom!BW46 -> 0 | BZ84: =DataPVBom!BX46 -> 0 | CA84: =DataPVBom!BY46 -> 0 | CB84: =DataPVBom!BZ46 -> 0 | CC84: =DataPVBom!CA46 -> 0 | CD84: =DataPVBom!CB46 -> 0 | CE84: =DataPVBom!CC46 -> 0 | CF84: =DataPVBom!CD46 -> 0 | CG84: =DataPVBom!CE46 -> 0 | CH84: =DataPVBom!CF46 -> 0 | CI84: =DataPVBom!CG46 -> 0 | CJ84: =DataPVBom!CH46 -> 0 | CK84: =DataPVBom!CI46 -> 0 | CL84: =DataPVBom!CJ46 -> 0 | CM84: =DataPVBom!CK46 -> 0 | CN84: =DataPVBom!CL46 -> 0 | CO84: =DataPVBom!CM46 -> 0 | CP84: =DataPVBom!CN46 -> 0
A85: 47 | C85: =DataPVBom!A47 -> 0 | D85: =DataPVBom!B47 -> 0 | E85: =DataPVBom!C47 -> 0 | F85: =DataPVBom!D47 -> 0 | G85: =DataPVBom!E47 -> 0 | H85: =DataPVBom!F47 -> 0 | I85: =DataPVBom!G47 -> 0 | J85: =DataPVBom!H47 -> 0 | K85: =DataPVBom!I47 -> 0 | L85: =DataPVBom!J47 -> 0 | M85: =DataPVBom!K47 -> 0 | N85: =DataPVBom!L47 -> 0 | O85: =DataPVBom!M47 -> 0 | P85: =DataPVBom!N47 -> 0 | Q85: =DataPVBom!O47 -> 0 | R85: =DataPVBom!P47 -> 0 | S85: =DataPVBom!Q47 -> 0 | T85: =DataPVBom!R47 -> 0 | U85: =DataPVBom!S47 -> 0 | V85: =DataPVBom!T47 -> 0 | W85: =DataPVBom!U47 -> 0 | X85: =DataPVBom!V47 -> 0 | Y85: =DataPVBom!W47 -> 0 | Z85: =DataPVBom!X47 -> 0 | AA85: =DataPVBom!Y47 -> 0 | AB85: =DataPVBom!Z47 -> 0 | AC85: =DataPVBom!AA47 -> 0 | AD85: =DataPVBom!AB47 -> 0 | AE85: =DataPVBom!AC47 -> 0 | AF85: =DataPVBom!AD47 -> 0 | AG85: =DataPVBom!AE47 -> 0 | AH85: =DataPVBom!AF47 -> 0 | AI85: =DataPVBom!AG47 -> 0 | AJ85: =DataPVBom!AH47 -> 0 | AK85: =DataPVBom!AI47 -> 0 | AL85: =DataPVBom!AJ47 -> 0 | AM85: =DataPVBom!AK47 -> 0 | AN85: =DataPVBom!AL47 -> 0 | AO85: =DataPVBom!AM47 -> 0 | AP85: =DataPVBom!AN47 -> 0 | AQ85: =DataPVBom!AO47 -> 0 | AR85: =DataPVBom!AP47 -> 0 | AS85: =DataPVBom!AQ47 -> 0 | AT85: =DataPVBom!AR47 -> 0 | AU85: =DataPVBom!AS47 -> 0 | AV85: =DataPVBom!AT47 -> 0 | AW85: =DataPVBom!AU47 -> 0 | AX85: =DataPVBom!AV47 -> 0 | AY85: =DataPVBom!AW47 -> 0 | AZ85: =DataPVBom!AX47 -> 0 | BA85: =DataPVBom!AY47 -> 0 | BB85: =DataPVBom!AZ47 -> 0 | BC85: =DataPVBom!BA47 -> 0 | BD85: =DataPVBom!BB47 -> 0 | BE85: =DataPVBom!BC47 -> 0 | BF85: =DataPVBom!BD47 -> 0 | BG85: =DataPVBom!BE47 -> 0 | BH85: =DataPVBom!BF47 -> 0 | BI85: =DataPVBom!BG47 -> 0 | BJ85: =DataPVBom!BH47 -> 0 | BK85: =DataPVBom!BI47 -> 0 | BL85: =DataPVBom!BJ47 -> 0 | BM85: =DataPVBom!BK47 -> 0 | BN85: =DataPVBom!BL47 -> 0 | BO85: =DataPVBom!BM47 -> 0 | BP85: =DataPVBom!BN47 -> 0 | BQ85: =DataPVBom!BO47 -> 0 | BR85: =DataPVBom!BP47 -> 0 | BS85: =DataPVBom!BQ47 -> 0 | BT85: =DataPVBom!BR47 -> 0 | BU85: =DataPVBom!BS47 -> 0 | BV85: =DataPVBom!BT47 -> 0 | BW85: =DataPVBom!BU47 -> 0 | BX85: =DataPVBom!BV47 -> 0 | BY85: =DataPVBom!BW47 -> 0 | BZ85: =DataPVBom!BX47 -> 0 | CA85: =DataPVBom!BY47 -> 0 | CB85: =DataPVBom!BZ47 -> 0 | CC85: =DataPVBom!CA47 -> 0 | CD85: =DataPVBom!CB47 -> 0 | CE85: =DataPVBom!CC47 -> 0 | CF85: =DataPVBom!CD47 -> 0 | CG85: =DataPVBom!CE47 -> 0 | CH85: =DataPVBom!CF47 -> 0 | CI85: =DataPVBom!CG47 -> 0 | CJ85: =DataPVBom!CH47 -> 0 | CK85: =DataPVBom!CI47 -> 0 | CL85: =DataPVBom!CJ47 -> 0 | CM85: =DataPVBom!CK47 -> 0 | CN85: =DataPVBom!CL47 -> 0 | CO85: =DataPVBom!CM47 -> 0 | CP85: =DataPVBom!CN47 -> 0
A86: 48 | C86: =DataPVBom!A48 -> 0 | D86: =DataPVBom!B48 -> 0 | E86: =DataPVBom!C48 -> 0 | F86: =DataPVBom!D48 -> 0 | G86: =DataPVBom!E48 -> 0 | H86: =DataPVBom!F48 -> 0 | I86: =DataPVBom!G48 -> 0 | J86: =DataPVBom!H48 -> 0 | K86: =DataPVBom!I48 -> 0 | L86: =DataPVBom!J48 -> 0 | M86: =DataPVBom!K48 -> 0 | N86: =DataPVBom!L48 -> 0 | O86: =DataPVBom!M48 -> 0 | P86: =DataPVBom!N48 -> 0 | Q86: =DataPVBom!O48 -> 0 | R86: =DataPVBom!P48 -> 0 | S86: =DataPVBom!Q48 -> 0 | T86: =DataPVBom!R48 -> 0 | U86: =DataPVBom!S48 -> 0 | V86: =DataPVBom!T48 -> 0 | W86: =DataPVBom!U48 -> 0 | X86: =DataPVBom!V48 -> 0 | Y86: =DataPVBom!W48 -> 0 | Z86: =DataPVBom!X48 -> 0 | AA86: =DataPVBom!Y48 -> 0 | AB86: =DataPVBom!Z48 -> 0 | AC86: =DataPVBom!AA48 -> 0 | AD86: =DataPVBom!AB48 -> 0 | AE86: =DataPVBom!AC48 -> 0 | AF86: =DataPVBom!AD48 -> 0 | AG86: =DataPVBom!AE48 -> 0 | AH86: =DataPVBom!AF48 -> 0 | AI86: =DataPVBom!AG48 -> 0 | AJ86: =DataPVBom!AH48 -> 0 | AK86: =DataPVBom!AI48 -> 0 | AL86: =DataPVBom!AJ48 -> 0 | AM86: =DataPVBom!AK48 -> 0 | AN86: =DataPVBom!AL48 -> 0 | AO86: =DataPVBom!AM48 -> 0 | AP86: =DataPVBom!AN48 -> 0 | AQ86: =DataPVBom!AO48 -> 0 | AR86: =DataPVBom!AP48 -> 0 | AS86: =DataPVBom!AQ48 -> 0 | AT86: =DataPVBom!AR48 -> 0 | AU86: =DataPVBom!AS48 -> 0 | AV86: =DataPVBom!AT48 -> 0 | AW86: =DataPVBom!AU48 -> 0 | AX86: =DataPVBom!AV48 -> 0 | AY86: =DataPVBom!AW48 -> 0 | AZ86: =DataPVBom!AX48 -> 0 | BA86: =DataPVBom!AY48 -> 0 | BB86: =DataPVBom!AZ48 -> 0 | BC86: =DataPVBom!BA48 -> 0 | BD86: =DataPVBom!BB48 -> 0 | BE86: =DataPVBom!BC48 -> 0 | BF86: =DataPVBom!BD48 -> 0 | BG86: =DataPVBom!BE48 -> 0 | BH86: =DataPVBom!BF48 -> 0 | BI86: =DataPVBom!BG48 -> 0 | BJ86: =DataPVBom!BH48 -> 0 | BK86: =DataPVBom!BI48 -> 0 | BL86: =DataPVBom!BJ48 -> 0 | BM86: =DataPVBom!BK48 -> 0 | BN86: =DataPVBom!BL48 -> 0 | BO86: =DataPVBom!BM48 -> 0 | BP86: =DataPVBom!BN48 -> 0 | BQ86: =DataPVBom!BO48 -> 0 | BR86: =DataPVBom!BP48 -> 0 | BS86: =DataPVBom!BQ48 -> 0 | BT86: =DataPVBom!BR48 -> 0 | BU86: =DataPVBom!BS48 -> 0 | BV86: =DataPVBom!BT48 -> 0 | BW86: =DataPVBom!BU48 -> 0 | BX86: =DataPVBom!BV48 -> 0 | BY86: =DataPVBom!BW48 -> 0 | BZ86: =DataPVBom!BX48 -> 0 | CA86: =DataPVBom!BY48 -> 0 | CB86: =DataPVBom!BZ48 -> 0 | CC86: =DataPVBom!CA48 -> 0 | CD86: =DataPVBom!CB48 -> 0 | CE86: =DataPVBom!CC48 -> 0 | CF86: =DataPVBom!CD48 -> 0 | CG86: =DataPVBom!CE48 -> 0 | CH86: =DataPVBom!CF48 -> 0 | CI86: =DataPVBom!CG48 -> 0 | CJ86: =DataPVBom!CH48 -> 0 | CK86: =DataPVBom!CI48 -> 0 | CL86: =DataPVBom!CJ48 -> 0 | CM86: =DataPVBom!CK48 -> 0 | CN86: =DataPVBom!CL48 -> 0 | CO86: =DataPVBom!CM48 -> 0 | CP86: =DataPVBom!CN48 -> 0
A87: 49 | C87: =DataPVBom!A49 -> 0 | D87: =DataPVBom!B49 -> 0 | E87: =DataPVBom!C49 -> 0 | F87: =DataPVBom!D49 -> 0 | G87: =DataPVBom!E49 -> 0 | H87: =DataPVBom!F49 -> 0 | I87: =DataPVBom!G49 -> 0 | J87: =DataPVBom!H49 -> 0 | K87: =DataPVBom!I49 -> 0 | L87: =DataPVBom!J49 -> 0 | M87: =DataPVBom!K49 -> 0 | N87: =DataPVBom!L49 -> 0 | O87: =DataPVBom!M49 -> 0 | P87: =DataPVBom!N49 -> 0 | Q87: =DataPVBom!O49 -> 0 | R87: =DataPVBom!P49 -> 0 | S87: =DataPVBom!Q49 -> 0 | T87: =DataPVBom!R49 -> 0 | U87: =DataPVBom!S49 -> 0 | V87: =DataPVBom!T49 -> 0 | W87: =DataPVBom!U49 -> 0 | X87: =DataPVBom!V49 -> 0 | Y87: =DataPVBom!W49 -> 0 | Z87: =DataPVBom!X49 -> 0 | AA87: =DataPVBom!Y49 -> 0 | AB87: =DataPVBom!Z49 -> 0 | AC87: =DataPVBom!AA49 -> 0 | AD87: =DataPVBom!AB49 -> 0 | AE87: =DataPVBom!AC49 -> 0 | AF87: =DataPVBom!AD49 -> 0 | AG87: =DataPVBom!AE49 -> 0 | AH87: =DataPVBom!AF49 -> 0 | AI87: =DataPVBom!AG49 -> 0 | AJ87: =DataPVBom!AH49 -> 0 | AK87: =DataPVBom!AI49 -> 0 | AL87: =DataPVBom!AJ49 -> 0 | AM87: =DataPVBom!AK49 -> 0 | AN87: =DataPVBom!AL49 -> 0 | AO87: =DataPVBom!AM49 -> 0 | AP87: =DataPVBom!AN49 -> 0 | AQ87: =DataPVBom!AO49 -> 0 | AR87: =DataPVBom!AP49 -> 0 | AS87: =DataPVBom!AQ49 -> 0 | AT87: =DataPVBom!AR49 -> 0 | AU87: =DataPVBom!AS49 -> 0 | AV87: =DataPVBom!AT49 -> 0 | AW87: =DataPVBom!AU49 -> 0 | AX87: =DataPVBom!AV49 -> 0 | AY87: =DataPVBom!AW49 -> 0 | AZ87: =DataPVBom!AX49 -> 0 | BA87: =DataPVBom!AY49 -> 0 | BB87: =DataPVBom!AZ49 -> 0 | BC87: =DataPVBom!BA49 -> 0 | BD87: =DataPVBom!BB49 -> 0 | BE87: =DataPVBom!BC49 -> 0 | BF87: =DataPVBom!BD49 -> 0 | BG87: =DataPVBom!BE49 -> 0 | BH87: =DataPVBom!BF49 -> 0 | BI87: =DataPVBom!BG49 -> 0 | BJ87: =DataPVBom!BH49 -> 0 | BK87: =DataPVBom!BI49 -> 0 | BL87: =DataPVBom!BJ49 -> 0 | BM87: =DataPVBom!BK49 -> 0 | BN87: =DataPVBom!BL49 -> 0 | BO87: =DataPVBom!BM49 -> 0 | BP87: =DataPVBom!BN49 -> 0 | BQ87: =DataPVBom!BO49 -> 0 | BR87: =DataPVBom!BP49 -> 0 | BS87: =DataPVBom!BQ49 -> 0 | BT87: =DataPVBom!BR49 -> 0 | BU87: =DataPVBom!BS49 -> 0 | BV87: =DataPVBom!BT49 -> 0 | BW87: =DataPVBom!BU49 -> 0 | BX87: =DataPVBom!BV49 -> 0 | BY87: =DataPVBom!BW49 -> 0 | BZ87: =DataPVBom!BX49 -> 0 | CA87: =DataPVBom!BY49 -> 0 | CB87: =DataPVBom!BZ49 -> 0 | CC87: =DataPVBom!CA49 -> 0 | CD87: =DataPVBom!CB49 -> 0 | CE87: =DataPVBom!CC49 -> 0 | CF87: =DataPVBom!CD49 -> 0 | CG87: =DataPVBom!CE49 -> 0 | CH87: =DataPVBom!CF49 -> 0 | CI87: =DataPVBom!CG49 -> 0 | CJ87: =DataPVBom!CH49 -> 0 | CK87: =DataPVBom!CI49 -> 0 | CL87: =DataPVBom!CJ49 -> 0 | CM87: =DataPVBom!CK49 -> 0 | CN87: =DataPVBom!CL49 -> 0 | CO87: =DataPVBom!CM49 -> 0 | CP87: =DataPVBom!CN49 -> 0
A88: 50 | C88: =DataPVBom!A50 -> 0 | D88: =DataPVBom!B50 -> 0 | E88: =DataPVBom!C50 -> 0 | F88: =DataPVBom!D50 -> 0 | G88: =DataPVBom!E50 -> 0 | H88: =DataPVBom!F50 -> 0 | I88: =DataPVBom!G50 -> 0 | J88: =DataPVBom!H50 -> 0 | K88: =DataPVBom!I50 -> 0 | L88: =DataPVBom!J50 -> 0 | M88: =DataPVBom!K50 -> 0 | N88: =DataPVBom!L50 -> 0 | O88: =DataPVBom!M50 -> 0 | P88: =DataPVBom!N50 -> 0 | Q88: =DataPVBom!O50 -> 0 | R88: =DataPVBom!P50 -> 0 | S88: =DataPVBom!Q50 -> 0 | T88: =DataPVBom!R50 -> 0 | U88: =DataPVBom!S50 -> 0 | V88: =DataPVBom!T50 -> 0 | W88: =DataPVBom!U50 -> 0 | X88: =DataPVBom!V50 -> 0 | Y88: =DataPVBom!W50 -> 0 | Z88: =DataPVBom!X50 -> 0 | AA88: =DataPVBom!Y50 -> 0 | AB88: =DataPVBom!Z50 -> 0 | AC88: =DataPVBom!AA50 -> 0 | AD88: =DataPVBom!AB50 -> 0 | AE88: =DataPVBom!AC50 -> 0 | AF88: =DataPVBom!AD50 -> 0 | AG88: =DataPVBom!AE50 -> 0 | AH88: =DataPVBom!AF50 -> 0 | AI88: =DataPVBom!AG50 -> 0 | AJ88: =DataPVBom!AH50 -> 0 | AK88: =DataPVBom!AI50 -> 0 | AL88: =DataPVBom!AJ50 -> 0 | AM88: =DataPVBom!AK50 -> 0 | AN88: =DataPVBom!AL50 -> 0 | AO88: =DataPVBom!AM50 -> 0 | AP88: =DataPVBom!AN50 -> 0 | AQ88: =DataPVBom!AO50 -> 0 | AR88: =DataPVBom!AP50 -> 0 | AS88: =DataPVBom!AQ50 -> 0 | AT88: =DataPVBom!AR50 -> 0 | AU88: =DataPVBom!AS50 -> 0 | AV88: =DataPVBom!AT50 -> 0 | AW88: =DataPVBom!AU50 -> 0 | AX88: =DataPVBom!AV50 -> 0 | AY88: =DataPVBom!AW50 -> 0 | AZ88: =DataPVBom!AX50 -> 0 | BA88: =DataPVBom!AY50 -> 0 | BB88: =DataPVBom!AZ50 -> 0 | BC88: =DataPVBom!BA50 -> 0 | BD88: =DataPVBom!BB50 -> 0 | BE88: =DataPVBom!BC50 -> 0 | BF88: =DataPVBom!BD50 -> 0 | BG88: =DataPVBom!BE50 -> 0 | BH88: =DataPVBom!BF50 -> 0 | BI88: =DataPVBom!BG50 -> 0 | BJ88: =DataPVBom!BH50 -> 0 | BK88: =DataPVBom!BI50 -> 0 | BL88: =DataPVBom!BJ50 -> 0 | BM88: =DataPVBom!BK50 -> 0 | BN88: =DataPVBom!BL50 -> 0 | BO88: =DataPVBom!BM50 -> 0 | BP88: =DataPVBom!BN50 -> 0 | BQ88: =DataPVBom!BO50 -> 0 | BR88: =DataPVBom!BP50 -> 0 | BS88: =DataPVBom!BQ50 -> 0 | BT88: =DataPVBom!BR50 -> 0 | BU88: =DataPVBom!BS50 -> 0 | BV88: =DataPVBom!BT50 -> 0 | BW88: =DataPVBom!BU50 -> 0 | BX88: =DataPVBom!BV50 -> 0 | BY88: =DataPVBom!BW50 -> 0 | BZ88: =DataPVBom!BX50 -> 0 | CA88: =DataPVBom!BY50 -> 0 | CB88: =DataPVBom!BZ50 -> 0 | CC88: =DataPVBom!CA50 -> 0 | CD88: =DataPVBom!CB50 -> 0 | CE88: =DataPVBom!CC50 -> 0 | CF88: =DataPVBom!CD50 -> 0 | CG88: =DataPVBom!CE50 -> 0 | CH88: =DataPVBom!CF50 -> 0 | CI88: =DataPVBom!CG50 -> 0 | CJ88: =DataPVBom!CH50 -> 0 | CK88: =DataPVBom!CI50 -> 0 | CL88: =DataPVBom!CJ50 -> 0 | CM88: =DataPVBom!CK50 -> 0 | CN88: =DataPVBom!CL50 -> 0 | CO88: =DataPVBom!CM50 -> 0 | CP88: =DataPVBom!CN50 -> 0
A89: 51 | C89: =DataPVBom!A51 -> 0 | D89: =DataPVBom!B51 -> 0 | E89: =DataPVBom!C51 -> 0 | F89: =DataPVBom!D51 -> 0 | G89: =DataPVBom!E51 -> 0 | H89: =DataPVBom!F51 -> 0 | I89: =DataPVBom!G51 -> 0 | J89: =DataPVBom!H51 -> 0 | K89: =DataPVBom!I51 -> 0 | L89: =DataPVBom!J51 -> 0 | M89: =DataPVBom!K51 -> 0 | N89: =DataPVBom!L51 -> 0 | O89: =DataPVBom!M51 -> 0 | P89: =DataPVBom!N51 -> 0 | Q89: =DataPVBom!O51 -> 0 | R89: =DataPVBom!P51 -> 0 | S89: =DataPVBom!Q51 -> 0 | T89: =DataPVBom!R51 -> 0 | U89: =DataPVBom!S51 -> 0 | V89: =DataPVBom!T51 -> 0 | W89: =DataPVBom!U51 -> 0 | X89: =DataPVBom!V51 -> 0 | Y89: =DataPVBom!W51 -> 0 | Z89: =DataPVBom!X51 -> 0 | AA89: =DataPVBom!Y51 -> 0 | AB89: =DataPVBom!Z51 -> 0 | AC89: =DataPVBom!AA51 -> 0 | AD89: =DataPVBom!AB51 -> 0 | AE89: =DataPVBom!AC51 -> 0 | AF89: =DataPVBom!AD51 -> 0 | AG89: =DataPVBom!AE51 -> 0 | AH89: =DataPVBom!AF51 -> 0 | AI89: =DataPVBom!AG51 -> 0 | AJ89: =DataPVBom!AH51 -> 0 | AK89: =DataPVBom!AI51 -> 0 | AL89: =DataPVBom!AJ51 -> 0 | AM89: =DataPVBom!AK51 -> 0 | AN89: =DataPVBom!AL51 -> 0 | AO89: =DataPVBom!AM51 -> 0 | AP89: =DataPVBom!AN51 -> 0 | AQ89: =DataPVBom!AO51 -> 0 | AR89: =DataPVBom!AP51 -> 0 | AS89: =DataPVBom!AQ51 -> 0 | AT89: =DataPVBom!AR51 -> 0 | AU89: =DataPVBom!AS51 -> 0 | AV89: =DataPVBom!AT51 -> 0 | AW89: =DataPVBom!AU51 -> 0 | AX89: =DataPVBom!AV51 -> 0 | AY89: =DataPVBom!AW51 -> 0 | AZ89: =DataPVBom!AX51 -> 0 | BA89: =DataPVBom!AY51 -> 0 | BB89: =DataPVBom!AZ51 -> 0 | BC89: =DataPVBom!BA51 -> 0 | BD89: =DataPVBom!BB51 -> 0 | BE89: =DataPVBom!BC51 -> 0 | BF89: =DataPVBom!BD51 -> 0 | BG89: =DataPVBom!BE51 -> 0 | BH89: =DataPVBom!BF51 -> 0 | BI89: =DataPVBom!BG51 -> 0 | BJ89: =DataPVBom!BH51 -> 0 | BK89: =DataPVBom!BI51 -> 0 | BL89: =DataPVBom!BJ51 -> 0 | BM89: =DataPVBom!BK51 -> 0 | BN89: =DataPVBom!BL51 -> 0 | BO89: =DataPVBom!BM51 -> 0 | BP89: =DataPVBom!BN51 -> 0 | BQ89: =DataPVBom!BO51 -> 0 | BR89: =DataPVBom!BP51 -> 0 | BS89: =DataPVBom!BQ51 -> 0 | BT89: =DataPVBom!BR51 -> 0 | BU89: =DataPVBom!BS51 -> 0 | BV89: =DataPVBom!BT51 -> 0 | BW89: =DataPVBom!BU51 -> 0 | BX89: =DataPVBom!BV51 -> 0 | BY89: =DataPVBom!BW51 -> 0 | BZ89: =DataPVBom!BX51 -> 0 | CA89: =DataPVBom!BY51 -> 0 | CB89: =DataPVBom!BZ51 -> 0 | CC89: =DataPVBom!CA51 -> 0 | CD89: =DataPVBom!CB51 -> 0 | CE89: =DataPVBom!CC51 -> 0 | CF89: =DataPVBom!CD51 -> 0 | CG89: =DataPVBom!CE51 -> 0 | CH89: =DataPVBom!CF51 -> 0 | CI89: =DataPVBom!CG51 -> 0 | CJ89: =DataPVBom!CH51 -> 0 | CK89: =DataPVBom!CI51 -> 0 | CL89: =DataPVBom!CJ51 -> 0 | CM89: =DataPVBom!CK51 -> 0 | CN89: =DataPVBom!CL51 -> 0 | CO89: =DataPVBom!CM51 -> 0 | CP89: =DataPVBom!CN51 -> 0
A90: 52 | C90: =DataPVBom!A52 -> 0 | D90: =DataPVBom!B52 -> 0 | E90: =DataPVBom!C52 -> 0 | F90: =DataPVBom!D52 -> 0 | G90: =DataPVBom!E52 -> 0 | H90: =DataPVBom!F52 -> 0 | I90: =DataPVBom!G52 -> 0 | J90: =DataPVBom!H52 -> 0 | K90: =DataPVBom!I52 -> 0 | L90: =DataPVBom!J52 -> 0 | M90: =DataPVBom!K52 -> 0 | N90: =DataPVBom!L52 -> 0 | O90: =DataPVBom!M52 -> 0 | P90: =DataPVBom!N52 -> 0 | Q90: =DataPVBom!O52 -> 0 | R90: =DataPVBom!P52 -> 0 | S90: =DataPVBom!Q52 -> 0 | T90: =DataPVBom!R52 -> 0 | U90: =DataPVBom!S52 -> 0 | V90: =DataPVBom!T52 -> 0 | W90: =DataPVBom!U52 -> 0 | X90: =DataPVBom!V52 -> 0 | Y90: =DataPVBom!W52 -> 0 | Z90: =DataPVBom!X52 -> 0 | AA90: =DataPVBom!Y52 -> 0 | AB90: =DataPVBom!Z52 -> 0 | AC90: =DataPVBom!AA52 -> 0 | AD90: =DataPVBom!AB52 -> 0 | AE90: =DataPVBom!AC52 -> 0 | AF90: =DataPVBom!AD52 -> 0 | AG90: =DataPVBom!AE52 -> 0 | AH90: =DataPVBom!AF52 -> 0 | AI90: =DataPVBom!AG52 -> 0 | AJ90: =DataPVBom!AH52 -> 0 | AK90: =DataPVBom!AI52 -> 0 | AL90: =DataPVBom!AJ52 -> 0 | AM90: =DataPVBom!AK52 -> 0 | AN90: =DataPVBom!AL52 -> 0 | AO90: =DataPVBom!AM52 -> 0 | AP90: =DataPVBom!AN52 -> 0 | AQ90: =DataPVBom!AO52 -> 0 | AR90: =DataPVBom!AP52 -> 0 | AS90: =DataPVBom!AQ52 -> 0 | AT90: =DataPVBom!AR52 -> 0 | AU90: =DataPVBom!AS52 -> 0 | AV90: =DataPVBom!AT52 -> 0 | AW90: =DataPVBom!AU52 -> 0 | AX90: =DataPVBom!AV52 -> 0 | AY90: =DataPVBom!AW52 -> 0 | AZ90: =DataPVBom!AX52 -> 0 | BA90: =DataPVBom!AY52 -> 0 | BB90: =DataPVBom!AZ52 -> 0 | BC90: =DataPVBom!BA52 -> 0 | BD90: =DataPVBom!BB52 -> 0 | BE90: =DataPVBom!BC52 -> 0 | BF90: =DataPVBom!BD52 -> 0 | BG90: =DataPVBom!BE52 -> 0 | BH90: =DataPVBom!BF52 -> 0 | BI90: =DataPVBom!BG52 -> 0 | BJ90: =DataPVBom!BH52 -> 0 | BK90: =DataPVBom!BI52 -> 0 | BL90: =DataPVBom!BJ52 -> 0 | BM90: =DataPVBom!BK52 -> 0 | BN90: =DataPVBom!BL52 -> 0 | BO90: =DataPVBom!BM52 -> 0 | BP90: =DataPVBom!BN52 -> 0 | BQ90: =DataPVBom!BO52 -> 0 | BR90: =DataPVBom!BP52 -> 0 | BS90: =DataPVBom!BQ52 -> 0 | BT90: =DataPVBom!BR52 -> 0 | BU90: =DataPVBom!BS52 -> 0 | BV90: =DataPVBom!BT52 -> 0 | BW90: =DataPVBom!BU52 -> 0 | BX90: =DataPVBom!BV52 -> 0 | BY90: =DataPVBom!BW52 -> 0 | BZ90: =DataPVBom!BX52 -> 0 | CA90: =DataPVBom!BY52 -> 0 | CB90: =DataPVBom!BZ52 -> 0 | CC90: =DataPVBom!CA52 -> 0 | CD90: =DataPVBom!CB52 -> 0 | CE90: =DataPVBom!CC52 -> 0 | CF90: =DataPVBom!CD52 -> 0 | CG90: =DataPVBom!CE52 -> 0 | CH90: =DataPVBom!CF52 -> 0 | CI90: =DataPVBom!CG52 -> 0 | CJ90: =DataPVBom!CH52 -> 0 | CK90: =DataPVBom!CI52 -> 0 | CL90: =DataPVBom!CJ52 -> 0 | CM90: =DataPVBom!CK52 -> 0 | CN90: =DataPVBom!CL52 -> 0 | CO90: =DataPVBom!CM52 -> 0 | CP90: =DataPVBom!CN52 -> 0
A91: 53 | C91: =DataPVBom!A53 -> 0 | D91: =DataPVBom!B53 -> 0 | E91: =DataPVBom!C53 -> 0 | F91: =DataPVBom!D53 -> 0 | G91: =DataPVBom!E53 -> 0 | H91: =DataPVBom!F53 -> 0 | I91: =DataPVBom!G53 -> 0 | J91: =DataPVBom!H53 -> 0 | K91: =DataPVBom!I53 -> 0 | L91: =DataPVBom!J53 -> 0 | M91: =DataPVBom!K53 -> 0 | N91: =DataPVBom!L53 -> 0 | O91: =DataPVBom!M53 -> 0 | P91: =DataPVBom!N53 -> 0 | Q91: =DataPVBom!O53 -> 0 | R91: =DataPVBom!P53 -> 0 | S91: =DataPVBom!Q53 -> 0 | T91: =DataPVBom!R53 -> 0 | U91: =DataPVBom!S53 -> 0 | V91: =DataPVBom!T53 -> 0 | W91: =DataPVBom!U53 -> 0 | X91: =DataPVBom!V53 -> 0 | Y91: =DataPVBom!W53 -> 0 | Z91: =DataPVBom!X53 -> 0 | AA91: =DataPVBom!Y53 -> 0 | AB91: =DataPVBom!Z53 -> 0 | AC91: =DataPVBom!AA53 -> 0 | AD91: =DataPVBom!AB53 -> 0 | AE91: =DataPVBom!AC53 -> 0 | AF91: =DataPVBom!AD53 -> 0 | AG91: =DataPVBom!AE53 -> 0 | AH91: =DataPVBom!AF53 -> 0 | AI91: =DataPVBom!AG53 -> 0 | AJ91: =DataPVBom!AH53 -> 0 | AK91: =DataPVBom!AI53 -> 0 | AL91: =DataPVBom!AJ53 -> 0 | AM91: =DataPVBom!AK53 -> 0 | AN91: =DataPVBom!AL53 -> 0 | AO91: =DataPVBom!AM53 -> 0 | AP91: =DataPVBom!AN53 -> 0 | AQ91: =DataPVBom!AO53 -> 0 | AR91: =DataPVBom!AP53 -> 0 | AS91: =DataPVBom!AQ53 -> 0 | AT91: =DataPVBom!AR53 -> 0 | AU91: =DataPVBom!AS53 -> 0 | AV91: =DataPVBom!AT53 -> 0 | AW91: =DataPVBom!AU53 -> 0 | AX91: =DataPVBom!AV53 -> 0 | AY91: =DataPVBom!AW53 -> 0 | AZ91: =DataPVBom!AX53 -> 0 | BA91: =DataPVBom!AY53 -> 0 | BB91: =DataPVBom!AZ53 -> 0 | BC91: =DataPVBom!BA53 -> 0 | BD91: =DataPVBom!BB53 -> 0 | BE91: =DataPVBom!BC53 -> 0 | BF91: =DataPVBom!BD53 -> 0 | BG91: =DataPVBom!BE53 -> 0 | BH91: =DataPVBom!BF53 -> 0 | BI91: =DataPVBom!BG53 -> 0 | BJ91: =DataPVBom!BH53 -> 0 | BK91: =DataPVBom!BI53 -> 0 | BL91: =DataPVBom!BJ53 -> 0 | BM91: =DataPVBom!BK53 -> 0 | BN91: =DataPVBom!BL53 -> 0 | BO91: =DataPVBom!BM53 -> 0 | BP91: =DataPVBom!BN53 -> 0 | BQ91: =DataPVBom!BO53 -> 0 | BR91: =DataPVBom!BP53 -> 0 | BS91: =DataPVBom!BQ53 -> 0 | BT91: =DataPVBom!BR53 -> 0 | BU91: =DataPVBom!BS53 -> 0 | BV91: =DataPVBom!BT53 -> 0 | BW91: =DataPVBom!BU53 -> 0 | BX91: =DataPVBom!BV53 -> 0 | BY91: =DataPVBom!BW53 -> 0 | BZ91: =DataPVBom!BX53 -> 0 | CA91: =DataPVBom!BY53 -> 0 | CB91: =DataPVBom!BZ53 -> 0 | CC91: =DataPVBom!CA53 -> 0 | CD91: =DataPVBom!CB53 -> 0 | CE91: =DataPVBom!CC53 -> 0 | CF91: =DataPVBom!CD53 -> 0 | CG91: =DataPVBom!CE53 -> 0 | CH91: =DataPVBom!CF53 -> 0 | CI91: =DataPVBom!CG53 -> 0 | CJ91: =DataPVBom!CH53 -> 0 | CK91: =DataPVBom!CI53 -> 0 | CL91: =DataPVBom!CJ53 -> 0 | CM91: =DataPVBom!CK53 -> 0 | CN91: =DataPVBom!CL53 -> 0 | CO91: =DataPVBom!CM53 -> 0 | CP91: =DataPVBom!CN53 -> 0
A92: 54 | C92: =DataPVBom!A54 -> 0 | D92: =DataPVBom!B54 -> 0 | E92: =DataPVBom!C54 -> 0 | F92: =DataPVBom!D54 -> 0 | G92: =DataPVBom!E54 -> 0 | H92: =DataPVBom!F54 -> 0 | I92: =DataPVBom!G54 -> 0 | J92: =DataPVBom!H54 -> 0 | K92: =DataPVBom!I54 -> 0 | L92: =DataPVBom!J54 -> 0 | M92: =DataPVBom!K54 -> 0 | N92: =DataPVBom!L54 -> 0 | O92: =DataPVBom!M54 -> 0 | P92: =DataPVBom!N54 -> 0 | Q92: =DataPVBom!O54 -> 0 | R92: =DataPVBom!P54 -> 0 | S92: =DataPVBom!Q54 -> 0 | T92: =DataPVBom!R54 -> 0 | U92: =DataPVBom!S54 -> 0 | V92: =DataPVBom!T54 -> 0 | W92: =DataPVBom!U54 -> 0 | X92: =DataPVBom!V54 -> 0 | Y92: =DataPVBom!W54 -> 0 | Z92: =DataPVBom!X54 -> 0 | AA92: =DataPVBom!Y54 -> 0 | AB92: =DataPVBom!Z54 -> 0 | AC92: =DataPVBom!AA54 -> 0 | AD92: =DataPVBom!AB54 -> 0 | AE92: =DataPVBom!AC54 -> 0 | AF92: =DataPVBom!AD54 -> 0 | AG92: =DataPVBom!AE54 -> 0 | AH92: =DataPVBom!AF54 -> 0 | AI92: =DataPVBom!AG54 -> 0 | AJ92: =DataPVBom!AH54 -> 0 | AK92: =DataPVBom!AI54 -> 0 | AL92: =DataPVBom!AJ54 -> 0 | AM92: =DataPVBom!AK54 -> 0 | AN92: =DataPVBom!AL54 -> 0 | AO92: =DataPVBom!AM54 -> 0 | AP92: =DataPVBom!AN54 -> 0 | AQ92: =DataPVBom!AO54 -> 0 | AR92: =DataPVBom!AP54 -> 0 | AS92: =DataPVBom!AQ54 -> 0 | AT92: =DataPVBom!AR54 -> 0 | AU92: =DataPVBom!AS54 -> 0 | AV92: =DataPVBom!AT54 -> 0 | AW92: =DataPVBom!AU54 -> 0 | AX92: =DataPVBom!AV54 -> 0 | AY92: =DataPVBom!AW54 -> 0 | AZ92: =DataPVBom!AX54 -> 0 | BA92: =DataPVBom!AY54 -> 0 | BB92: =DataPVBom!AZ54 -> 0 | BC92: =DataPVBom!BA54 -> 0 | BD92: =DataPVBom!BB54 -> 0 | BE92: =DataPVBom!BC54 -> 0 | BF92: =DataPVBom!BD54 -> 0 | BG92: =DataPVBom!BE54 -> 0 | BH92: =DataPVBom!BF54 -> 0 | BI92: =DataPVBom!BG54 -> 0 | BJ92: =DataPVBom!BH54 -> 0 | BK92: =DataPVBom!BI54 -> 0 | BL92: =DataPVBom!BJ54 -> 0 | BM92: =DataPVBom!BK54 -> 0 | BN92: =DataPVBom!BL54 -> 0 | BO92: =DataPVBom!BM54 -> 0 | BP92: =DataPVBom!BN54 -> 0 | BQ92: =DataPVBom!BO54 -> 0 | BR92: =DataPVBom!BP54 -> 0 | BS92: =DataPVBom!BQ54 -> 0 | BT92: =DataPVBom!BR54 -> 0 | BU92: =DataPVBom!BS54 -> 0 | BV92: =DataPVBom!BT54 -> 0 | BW92: =DataPVBom!BU54 -> 0 | BX92: =DataPVBom!BV54 -> 0 | BY92: =DataPVBom!BW54 -> 0 | BZ92: =DataPVBom!BX54 -> 0 | CA92: =DataPVBom!BY54 -> 0 | CB92: =DataPVBom!BZ54 -> 0 | CC92: =DataPVBom!CA54 -> 0 | CD92: =DataPVBom!CB54 -> 0 | CE92: =DataPVBom!CC54 -> 0 | CF92: =DataPVBom!CD54 -> 0 | CG92: =DataPVBom!CE54 -> 0 | CH92: =DataPVBom!CF54 -> 0 | CI92: =DataPVBom!CG54 -> 0 | CJ92: =DataPVBom!CH54 -> 0 | CK92: =DataPVBom!CI54 -> 0 | CL92: =DataPVBom!CJ54 -> 0 | CM92: =DataPVBom!CK54 -> 0 | CN92: =DataPVBom!CL54 -> 0 | CO92: =DataPVBom!CM54 -> 0 | CP92: =DataPVBom!CN54 -> 0
A93: 55 | C93: =DataPVBom!A55 -> 0 | D93: =DataPVBom!B55 -> 0 | E93: =DataPVBom!C55 -> 0 | F93: =DataPVBom!D55 -> 0 | G93: =DataPVBom!E55 -> 0 | H93: =DataPVBom!F55 -> 0 | I93: =DataPVBom!G55 -> 0 | J93: =DataPVBom!H55 -> 0 | K93: =DataPVBom!I55 -> 0 | L93: =DataPVBom!J55 -> 0 | M93: =DataPVBom!K55 -> 0 | N93: =DataPVBom!L55 -> 0 | O93: =DataPVBom!M55 -> 0 | P93: =DataPVBom!N55 -> 0 | Q93: =DataPVBom!O55 -> 0 | R93: =DataPVBom!P55 -> 0 | S93: =DataPVBom!Q55 -> 0 | T93: =DataPVBom!R55 -> 0 | U93: =DataPVBom!S55 -> 0 | V93: =DataPVBom!T55 -> 0 | W93: =DataPVBom!U55 -> 0 | X93: =DataPVBom!V55 -> 0 | Y93: =DataPVBom!W55 -> 0 | Z93: =DataPVBom!X55 -> 0 | AA93: =DataPVBom!Y55 -> 0 | AB93: =DataPVBom!Z55 -> 0 | AC93: =DataPVBom!AA55 -> 0 | AD93: =DataPVBom!AB55 -> 0 | AE93: =DataPVBom!AC55 -> 0 | AF93: =DataPVBom!AD55 -> 0 | AG93: =DataPVBom!AE55 -> 0 | AH93: =DataPVBom!AF55 -> 0 | AI93: =DataPVBom!AG55 -> 0 | AJ93: =DataPVBom!AH55 -> 0 | AK93: =DataPVBom!AI55 -> 0 | AL93: =DataPVBom!AJ55 -> 0 | AM93: =DataPVBom!AK55 -> 0 | AN93: =DataPVBom!AL55 -> 0 | AO93: =DataPVBom!AM55 -> 0 | AP93: =DataPVBom!AN55 -> 0 | AQ93: =DataPVBom!AO55 -> 0 | AR93: =DataPVBom!AP55 -> 0 | AS93: =DataPVBom!AQ55 -> 0 | AT93: =DataPVBom!AR55 -> 0 | AU93: =DataPVBom!AS55 -> 0 | AV93: =DataPVBom!AT55 -> 0 | AW93: =DataPVBom!AU55 -> 0 | AX93: =DataPVBom!AV55 -> 0 | AY93: =DataPVBom!AW55 -> 0 | AZ93: =DataPVBom!AX55 -> 0 | BA93: =DataPVBom!AY55 -> 0 | BB93: =DataPVBom!AZ55 -> 0 | BC93: =DataPVBom!BA55 -> 0 | BD93: =DataPVBom!BB55 -> 0 | BE93: =DataPVBom!BC55 -> 0 | BF93: =DataPVBom!BD55 -> 0 | BG93: =DataPVBom!BE55 -> 0 | BH93: =DataPVBom!BF55 -> 0 | BI93: =DataPVBom!BG55 -> 0 | BJ93: =DataPVBom!BH55 -> 0 | BK93: =DataPVBom!BI55 -> 0 | BL93: =DataPVBom!BJ55 -> 0 | BM93: =DataPVBom!BK55 -> 0 | BN93: =DataPVBom!BL55 -> 0 | BO93: =DataPVBom!BM55 -> 0 | BP93: =DataPVBom!BN55 -> 0 | BQ93: =DataPVBom!BO55 -> 0 | BR93: =DataPVBom!BP55 -> 0 | BS93: =DataPVBom!BQ55 -> 0 | BT93: =DataPVBom!BR55 -> 0 | BU93: =DataPVBom!BS55 -> 0 | BV93: =DataPVBom!BT55 -> 0 | BW93: =DataPVBom!BU55 -> 0 | BX93: =DataPVBom!BV55 -> 0 | BY93: =DataPVBom!BW55 -> 0 | BZ93: =DataPVBom!BX55 -> 0 | CA93: =DataPVBom!BY55 -> 0 | CB93: =DataPVBom!BZ55 -> 0 | CC93: =DataPVBom!CA55 -> 0 | CD93: =DataPVBom!CB55 -> 0 | CE93: =DataPVBom!CC55 -> 0 | CF93: =DataPVBom!CD55 -> 0 | CG93: =DataPVBom!CE55 -> 0 | CH93: =DataPVBom!CF55 -> 0 | CI93: =DataPVBom!CG55 -> 0 | CJ93: =DataPVBom!CH55 -> 0 | CK93: =DataPVBom!CI55 -> 0 | CL93: =DataPVBom!CJ55 -> 0 | CM93: =DataPVBom!CK55 -> 0 | CN93: =DataPVBom!CL55 -> 0 | CO93: =DataPVBom!CM55 -> 0 | CP93: =DataPVBom!CN55 -> 0
A94: 56 | C94: =DataPVBom!A56 -> 0 | D94: =DataPVBom!B56 -> 0 | E94: =DataPVBom!C56 -> 0 | F94: =DataPVBom!D56 -> 0 | G94: =DataPVBom!E56 -> 0 | H94: =DataPVBom!F56 -> 0 | I94: =DataPVBom!G56 -> 0 | J94: =DataPVBom!H56 -> 0 | K94: =DataPVBom!I56 -> 0 | L94: =DataPVBom!J56 -> 0 | M94: =DataPVBom!K56 -> 0 | N94: =DataPVBom!L56 -> 0 | O94: =DataPVBom!M56 -> 0 | P94: =DataPVBom!N56 -> 0 | Q94: =DataPVBom!O56 -> 0 | R94: =DataPVBom!P56 -> 0 | S94: =DataPVBom!Q56 -> 0 | T94: =DataPVBom!R56 -> 0 | U94: =DataPVBom!S56 -> 0 | V94: =DataPVBom!T56 -> 0 | W94: =DataPVBom!U56 -> 0 | X94: =DataPVBom!V56 -> 0 | Y94: =DataPVBom!W56 -> 0 | Z94: =DataPVBom!X56 -> 0 | AA94: =DataPVBom!Y56 -> 0 | AB94: =DataPVBom!Z56 -> 0 | AC94: =DataPVBom!AA56 -> 0 | AD94: =DataPVBom!AB56 -> 0 | AE94: =DataPVBom!AC56 -> 0 | AF94: =DataPVBom!AD56 -> 0 | AG94: =DataPVBom!AE56 -> 0 | AH94: =DataPVBom!AF56 -> 0 | AI94: =DataPVBom!AG56 -> 0 | AJ94: =DataPVBom!AH56 -> 0 | AK94: =DataPVBom!AI56 -> 0 | AL94: =DataPVBom!AJ56 -> 0 | AM94: =DataPVBom!AK56 -> 0 | AN94: =DataPVBom!AL56 -> 0 | AO94: =DataPVBom!AM56 -> 0 | AP94: =DataPVBom!AN56 -> 0 | AQ94: =DataPVBom!AO56 -> 0 | AR94: =DataPVBom!AP56 -> 0 | AS94: =DataPVBom!AQ56 -> 0 | AT94: =DataPVBom!AR56 -> 0 | AU94: =DataPVBom!AS56 -> 0 | AV94: =DataPVBom!AT56 -> 0 | AW94: =DataPVBom!AU56 -> 0 | AX94: =DataPVBom!AV56 -> 0 | AY94: =DataPVBom!AW56 -> 0 | AZ94: =DataPVBom!AX56 -> 0 | BA94: =DataPVBom!AY56 -> 0 | BB94: =DataPVBom!AZ56 -> 0 | BC94: =DataPVBom!BA56 -> 0 | BD94: =DataPVBom!BB56 -> 0 | BE94: =DataPVBom!BC56 -> 0 | BF94: =DataPVBom!BD56 -> 0 | BG94: =DataPVBom!BE56 -> 0 | BH94: =DataPVBom!BF56 -> 0 | BI94: =DataPVBom!BG56 -> 0 | BJ94: =DataPVBom!BH56 -> 0 | BK94: =DataPVBom!BI56 -> 0 | BL94: =DataPVBom!BJ56 -> 0 | BM94: =DataPVBom!BK56 -> 0 | BN94: =DataPVBom!BL56 -> 0 | BO94: =DataPVBom!BM56 -> 0 | BP94: =DataPVBom!BN56 -> 0 | BQ94: =DataPVBom!BO56 -> 0 | BR94: =DataPVBom!BP56 -> 0 | BS94: =DataPVBom!BQ56 -> 0 | BT94: =DataPVBom!BR56 -> 0 | BU94: =DataPVBom!BS56 -> 0 | BV94: =DataPVBom!BT56 -> 0 | BW94: =DataPVBom!BU56 -> 0 | BX94: =DataPVBom!BV56 -> 0 | BY94: =DataPVBom!BW56 -> 0 | BZ94: =DataPVBom!BX56 -> 0 | CA94: =DataPVBom!BY56 -> 0 | CB94: =DataPVBom!BZ56 -> 0 | CC94: =DataPVBom!CA56 -> 0 | CD94: =DataPVBom!CB56 -> 0 | CE94: =DataPVBom!CC56 -> 0 | CF94: =DataPVBom!CD56 -> 0 | CG94: =DataPVBom!CE56 -> 0 | CH94: =DataPVBom!CF56 -> 0 | CI94: =DataPVBom!CG56 -> 0 | CJ94: =DataPVBom!CH56 -> 0 | CK94: =DataPVBom!CI56 -> 0 | CL94: =DataPVBom!CJ56 -> 0 | CM94: =DataPVBom!CK56 -> 0 | CN94: =DataPVBom!CL56 -> 0 | CO94: =DataPVBom!CM56 -> 0 | CP94: =DataPVBom!CN56 -> 0
A95: 57 | C95: =DataPVBom!A57 -> 0 | D95: =DataPVBom!B57 -> 0 | E95: =DataPVBom!C57 -> 0 | F95: =DataPVBom!D57 -> 0 | G95: =DataPVBom!E57 -> 0 | H95: =DataPVBom!F57 -> 0 | I95: =DataPVBom!G57 -> 0 | J95: =DataPVBom!H57 -> 0 | K95: =DataPVBom!I57 -> 0 | L95: =DataPVBom!J57 -> 0 | M95: =DataPVBom!K57 -> 0 | N95: =DataPVBom!L57 -> 0 | O95: =DataPVBom!M57 -> 0 | P95: =DataPVBom!N57 -> 0 | Q95: =DataPVBom!O57 -> 0 | R95: =DataPVBom!P57 -> 0 | S95: =DataPVBom!Q57 -> 0 | T95: =DataPVBom!R57 -> 0 | U95: =DataPVBom!S57 -> 0 | V95: =DataPVBom!T57 -> 0 | W95: =DataPVBom!U57 -> 0 | X95: =DataPVBom!V57 -> 0 | Y95: =DataPVBom!W57 -> 0 | Z95: =DataPVBom!X57 -> 0 | AA95: =DataPVBom!Y57 -> 0 | AB95: =DataPVBom!Z57 -> 0 | AC95: =DataPVBom!AA57 -> 0 | AD95: =DataPVBom!AB57 -> 0 | AE95: =DataPVBom!AC57 -> 0 | AF95: =DataPVBom!AD57 -> 0 | AG95: =DataPVBom!AE57 -> 0 | AH95: =DataPVBom!AF57 -> 0 | AI95: =DataPVBom!AG57 -> 0 | AJ95: =DataPVBom!AH57 -> 0 | AK95: =DataPVBom!AI57 -> 0 | AL95: =DataPVBom!AJ57 -> 0 | AM95: =DataPVBom!AK57 -> 0 | AN95: =DataPVBom!AL57 -> 0 | AO95: =DataPVBom!AM57 -> 0 | AP95: =DataPVBom!AN57 -> 0 | AQ95: =DataPVBom!AO57 -> 0 | AR95: =DataPVBom!AP57 -> 0 | AS95: =DataPVBom!AQ57 -> 0 | AT95: =DataPVBom!AR57 -> 0 | AU95: =DataPVBom!AS57 -> 0 | AV95: =DataPVBom!AT57 -> 0 | AW95: =DataPVBom!AU57 -> 0 | AX95: =DataPVBom!AV57 -> 0 | AY95: =DataPVBom!AW57 -> 0 | AZ95: =DataPVBom!AX57 -> 0 | BA95: =DataPVBom!AY57 -> 0 | BB95: =DataPVBom!AZ57 -> 0 | BC95: =DataPVBom!BA57 -> 0 | BD95: =DataPVBom!BB57 -> 0 | BE95: =DataPVBom!BC57 -> 0 | BF95: =DataPVBom!BD57 -> 0 | BG95: =DataPVBom!BE57 -> 0 | BH95: =DataPVBom!BF57 -> 0 | BI95: =DataPVBom!BG57 -> 0 | BJ95: =DataPVBom!BH57 -> 0 | BK95: =DataPVBom!BI57 -> 0 | BL95: =DataPVBom!BJ57 -> 0 | BM95: =DataPVBom!BK57 -> 0 | BN95: =DataPVBom!BL57 -> 0 | BO95: =DataPVBom!BM57 -> 0 | BP95: =DataPVBom!BN57 -> 0 | BQ95: =DataPVBom!BO57 -> 0 | BR95: =DataPVBom!BP57 -> 0 | BS95: =DataPVBom!BQ57 -> 0 | BT95: =DataPVBom!BR57 -> 0 | BU95: =DataPVBom!BS57 -> 0 | BV95: =DataPVBom!BT57 -> 0 | BW95: =DataPVBom!BU57 -> 0 | BX95: =DataPVBom!BV57 -> 0 | BY95: =DataPVBom!BW57 -> 0 | BZ95: =DataPVBom!BX57 -> 0 | CA95: =DataPVBom!BY57 -> 0 | CB95: =DataPVBom!BZ57 -> 0 | CC95: =DataPVBom!CA57 -> 0 | CD95: =DataPVBom!CB57 -> 0 | CE95: =DataPVBom!CC57 -> 0 | CF95: =DataPVBom!CD57 -> 0 | CG95: =DataPVBom!CE57 -> 0 | CH95: =DataPVBom!CF57 -> 0 | CI95: =DataPVBom!CG57 -> 0 | CJ95: =DataPVBom!CH57 -> 0 | CK95: =DataPVBom!CI57 -> 0 | CL95: =DataPVBom!CJ57 -> 0 | CM95: =DataPVBom!CK57 -> 0 | CN95: =DataPVBom!CL57 -> 0 | CO95: =DataPVBom!CM57 -> 0 | CP95: =DataPVBom!CN57 -> 0
